Workbook

Sheet 3 (hidden)
A1: Topics in the news
E4: PRINT | F4: RADIO | G4: TELEVISION | O4: TOTAL | P4: COUNT | Q4: TOTAL | R4: =E4 -> PRINT | S4: RADIO | T4: TELEVISION | U4: 0 | V4: 0 | W4: 0 | X4: 0 | Y4: 0
C5: 1 | D5: Politics and Government | E5: 0.1271004961 | F5: 0.05499999877 | G5: 0.06120000221 | O5: =SUM(E5:N5) -> 0.2433004971 | P5: 1 | Q5: 40 | R5: =IF($O5>0,E5/$O5,0) -> 0.5224013005 | S5: 0.2260578973 | T5: 0.2515408022 | U5: 0 | V5: 0 | W5: 0 | X5: 0 | Y5: 0 | AJ5: 1 | AK5: 2
C6: 2 | D6: Economy | E6: 0.04485899862 | F6: 0.02999999933 | G6: 0.0306000011 | O6: =SUM(E6:N6) -> 0.1054589991 | P6: 2 | Q6: 18 | R6: 0.4253690915 | S6: 0.2844707384 | T6: 0.2901601701 | U6: 0 | V6: 0 | W6: 0 | X6: 0 | Y6: 0 | AJ6: 2 | AK6: 0
C7: 3 | D7: Science and Health | E7: 0.01495299954 | F7: 0.004999999888 | G7: 0.04080000147 | O7: 0.0607530009 | P7: 3 | Q7: 11 | R7: 0.246127752 | S7: 0.08230045947 | T7: 0.6715717885 | U7: 0 | V7: 0 | W7: 0 | X7: 0 | Y7: 0 | AJ7: 3 | AK7: 0
C8: 4 | D8: Social and Legal | E8: 0.03738249885 | F8: 0.04499999899 | G8: 0.06120000221 | O8: 0.1435825001 | P8: 4 | Q8: 26 | R8: 0.2603555366 | S8: 0.3134086604 | T8: 0.426235803 | U8: 0 | V8: 0 | W8: 0 | X8: 0 | Y8: 0 | AJ8: 4 | AK8: 0
C9: 5 | D9: Crime and Violence | E9: 0.04485899862 | F9: 0.03999999911 | G9: 0.07650000276 | O9: 0.1613590005 | P9: 5 | Q9: 29 | R9: 0.278007415 | S9: 0.2478944403 | T9: 0.4740981447 | U9: 0 | V9: 0 | W9: 0 | X9: 0 | Y9: 0 | AJ9: 5 | AK9: 0
C10: 6 | D10: Celebrity, Arts and Media, Sports | E10: 0.06728849793 | F10: 0.01499999966 | G10: 0.02550000092 | O10: 0.1077884985 | P10: 6 | Q10: 17 | R10: 0.6242641734 | S10: 0.1391614121 | T10: 0.2365744144 | U10: 0 | V10: 0 | W10: 0 | X10: 0 | Y10: 0 | AJ10: 6 | AK10: 0
C11: 7 | D11: The Girl-child | O11: 0 | P11: 7 | Q11: 0 | R11: 0 | S11: 0 | T11: 0 | U11: 0 | V11: 0 | W11: 0 | X11: 0 | Y11: 0 | AJ11: 7 | AK11: 0
C12: 8 | D12: Other | G12: 0.005100000184 | O12: 0.005100000184 | P12: 8 | Q12: 1 | R12: 0 | S12: 0 | T12: 1 | U12: 0 | V12: 0 | W12: 0 | X12: 0 | Y12: 0 | AJ12: 8 | AK12: 0
U13: 0 | V13: 0 | W13: 0 | X13: 0 | Y13: 0
D51: TOTAL | E51: =SUM(E5:E50) -> 0.3364424896 | F51: 0.1899999958 | G51: 0.3009000109 | H51: 0 | I51: 0 | J51: 0 | K51: 0 | L51: 0 | M51: 0 | N51: 0 | O51: 0.8273424963
C53: =C5 -> 1 | D53: Politics and Government | E53: =IF(E$51>0,E5/E$51,0) -> 0.3777777778 | F53: 0.2894736842 | G53: 0.2033898305 | H53: 0 | I53: 0 | J53: 0 | K53: 0 | L53: 0 | M53: 0 | N53: 0 | O53: 0.2940747008
C54: 2 | D54: Economy | E54: =IF(E$51>0,E6/E$51,0) -> 0.1333333333 | F54: 0.1578947368 | G54: 0.1016949153 | H54: 0 | I54: 0 | J54: 0 | K54: 0 | L54: 0 | M54: 0 | N54: 0 | O54: 0.1274671609
C55: 3 | D55: Science and Health | E55: =IF(E$51>0,E7/E$51,0) -> 0.04444444444 | F55: 0.02631578947 | G55: 0.1355932203 | H55: 0 | I55: 0 | J55: 0 | K55: 0 | L55: 0 | M55: 0 | N55: 0 | O55: 0.07343150047
C56: 4 | D56: Social and Legal | E56: =IF(E$51>0,E8/E$51,0) -> 0.1111111111 | F56: 0.2368421053 | G56: 0.2033898305 | H56: 0 | I56: 0 | J56: 0 | K56: 0 | L56: 0 | M56: 0 | N56: 0 | O56: 0.1735466275
C57: 5 | D57: Crime and Violence | E57: =IF(E$51>0,E9/E$51,0) -> 0.1333333333 | F57: 0.2105263158 | G57: 0.2542372881 | H57: 0 | I57: 0 | J57: 0 | K57: 0 | L57: 0 | M57: 0 | N57: 0 | O57: 0.1950328929
C58: 6 | D58: Celebrity, Arts and Media, Sports | E58: =IF(E$51>0,E10/E$51,0) -> 0.2 | F58: 0.07894736842 | G58: 0.08474576271 | H58: 0 | I58: 0 | J58: 0 | K58: 0 | L58: 0 | M58: 0 | N58: 0 | O58: 0.1302828019
C59: 7 | D59: The Girl-child | E59: =IF(E$51>0,E11/E$51,0) -> 0 | F59: 0 | G59: 0 | H59: 0 | I59: 0 | J59: 0 | K59: 0 | L59: 0 | M59: 0 | N59: 0 | O59: 0
C60: 8 | D60: Other | E60: =IF(E$51>0,E12/E$51,0) -> 0 | F60: 0 | G60: 0.01694915254 | H60: 0 | I60: 0 | J60: 0 | K60: 0 | L60: 0 | M60: 0 | N60: 0 | O60: 0.006164315513
C61: =C14 -> 0 | D61: 0 | E61: =IF(E$51>0,E14/E$51,0) -> 0 | F61: 0 | G61: 0 | H61: 0 | I61: 0 | J61: 0 | K61: 0 | L61: 0 | M61: 0 | N61: 0 | O61: 0
C62: 0 | D62: 0 | E62: =IF(E$51>0,E15/E$51,0) -> 0 | F62: 0 | G62: 0 | H62: 0 | I62: 0 | J62: 0 | K62: 0 | L62: 0 | M62: 0 | N62: 0 | O62: 0
C63: 0 | D63: 0 | E63: =IF(E$51>0,E16/E$51,0) -> 0 | F63: 0 | G63: 0 | H63: 0 | I63: 0 | J63: 0 | K63: 0 | L63: 0 | M63: 0 | N63: 0 | O63: 0
C64: 0 | D64: 0 | E64: =IF(E$51>0,E17/E$51,0) -> 0 | F64: 0 | G64: 0 | H64: 0 | I64: 0 | J64: 0 | K64: 0 | L64: 0 | M64: 0 | N64: 0 | O64: 0
C65: 0 | D65: 0 | E65: =IF(E$51>0,E18/E$51,0) -> 0 | F65: 0 | G65: 0 | H65: 0 | I65: 0 | J65: 0 | K65: 0 | L65: 0 | M65: 0 | N65: 0 | O65: 0
C66: 0 | D66: 0 | E66: =IF(E$51>0,E19/E$51,0) -> 0 | F66: 0 | G66: 0 | H66: 0 | I66: 0 | J66: 0 | K66: 0 | L66: 0 | M66: 0 | N66: 0 | O66: 0
C67: 0 | D67: 0 | E67: =IF(E$51>0,E20/E$51,0) -> 0 | F67: 0 | G67: 0 | H67: 0 | I67: 0 | J67: 0 | K67: 0 | L67: 0 | M67: 0 | N67: 0 | O67: 0
C68: 0 | D68: 0 | E68: =IF(E$51>0,E21/E$51,0) -> 0 | F68: 0 | G68: 0 | H68: 0 | I68: 0 | J68: 0 | K68: 0 | L68: 0 | M68: 0 | N68: 0 | O68: 0
C69: 0 | D69: 0 | E69: =IF(E$51>0,E22/E$51,0) -> 0 | F69: 0 | G69: 0 | H69: 0 | I69: 0 | J69: 0 | K69: 0 | L69: 0 | M69: 0 | N69: 0 | O69: 0
C70: 0 | D70: 0 | E70: =IF(E$51>0,E23/E$51,0) -> 0 | F70: 0 | G70: 0 | H70: 0 | I70: 0 | J70: 0 | K70: 0 | L70: 0 | M70: 0 | N70: 0 | O70: 0
C71: 0 | D71: 0 | E71: =IF(E$51>0,E24/E$51,0) -> 0 | F71: 0 | G71: 0 | H71: 0 | I71: 0 | J71: 0 | K71: 0 | L71: 0 | M71: 0 | N71: 0 | O71: 0
C72: 0 | D72: 0 | E72: =IF(E$51>0,E25/E$51,0) -> 0 | F72: 0 | G72: 0 | H72: 0 | I72: 0 | J72: 0 | K72: 0 | L72: 0 | M72: 0 | N72: 0 | O72: 0
C73: =C26 -> 0 | D73: 0 | E73: =IF(E$51>0,E26/E$51,0) -> 0 | F73: 0 | G73: 0 | H73: 0 | I73: 0 | J73: 0 | K73: 0 | L73: 0 | M73: 0 | N73: 0 | O73: 0
C74: 0 | D74: 0 | E74: =IF(E$51>0,E27/E$51,0) -> 0 | F74: 0 | G74: 0 | H74: 0 | I74: 0 | J74: 0 | K74: 0 | L74: 0 | M74: 0 | N74: 0 | O74: 0
C75: 0 | D75: 0 | E75: =IF(E$51>0,E28/E$51,0) -> 0 | F75: 0 | G75: 0 | H75: 0 | I75: 0 | J75: 0 | K75: 0 | L75: 0 | M75: 0 | N75: 0 | O75: 0
C76: 0 | D76: 0 | E76: =IF(E$51>0,E29/E$51,0) -> 0 | F76: 0 | G76: 0 | H76: 0 | I76: 0 | J76: 0 | K76: 0 | L76: 0 | M76: 0 | N76: 0 | O76: 0
C77: 0 | D77: 0 | E77: =IF(E$51>0,E30/E$51,0) -> 0 | F77: 0 | G77: 0 | H77: 0 | I77: 0 | J77: 0 | K77: 0 | L77: 0 | M77: 0 | N77: 0 | O77: 0
C78: 0 | D78: 0 | E78: =IF(E$51>0,E31/E$51,0) -> 0 | F78: 0 | G78: 0 | H78: 0 | I78: 0 | J78: 0 | K78: 0 | L78: 0 | M78: 0 | N78: 0 | O78: 0
C79: 0 | D79: 0 | E79: =IF(E$51>0,E32/E$51,0) -> 0 | F79: 0 | G79: 0 | H79: 0 | I79: 0 | J79: 0 | K79: 0 | L79: 0 | M79: 0 | N79: 0 | O79: 0
C80: 0 | D80: 0 | E80: =IF(E$51>0,E33/E$51,0) -> 0 | F80: 0 | G80: 0 | H80: 0 | I80: 0 | J80: 0 | K80: 0 | L80: 0 | M80: 0 | N80: 0 | O80: 0
C81: 0 | D81: 0 | E81: =IF(E$51>0,E34/E$51,0) -> 0 | F81: 0 | G81: 0 | H81: 0 | I81: 0 | J81: 0 | K81: 0 | L81: 0 | M81: 0 | N81: 0 | O81: 0
C82: 0 | D82: 0 | E82: =IF(E$51>0,E35/E$51,0) -> 0 | F82: 0 | G82: 0 | H82: 0 | I82: 0 | J82: 0 | K82: 0 | L82: 0 | M82: 0 | N82: 0 | O82: 0
C83: 0 | D83: 0 | E83: =IF(E$51>0,E36/E$51,0) -> 0 | F83: 0 | G83: 0 | H83: 0 | I83: 0 | J83: 0 | K83: 0 | L83: 0 | M83: 0 | N83: 0 | O83: 0
C84: 0 | D84: 0 | E84: =IF(E$51>0,E37/E$51,0) -> 0 | F84: 0 | G84: 0 | H84: 0 | I84: 0 | J84: 0 | K84: 0 | L84: 0 | M84: 0 | N84: 0 | O84: 0
C85: 0 | D85: 0 | E85: =IF(E$51>0,E38/E$51,0) -> 0 | F85: 0 | G85: 0 | H85: 0 | I85: 0 | J85: 0 | K85: 0 | L85: 0 | M85: 0 | N85: 0 | O85: 0
C86: 0 | D86: 0 | E86: =IF(E$51>0,E39/E$51,0) -> 0 | F86: 0 | G86: 0 | H86: 0 | I86: 0 | J86: 0 | K86: 0 | L86: 0 | M86: 0 | N86: 0 | O86: 0
C87: 0 | D87: 0 | E87: =IF(E$51>0,E40/E$51,0) -> 0 | F87: 0 | G87: 0 | H87: 0 | I87: 0 | J87: 0 | K87: 0 | L87: 0 | M87: 0 | N87: 0 | O87: 0
C88: 0 | D88: 0 | E88: =IF(E$51>0,E41/E$51,0) -> 0 | F88: 0 | G88: 0 | H88: 0 | I88: 0 | J88: 0 | K88: 0 | L88: 0 | M88: 0 | N88: 0 | O88: 0
C89: 0 | D89: 0 | E89: =IF(E$51>0,E42/E$51,0) -> 0 | F89: 0 | G89: 0 | H89: 0 | I89: 0 | J89: 0 | K89: 0 | L89: 0 | M89: 0 | N89: 0 | O89: 0
C90: 0 | D90: 0 | E90: =IF(E$51>0,E43/E$51,0) -> 0 | F90: 0 | G90: 0 | H90: 0 | I90: 0 | J90: 0 | K90: 0 | L90: 0 | M90: 0 | N90: 0 | O90: 0
C91: 0 | D91: 0 | E91: =IF(E$51>0,E44/E$51,0) -> 0 | F91: 0 | G91: 0 | H91: 0 | I91: 0 | J91: 0 | K91: 0 | L91: 0 | M91: 0 | N91: 0 | O91: 0
C92: 0 | D92: 0 | E92: =IF(E$51>0,E45/E$51,0) -> 0 | F92: 0 | G92: 0 | H92: 0 | I92: 0 | J92: 0 | K92: 0 | L92: 0 | M92: 0 | N92: 0 | O92: 0
C93: =C46 -> 0 | D93: 0 | E93: =IF(E$51>0,E46/E$51,0) -> 0 | F93: 0 | G93: 0 | H93: 0 | I93: 0 | J93: 0 | K93: 0 | L93: 0 | M93: 0 | N93: 0 | O93: 0
C94: 0 | D94: 0 | E94: =IF(E$51>0,E47/E$51,0) -> 0 | F94: 0 | G94: 0 | H94: 0 | I94: 0 | J94: 0 | K94: 0 | L94: 0 | M94: 0 | N94: 0 | O94: 0
C95: 0 | D95: 0 | E95: =IF(E$51>0,E48/E$51,0) -> 0 | F95: 0 | G95: 0 | H95: 0 | I95: 0 | J95: 0 | K95: 0 | L95: 0 | M95: 0 | N95: 0 | O95: 0
C96: 0 | D96: 0 | E96: =IF(E$51>0,E49/E$51,0) -> 0 | F96: 0 | G96: 0 | H96: 0 | I96: 0 | J96: 0 | K96: 0 | L96: 0 | M96: 0 | N96: 0 | O96: 0
C97: 0 | D97: 0 | E97: =IF(E$51>0,E50/E$51,0) -> 0 | F97: 0 | G97: 0 | H97: 0 | I97: 0 | J97: 0 | K97: 0 | L97: 0 | M97: 0 | N97: 0 | O97: 0

Sheet 3F - Topics in the news
A1: ='3'!A1 -> Topics in the news
G2: Topic groups were too different from 1995. Investigating if 2000 can be assimilated. | L2: Topic groups were too different from 1995. Investigating if 2000 can be assimilated.
F3: 1995 | I3: 2000 | L3: 2005 | O3: 2010
E4: Topic | F4: ='3'!E4 -> PRINT | G4: ='3'!F4 -> RADIO | H4: ='3'!G4 -> TELEVISION | I4: =F4 -> PRINT | J4: =G4 -> RADIO | K4: =H4 -> TELEVISION | L4: =F4 -> PRINT | M4: =G4 -> RADIO | N4: =H4 -> TELEVISION | O4: =F4 -> PRINT | P4: =G4 -> RADIO | Q4: =H4 -> TELEVISION | R4: N
D5: ='3'!C5 -> 1 | E5: ='3'!D5 -> Politics and Government | F5: n/a | G5: n/a | H5: n/a | I5: n/a | J5: n/a | K5: n/a | L5: 0.27 | M5: 0.23 | N5: 0.23 | O5: ='3'!E53 -> 0.3777777778 | P5: ='3'!F53 -> 0.2894736842 | Q5: ='3'!G53 -> 0.2033898305 | R5: ='3'!Q5 -> 40
D6: ='3'!C6 -> 2 | E6: ='3'!D6 -> Economy | F6: n/a | G6: n/a | H6: n/a | I6: n/a | J6: n/a | K6: n/a | L6: 0.19 | M6: 0.27 | N6: 0.18 | O6: ='3'!E54 -> 0.1333333333 | P6: ='3'!F54 -> 0.1578947368 | Q6: ='3'!G54 -> 0.1016949153 | R6: ='3'!Q6 -> 18
D7: ='3'!C7 -> 3 | E7: ='3'!D7 -> Science and Health | F7: n/a | G7: n/a | H7: n/a | I7: n/a | J7: n/a | K7: n/a | L7: 0.11 | M7: 0.11 | N7: 0.09 | O7: ='3'!E55 -> 0.04444444444 | P7: ='3'!F55 -> 0.02631578947 | Q7: ='3'!G55 -> 0.1355932203 | R7: ='3'!Q7 -> 11
D8: ='3'!C8 -> 4 | E8: ='3'!D8 -> Social and Legal | F8: n/a | G8: n/a | H8: n/a | I8: n/a | J8: n/a | K8: n/a | L8: 0.14 | M8: 0.11 | N8: 0.1 | O8: ='3'!E56 -> 0.1111111111 | P8: ='3'!F56 -> 0.2368421053 | Q8: ='3'!G56 -> 0.2033898305 | R8: ='3'!Q8 -> 26
D9: ='3'!C9 -> 5 | E9: ='3'!D9 -> Crime and Violence | F9: n/a | G9: n/a | H9: n/a | I9: n/a | J9: n/a | K9: n/a | L9: 0.2 | M9: 0.17 | N9: 0.22 | O9: ='3'!E57 -> 0.1333333333 | P9: ='3'!F57 -> 0.2105263158 | Q9: ='3'!G57 -> 0.2542372881 | R9: ='3'!Q9 -> 29
D10: ='3'!C10 -> 6 | E10: ='3'!D10 -> Celebrity, Arts and Media, Sports | F10: n/a | G10: n/a | H10: n/a | I10: n/a | J10: n/a | K10: n/a | L10: 0.09 | M10: 0.08 | N10: 0.14 | O10: ='3'!E58 -> 0.2 | P10: ='3'!F58 -> 0.07894736842 | Q10: ='3'!G58 -> 0.08474576271 | R10: ='3'!Q10 -> 17
D11: ='3'!C11 -> 7 | E11: ='3'!D11 -> The Girl-child | F11: n/a | G11: n/a | H11: n/a | I11: n/a | J11: n/a | K11: n/a | L11: new topic | M11: new topic | N11: new topic | O11: ='3'!E59 -> 0 | P11: ='3'!F59 -> 0 | Q11: ='3'!G59 -> 0 | R11: ='3'!Q11 -> 0
D12: ='3'!C12 -> 8 | E12: ='3'!D12 -> Other | F12: n/a | G12: n/a | H12: n/a | I12: n/a | J12: n/a | K12: n/a | L12: * indicates less than 1% in all tables | M12: 0.01 | N12: 0.01 | O12: ='3'!E60 -> 0 | P12: ='3'!F60 -> 0 | Q12: ='3'!G60 -> 0.01694915254 | R12: ='3'!Q12 -> 1

Sheet 3b (hidden)
A1: Topics in the news by region by sex
E3: Africa | G3: Asia | I3: Caribbean | K3: Europe | M3: Latin America | O3: Middle East | Q3: North America | S3: Pacific | W3: =E3 -> Africa | X3: =F3 -> 0 | Y3: Asia | Z3: 0 | AA3: Caribbean | AB3: 0 | AC3: Europe | AD3: 0 | AE3: Latin America | AF3: 0 | AG3: Middle East | AH3: 0 | AI3: North America | AJ3: 0 | AK3: Pacific
E4: Female | F4: Male | G4: Female | H4: Male | I4: Female | J4: Male | K4: Female | L4: Male | M4: Female | N4: Male | O4: Female | P4: Male | Q4: Female | R4: Male | S4: Female | T4: Male | V4: TOTAL | W4: =E4 -> Female | X4: Male | Y4: Female | Z4: Male | AA4: Female | AB4: Male | AC4: Female | AD4: Male | AE4: Female | AF4: Male | AG4: Female | AH4: Male | AI4: Female | AJ4: Male | AK4: Female | AL4: =T4 -> Male
C5: 1 | D5: Politics and Government | K5: 0.0956059997 | L5: 0.2063119994 | V5: =SUM(E5:T5) -> 0.3019179991 | W5: =IF((E5+F5)>0,E5/(E5+F5),0) -> 0 | X5: =IF((E5+F5)>0,F5/(E5+F5),0) -> 0 | Y5: =IF((G5+H5)>0,G5/(G5+H5),0) -> 0 | Z5: =IF((G5+H5)>0,H5/(G5+H5),0) -> 0 | AA5: =IF((I5+J5)>0,I5/(I5+J5),0) -> 0 | AB5: =IF((I5+J5)>0,J5/(I5+J5),0) -> 0 | AC5: =IF((K5+L5)>0,K5/(K5+L5),0) -> 0.31666214 | AD5: =IF((K5+L5)>0,L5/(K5+L5),0) -> 0.68333786 | AE5: =IF((M5+N5)>0,M5/(M5+N5),0) -> 0 | AF5: =IF((M5+N5)>0,N5/(M5+N5),0) -> 0 | AG5: =IF((O5+P5)>0,O5/(O5+P5),0) -> 0 | AH5: =IF((O5+P5)>0,P5/(O5+P5),0) -> 0 | AI5: =IF((Q5+R5)>0,Q5/(Q5+R5),0) -> 0 | AJ5: =IF((Q5+R5)>0,R5/(Q5+R5),0) -> 0 | AK5: =IF((S5+T5)>0,S5/(S5+T5),0) -> 0 | AL5: =IF((S5+T5)>0,T5/(S5+T5),0) -> 0
C6: 2 | D6: Economy | K6: 0.03040000051 | L6: 0.09050599951 | V6: =SUM(E6:T6) -> 0.120906 | W6: =IF((E6+F6)>0,E6/(E6+F6),0) -> 0 | X6: =IF((E6+F6)>0,F6/(E6+F6),0) -> 0 | Y6: =IF((G6+H6)>0,G6/(G6+H6),0) -> 0 | Z6: =IF((G6+H6)>0,H6/(G6+H6),0) -> 0 | AA6: =IF((I6+J6)>0,I6/(I6+J6),0) -> 0 | AB6: =IF((I6+J6)>0,J6/(I6+J6),0) -> 0 | AC6: =IF((K6+L6)>0,K6/(K6+L6),0) -> 0.2514350033 | AD6: =IF((K6+L6)>0,L6/(K6+L6),0) -> 0.7485649967 | AE6: =IF((M6+N6)>0,M6/(M6+N6),0) -> 0 | AF6: =IF((M6+N6)>0,N6/(M6+N6),0) -> 0 | AG6: =IF((O6+P6)>0,O6/(O6+P6),0) -> 0 | AH6: =IF((O6+P6)>0,P6/(O6+P6),0) -> 0 | AI6: =IF((Q6+R6)>0,Q6/(Q6+R6),0) -> 0 | AJ6: =IF((Q6+R6)>0,R6/(Q6+R6),0) -> 0 | AK6: =IF((S6+T6)>0,S6/(S6+T6),0) -> 0 | AL6: =IF((S6+T6)>0,T6/(S6+T6),0) -> 0
C7: 3 | D7: Science and Health | K7: 0.05827650102 | L7: 0.04070000118 | V7: 0.0989765022 | W7: 0 | X7: 0 | Y7: 0 | Z7: 0 | AA7: 0 | AB7: 0 | AC7: 0.588791276 | AD7: 0.411208724 | AE7: 0 | AF7: 0 | AG7: 0 | AH7: 0 | AI7: 0 | AJ7: 0 | AK7: 0 | AL7: 0
C8: 4 | D8: Social and Legal | K8: 0.08120000176 | L8: 0.1082764999 | V8: 0.1894765017 | W8: 0 | X8: 0 | Y8: 0 | Z8: 0 | AA8: 0 | AB8: 0 | AC8: 0.4285491924 | AD8: 0.5714508076 | AE8: 0 | AF8: 0 | AG8: 0 | AH8: 0 | AI8: 0 | AJ8: 0 | AK8: 0 | AL8: 0
C9: 5 | D9: Crime and Violence | K9: 0.06837650109 | L9: 0.1513060005 | V9: 0.2196825016 | W9: 0 | X9: 0 | Y9: 0 | Z9: 0 | AA9: 0 | AB9: 0 | AC9: 0.3112514678 | AD9: 0.6887485322 | AE9: 0 | AF9: 0 | AG9: 0 | AH9: 0 | AI9: 0 | AJ9: 0 | AK9: 0 | AL9: 0
C10: 6 | D10: Celebrity, Arts and Media, Sports | K10: 0.03515299968 | L10: 0.09045899939 | V10: 0.1256119991 | W10: 0 | X10: 0 | Y10: 0 | Z10: 0 | AA10: 0 | AB10: 0 | AC10: 0.2798538352 | AD10: 0.7201461648 | AE10: 0 | AF10: 0 | AG10: 0 | AH10: 0 | AI10: 0 | AJ10: 0 | AK10: 0 | AL10: 0
C11: 7 | D11: The Girl-child | V11: 0 | W11: 0 | X11: 0 | Y11: 0 | Z11: 0 | AA11: 0 | AB11: 0 | AC11: 0 | AD11: 0 | AE11: 0 | AF11: 0 | AG11: 0 | AH11: 0 | AI11: 0 | AJ11: 0 | AK11: 0 | AL11: 0
C12: 8 | D12: Other | K12: 0.005100000184 | V12: 0.005100000184 | W12: 0 | X12: 0 | Y12: 0 | Z12: 0 | AA12: 0 | AB12: 0 | AC12: 1 | AD12: 0 | AE12: 0 | AF12: 0 | AG12: 0 | AH12: 0 | AI12: 0 | AJ12: 0 | AK12: 0 | AL12: 0
D50: TOTAL | E50: =SUM(E5:E49) -> 0 | F50: 0 | G50: 0 | H50: 0 | I50: 0 | J50: 0 | K50: 0.3741120039 | L50: 0.6875594999 | M50: 0 | N50: 0 | O50: 0 | P50: =SUM(P5:P49) -> 0 | Q50: =SUM(Q5:Q49) -> 0 | R50: =SUM(R5:R49) -> 0 | S50: =SUM(S5:S49) -> 0 | T50: =SUM(T5:T49) -> 0 | V50: =SUM(E50:O50) -> 1.061671504 | W50: =IF((E50+F50)>0,E50/(E50+F50),0) -> 0 | X50: =IF((E50+F50)>0,F50/(E50+F50),0) -> 0 | Y50: =IF((G50+H50)>0,G50/(G50+H50),0) -> 0 | Z50: =IF((G50+H50)>0,H50/(G50+H50),0) -> 0 | AA50: =IF((I50+J50)>0,I50/(I50+J50),0) -> 0 | AB50: =IF((I50+J50)>0,J50/(I50+J50),0) -> 0 | AC50: =IF((K50+L50)>0,K50/(K50+L50),0) -> 0.3523801878 | AD50: =IF((K50+L50)>0,L50/(K50+L50),0) -> 0.6476198122 | AE50: =IF((M50+N50)>0,M50/(M50+N50),0) -> 0 | AF50: =IF((M50+N50)>0,N50/(M50+N50),0) -> 0 | AG50: =IF((O50+P50)>0,O50/(O50+P50),0) -> 0 | AH50: =IF((O50+P50)>0,P50/(O50+P50),0) -> 0 | AI50: =IF((Q50+R50)>0,Q50/(Q50+R50),0) -> 0 | AJ50: =IF((Q50+R50)>0,R50/(Q50+R50),0) -> 0 | AK50: =IF((S50+T50)>0,S50/(S50+T50),0) -> 0 | AL50: =IF((S50+T50)>0,T50/(S50+T50),0) -> 0
C52: =C5 -> 1 | D52: Politics and Government | E52: =IF(E$50>0,E5/E$50,0) -> 0 | F52: 0 | G52: 0 | H52: 0 | I52: 0 | J52: 0 | K52: 0.2555544828 | L52: 0.3000642117 | M52: 0 | N52: 0 | O52: 0 | P52: =IF(P$50>0,P5/P$50,0) -> 0 | Q52: 0 | R52: 0 | S52: 0 | T52: 0
C53: 2 | D53: Economy | E53: =IF(E$50>0,E6/E$50,0) -> 0 | F53: 0 | G53: 0 | H53: 0 | I53: 0 | J53: 0 | K53: 0.0812590887 | L53: 0.1316336979 | M53: 0 | N53: 0 | O53: 0 | P53: 0 | Q53: 0 | R53: 0 | S53: 0 | T53: 0
C54: 3 | D54: Science and Health | E54: =IF(E$50>0,E7/E$50,0) -> 0 | F54: 0 | G54: 0 | H54: 0 | I54: 0 | J54: 0 | K54: 0.1557728712 | L54: 0.05919487867 | M54: 0 | N54: 0 | O54: 0 | P54: 0 | Q54: 0 | R54: 0 | S54: 0 | T54: 0
C55: 4 | D55: Social and Legal | E55: =IF(E$50>0,E8/E$50,0) -> 0 | F55: 0 | G55: 0 | H55: 0 | I55: 0 | J55: 0 | K55: 0.2170473038 | L55: 0.1574794617 | M55: 0 | N55: 0 | O55: 0 | P55: 0 | Q55: 0 | R55: 0 | S55: 0 | T55: 0
C56: 5 | D56: Crime and Violence | E56: =IF(E$50>0,E9/E$50,0) -> 0 | F56: 0 | G56: 0 | H56: 0 | I56: 0 | J56: 0 | K56: 0.182770134 | L56: 0.22006241 | M56: 0 | N56: 0 | O56: 0 | P56: 0 | Q56: 0 | R56: 0 | S56: 0 | T56: 0
C57: 6 | D57: Celebrity, Arts and Media, Sports | E57: =IF(E$50>0,E10/E$50,0) -> 0 | F57: 0 | G57: 0 | H57: 0 | I57: 0 | J57: 0 | K57: 0.09396383787 | L57: 0.13156534 | M57: 0 | N57: 0 | O57: 0 | P57: 0 | Q57: 0 | R57: 0 | S57: 0 | T57: 0
C58: 7 | D58: The Girl-child | E58: =IF(E$50>0,E11/E$50,0) -> 0 | F58: 0 | G58: 0 | H58: 0 | I58: 0 | J58: 0 | K58: 0 | L58: 0 | M58: 0 | N58: 0 | O58: 0 | P58: 0 | Q58: 0 | R58: 0 | S58: 0 | T58: 0
C59: 8 | D59: Other | E59: =IF(E$50>0,E12/E$50,0) -> 0 | F59: 0 | G59: 0 | H59: 0 | I59: 0 | J59: 0 | K59: 0.01363228159 | L59: 0 | M59: 0 | N59: 0 | O59: 0 | P59: 0 | Q59: 0 | R59: 0 | S59: 0 | T59: 0
C60: 0 | D60: 0 | E60: =IF(E$50>0,E13/E$50,0) -> 0 | F60: 0 | G60: 0 | H60: 0 | I60: 0 | J60: 0 | K60: 0 | L60: 0 | M60: 0 | N60: 0 | O60: 0 | P60: 0 | Q60: 0 | R60: 0 | S60: 0 | T60: 0
C61: 0 | D61: 0 | E61: =IF(E$50>0,E14/E$50,0) -> 0 | F61: 0 | G61: 0 | H61: 0 | I61: 0 | J61: 0 | K61: 0 | L61: 0 | M61: 0 | N61: 0 | O61: 0 | P61: 0 | Q61: 0 | R61: 0 | S61: 0 | T61: 0
C62: 0 | D62: 0 | E62: =IF(E$50>0,E15/E$50,0) -> 0 | F62: 0 | G62: 0 | H62: 0 | I62: 0 | J62: 0 | K62: 0 | L62: 0 | M62: 0 | N62: 0 | O62: 0 | P62: =IF(P$50>0,P15/P$50,0) -> 0 | Q62: 0 | R62: 0 | S62: 0 | T62: 0
C63: 0 | D63: 0 | E63: =IF(E$50>0,E16/E$50,0) -> 0 | F63: 0 | G63: 0 | H63: 0 | I63: 0 | J63: 0 | K63: 0 | L63: 0 | M63: 0 | N63: 0 | O63: 0 | P63: 0 | Q63: 0 | R63: 0 | S63: 0 | T63: 0
C64: 0 | D64: 0 | E64: =IF(E$50>0,E17/E$50,0) -> 0 | F64: 0 | G64: 0 | H64: 0 | I64: 0 | J64: 0 | K64: 0 | L64: 0 | M64: 0 | N64: 0 | O64: 0 | P64: 0 | Q64: 0 | R64: 0 | S64: 0 | T64: 0
C65: 0 | D65: 0 | E65: =IF(E$50>0,E18/E$50,0) -> 0 | F65: 0 | G65: 0 | H65: 0 | I65: 0 | J65: 0 | K65: 0 | L65: 0 | M65: 0 | N65: 0 | O65: 0 | P65: 0 | Q65: 0 | R65: 0 | S65: 0 | T65: 0
C66: 0 | D66: 0 | E66: =IF(E$50>0,E19/E$50,0) -> 0 | F66: 0 | G66: 0 | H66: 0 | I66: 0 | J66: 0 | K66: 0 | L66: 0 | M66: 0 | N66: 0 | O66: 0 | P66: 0 | Q66: 0 | R66: 0 | S66: 0 | T66: 0
C67: 0 | D67: 0 | E67: =IF(E$50>0,E20/E$50,0) -> 0 | F67: 0 | G67: 0 | H67: 0 | I67: 0 | J67: 0 | K67: 0 | L67: 0 | M67: 0 | N67: 0 | O67: 0 | P67: 0 | Q67: 0 | R67: 0 | S67: 0 | T67: 0
C68: 0 | D68: 0 | E68: =IF(E$50>0,E21/E$50,0) -> 0 | F68: 0 | G68: 0 | H68: 0 | I68: 0 | J68: 0 | K68: 0 | L68: 0 | M68: 0 | N68: 0 | O68: 0 | P68: 0 | Q68: 0 | R68: 0 | S68: 0 | T68: 0
C69: 0 | D69: 0 | E69: =IF(E$50>0,E22/E$50,0) -> 0 | F69: 0 | G69: 0 | H69: 0 | I69: 0 | J69: 0 | K69: 0 | L69: 0 | M69: 0 | N69: 0 | O69: 0 | P69: 0 | Q69: 0 | R69: 0 | S69: 0 | T69: 0
C70: 0 | D70: 0 | E70: =IF(E$50>0,E23/E$50,0) -> 0 | F70: 0 | G70: 0 | H70: 0 | I70: 0 | J70: 0 | K70: 0 | L70: 0 | M70: 0 | N70: 0 | O70: 0 | P70: 0 | Q70: 0 | R70: 0 | S70: 0 | T70: 0
C71: 0 | D71: 0 | E71: =IF(E$50>0,E24/E$50,0) -> 0 | F71: 0 | G71: 0 | H71: 0 | I71: 0 | J71: 0 | K71: 0 | L71: 0 | M71: 0 | N71: 0 | O71: 0 | P71: 0 | Q71: 0 | R71: 0 | S71: 0 | T71: 0
C72: =C25 -> 0 | D72: 0 | E72: =IF(E$50>0,E25/E$50,0) -> 0 | F72: 0 | G72: 0 | H72: 0 | I72: 0 | J72: 0 | K72: 0 | L72: 0 | M72: 0 | N72: 0 | O72: 0 | P72: =IF(P$50>0,P25/P$50,0) -> 0 | Q72: 0 | R72: 0 | S72: 0 | T72: 0
C73: 0 | D73: 0 | E73: =IF(E$50>0,E26/E$50,0) -> 0 | F73: 0 | G73: 0 | H73: 0 | I73: 0 | J73: 0 | K73: 0 | L73: 0 | M73: 0 | N73: 0 | O73: 0 | P73: 0 | Q73: 0 | R73: 0 | S73: 0 | T73: 0
C74: 0 | D74: 0 | E74: =IF(E$50>0,E27/E$50,0) -> 0 | F74: 0 | G74: 0 | H74: 0 | I74: 0 | J74: 0 | K74: 0 | L74: 0 | M74: 0 | N74: 0 | O74: 0 | P74: 0 | Q74: 0 | R74: 0 | S74: 0 | T74: 0
C75: 0 | D75: 0 | E75: =IF(E$50>0,E28/E$50,0) -> 0 | F75: 0 | G75: 0 | H75: 0 | I75: 0 | J75: 0 | K75: 0 | L75: 0 | M75: 0 | N75: 0 | O75: 0 | P75: 0 | Q75: 0 | R75: 0 | S75: 0 | T75: 0
C76: 0 | D76: 0 | E76: =IF(E$50>0,E29/E$50,0) -> 0 | F76: 0 | G76: 0 | H76: 0 | I76: 0 | J76: 0 | K76: 0 | L76: 0 | M76: 0 | N76: 0 | O76: 0 | P76: 0 | Q76: 0 | R76: 0 | S76: 0 | T76: 0
C77: 0 | D77: 0 | E77: =IF(E$50>0,E30/E$50,0) -> 0 | F77: 0 | G77: 0 | H77: 0 | I77: 0 | J77: 0 | K77: 0 | L77: 0 | M77: 0 | N77: 0 | O77: 0 | P77: 0 | Q77: 0 | R77: 0 | S77: 0 | T77: 0
C78: 0 | D78: 0 | E78: =IF(E$50>0,E31/E$50,0) -> 0 | F78: 0 | G78: 0 | H78: 0 | I78: 0 | J78: 0 | K78: 0 | L78: 0 | M78: 0 | N78: 0 | O78: 0 | P78: 0 | Q78: 0 | R78: 0 | S78: 0 | T78: 0
C79: 0 | D79: 0 | E79: =IF(E$50>0,E32/E$50,0) -> 0 | F79: 0 | G79: 0 | H79: 0 | I79: 0 | J79: 0 | K79: 0 | L79: 0 | M79: 0 | N79: 0 | O79: 0 | P79: 0 | Q79: 0 | R79: 0 | S79: 0 | T79: 0
C80: 0 | D80: 0 | E80: =IF(E$50>0,E33/E$50,0) -> 0 | F80: 0 | G80: 0 | H80: 0 | I80: 0 | J80: 0 | K80: 0 | L80: 0 | M80: 0 | N80: 0 | O80: 0 | P80: 0 | Q80: 0 | R80: 0 | S80: 0 | T80: 0
C81: 0 | D81: 0 | E81: =IF(E$50>0,E34/E$50,0) -> 0 | F81: 0 | G81: 0 | H81: 0 | I81: 0 | J81: 0 | K81: 0 | L81: 0 | M81: 0 | N81: 0 | O81: 0 | P81: 0 | Q81: 0 | R81: 0 | S81: 0 | T81: 0
C82: 0 | D82: 0 | E82: =IF(E$50>0,E35/E$50,0) -> 0 | F82: 0 | G82: 0 | H82: 0 | I82: 0 | J82: 0 | K82: 0 | L82: 0 | M82: 0 | N82: 0 | O82: 0 | P82: =IF(P$50>0,P35/P$50,0) -> 0 | Q82: 0 | R82: 0 | S82: 0 | T82: 0
C83: 0 | D83: 0 | E83: =IF(E$50>0,E36/E$50,0) -> 0 | F83: 0 | G83: 0 | H83: 0 | I83: 0 | J83: 0 | K83: 0 | L83: 0 | M83: 0 | N83: 0 | O83: 0 | P83: 0 | Q83: 0 | R83: 0 | S83: 0 | T83: 0
C84: 0 | D84: 0 | E84: =IF(E$50>0,E37/E$50,0) -> 0 | F84: 0 | G84: 0 | H84: 0 | I84: 0 | J84: 0 | K84: 0 | L84: 0 | M84: 0 | N84: 0 | O84: 0 | P84: 0 | Q84: 0 | R84: 0 | S84: 0 | T84: 0
C85: 0 | D85: 0 | E85: =IF(E$50>0,E38/E$50,0) -> 0 | F85: 0 | G85: 0 | H85: 0 | I85: 0 | J85: 0 | K85: 0 | L85: 0 | M85: 0 | N85: 0 | O85: 0 | P85: 0 | Q85: 0 | R85: 0 | S85: 0 | T85: 0
C86: 0 | D86: 0 | E86: =IF(E$50>0,E39/E$50,0) -> 0 | F86: 0 | G86: 0 | H86: 0 | I86: 0 | J86: 0 | K86: 0 | L86: 0 | M86: 0 | N86: 0 | O86: 0 | P86: 0 | Q86: 0 | R86: 0 | S86: 0 | T86: 0
C87: 0 | D87: 0 | E87: =IF(E$50>0,E40/E$50,0) -> 0 | F87: 0 | G87: 0 | H87: 0 | I87: 0 | J87: 0 | K87: 0 | L87: 0 | M87: 0 | N87: 0 | O87: 0 | P87: 0 | Q87: 0 | R87: 0 | S87: 0 | T87: 0
C88: 0 | D88: 0 | E88: =IF(E$50>0,E41/E$50,0) -> 0 | F88: 0 | G88: 0 | H88: 0 | I88: 0 | J88: 0 | K88: 0 | L88: 0 | M88: 0 | N88: 0 | O88: 0 | P88: 0 | Q88: 0 | R88: 0 | S88: 0 | T88: 0
C89: 0 | D89: 0 | E89: =IF(E$50>0,E42/E$50,0) -> 0 | F89: 0 | G89: 0 | H89: 0 | I89: 0 | J89: 0 | K89: 0 | L89: 0 | M89: 0 | N89: 0 | O89: 0 | P89: 0 | Q89: 0 | R89: 0 | S89: 0 | T89: 0
C90: 0 | D90: 0 | E90: =IF(E$50>0,E43/E$50,0) -> 0 | F90: 0 | G90: 0 | H90: 0 | I90: 0 | J90: 0 | K90: 0 | L90: 0 | M90: 0 | N90: 0 | O90: 0 | P90: 0 | Q90: 0 | R90: 0 | S90: 0 | T90: 0
C91: 0 | D91: 0 | E91: =IF(E$50>0,E44/E$50,0) -> 0 | F91: 0 | G91: 0 | H91: 0 | I91: 0 | J91: 0 | K91: 0 | L91: 0 | M91: 0 | N91: 0 | O91: 0 | P91: 0 | Q91: 0 | R91: 0 | S91: 0 | T91: 0
C92: =C45 -> 0 | D92: 0 | E92: =IF(E$50>0,E45/E$50,0) -> 0 | F92: 0 | G92: 0 | H92: 0 | I92: 0 | J92: 0 | K92: 0 | L92: 0 | M92: 0 | N92: 0 | O92: 0 | P92: =IF(P$50>0,P45/P$50,0) -> 0 | Q92: 0 | R92: 0 | S92: 0 | T92: 0
C93: 0 | D93: 0 | E93: =IF(E$50>0,E46/E$50,0) -> 0 | F93: 0 | G93: 0 | H93: 0 | I93: 0 | J93: 0 | K93: 0 | L93: 0 | M93: 0 | N93: 0 | O93: 0 | P93: 0 | Q93: 0 | R93: 0 | S93: 0 | T93: 0
C94: 0 | D94: 0 | E94: =IF(E$50>0,E47/E$50,0) -> 0 | F94: 0 | G94: 0 | H94: 0 | I94: 0 | J94: 0 | K94: 0 | L94: 0 | M94: 0 | N94: 0 | O94: 0 | P94: 0 | Q94: 0 | R94: 0 | S94: 0 | T94: 0
C95: 0 | D95: 0 | E95: =IF(E$50>0,E48/E$50,0) -> 0 | F95: 0 | G95: 0 | H95: 0 | I95: 0 | J95: 0 | K95: 0 | L95: 0 | M95: 0 | N95: 0 | O95: 0 | P95: 0 | Q95: 0 | R95: 0 | S95: 0 | T95: 0
C96: 0 | D96: 0 | E96: =IF(E$50>0,E49/E$50,0) -> 0 | F96: 0 | G96: 0 | H96: 0 | I96: 0 | J96: 0 | K96: 0 | L96: 0 | M96: 0 | N96: 0 | O96: 0 | P96: 0 | Q96: 0 | R96: 0 | S96: 0 | T96: 0
A109: COUNT
E110: =E3 -> Africa | F110: 0 | G110: Asia | H110: 0 | I110: Caribbean | J110: 0 | K110: Europe | L110: 0 | M110: Latin America | N110: 0 | O110: Middle East | P110: 0 | Q110: North America | R110: 0 | S110: Pacific | T110: 0
E111: =E4 -> Female | F111: Male | G111: Female | H111: Male | I111: Female | J111: Male | K111: Female | L111: Male | M111: Female | N111: Male | O111: Female | P111: Male | Q111: Female | R111: Male | S111: Female | T111: Male
C112: =C5 -> 1 | D112: Politics and Government | E112: 0 | F112: 0 | G112: 0 | H112: 0 | I112: 0 | J112: 0 | K112: 17 | L112: 37 | M112: 0 | N112: 0 | O112: 0 | P112: 0 | Q112: 0 | R112: 0 | S112: 0 | T112: 0
C113: 2 | D113: Economy | E113: 0 | F113: 0 | G113: 0 | H113: 0 | I113: 0 | J113: 0 | K113: 6 | L113: 16 | M113: 0 | N113: 0 | O113: 0 | P113: 0 | Q113: 0 | R113: 0 | S113: 0 | T113: 0
C114: 3 | D114: Science and Health | E114: 0 | F114: 0 | G114: 0 | H114: 0 | I114: 0 | J114: 0 | K114: 11 | L114: 8 | M114: 0 | N114: 0 | O114: 0 | P114: 0 | Q114: 0 | R114: 0 | S114: 0 | T114: 0
C115: 4 | D115: Social and Legal | E115: 0 | F115: 0 | G115: 0 | H115: 0 | I115: 0 | J115: 0 | K115: 16 | L115: 21 | M115: 0 | N115: 0 | O115: 0 | P115: 0 | Q115: 0 | R115: 0 | S115: 0 | T115: 0
C116: 5 | D116: Crime and Violence | E116: 0 | F116: 0 | G116: 0 | H116: 0 | I116: 0 | J116: 0 | K116: 13 | L116: 28 | M116: 0 | N116: 0 | O116: 0 | P116: 0 | Q116: 0 | R116: 0 | S116: 0 | T116: 0
C117: 6 | D117: Celebrity, Arts and Media, Sports | E117: 0 | F117: 0 | G117: 0 | H117: 0 | I117: 0 | J117: 0 | K117: 6 | L117: 15 | M117: 0 | N117: 0 | O117: 0 | P117: 0 | Q117: 0 | R117: 0 | S117: 0 | T117: 0
C118: 7 | D118: The Girl-child | E118: 0 | F118: 0 | G118: 0 | H118: 0 | I118: 0 | J118: 0 | K118: 0 | L118: 0 | M118: 0 | N118: 0 | O118: 0 | P118: 0 | Q118: 0 | R118: 0 | S118: 0 | T118: 0
C119: 8 | D119: Other | E119: 0 | F119: 0 | G119: 0 | H119: 0 | I119: 0 | J119: 0 | K119: 1 | L119: 0 | M119: 0 | N119: 0 | O119: 0 | P119: 0 | Q119: 0 | R119: 0 | S119: 0 | T119: 0
C120: 0 | D120: 0
C121: 0 | D121: 0
C122: 0 | D122: 0
C123: 0 | D123: 0
C124: 0 | D124: 0
C125: 0 | D125: 0
C126: 0 | D126: 0
C127: 0 | D127: 0
C128: 0 | D128: 0
C129: 0 | D129: 0
C130: 0 | D130: 0
C131: 0 | D131: 0
C132: =C25 -> 0 | D132: 0
C133: 0 | D133: 0
C134: 0 | D134: 0
C135: 0 | D135: 0
C136: 0 | D136: 0
C137: 0 | D137: 0
C138: 0 | D138: 0
C139: 0 | D139: 0
C140: 0 | D140: 0
C141: 0 | D141: 0
C142: 0 | D142: 0
C143: 0 | D143: 0
C144: 0 | D144: 0
C145: 0 | D145: 0
C146: 0 | D146: 0
C147: 0 | D147: 0
C148: 0 | D148: 0
C149: 0 | D149: 0
C150: 0 | D150: 0
C151: 0 | D151: 0
C152: =C45 -> 0 | D152: 0
C153: 0 | D153: 0
C154: 0 | D154: 0

Sheet 3bF2 - Topics in news by Sex
A1: Topics in the news by sex of Reporter
C4: TOPIC | D4: 1995 | E4: 2000 | F4: 2005 | G4: % Female | H4: N-F | I4: % Male | J4: N-M
C5: ='3b'!D5 -> Politics and Government | D5: n/a | E5: n/a | F5: 0.32 | G5: =IF('3b'!V5=0, 0, ('3b'!E5+'3b'!G5+'3b'!I5+'3b'!K5+'3b'!M5+'3b'!O5+'3b'!Q5+'3b'!S5)/'3b'!V5) -> 0.31666214 | H5: =+'3b'!E112+'3b'!G112+'3b'!I112+'3b'!K112+'3b'!M112+'3b'!O112+'3b'!Q112+'3b'!S112 -> 17 | I5: =IF('3b'!V5=0, 0,('3b'!F5+'3b'!H5+'3b'!J5+'3b'!L5+'3b'!N5+'3b'!P5+'3b'!R5+'3b'!T5)/'3b'!V5) -> 0.68333786 | J5: =+'3b'!F112+'3b'!H112+'3b'!J112+'3b'!L112+'3b'!N112+'3b'!P112+'3b'!R112+'3b'!T112 -> 37
C6: ='3b'!D6 -> Economy | D6: n/a | E6: n/a | F6: 0.43 | G6: =IF('3b'!V6=0, 0, ('3b'!E6+'3b'!G6+'3b'!I6+'3b'!K6+'3b'!M6+'3b'!O6+'3b'!Q6+'3b'!S6)/'3b'!V6) -> 0.2514350033 | H6: =+'3b'!E113+'3b'!G113+'3b'!I113+'3b'!K113+'3b'!M113+'3b'!O113+'3b'!Q113+'3b'!S113 -> 6 | I6: =IF('3b'!V6=0, 0,('3b'!F6+'3b'!H6+'3b'!J6+'3b'!L6+'3b'!N6+'3b'!P6+'3b'!R6+'3b'!T6)/'3b'!V6) -> 0.7485649967 | J6: =+'3b'!F113+'3b'!H113+'3b'!J113+'3b'!L113+'3b'!N113+'3b'!P113+'3b'!R113+'3b'!T113 -> 16
C7: ='3b'!D7 -> Science and Health | D7: n/a | E7: n/a | F7: 0.38 | G7: =IF('3b'!V7=0, 0, ('3b'!E7+'3b'!G7+'3b'!I7+'3b'!K7+'3b'!M7+'3b'!O7+'3b'!Q7+'3b'!S7)/'3b'!V7) -> 0.588791276 | H7: =+'3b'!E114+'3b'!G114+'3b'!I114+'3b'!K114+'3b'!M114+'3b'!O114+'3b'!Q114+'3b'!S114 -> 11 | I7: =IF('3b'!V7=0, 0,('3b'!F7+'3b'!H7+'3b'!J7+'3b'!L7+'3b'!N7+'3b'!P7+'3b'!R7+'3b'!T7)/'3b'!V7) -> 0.411208724 | J7: =+'3b'!F114+'3b'!H114+'3b'!J114+'3b'!L114+'3b'!N114+'3b'!P114+'3b'!R114+'3b'!T114 -> 8
C8: ='3b'!D8 -> Social and Legal | D8: n/a | E8: n/a | F8: 0.4 | G8: =IF('3b'!V8=0, 0, ('3b'!E8+'3b'!G8+'3b'!I8+'3b'!K8+'3b'!M8+'3b'!O8+'3b'!Q8+'3b'!S8)/'3b'!V8) -> 0.4285491924 | H8: =+'3b'!E115+'3b'!G115+'3b'!I115+'3b'!K115+'3b'!M115+'3b'!O115+'3b'!Q115+'3b'!S115 -> 16 | I8: =IF('3b'!V8=0, 0,('3b'!F8+'3b'!H8+'3b'!J8+'3b'!L8+'3b'!N8+'3b'!P8+'3b'!R8+'3b'!T8)/'3b'!V8) -> 0.5714508076 | J8: =+'3b'!F115+'3b'!H115+'3b'!J115+'3b'!L115+'3b'!N115+'3b'!P115+'3b'!R115+'3b'!T115 -> 21
C9: ='3b'!D9 -> Crime and Violence | D9: n/a | E9: n/a | F9: 0.33 | G9: =IF('3b'!V9=0, 0, ('3b'!E9+'3b'!G9+'3b'!I9+'3b'!K9+'3b'!M9+'3b'!O9+'3b'!Q9+'3b'!S9)/'3b'!V9) -> 0.3112514678 | H9: =+'3b'!E116+'3b'!G116+'3b'!I116+'3b'!K116+'3b'!M116+'3b'!O116+'3b'!Q116+'3b'!S116 -> 13 | I9: =IF('3b'!V9=0, 0,('3b'!F9+'3b'!H9+'3b'!J9+'3b'!L9+'3b'!N9+'3b'!P9+'3b'!R9+'3b'!T9)/'3b'!V9) -> 0.6887485322 | J9: =+'3b'!F116+'3b'!H116+'3b'!J116+'3b'!L116+'3b'!N116+'3b'!P116+'3b'!R116+'3b'!T116 -> 28
C10: ='3b'!D10 -> Celebrity, Arts and Media, Sports | D10: n/a | E10: n/a | F10: 0.35 | G10: =IF('3b'!V10=0, 0, ('3b'!E10+'3b'!G10+'3b'!I10+'3b'!K10+'3b'!M10+'3b'!O10+'3b'!Q10+'3b'!S10)/'3b'!V10) -> 0.2798538352 | H10: =+'3b'!E117+'3b'!G117+'3b'!I117+'3b'!K117+'3b'!M117+'3b'!O117+'3b'!Q117+'3b'!S117 -> 6 | I10: =IF('3b'!V10=0, 0,('3b'!F10+'3b'!H10+'3b'!J10+'3b'!L10+'3b'!N10+'3b'!P10+'3b'!R10+'3b'!T10)/'3b'!V10) -> 0.7201461648 | J10: =+'3b'!F117+'3b'!H117+'3b'!J117+'3b'!L117+'3b'!N117+'3b'!P117+'3b'!R117+'3b'!T117 -> 15
C11: ='3b'!D11 -> The Girl-child | D11: n/a | E11: n/a | G11: =IF('3b'!V11=0, 0, ('3b'!E11+'3b'!G11+'3b'!I11+'3b'!K11+'3b'!M11+'3b'!O11+'3b'!Q11+'3b'!S11)/'3b'!V11) -> 0 | H11: =+'3b'!E118+'3b'!G118+'3b'!I118+'3b'!K118+'3b'!M118+'3b'!O118+'3b'!Q118+'3b'!S118 -> 0 | I11: =IF('3b'!V11=0, 0,('3b'!F11+'3b'!H11+'3b'!J11+'3b'!L11+'3b'!N11+'3b'!P11+'3b'!R11+'3b'!T11)/'3b'!V11) -> 0 | J11: =+'3b'!F118+'3b'!H118+'3b'!J118+'3b'!L118+'3b'!N118+'3b'!P118+'3b'!R118+'3b'!T118 -> 0
C12: ='3b'!D12 -> Other | D12: n/a | E12: n/a | G12: =IF('3b'!V12=0, 0, ('3b'!E12+'3b'!G12+'3b'!I12+'3b'!K12+'3b'!M12+'3b'!O12+'3b'!Q12+'3b'!S12)/'3b'!V12) -> 1 | H12: =+'3b'!E119+'3b'!G119+'3b'!I119+'3b'!K119+'3b'!M119+'3b'!O119+'3b'!Q119+'3b'!S119 -> 1 | I12: =IF('3b'!V12=0, 0,('3b'!F12+'3b'!H12+'3b'!J12+'3b'!L12+'3b'!N12+'3b'!P12+'3b'!R12+'3b'!T12)/'3b'!V12) -> 0 | J12: =+'3b'!F119+'3b'!H119+'3b'!J119+'3b'!L119+'3b'!N119+'3b'!P119+'3b'!R119+'3b'!T119 -> 0

Sheet 9a (hidden)
A1: Summary of news subjects, by sex, by GMMP year
E3: Female | F3: Male | W3: =E3 -> Female | X3: Male | Y3: 0 | Z3: 0 | AA3: 0 | AB3: 0 | AC3: 0 | AD3: 0 | AE3: 0 | AF3: 0 | AG3: 0 | AH3: 0 | AI3: 0 | AJ3: 0 | AK3: 0
V4: TOTAL | W4: 0 | X4: 0 | Y4: 0 | Z4: 0 | AA4: 0 | AB4: 0 | AC4: 0 | AD4: 0 | AE4: 0 | AF4: 0 | AG4: 0 | AH4: 0 | AI4: 0 | AJ4: 0 | AK4: 0 | AL4: =T4 -> 0
C5: 1 | D5: Politics and Government | E5: 0.2129064966 | F5: 0.6140074912 | V5: =SUM(E5:O5) -> 0.8269139878 | W5: =IF((E5+F5)>0,E5/(E5+F5),0) -> 0.2574711515 | X5: =IF((E5+F5)>0,F5/(E5+F5),0) -> 0.7425288485 | Y5: =IF((G5+H5)>0,G5/(G5+H5),0) -> 0 | Z5: =IF((G5+H5)>0,H5/(G5+H5),0) -> 0 | AA5: =IF((I5+J5)>0,I5/(I5+J5),0) -> 0 | AB5: =IF((I5+J5)>0,J5/(I5+J5),0) -> 0 | AC5: =IF((K5+L5)>0,K5/(K5+L5),0) -> 0 | AD5: =IF((K5+L5)>0,L5/(K5+L5),0) -> 0 | AE5: =IF((M5+N5)>0,M5/(M5+N5),0) -> 0 | AF5: =IF((M5+N5)>0,N5/(M5+N5),0) -> 0 | AG5: =IF((O5+P5)>0,O5/(O5+P5),0) -> 0 | AH5: =IF((O5+P5)>0,P5/(O5+P5),0) -> 0 | AI5: =IF((Q5+R5)>0,Q5/(Q5+R5),0) -> 0 | AJ5: =IF((Q5+R5)>0,R5/(Q5+R5),0) -> 0 | AK5: =IF((S5+T5)>0,S5/(S5+T5),0) -> 0 | AL5: =IF((S5+T5)>0,T5/(S5+T5),0) -> 0
C6: 2 | D6: Economy | E6: 0.04772949964 | F6: 0.1932004979 | V6: 0.2409299975 | W6: 0.1981052593 | X6: 0.8018947407 | Y6: 0 | Z6: 0 | AA6: 0 | AB6: 0 | AC6: 0 | AD6: 0 | AE6: 0 | AF6: 0 | AG6: 0 | AH6: 0 | AI6: 0 | AJ6: 0 | AK6: 0 | AL6: 0
C7: 3 | D7: Science and Health | E7: 0.03807650087 | F7: 0.06100000162 | V7: 0.09907650249 | W7: 0.3843141403 | X7: 0.6156858597 | Y7: 0 | Z7: 0 | AA7: 0 | AB7: 0 | AC7: 0 | AD7: 0 | AE7: 0 | AF7: 0 | AG7: 0 | AH7: 0 | AI7: 0 | AJ7: 0 | AK7: 0 | AL7: 0
C8: 4 | D8: Social and Legal | E8: 0.1008590003 | F8: 0.1391765019 | V8: 0.2400355022 | W8: 0.4201836787 | X8: 0.5798163213 | Y8: 0 | Z8: 0 | AA8: 0 | AB8: 0 | AC8: 0 | AD8: 0 | AE8: 0 | AF8: 0 | AG8: 0 | AH8: 0 | AI8: 0 | AJ8: 0 | AK8: 0 | AL8: 0
C9: 5 | D9: Crime and Violence | E9: 0.1188295013 | F9: 0.1736884997 | V9: 0.292518001 | W9: 0.4062297052 | X9: 0.5937702948 | Y9: 0 | Z9: 0 | AA9: 0 | AB9: 0 | AC9: 0 | AD9: 0 | AE9: 0 | AF9: 0 | AG9: 0 | AH9: 0 | AI9: 0 | AJ9: 0 | AK9: 0 | AL9: 0
C10: 6 | D10: Celebrity, Arts and Media, Sports | E10: 0.05020599952 | F10: 0.2923714933 | V10: 0.3425774928 | W10: 0.1465537012 | X10: 0.8534462988 | Y10: 0 | Z10: 0 | AA10: 0 | AB10: 0 | AC10: 0 | AD10: 0 | AE10: 0 | AF10: 0 | AG10: 0 | AH10: 0 | AI10: 0 | AJ10: 0 | AK10: 0 | AL10: 0
C11: 7 | D11: The Girl-child | V11: 0 | W11: 0 | X11: 0 | Y11: 0 | Z11: 0 | AA11: 0 | AB11: 0 | AC11: 0 | AD11: 0 | AE11: 0 | AF11: 0 | AG11: 0 | AH11: 0 | AI11: 0 | AJ11: 0 | AK11: 0 | AL11: 0
C12: 8 | D12: Other | V12: 0 | W12: 0 | X12: 0 | Y12: 0 | Z12: 0 | AA12: 0 | AB12: 0 | AC12: 0 | AD12: 0 | AE12: 0 | AF12: 0 | AG12: 0 | AH12: 0 | AI12: 0 | AJ12: 0 | AK12: 0 | AL12: 0
D50: TOTAL | E50: =SUM(E5:E49) -> 0.5686069983 | F50: 1.473444486 | G50: 0 | H50: 0 | I50: 0 | J50: 0 | K50: 0 | L50: 0 | M50: 0 | N50: 0 | O50: 0 | P50: 0 | Q50: 0 | R50: 0 | S50: 0 | T50: 0 | V50: =SUM(E50:O50) -> 2.042051484 | W50: =IF((E50+F50)>0,E50/(E50+F50),0) -> 0.2784489043 | X50: =IF((E50+F50)>0,F50/(E50+F50),0) -> 0.7215510957 | Y50: =IF((G50+H50)>0,G50/(G50+H50),0) -> 0 | Z50: =IF((G50+H50)>0,H50/(G50+H50),0) -> 0 | AA50: =IF((I50+J50)>0,I50/(I50+J50),0) -> 0 | AB50: =IF((I50+J50)>0,J50/(I50+J50),0) -> 0 | AC50: =IF((K50+L50)>0,K50/(K50+L50),0) -> 0 | AD50: =IF((K50+L50)>0,L50/(K50+L50),0) -> 0 | AE50: =IF((M50+N50)>0,M50/(M50+N50),0) -> 0 | AF50: =IF((M50+N50)>0,N50/(M50+N50),0) -> 0 | AG50: =IF((O50+P50)>0,O50/(O50+P50),0) -> 0 | AH50: =IF((O50+P50)>0,P50/(O50+P50),0) -> 0 | AI50: =IF((Q50+R50)>0,Q50/(Q50+R50),0) -> 0 | AJ50: =IF((Q50+R50)>0,R50/(Q50+R50),0) -> 0 | AK50: =IF((S50+T50)>0,S50/(S50+T50),0) -> 0 | AL50: =IF((S50+T50)>0,T50/(S50+T50),0) -> 0
C52: =C5 -> 1 | D52: Politics and Government | E52: =IF(E$50>0,E5/E$50,0) -> 0.3744352378 | F52: 0.4167157278 | G52: 0 | H52: 0 | I52: 0 | J52: 0 | K52: 0 | L52: 0 | M52: 0 | N52: 0 | O52: 0 | P52: 0 | Q52: 0 | R52: 0 | S52: 0 | T52: 0
C53: 2 | D53: Economy | E53: =IF(E$50>0,E6/E$50,0) -> 0.08394110481 | F53: 0.1311216675 | G53: 0 | H53: 0 | I53: 0 | J53: 0 | K53: 0 | L53: 0 | M53: 0 | N53: 0 | O53: 0 | P53: 0 | Q53: 0 | R53: 0 | S53: 0 | T53: 0
C54: 3 | D54: Science and Health | E54: =IF(E$50>0,E7/E$50,0) -> 0.06696453084 | F54: 0.04139959273 | G54: 0 | H54: 0 | I54: 0 | J54: 0 | K54: 0 | L54: 0 | M54: 0 | N54: 0 | O54: 0 | P54: 0 | Q54: 0 | R54: 0 | S54: 0 | T54: 0
C55: 4 | D55: Social and Legal | E55: =IF(E$50>0,E8/E$50,0) -> 0.1773791048 | F55: 0.09445656301 | G55: 0 | H55: 0 | I55: 0 | J55: 0 | K55: 0 | L55: 0 | M55: 0 | N55: 0 | O55: 0 | P55: 0 | Q55: 0 | R55: 0 | S55: 0 | T55: 0
C56: 5 | D56: Crime and Violence | E56: =IF(E$50>0,E9/E$50,0) -> 0.2089835364 | F56: 0.1178792289 | G56: 0 | H56: 0 | I56: 0 | J56: 0 | K56: 0 | L56: 0 | M56: 0 | N56: 0 | O56: 0 | P56: 0 | Q56: 0 | R56: 0 | S56: 0 | T56: 0
C57: 6 | D57: Celebrity, Arts and Media, Sports | E57: =IF(E$50>0,E10/E$50,0) -> 0.08829648539 | F57: 0.1984272201 | G57: 0 | H57: 0 | I57: 0 | J57: 0 | K57: 0 | L57: 0 | M57: 0 | N57: 0 | O57: 0 | P57: 0 | Q57: 0 | R57: 0 | S57: 0 | T57: 0
C58: 7 | D58: The Girl-child | E58: =IF(E$50>0,E11/E$50,0) -> 0 | F58: 0 | G58: 0 | H58: 0 | I58: 0 | J58: 0 | K58: 0 | L58: 0 | M58: 0 | N58: 0 | O58: 0 | P58: 0 | Q58: 0 | R58: 0 | S58: 0 | T58: 0
C59: 8 | D59: Other | E59: =IF(E$50>0,E12/E$50,0) -> 0 | F59: 0 | G59: 0 | H59: 0 | I59: 0 | J59: 0 | K59: 0 | L59: 0 | M59: 0 | N59: 0 | O59: 0 | P59: 0 | Q59: 0 | R59: 0 | S59: 0 | T59: 0
C60: 0 | D60: 0 | E60: =IF(E$50>0,E13/E$50,0) -> 0 | F60: 0 | G60: 0 | H60: 0 | I60: 0 | J60: 0 | K60: 0 | L60: 0 | M60: 0 | N60: 0 | O60: 0 | P60: 0 | Q60: 0 | R60: 0 | S60: 0 | T60: 0
C61: 0 | D61: 0 | E61: =IF(E$50>0,E14/E$50,0) -> 0 | F61: 0 | G61: 0 | H61: 0 | I61: 0 | J61: 0 | K61: 0 | L61: 0 | M61: 0 | N61: 0 | O61: 0 | P61: 0 | Q61: 0 | R61: 0 | S61: 0 | T61: 0
C62: 0 | D62: 0 | E62: =IF(E$50>0,E15/E$50,0) -> 0 | F62: 0 | G62: 0 | H62: 0 | I62: 0 | J62: 0 | K62: 0 | L62: 0 | M62: 0 | N62: 0 | O62: 0 | P62: 0 | Q62: 0 | R62: 0 | S62: 0 | T62: 0
C63: 0 | D63: 0 | E63: =IF(E$50>0,E16/E$50,0) -> 0 | F63: 0 | G63: 0 | H63: 0 | I63: 0 | J63: 0 | K63: 0 | L63: 0 | M63: 0 | N63: 0 | O63: 0 | P63: 0 | Q63: 0 | R63: 0 | S63: 0 | T63: 0
C64: 0 | D64: 0 | E64: =IF(E$50>0,E17/E$50,0) -> 0 | F64: 0 | G64: 0 | H64: 0 | I64: 0 | J64: 0 | K64: 0 | L64: 0 | M64: 0 | N64: 0 | O64: 0 | P64: 0 | Q64: 0 | R64: 0 | S64: 0 | T64: 0
C65: 0 | D65: 0 | E65: =IF(E$50>0,E18/E$50,0) -> 0 | F65: 0 | G65: 0 | H65: 0 | I65: 0 | J65: 0 | K65: 0 | L65: 0 | M65: 0 | N65: 0 | O65: 0 | P65: 0 | Q65: 0 | R65: 0 | S65: 0 | T65: 0
C66: 0 | D66: 0 | E66: =IF(E$50>0,E19/E$50,0) -> 0 | F66: 0 | G66: 0 | H66: 0 | I66: 0 | J66: 0 | K66: 0 | L66: 0 | M66: 0 | N66: 0 | O66: 0 | P66: 0 | Q66: 0 | R66: 0 | S66: 0 | T66: 0
C67: 0 | D67: 0 | E67: =IF(E$50>0,E20/E$50,0) -> 0 | F67: 0 | G67: 0 | H67: 0 | I67: 0 | J67: 0 | K67: 0 | L67: 0 | M67: 0 | N67: 0 | O67: 0 | P67: 0 | Q67: 0 | R67: 0 | S67: 0 | T67: 0
C68: 0 | D68: 0 | E68: =IF(E$50>0,E21/E$50,0) -> 0 | F68: 0 | G68: 0 | H68: 0 | I68: 0 | J68: 0 | K68: 0 | L68: 0 | M68: 0 | N68: 0 | O68: 0 | P68: 0 | Q68: 0 | R68: 0 | S68: 0 | T68: 0
C69: 0 | D69: 0 | E69: =IF(E$50>0,E22/E$50,0) -> 0 | F69: 0 | G69: 0 | H69: 0 | I69: 0 | J69: 0 | K69: 0 | L69: 0 | M69: 0 | N69: 0 | O69: 0 | P69: 0 | Q69: 0 | R69: 0 | S69: 0 | T69: 0
C70: 0 | D70: 0 | E70: =IF(E$50>0,E23/E$50,0) -> 0 | F70: 0 | G70: 0 | H70: 0 | I70: 0 | J70: 0 | K70: 0 | L70: 0 | M70: 0 | N70: 0 | O70: 0 | P70: 0 | Q70: 0 | R70: 0 | S70: 0 | T70: 0
C71: 0 | D71: 0 | E71: =IF(E$50>0,E24/E$50,0) -> 0 | F71: 0 | G71: 0 | H71: 0 | I71: 0 | J71: 0 | K71: 0 | L71: 0 | M71: 0 | N71: 0 | O71: 0 | P71: 0 | Q71: 0 | R71: 0 | S71: 0 | T71: 0
C72: =C25 -> 0 | D72: 0 | E72: =IF(E$50>0,E25/E$50,0) -> 0 | F72: 0 | G72: 0 | H72: 0 | I72: 0 | J72: 0 | K72: 0 | L72: 0 | M72: 0 | N72: 0 | O72: 0 | P72: 0 | Q72: 0 | R72: 0 | S72: 0 | T72: 0
C73: 0 | D73: 0 | E73: =IF(E$50>0,E26/E$50,0) -> 0 | F73: 0 | G73: 0 | H73: 0 | I73: 0 | J73: 0 | K73: 0 | L73: 0 | M73: 0 | N73: 0 | O73: 0 | P73: 0 | Q73: 0 | R73: 0 | S73: 0 | T73: 0
C74: 0 | D74: 0 | E74: =IF(E$50>0,E27/E$50,0) -> 0 | F74: 0 | G74: 0 | H74: 0 | I74: 0 | J74: 0 | K74: 0 | L74: 0 | M74: 0 | N74: 0 | O74: 0 | P74: 0 | Q74: 0 | R74: 0 | S74: 0 | T74: 0
C75: 0 | D75: 0 | E75: =IF(E$50>0,E28/E$50,0) -> 0 | F75: 0 | G75: 0 | H75: 0 | I75: 0 | J75: 0 | K75: 0 | L75: 0 | M75: 0 | N75: 0 | O75: 0 | P75: 0 | Q75: 0 | R75: 0 | S75: 0 | T75: 0
C76: 0 | D76: 0 | E76: =IF(E$50>0,E29/E$50,0) -> 0 | F76: 0 | G76: 0 | H76: 0 | I76: 0 | J76: 0 | K76: 0 | L76: 0 | M76: 0 | N76: 0 | O76: 0 | P76: 0 | Q76: 0 | R76: 0 | S76: 0 | T76: 0
C77: 0 | D77: 0 | E77: =IF(E$50>0,E30/E$50,0) -> 0 | F77: 0 | G77: 0 | H77: 0 | I77: 0 | J77: 0 | K77: 0 | L77: 0 | M77: 0 | N77: 0 | O77: 0 | P77: 0 | Q77: 0 | R77: 0 | S77: 0 | T77: 0
C78: 0 | D78: 0 | E78: =IF(E$50>0,E31/E$50,0) -> 0 | F78: 0 | G78: 0 | H78: 0 | I78: 0 | J78: 0 | K78: 0 | L78: 0 | M78: 0 | N78: 0 | O78: 0 | P78: 0 | Q78: 0 | R78: 0 | S78: 0 | T78: 0
C79: 0 | D79: 0 | E79: =IF(E$50>0,E32/E$50,0) -> 0 | F79: 0 | G79: 0 | H79: 0 | I79: 0 | J79: 0 | K79: 0 | L79: 0 | M79: 0 | N79: 0 | O79: 0 | P79: 0 | Q79: 0 | R79: 0 | S79: 0 | T79: 0
C80: 0 | D80: 0 | E80: =IF(E$50>0,E33/E$50,0) -> 0 | F80: 0 | G80: 0 | H80: 0 | I80: 0 | J80: 0 | K80: 0 | L80: 0 | M80: 0 | N80: 0 | O80: 0 | P80: 0 | Q80: 0 | R80: 0 | S80: 0 | T80: 0
C81: 0 | D81: 0 | E81: =IF(E$50>0,E34/E$50,0) -> 0 | F81: 0 | G81: 0 | H81: 0 | I81: 0 | J81: 0 | K81: 0 | L81: 0 | M81: 0 | N81: 0 | O81: 0 | P81: 0 | Q81: 0 | R81: 0 | S81: 0 | T81: 0
C82: 0 | D82: 0 | E82: =IF(E$50>0,E35/E$50,0) -> 0 | F82: 0 | G82: 0 | H82: 0 | I82: 0 | J82: 0 | K82: 0 | L82: 0 | M82: 0 | N82: 0 | O82: 0 | P82: 0 | Q82: 0 | R82: 0 | S82: 0 | T82: 0
C83: 0 | D83: 0 | E83: =IF(E$50>0,E36/E$50,0) -> 0 | F83: 0 | G83: 0 | H83: 0 | I83: 0 | J83: 0 | K83: 0 | L83: 0 | M83: 0 | N83: 0 | O83: 0 | P83: 0 | Q83: 0 | R83: 0 | S83: 0 | T83: 0
C84: 0 | D84: 0 | E84: =IF(E$50>0,E37/E$50,0) -> 0 | F84: 0 | G84: 0 | H84: 0 | I84: 0 | J84: 0 | K84: 0 | L84: 0 | M84: 0 | N84: 0 | O84: 0 | P84: 0 | Q84: 0 | R84: 0 | S84: 0 | T84: 0
C85: 0 | D85: 0 | E85: =IF(E$50>0,E38/E$50,0) -> 0 | F85: 0 | G85: 0 | H85: 0 | I85: 0 | J85: 0 | K85: 0 | L85: 0 | M85: 0 | N85: 0 | O85: 0 | P85: 0 | Q85: 0 | R85: 0 | S85: 0 | T85: 0
C86: 0 | D86: 0 | E86: =IF(E$50>0,E39/E$50,0) -> 0 | F86: 0 | G86: 0 | H86: 0 | I86: 0 | J86: 0 | K86: 0 | L86: 0 | M86: 0 | N86: 0 | O86: 0 | P86: 0 | Q86: 0 | R86: 0 | S86: 0 | T86: 0
C87: 0 | D87: 0 | E87: =IF(E$50>0,E40/E$50,0) -> 0 | F87: 0 | G87: 0 | H87: 0 | I87: 0 | J87: 0 | K87: 0 | L87: 0 | M87: 0 | N87: 0 | O87: 0 | P87: 0 | Q87: 0 | R87: 0 | S87: 0 | T87: 0
C88: 0 | D88: 0 | E88: =IF(E$50>0,E41/E$50,0) -> 0 | F88: 0 | G88: 0 | H88: 0 | I88: 0 | J88: 0 | K88: 0 | L88: 0 | M88: 0 | N88: 0 | O88: 0 | P88: 0 | Q88: 0 | R88: 0 | S88: 0 | T88: 0
C89: 0 | D89: 0 | E89: =IF(E$50>0,E42/E$50,0) -> 0 | F89: 0 | G89: 0 | H89: 0 | I89: 0 | J89: 0 | K89: 0 | L89: 0 | M89: 0 | N89: 0 | O89: 0 | P89: 0 | Q89: 0 | R89: 0 | S89: 0 | T89: 0
C90: 0 | D90: 0 | E90: =IF(E$50>0,E43/E$50,0) -> 0 | F90: 0 | G90: 0 | H90: 0 | I90: 0 | J90: 0 | K90: 0 | L90: 0 | M90: 0 | N90: 0 | O90: 0 | P90: 0 | Q90: 0 | R90: 0 | S90: 0 | T90: 0
C91: 0 | D91: 0 | E91: =IF(E$50>0,E44/E$50,0) -> 0 | F91: 0 | G91: 0 | H91: 0 | I91: 0 | J91: 0 | K91: 0 | L91: 0 | M91: 0 | N91: 0 | O91: 0 | P91: 0 | Q91: 0 | R91: 0 | S91: 0 | T91: 0
C92: =C45 -> 0 | D92: 0 | E92: =IF(E$50>0,E45/E$50,0) -> 0 | F92: 0 | G92: 0 | H92: 0 | I92: 0 | J92: 0 | K92: 0 | L92: 0 | M92: 0 | N92: 0 | O92: 0 | P92: 0 | Q92: 0 | R92: 0 | S92: 0 | T92: 0
C93: 0 | D93: 0 | E93: =IF(E$50>0,E46/E$50,0) -> 0 | F93: 0 | G93: 0 | H93: 0 | I93: 0 | J93: 0 | K93: 0 | L93: 0 | M93: 0 | N93: 0 | O93: 0 | P93: 0 | Q93: 0 | R93: 0 | S93: 0 | T93: 0
C94: 0 | D94: 0 | E94: =IF(E$50>0,E47/E$50,0) -> 0 | F94: 0 | G94: 0 | H94: 0 | I94: 0 | J94: 0 | K94: 0 | L94: 0 | M94: 0 | N94: 0 | O94: 0 | P94: 0 | Q94: 0 | R94: 0 | S94: 0 | T94: 0
C95: 0 | D95: 0 | E95: =IF(E$50>0,E48/E$50,0) -> 0 | F95: 0 | G95: 0 | H95: 0 | I95: 0 | J95: 0 | K95: 0 | L95: 0 | M95: 0 | N95: 0 | O95: 0 | P95: 0 | Q95: 0 | R95: 0 | S95: 0 | T95: 0
C96: 0 | D96: 0 | E96: =IF(E$50>0,E49/E$50,0) -> 0 | F96: 0 | G96: 0 | H96: 0 | I96: 0 | J96: 0 | K96: 0 | L96: 0 | M96: 0 | N96: 0 | O96: 0 | P96: 0 | Q96: 0 | R96: 0 | S96: 0 | T96: 0
A109: COUNT
E110: =E3 -> Female | F110: Male | G110: 0 | H110: 0 | I110: 0 | J110: 0 | K110: 0 | L110: 0 | M110: 0 | N110: 0 | O110: 0 | P110: 0 | Q110: 0 | R110: 0 | S110: 0 | T110: 0
E111: =E4 -> 0 | F111: 0 | G111: 0 | H111: 0 | I111: 0 | J111: 0 | K111: 0 | L111: 0 | M111: 0 | N111: 0 | O111: 0 | P111: 0 | Q111: 0 | R111: 0 | S111: 0 | T111: 0
C112: =C5 -> 1 | D112: Politics and Government | E112: 32 | F112: 95
C113: 2 | D113: Economy | E113: 8 | F113: 30
C114: 3 | D114: Science and Health | E114: 7 | F114: 12
C115: 4 | D115: Social and Legal | E115: 17 | F115: 27
C116: 5 | D116: Crime and Violence | E116: 22 | F116: 30
C117: 6 | D117: Celebrity, Arts and Media, Sports | E117: 8 | F117: 43
C118: 7 | D118: The Girl-child | E118: 0 | F118: 0
C119: 8 | D119: Other | E119: 0 | F119: 0
C120: 0 | D120: 0
C121: 0 | D121: 0
C122: 0 | D122: 0
C123: 0 | D123: 0
C124: 0 | D124: 0
C125: 0 | D125: 0
C126: 0 | D126: 0
C127: 0 | D127: 0
C128: 0 | D128: 0
C129: 0 | D129: 0
C130: 0 | D130: 0
C131: 0 | D131: 0
C132: =C25 -> 0 | D132: 0
C133: 0 | D133: 0
C134: 0 | D134: 0
C135: 0 | D135: 0
C136: 0 | D136: 0
C137: 0 | D137: 0
C138: 0 | D138: 0
C139: 0 | D139: 0
C140: 0 | D140: 0
C141: 0 | D141: 0
C142: 0 | D142: 0
C143: 0 | D143: 0
C144: 0 | D144: 0
C145: 0 | D145: 0
C146: 0 | D146: 0
C147: 0 | D147: 0
C148: 0 | D148: 0
C149: 0 | D149: 0
C150: 0 | D150: 0
C151: 0 | D151: 0
C152: =C45 -> 0 | D152: 0
C153: 0 | D153: 0
C154: 0 | D154: 0

Sheet 9aF - Overall presence of women
A1: Overall presence of women and men as subjects in the news
F3: ='9a'!W3 & " %F" -> Female %F | K3: Male %M
E4: Topic | F4: 1995 | G4: 2000 | H4: 2005 | I4: 2010 | J4: N | K4: 2010 | L4: N
E5: ='9a'!D5 -> Politics and Government | F5: 0 | G5: 0.12 | H5: 0.14 | I5: ='9a'!W5 -> 0.2574711515 | J5: ='9a'!E112 -> 32 | K5: ='9a'!X5 -> 0.7425288485 | L5: ='9a'!F112 -> 95
E6: ='9a'!D6 -> Economy | F6: 0 | G6: 0.18 | H6: 0.2 | I6: ='9a'!W6 -> 0.1981052593 | J6: ='9a'!E113 -> 8 | K6: ='9a'!X6 -> 0.8018947407 | L6: ='9a'!F113 -> 30
E7: ='9a'!D7 -> Science and Health | F7: 0 | G7: 0.21 | H7: 0.22 | I7: ='9a'!W7 -> 0.3843141403 | J7: ='9a'!E114 -> 7 | K7: ='9a'!X7 -> 0.6156858597 | L7: ='9a'!F114 -> 12
E8: ='9a'!D8 -> Social and Legal | F8: 0 | G8: 0.21 | H8: 0.28 | I8: ='9a'!W8 -> 0.4201836787 | J8: ='9a'!E115 -> 17 | K8: ='9a'!X8 -> 0.5798163213 | L8: ='9a'!F115 -> 27
E9: ='9a'!D9 -> Crime and Violence | F9: 0 | G9: 0.18 | H9: 0.22 | I9: ='9a'!W9 -> 0.4062297052 | J9: ='9a'!E116 -> 22 | K9: ='9a'!X9 -> 0.5937702948 | L9: ='9a'!F116 -> 30
E10: ='9a'!D10 -> Celebrity, Arts and Media, Sports | F10: 0 | G10: 0.23 | H10: 0.28 | I10: ='9a'!W10 -> 0.1465537012 | J10: ='9a'!E117 -> 8 | K10: ='9a'!X10 -> 0.8534462988 | L10: ='9a'!F117 -> 43
E11: ='9a'!D11 -> The Girl-child | F11: 0 | G11: new code | H11: new topic | I11: ='9a'!W11 -> 0 | J11: ='9a'!E118 -> 0 | K11: ='9a'!X11 -> 0 | L11: ='9a'!F118 -> 0
E12: ='9a'!D12 -> Other | F12: 0 | G12: n/a | H12: n/a | I12: ='9a'!W12 -> 0 | J12: ='9a'!E119 -> 0 | K12: ='9a'!X12 -> 0 | L12: ='9a'!F119 -> 0
F14: 0 | G14: 0 | H14: 0 | I14: ='9a'!$W$50 -> 0.2784489043 | J14: =SUM(J5:J12) -> 94 | K14: ='9a'!$X$50 -> 0.7215510957 | L14: =SUM(L5:L12) -> 237

Sheet 9b (hidden)
A1: Breakdown by sex of all 3 mediums
E3: PRINT | F3: RADIO | G3: TELEVISION | W3: =E3 -> PRINT | X3: RADIO | Y3: TELEVISION
V4: TOTAL | W4: 0 | X4: 0 | Y4: 0
C5: 1 | D5: Female | E5: 0.2841069913 | F5: 0.05499999877 | G5: 0.2295000083 | V5: =SUM(E5:O5) -> 0.5686069983 | W5: =IF($V5>0,E5/$V5,0) -> 0.4996544047 | X5: =IF($V5>0,F5/$V5,0) -> 0.09672761492 | Y5: =IF($V5>0,G5/$V5,0) -> 0.4036179804
C6: 2 | D6: Male | E6: 0.844844474 | F6: 0.1899999958 | G6: 0.4386000158 | V6: 1.473444486 | W6: =IF($V6>0,E6/$V6,0) -> 0.5733805937 | X6: =IF($V6>0,F6/$V6,0) -> 0.1289495448 | Y6: =IF($V6>0,G6/$V6,0) -> 0.2976698614
V7: 0 | W7: 0 | X7: 0 | Y7: 0
V8: 0 | W8: 0 | X8: 0 | Y8: 0
V9: 0 | W9: 0 | X9: 0 | Y9: 0
V10: 0 | W10: 0 | X10: 0 | Y10: 0
V11: 0 | W11: 0 | X11: 0 | Y11: 0
V12: 0 | W12: 0 | X12: 0 | Y12: 0
D50: TOTAL | E50: =SUM(E5:E49) -> 1.128951465 | F50: 0.2449999945 | G50: 0.6681000241 | H50: 0 | I50: 0 | J50: 0 | K50: 0 | L50: 0 | M50: 0 | N50: 0 | O50: 0 | P50: 0 | Q50: 0 | R50: 0 | S50: 0 | T50: 0 | V50: =SUM(E50:O50) -> 2.042051484 | W50: =IF((E50+F50)>0,E50/(E50+F50),0) -> 0.8216822052 | X50: =IF((E50+F50)>0,F50/(E50+F50),0) -> 0.1783177948 | Y50: =IF((G50+H50)>0,G50/(G50+H50),0) -> 1 | Z50: =IF((G50+H50)>0,H50/(G50+H50),0) -> 0 | AA50: =IF((I50+J50)>0,I50/(I50+J50),0) -> 0 | AB50: =IF((I50+J50)>0,J50/(I50+J50),0) -> 0 | AC50: =IF((K50+L50)>0,K50/(K50+L50),0) -> 0 | AD50: =IF((K50+L50)>0,L50/(K50+L50),0) -> 0 | AE50: =IF((M50+N50)>0,M50/(M50+N50),0) -> 0 | AF50: =IF((M50+N50)>0,N50/(M50+N50),0) -> 0 | AG50: =IF((O50+P50)>0,O50/(O50+P50),0) -> 0 | AH50: =IF((O50+P50)>0,P50/(O50+P50),0) -> 0 | AI50: =IF((Q50+R50)>0,Q50/(Q50+R50),0) -> 0 | AJ50: =IF((Q50+R50)>0,R50/(Q50+R50),0) -> 0 | AK50: =IF((S50+T50)>0,S50/(S50+T50),0) -> 0 | AL50: =IF((S50+T50)>0,T50/(S50+T50),0) -> 0
C52: =C5 -> 1 | D52: Female | E52: =IF(E$50>0,E5/E$50,0) -> 0.2516556291 | F52: 0.2244897959 | G52: 0.3435114504 | H52: 0 | I52: 0 | J52: 0 | K52: 0 | L52: 0 | M52: 0 | N52: 0 | O52: 0 | P52: 0 | Q52: 0 | R52: 0 | S52: 0 | T52: 0
C53: 2 | D53: Male | E53: =IF(E$50>0,E6/E$50,0) -> 0.7483443709 | F53: 0.7755102041 | G53: 0.6564885496 | H53: 0 | I53: 0 | J53: 0 | K53: 0 | L53: 0 | M53: 0 | N53: 0 | O53: 0 | P53: 0 | Q53: 0 | R53: 0 | S53: 0 | T53: 0
C54: 0 | D54: 0 | E54: =IF(E$50>0,E7/E$50,0) -> 0 | F54: 0 | G54: 0 | H54: 0 | I54: 0 | J54: 0 | K54: 0 | L54: 0 | M54: 0 | N54: 0 | O54: 0 | P54: 0 | Q54: 0 | R54: 0 | S54: 0 | T54: 0
C55: 0 | D55: 0 | E55: =IF(E$50>0,E8/E$50,0) -> 0 | F55: 0 | G55: 0 | H55: 0 | I55: 0 | J55: 0 | K55: 0 | L55: 0 | M55: 0 | N55: 0 | O55: 0 | P55: 0 | Q55: 0 | R55: 0 | S55: 0 | T55: 0
C56: 0 | D56: 0 | E56: =IF(E$50>0,E9/E$50,0) -> 0 | F56: 0 | G56: 0 | H56: 0 | I56: 0 | J56: 0 | K56: 0 | L56: 0 | M56: 0 | N56: 0 | O56: 0 | P56: 0 | Q56: 0 | R56: 0 | S56: 0 | T56: 0
C57: 0 | D57: 0 | E57: =IF(E$50>0,E10/E$50,0) -> 0 | F57: 0 | G57: 0 | H57: 0 | I57: 0 | J57: 0 | K57: 0 | L57: 0 | M57: 0 | N57: 0 | O57: 0 | P57: 0 | Q57: 0 | R57: 0 | S57: 0 | T57: 0
C58: 0 | D58: 0 | E58: =IF(E$50>0,E11/E$50,0) -> 0 | F58: 0 | G58: 0 | H58: 0 | I58: 0 | J58: 0 | K58: 0 | L58: 0 | M58: 0 | N58: 0 | O58: 0 | P58: 0 | Q58: 0 | R58: 0 | S58: 0 | T58: 0
C59: 0 | D59: 0 | E59: =IF(E$50>0,E12/E$50,0) -> 0 | F59: 0 | G59: 0 | H59: 0 | I59: 0 | J59: 0 | K59: 0 | L59: 0 | M59: 0 | N59: 0 | O59: 0 | P59: 0 | Q59: 0 | R59: 0 | S59: 0 | T59: 0
C60: 0 | D60: 0 | E60: =IF(E$50>0,E13/E$50,0) -> 0 | F60: 0 | G60: 0 | H60: 0 | I60: 0 | J60: 0 | K60: 0 | L60: 0 | M60: 0 | N60: 0 | O60: 0 | P60: 0 | Q60: 0 | R60: 0 | S60: 0 | T60: 0
C61: 0 | D61: 0 | E61: =IF(E$50>0,E14/E$50,0) -> 0 | F61: 0 | G61: 0 | H61: 0 | I61: 0 | J61: 0 | K61: 0 | L61: 0 | M61: 0 | N61: 0 | O61: 0 | P61: 0 | Q61: 0 | R61: 0 | S61: 0 | T61: 0
C62: 0 | D62: 0 | E62: =IF(E$50>0,E15/E$50,0) -> 0 | F62: 0 | G62: 0 | H62: 0 | I62: 0 | J62: 0 | K62: 0 | L62: 0 | M62: 0 | N62: 0 | O62: 0 | P62: 0 | Q62: 0 | R62: 0 | S62: 0 | T62: 0
C63: 0 | D63: 0 | E63: =IF(E$50>0,E16/E$50,0) -> 0 | F63: 0 | G63: 0 | H63: 0 | I63: 0 | J63: 0 | K63: 0 | L63: 0 | M63: 0 | N63: 0 | O63: 0 | P63: 0 | Q63: 0 | R63: 0 | S63: 0 | T63: 0
C64: 0 | D64: 0 | E64: =IF(E$50>0,E17/E$50,0) -> 0 | F64: 0 | G64: 0 | H64: 0 | I64: 0 | J64: 0 | K64: 0 | L64: 0 | M64: 0 | N64: 0 | O64: 0 | P64: 0 | Q64: 0 | R64: 0 | S64: 0 | T64: 0
C65: 0 | D65: 0 | E65: =IF(E$50>0,E18/E$50,0) -> 0 | F65: 0 | G65: 0 | H65: 0 | I65: 0 | J65: 0 | K65: 0 | L65: 0 | M65: 0 | N65: 0 | O65: 0 | P65: 0 | Q65: 0 | R65: 0 | S65: 0 | T65: 0
C66: 0 | D66: 0 | E66: =IF(E$50>0,E19/E$50,0) -> 0 | F66: 0 | G66: 0 | H66: 0 | I66: 0 | J66: 0 | K66: 0 | L66: 0 | M66: 0 | N66: 0 | O66: 0 | P66: 0 | Q66: 0 | R66: 0 | S66: 0 | T66: 0
C67: 0 | D67: 0 | E67: =IF(E$50>0,E20/E$50,0) -> 0 | F67: 0 | G67: 0 | H67: 0 | I67: 0 | J67: 0 | K67: 0 | L67: 0 | M67: 0 | N67: 0 | O67: 0 | P67: 0 | Q67: 0 | R67: 0 | S67: 0 | T67: 0
C68: 0 | D68: 0 | E68: =IF(E$50>0,E21/E$50,0) -> 0 | F68: 0 | G68: 0 | H68: 0 | I68: 0 | J68: 0 | K68: 0 | L68: 0 | M68: 0 | N68: 0 | O68: 0 | P68: 0 | Q68: 0 | R68: 0 | S68: 0 | T68: 0
C69: 0 | D69: 0 | E69: =IF(E$50>0,E22/E$50,0) -> 0 | F69: 0 | G69: 0 | H69: 0 | I69: 0 | J69: 0 | K69: 0 | L69: 0 | M69: 0 | N69: 0 | O69: 0 | P69: 0 | Q69: 0 | R69: 0 | S69: 0 | T69: 0
C70: 0 | D70: 0 | E70: =IF(E$50>0,E23/E$50,0) -> 0 | F70: 0 | G70: 0 | H70: 0 | I70: 0 | J70: 0 | K70: 0 | L70: 0 | M70: 0 | N70: 0 | O70: 0 | P70: 0 | Q70: 0 | R70: 0 | S70: 0 | T70: 0
C71: 0 | D71: 0 | E71: =IF(E$50>0,E24/E$50,0) -> 0 | F71: 0 | G71: 0 | H71: 0 | I71: 0 | J71: 0 | K71: 0 | L71: 0 | M71: 0 | N71: 0 | O71: 0 | P71: 0 | Q71: 0 | R71: 0 | S71: 0 | T71: 0
C72: =C25 -> 0 | D72: 0 | E72: =IF(E$50>0,E25/E$50,0) -> 0 | F72: 0 | G72: 0 | H72: 0 | I72: 0 | J72: 0 | K72: 0 | L72: 0 | M72: 0 | N72: 0 | O72: 0 | P72: 0 | Q72: 0 | R72: 0 | S72: 0 | T72: 0
C73: 0 | D73: 0 | E73: =IF(E$50>0,E26/E$50,0) -> 0 | F73: 0 | G73: 0 | H73: 0 | I73: 0 | J73: 0 | K73: 0 | L73: 0 | M73: 0 | N73: 0 | O73: 0 | P73: 0 | Q73: 0 | R73: 0 | S73: 0 | T73: 0
C74: 0 | D74: 0 | E74: =IF(E$50>0,E27/E$50,0) -> 0 | F74: 0 | G74: 0 | H74: 0 | I74: 0 | J74: 0 | K74: 0 | L74: 0 | M74: 0 | N74: 0 | O74: 0 | P74: 0 | Q74: 0 | R74: 0 | S74: 0 | T74: 0
C75: 0 | D75: 0 | E75: =IF(E$50>0,E28/E$50,0) -> 0 | F75: 0 | G75: 0 | H75: 0 | I75: 0 | J75: 0 | K75: 0 | L75: 0 | M75: 0 | N75: 0 | O75: 0 | P75: 0 | Q75: 0 | R75: 0 | S75: 0 | T75: 0
C76: 0 | D76: 0 | E76: =IF(E$50>0,E29/E$50,0) -> 0 | F76: 0 | G76: 0 | H76: 0 | I76: 0 | J76: 0 | K76: 0 | L76: 0 | M76: 0 | N76: 0 | O76: 0 | P76: 0 | Q76: 0 | R76: 0 | S76: 0 | T76: 0
C77: 0 | D77: 0 | E77: =IF(E$50>0,E30/E$50,0) -> 0 | F77: 0 | G77: 0 | H77: 0 | I77: 0 | J77: 0 | K77: 0 | L77: 0 | M77: 0 | N77: 0 | O77: 0 | P77: 0 | Q77: 0 | R77: 0 | S77: 0 | T77: 0
C78: 0 | D78: 0 | E78: =IF(E$50>0,E31/E$50,0) -> 0 | F78: 0 | G78: 0 | H78: 0 | I78: 0 | J78: 0 | K78: 0 | L78: 0 | M78: 0 | N78: 0 | O78: 0 | P78: 0 | Q78: 0 | R78: 0 | S78: 0 | T78: 0
C79: 0 | D79: 0 | E79: =IF(E$50>0,E32/E$50,0) -> 0 | F79: 0 | G79: 0 | H79: 0 | I79: 0 | J79: 0 | K79: 0 | L79: 0 | M79: 0 | N79: 0 | O79: 0 | P79: 0 | Q79: 0 | R79: 0 | S79: 0 | T79: 0
C80: 0 | D80: 0 | E80: =IF(E$50>0,E33/E$50,0) -> 0 | F80: 0 | G80: 0 | H80: 0 | I80: 0 | J80: 0 | K80: 0 | L80: 0 | M80: 0 | N80: 0 | O80: 0 | P80: 0 | Q80: 0 | R80: 0 | S80: 0 | T80: 0
C81: 0 | D81: 0 | E81: =IF(E$50>0,E34/E$50,0) -> 0 | F81: 0 | G81: 0 | H81: 0 | I81: 0 | J81: 0 | K81: 0 | L81: 0 | M81: 0 | N81: 0 | O81: 0 | P81: 0 | Q81: 0 | R81: 0 | S81: 0 | T81: 0
C82: 0 | D82: 0 | E82: =IF(E$50>0,E35/E$50,0) -> 0 | F82: 0 | G82: 0 | H82: 0 | I82: 0 | J82: 0 | K82: 0 | L82: 0 | M82: 0 | N82: 0 | O82: 0 | P82: 0 | Q82: 0 | R82: 0 | S82: 0 | T82: 0
C83: 0 | D83: 0 | E83: =IF(E$50>0,E36/E$50,0) -> 0 | F83: 0 | G83: 0 | H83: 0 | I83: 0 | J83: 0 | K83: 0 | L83: 0 | M83: 0 | N83: 0 | O83: 0 | P83: 0 | Q83: 0 | R83: 0 | S83: 0 | T83: 0
C84: 0 | D84: 0 | E84: =IF(E$50>0,E37/E$50,0) -> 0 | F84: 0 | G84: 0 | H84: 0 | I84: 0 | J84: 0 | K84: 0 | L84: 0 | M84: 0 | N84: 0 | O84: 0 | P84: 0 | Q84: 0 | R84: 0 | S84: 0 | T84: 0
C85: 0 | D85: 0 | E85: =IF(E$50>0,E38/E$50,0) -> 0 | F85: 0 | G85: 0 | H85: 0 | I85: 0 | J85: 0 | K85: 0 | L85: 0 | M85: 0 | N85: 0 | O85: 0 | P85: 0 | Q85: 0 | R85: 0 | S85: 0 | T85: 0
C86: 0 | D86: 0 | E86: =IF(E$50>0,E39/E$50,0) -> 0 | F86: 0 | G86: 0 | H86: 0 | I86: 0 | J86: 0 | K86: 0 | L86: 0 | M86: 0 | N86: 0 | O86: 0 | P86: 0 | Q86: 0 | R86: 0 | S86: 0 | T86: 0
C87: 0 | D87: 0 | E87: =IF(E$50>0,E40/E$50,0) -> 0 | F87: 0 | G87: 0 | H87: 0 | I87: 0 | J87: 0 | K87: 0 | L87: 0 | M87: 0 | N87: 0 | O87: 0 | P87: 0 | Q87: 0 | R87: 0 | S87: 0 | T87: 0
C88: 0 | D88: 0 | E88: =IF(E$50>0,E41/E$50,0) -> 0 | F88: 0 | G88: 0 | H88: 0 | I88: 0 | J88: 0 | K88: 0 | L88: 0 | M88: 0 | N88: 0 | O88: 0 | P88: 0 | Q88: 0 | R88: 0 | S88: 0 | T88: 0
C89: 0 | D89: 0 | E89: =IF(E$50>0,E42/E$50,0) -> 0 | F89: 0 | G89: 0 | H89: 0 | I89: 0 | J89: 0 | K89: 0 | L89: 0 | M89: 0 | N89: 0 | O89: 0 | P89: 0 | Q89: 0 | R89: 0 | S89: 0 | T89: 0
C90: 0 | D90: 0 | E90: =IF(E$50>0,E43/E$50,0) -> 0 | F90: 0 | G90: 0 | H90: 0 | I90: 0 | J90: 0 | K90: 0 | L90: 0 | M90: 0 | N90: 0 | O90: 0 | P90: 0 | Q90: 0 | R90: 0 | S90: 0 | T90: 0
C91: 0 | D91: 0 | E91: =IF(E$50>0,E44/E$50,0) -> 0 | F91: 0 | G91: 0 | H91: 0 | I91: 0 | J91: 0 | K91: 0 | L91: 0 | M91: 0 | N91: 0 | O91: 0 | P91: 0 | Q91: 0 | R91: 0 | S91: 0 | T91: 0
C92: =C45 -> 0 | D92: 0 | E92: =IF(E$50>0,E45/E$50,0) -> 0 | F92: 0 | G92: 0 | H92: 0 | I92: 0 | J92: 0 | K92: 0 | L92: 0 | M92: 0 | N92: 0 | O92: 0 | P92: 0 | Q92: 0 | R92: 0 | S92: 0 | T92: 0
C93: 0 | D93: 0 | E93: =IF(E$50>0,E46/E$50,0) -> 0 | F93: 0 | G93: 0 | H93: 0 | I93: 0 | J93: 0 | K93: 0 | L93: 0 | M93: 0 | N93: 0 | O93: 0 | P93: 0 | Q93: 0 | R93: 0 | S93: 0 | T93: 0
C94: 0 | D94: 0 | E94: =IF(E$50>0,E47/E$50,0) -> 0 | F94: 0 | G94: 0 | H94: 0 | I94: 0 | J94: 0 | K94: 0 | L94: 0 | M94: 0 | N94: 0 | O94: 0 | P94: 0 | Q94: 0 | R94: 0 | S94: 0 | T94: 0
C95: 0 | D95: 0 | E95: =IF(E$50>0,E48/E$50,0) -> 0 | F95: 0 | G95: 0 | H95: 0 | I95: 0 | J95: 0 | K95: 0 | L95: 0 | M95: 0 | N95: 0 | O95: 0 | P95: 0 | Q95: 0 | R95: 0 | S95: 0 | T95: 0
C96: 0 | D96: 0 | E96: =IF(E$50>0,E49/E$50,0) -> 0 | F96: 0 | G96: 0 | H96: 0 | I96: 0 | J96: 0 | K96: 0 | L96: 0 | M96: 0 | N96: 0 | O96: 0 | P96: 0 | Q96: 0 | R96: 0 | S96: 0 | T96: 0
A109: COUNT
E110: =E3 -> PRINT | F110: RADIO | G110: TELEVISION | H110: 0 | I110: 0 | J110: 0 | K110: 0 | L110: 0 | M110: 0 | N110: 0 | O110: 0 | P110: 0 | Q110: 0 | R110: 0 | S110: 0 | T110: 0
E111: =E4 -> 0 | F111: 0 | G111: 0 | H111: 0 | I111: 0 | J111: 0 | K111: 0 | L111: 0 | M111: 0 | N111: 0 | O111: 0 | P111: 0 | Q111: 0 | R111: 0 | S111: 0 | T111: 0
C112: =C5 -> 1 | D112: Female | E112: 38 | F112: 11 | G112: 45
C113: 2 | D113: Male | E113: 113 | F113: 38 | G113: 86
C114: 0 | D114: 0
C115: 0 | D115: 0
C116: 0 | D116: 0
C117: 0 | D117: 0
C118: 0 | D118: 0
C119: 0 | D119: 0
C120: 0 | D120: 0
C121: 0 | D121: 0
C122: 0 | D122: 0
C123: 0 | D123: 0
C124: 0 | D124: 0
C125: 0 | D125: 0
C126: 0 | D126: 0
C127: 0 | D127: 0
C128: 0 | D128: 0
C129: 0 | D129: 0
C130: 0 | D130: 0
C131: 0 | D131: 0
C132: =C25 -> 0 | D132: 0
C133: 0 | D133: 0
C134: 0 | D134: 0
C135: 0 | D135: 0
C136: 0 | D136: 0
C137: 0 | D137: 0
C138: 0 | D138: 0
C139: 0 | D139: 0
C140: 0 | D140: 0
C141: 0 | D141: 0
C142: 0 | D142: 0
C143: 0 | D143: 0
C144: 0 | D144: 0
C145: 0 | D145: 0
C146: 0 | D146: 0
C147: 0 | D147: 0
C148: 0 | D148: 0
C149: 0 | D149: 0
C150: 0 | D150: 0
C151: 0 | D151: 0
C152: =C45 -> 0 | D152: 0
C153: 0 | D153: 0
C154: 0 | D154: 0

Sheet 9bF - Sex of news subjects
A1: Sex of news subjects in print, radio and TV news
F2: ='9b'!W3 -> PRINT | K2: ='9b'!X3 -> RADIO | P2: ='9b'!Y3 -> TELEVISION
E3: Sex | F3: 1995 | G3: 2000 | H3: 2005 | I3: 2010 | J3: N | K3: 1995 | L3: 2000 | M3: 2005 | N3: 2010 | O3: N | P3: 1995 | Q3: 2000 | R3: 2005 | S3: 2010 | T3: N
E4: ='9b'!D5 -> Female | F4: 0 | G4: n/a | H4: 0.21 | I4: ='9b'!E52 -> 0.2516556291 | J4: ='9b'!E112 -> 38 | K4: 0 | L4: n/a | M4: 0.17 | N4: ='9b'!F52 -> 0.2244897959 | O4: ='9b'!F112 -> 11 | P4: 0 | Q4: n/a | R4: 0.22 | S4: ='9b'!G52 -> 0.3435114504 | T4: ='9b'!G112 -> 45
E5: ='9b'!D6 -> Male | F5: 0 | G5: n/a | H5: =1-H4 -> 0.79 | I5: ='9b'!E53 -> 0.7483443709 | J5: ='9b'!E113 -> 113 | K5: 0 | L5: n/a | M5: =1-M4 -> 0.83 | N5: ='9b'!F53 -> 0.7755102041 | O5: ='9b'!F113 -> 38 | P5: 0 | Q5: n/a | R5: =1-R4 -> 0.78 | S5: ='9b'!G53 -> 0.6564885496 | T5: ='9b'!G113 -> 86

Sheet 9c (hidden)
A1: Sex of news subjects (sources) in local, national & other, and Foreign/International
E3: Female | F3: Male | W3: =E3 -> Female | X3: Male | Y3: 0 | Z3: 0 | AA3: 0 | AB3: 0 | AC3: 0 | AD3: 0 | AE3: 0 | AF3: 0 | AG3: 0 | AH3: 0 | AI3: 0 | AJ3: 0 | AK3: 0
V4: TOTAL | W4: 0 | X4: 0 | Y4: 0 | Z4: 0 | AA4: 0 | AB4: 0 | AC4: 0 | AD4: 0 | AE4: 0 | AF4: 0 | AG4: 0 | AH4: 0 | AI4: 0 | AJ4: 0 | AK4: 0 | AL4: =T4 -> 0
C5: 0 | D5: Do not know | E5: 0.00747649977 | V5: =SUM(E5:O5) -> 0.00747649977 | W5: =IF((E5+F5)>0,E5/(E5+F5),0) -> 1 | X5: =IF((E5+F5)>0,F5/(E5+F5),0) -> 0 | Y5: =IF((G5+H5)>0,G5/(G5+H5),0) -> 0 | Z5: =IF((G5+H5)>0,H5/(G5+H5),0) -> 0 | AA5: =IF((I5+J5)>0,I5/(I5+J5),0) -> 0 | AB5: =IF((I5+J5)>0,J5/(I5+J5),0) -> 0 | AC5: =IF((K5+L5)>0,K5/(K5+L5),0) -> 0 | AD5: =IF((K5+L5)>0,L5/(K5+L5),0) -> 0 | AE5: =IF((M5+N5)>0,M5/(M5+N5),0) -> 0 | AF5: =IF((M5+N5)>0,N5/(M5+N5),0) -> 0 | AG5: =IF((O5+P5)>0,O5/(O5+P5),0) -> 0 | AH5: =IF((O5+P5)>0,P5/(O5+P5),0) -> 0 | AI5: =IF((Q5+R5)>0,Q5/(Q5+R5),0) -> 0 | AJ5: =IF((Q5+R5)>0,R5/(Q5+R5),0) -> 0 | AK5: =IF((S5+T5)>0,S5/(S5+T5),0) -> 0 | AL5: =IF((S5+T5)>0,T5/(S5+T5),0) -> 0
C6: 1 | D6: Local: Has importance within your city, community, area | E6: 0.1617590017 | F6: 0.2526650024 | V6: 0.414424004 | W6: 0.3903224719 | X6: 0.6096775281 | Y6: 0 | Z6: 0 | AA6: 0 | AB6: 0 | AC6: 0 | AD6: 0 | AE6: 0 | AF6: 0 | AG6: 0 | AH6: 0 | AI6: 0 | AJ6: 0 | AK6: 0 | AL6: 0
C7: 2 | D7: National: Has importance within your own country | E7: 0.1681944984 | F7: 0.4660069929 | V7: 0.6342014913 | W7: 0.2652067217 | X7: 0.7347932783 | Y7: 0 | Z7: 0 | AA7: 0 | AB7: 0 | AC7: 0 | AD7: 0 | AE7: 0 | AF7: 0 | AG7: 0 | AH7: 0 | AI7: 0 | AJ7: 0 | AK7: 0 | AL7: 0
C8: 3 | D8: National and other: Involves your country and other countries | E8: 0.09516499843 | F8: 0.4160599941 | V8: 0.5112249926 | W8: 0.1861509117 | X8: 0.8138490883 | Y8: 0 | Z8: 0 | AA8: 0 | AB8: 0 | AC8: 0 | AD8: 0 | AE8: 0 | AF8: 0 | AG8: 0 | AH8: 0 | AI8: 0 | AJ8: 0 | AK8: 0 | AL8: 0
C9: 4 | D9: Foreign, international: involves other countries or the world in general (e.g., global warming) | E9: 0.136012 | F9: 0.3387124962 | V9: 0.4747244962 | W9: 0.2865072292 | X9: 0.7134927708 | Y9: 0 | Z9: 0 | AA9: 0 | AB9: 0 | AC9: 0 | AD9: 0 | AE9: 0 | AF9: 0 | AG9: 0 | AH9: 0 | AI9: 0 | AJ9: 0 | AK9: 0 | AL9: 0
V10: 0 | W10: 0 | X10: 0 | Y10: 0 | Z10: 0 | AA10: 0 | AB10: 0 | AC10: 0 | AD10: 0 | AE10: 0 | AF10: 0 | AG10: 0 | AH10: 0 | AI10: 0 | AJ10: 0 | AK10: 0 | AL10: 0
V11: 0 | W11: 0 | X11: 0 | Y11: 0 | Z11: 0 | AA11: 0 | AB11: 0 | AC11: 0 | AD11: 0 | AE11: 0 | AF11: 0 | AG11: 0 | AH11: 0 | AI11: 0 | AJ11: 0 | AK11: 0 | AL11: 0
V12: 0 | W12: 0 | X12: 0 | Y12: 0 | Z12: 0 | AA12: 0 | AB12: 0 | AC12: 0 | AD12: 0 | AE12: 0 | AF12: 0 | AG12: 0 | AH12: 0 | AI12: 0 | AJ12: 0 | AK12: 0 | AL12: 0
D50: TOTAL | E50: =SUM(E5:E49) -> 0.5686069983 | F50: 1.473444486 | G50: 0 | H50: 0 | I50: 0 | J50: 0 | K50: 0 | L50: 0 | M50: 0 | N50: 0 | O50: 0 | P50: 0 | Q50: 0 | R50: 0 | S50: 0 | T50: 0 | V50: =SUM(E50:O50) -> 2.042051484 | W50: =IF((E50+F50)>0,E50/(E50+F50),0) -> 0.2784489043 | X50: =IF((E50+F50)>0,F50/(E50+F50),0) -> 0.7215510957 | Y50: =IF((G50+H50)>0,G50/(G50+H50),0) -> 0 | Z50: =IF((G50+H50)>0,H50/(G50+H50),0) -> 0 | AA50: =IF((I50+J50)>0,I50/(I50+J50),0) -> 0 | AB50: =IF((I50+J50)>0,J50/(I50+J50),0) -> 0 | AC50: =IF((K50+L50)>0,K50/(K50+L50),0) -> 0 | AD50: =IF((K50+L50)>0,L50/(K50+L50),0) -> 0 | AE50: =IF((M50+N50)>0,M50/(M50+N50),0) -> 0 | AF50: =IF((M50+N50)>0,N50/(M50+N50),0) -> 0 | AG50: =IF((O50+P50)>0,O50/(O50+P50),0) -> 0 | AH50: =IF((O50+P50)>0,P50/(O50+P50),0) -> 0 | AI50: =IF((Q50+R50)>0,Q50/(Q50+R50),0) -> 0 | AJ50: =IF((Q50+R50)>0,R50/(Q50+R50),0) -> 0 | AK50: =IF((S50+T50)>0,S50/(S50+T50),0) -> 0 | AL50: =IF((S50+T50)>0,T50/(S50+T50),0) -> 0
C52: =C5 -> 0 | D52: Do not know | E52: =IF(E$50>0,E5/E$50,0) -> 0.01314880012 | F52: 0 | G52: 0 | H52: 0 | I52: 0 | J52: 0 | K52: 0 | L52: 0 | M52: 0 | N52: 0 | O52: 0 | P52: 0 | Q52: 0 | R52: 0 | S52: 0 | T52: 0
C53: 1 | D53: Local: Has importance within your city, community, area | E53: =IF(E$50>0,E6/E$50,0) -> 0.2844829595 | F53: 0.1714791462 | G53: 0 | H53: 0 | I53: 0 | J53: 0 | K53: 0 | L53: 0 | M53: 0 | N53: 0 | O53: 0 | P53: 0 | Q53: 0 | R53: 0 | S53: 0 | T53: 0
C54: 2 | D54: National: Has importance within your own country | E54: =IF(E$50>0,E7/E$50,0) -> 0.2958009643 | F54: 0.3162704787 | G54: 0 | H54: 0 | I54: 0 | J54: 0 | K54: 0 | L54: 0 | M54: 0 | N54: 0 | O54: 0 | P54: 0 | Q54: 0 | R54: 0 | S54: 0 | T54: 0
C55: 3 | D55: National and other: Involves your country and other countries | E55: =IF(E$50>0,E8/E$50,0) -> 0.1673651551 | F55: 0.2823723582 | G55: 0 | H55: 0 | I55: 0 | J55: 0 | K55: 0 | L55: 0 | M55: 0 | N55: 0 | O55: 0 | P55: 0 | Q55: 0 | R55: 0 | S55: 0 | T55: 0
C56: 4 | D56: Foreign, international: involves other countries or the world in general (e.g., global warming) | E56: =IF(E$50>0,E9/E$50,0) -> 0.239202121 | F56: 0.2298780168 | G56: 0 | H56: 0 | I56: 0 | J56: 0 | K56: 0 | L56: 0 | M56: 0 | N56: 0 | O56: 0 | P56: 0 | Q56: 0 | R56: 0 | S56: 0 | T56: 0
C57: 0 | D57: 0 | E57: =IF(E$50>0,E10/E$50,0) -> 0 | F57: 0 | G57: 0 | H57: 0 | I57: 0 | J57: 0 | K57: 0 | L57: 0 | M57: 0 | N57: 0 | O57: 0 | P57: 0 | Q57: 0 | R57: 0 | S57: 0 | T57: 0
C58: 0 | D58: 0 | E58: =IF(E$50>0,E11/E$50,0) -> 0 | F58: 0 | G58: 0 | H58: 0 | I58: 0 | J58: 0 | K58: 0 | L58: 0 | M58: 0 | N58: 0 | O58: 0 | P58: 0 | Q58: 0 | R58: 0 | S58: 0 | T58: 0
C59: 0 | D59: 0 | E59: =IF(E$50>0,E12/E$50,0) -> 0 | F59: 0 | G59: 0 | H59: 0 | I59: 0 | J59: 0 | K59: 0 | L59: 0 | M59: 0 | N59: 0 | O59: 0 | P59: 0 | Q59: 0 | R59: 0 | S59: 0 | T59: 0
C60: 0 | D60: 0 | E60: =IF(E$50>0,E13/E$50,0) -> 0 | F60: 0 | G60: 0 | H60: 0 | I60: 0 | J60: 0 | K60: 0 | L60: 0 | M60: 0 | N60: 0 | O60: 0 | P60: 0 | Q60: 0 | R60: 0 | S60: 0 | T60: 0
C61: 0 | D61: 0 | E61: =IF(E$50>0,E14/E$50,0) -> 0 | F61: 0 | G61: 0 | H61: 0 | I61: 0 | J61: 0 | K61: 0 | L61: 0 | M61: 0 | N61: 0 | O61: 0 | P61: 0 | Q61: 0 | R61: 0 | S61: 0 | T61: 0
C62: 0 | D62: 0 | E62: =IF(E$50>0,E15/E$50,0) -> 0 | F62: 0 | G62: 0 | H62: 0 | I62: 0 | J62: 0 | K62: 0 | L62: 0 | M62: 0 | N62: 0 | O62: 0 | P62: 0 | Q62: 0 | R62: 0 | S62: 0 | T62: 0
C63: 0 | D63: 0 | E63: =IF(E$50>0,E16/E$50,0) -> 0 | F63: 0 | G63: 0 | H63: 0 | I63: 0 | J63: 0 | K63: 0 | L63: 0 | M63: 0 | N63: 0 | O63: 0 | P63: 0 | Q63: 0 | R63: 0 | S63: 0 | T63: 0
C64: 0 | D64: 0 | E64: =IF(E$50>0,E17/E$50,0) -> 0 | F64: 0 | G64: 0 | H64: 0 | I64: 0 | J64: 0 | K64: 0 | L64: 0 | M64: 0 | N64: 0 | O64: 0 | P64: 0 | Q64: 0 | R64: 0 | S64: 0 | T64: 0
C65: 0 | D65: 0 | E65: =IF(E$50>0,E18/E$50,0) -> 0 | F65: 0 | G65: 0 | H65: 0 | I65: 0 | J65: 0 | K65: 0 | L65: 0 | M65: 0 | N65: 0 | O65: 0 | P65: 0 | Q65: 0 | R65: 0 | S65: 0 | T65: 0
C66: 0 | D66: 0 | E66: =IF(E$50>0,E19/E$50,0) -> 0 | F66: 0 | G66: 0 | H66: 0 | I66: 0 | J66: 0 | K66: 0 | L66: 0 | M66: 0 | N66: 0 | O66: 0 | P66: 0 | Q66: 0 | R66: 0 | S66: 0 | T66: 0
C67: 0 | D67: 0 | E67: =IF(E$50>0,E20/E$50,0) -> 0 | F67: 0 | G67: 0 | H67: 0 | I67: 0 | J67: 0 | K67: 0 | L67: 0 | M67: 0 | N67: 0 | O67: 0 | P67: 0 | Q67: 0 | R67: 0 | S67: 0 | T67: 0
C68: 0 | D68: 0 | E68: =IF(E$50>0,E21/E$50,0) -> 0 | F68: 0 | G68: 0 | H68: 0 | I68: 0 | J68: 0 | K68: 0 | L68: 0 | M68: 0 | N68: 0 | O68: 0 | P68: 0 | Q68: 0 | R68: 0 | S68: 0 | T68: 0
C69: 0 | D69: 0 | E69: =IF(E$50>0,E22/E$50,0) -> 0 | F69: 0 | G69: 0 | H69: 0 | I69: 0 | J69: 0 | K69: 0 | L69: 0 | M69: 0 | N69: 0 | O69: 0 | P69: 0 | Q69: 0 | R69: 0 | S69: 0 | T69: 0
C70: 0 | D70: 0 | E70: =IF(E$50>0,E23/E$50,0) -> 0 | F70: 0 | G70: 0 | H70: 0 | I70: 0 | J70: 0 | K70: 0 | L70: 0 | M70: 0 | N70: 0 | O70: 0 | P70: 0 | Q70: 0 | R70: 0 | S70: 0 | T70: 0
C71: 0 | D71: 0 | E71: =IF(E$50>0,E24/E$50,0) -> 0 | F71: 0 | G71: 0 | H71: 0 | I71: 0 | J71: 0 | K71: 0 | L71: 0 | M71: 0 | N71: 0 | O71: 0 | P71: 0 | Q71: 0 | R71: 0 | S71: 0 | T71: 0
C72: =C25 -> 0 | D72: 0 | E72: =IF(E$50>0,E25/E$50,0) -> 0 | F72: 0 | G72: 0 | H72: 0 | I72: 0 | J72: 0 | K72: 0 | L72: 0 | M72: 0 | N72: 0 | O72: 0 | P72: 0 | Q72: 0 | R72: 0 | S72: 0 | T72: 0
C73: 0 | D73: 0 | E73: =IF(E$50>0,E26/E$50,0) -> 0 | F73: 0 | G73: 0 | H73: 0 | I73: 0 | J73: 0 | K73: 0 | L73: 0 | M73: 0 | N73: 0 | O73: 0 | P73: 0 | Q73: 0 | R73: 0 | S73: 0 | T73: 0
C74: 0 | D74: 0 | E74: =IF(E$50>0,E27/E$50,0) -> 0 | F74: 0 | G74: 0 | H74: 0 | I74: 0 | J74: 0 | K74: 0 | L74: 0 | M74: 0 | N74: 0 | O74: 0 | P74: 0 | Q74: 0 | R74: 0 | S74: 0 | T74: 0
C75: 0 | D75: 0 | E75: =IF(E$50>0,E28/E$50,0) -> 0 | F75: 0 | G75: 0 | H75: 0 | I75: 0 | J75: 0 | K75: 0 | L75: 0 | M75: 0 | N75: 0 | O75: 0 | P75: 0 | Q75: 0 | R75: 0 | S75: 0 | T75: 0
C76: 0 | D76: 0 | E76: =IF(E$50>0,E29/E$50,0) -> 0 | F76: 0 | G76: 0 | H76: 0 | I76: 0 | J76: 0 | K76: 0 | L76: 0 | M76: 0 | N76: 0 | O76: 0 | P76: 0 | Q76: 0 | R76: 0 | S76: 0 | T76: 0
C77: 0 | D77: 0 | E77: =IF(E$50>0,E30/E$50,0) -> 0 | F77: 0 | G77: 0 | H77: 0 | I77: 0 | J77: 0 | K77: 0 | L77: 0 | M77: 0 | N77: 0 | O77: 0 | P77: 0 | Q77: 0 | R77: 0 | S77: 0 | T77: 0
C78: 0 | D78: 0 | E78: =IF(E$50>0,E31/E$50,0) -> 0 | F78: 0 | G78: 0 | H78: 0 | I78: 0 | J78: 0 | K78: 0 | L78: 0 | M78: 0 | N78: 0 | O78: 0 | P78: 0 | Q78: 0 | R78: 0 | S78: 0 | T78: 0
C79: 0 | D79: 0 | E79: =IF(E$50>0,E32/E$50,0) -> 0 | F79: 0 | G79: 0 | H79: 0 | I79: 0 | J79: 0 | K79: 0 | L79: 0 | M79: 0 | N79: 0 | O79: 0 | P79: 0 | Q79: 0 | R79: 0 | S79: 0 | T79: 0
C80: 0 | D80: 0 | E80: =IF(E$50>0,E33/E$50,0) -> 0 | F80: 0 | G80: 0 | H80: 0 | I80: 0 | J80: 0 | K80: 0 | L80: 0 | M80: 0 | N80: 0 | O80: 0 | P80: 0 | Q80: 0 | R80: 0 | S80: 0 | T80: 0
C81: 0 | D81: 0 | E81: =IF(E$50>0,E34/E$50,0) -> 0 | F81: 0 | G81: 0 | H81: 0 | I81: 0 | J81: 0 | K81: 0 | L81: 0 | M81: 0 | N81: 0 | O81: 0 | P81: 0 | Q81: 0 | R81: 0 | S81: 0 | T81: 0
C82: 0 | D82: 0 | E82: =IF(E$50>0,E35/E$50,0) -> 0 | F82: 0 | G82: 0 | H82: 0 | I82: 0 | J82: 0 | K82: 0 | L82: 0 | M82: 0 | N82: 0 | O82: 0 | P82: 0 | Q82: 0 | R82: 0 | S82: 0 | T82: 0
C83: 0 | D83: 0 | E83: =IF(E$50>0,E36/E$50,0) -> 0 | F83: 0 | G83: 0 | H83: 0 | I83: 0 | J83: 0 | K83: 0 | L83: 0 | M83: 0 | N83: 0 | O83: 0 | P83: 0 | Q83: 0 | R83: 0 | S83: 0 | T83: 0
C84: 0 | D84: 0 | E84: =IF(E$50>0,E37/E$50,0) -> 0 | F84: 0 | G84: 0 | H84: 0 | I84: 0 | J84: 0 | K84: 0 | L84: 0 | M84: 0 | N84: 0 | O84: 0 | P84: 0 | Q84: 0 | R84: 0 | S84: 0 | T84: 0
C85: 0 | D85: 0 | E85: =IF(E$50>0,E38/E$50,0) -> 0 | F85: 0 | G85: 0 | H85: 0 | I85: 0 | J85: 0 | K85: 0 | L85: 0 | M85: 0 | N85: 0 | O85: 0 | P85: 0 | Q85: 0 | R85: 0 | S85: 0 | T85: 0
C86: 0 | D86: 0 | E86: =IF(E$50>0,E39/E$50,0) -> 0 | F86: 0 | G86: 0 | H86: 0 | I86: 0 | J86: 0 | K86: 0 | L86: 0 | M86: 0 | N86: 0 | O86: 0 | P86: 0 | Q86: 0 | R86: 0 | S86: 0 | T86: 0
C87: 0 | D87: 0 | E87: =IF(E$50>0,E40/E$50,0) -> 0 | F87: 0 | G87: 0 | H87: 0 | I87: 0 | J87: 0 | K87: 0 | L87: 0 | M87: 0 | N87: 0 | O87: 0 | P87: 0 | Q87: 0 | R87: 0 | S87: 0 | T87: 0
C88: 0 | D88: 0 | E88: =IF(E$50>0,E41/E$50,0) -> 0 | F88: 0 | G88: 0 | H88: 0 | I88: 0 | J88: 0 | K88: 0 | L88: 0 | M88: 0 | N88: 0 | O88: 0 | P88: 0 | Q88: 0 | R88: 0 | S88: 0 | T88: 0
C89: 0 | D89: 0 | E89: =IF(E$50>0,E42/E$50,0) -> 0 | F89: 0 | G89: 0 | H89: 0 | I89: 0 | J89: 0 | K89: 0 | L89: 0 | M89: 0 | N89: 0 | O89: 0 | P89: 0 | Q89: 0 | R89: 0 | S89: 0 | T89: 0
C90: 0 | D90: 0 | E90: =IF(E$50>0,E43/E$50,0) -> 0 | F90: 0 | G90: 0 | H90: 0 | I90: 0 | J90: 0 | K90: 0 | L90: 0 | M90: 0 | N90: 0 | O90: 0 | P90: 0 | Q90: 0 | R90: 0 | S90: 0 | T90: 0
C91: 0 | D91: 0 | E91: =IF(E$50>0,E44/E$50,0) -> 0 | F91: 0 | G91: 0 | H91: 0 | I91: 0 | J91: 0 | K91: 0 | L91: 0 | M91: 0 | N91: 0 | O91: 0 | P91: 0 | Q91: 0 | R91: 0 | S91: 0 | T91: 0
C92: =C45 -> 0 | D92: 0 | E92: =IF(E$50>0,E45/E$50,0) -> 0 | F92: 0 | G92: 0 | H92: 0 | I92: 0 | J92: 0 | K92: 0 | L92: 0 | M92: 0 | N92: 0 | O92: 0 | P92: 0 | Q92: 0 | R92: 0 | S92: 0 | T92: 0
C93: 0 | D93: 0 | E93: =IF(E$50>0,E46/E$50,0) -> 0 | F93: 0 | G93: 0 | H93: 0 | I93: 0 | J93: 0 | K93: 0 | L93: 0 | M93: 0 | N93: 0 | O93: 0 | P93: 0 | Q93: 0 | R93: 0 | S93: 0 | T93: 0
C94: 0 | D94: 0 | E94: =IF(E$50>0,E47/E$50,0) -> 0 | F94: 0 | G94: 0 | H94: 0 | I94: 0 | J94: 0 | K94: 0 | L94: 0 | M94: 0 | N94: 0 | O94: 0 | P94: 0 | Q94: 0 | R94: 0 | S94: 0 | T94: 0
C95: 0 | D95: 0 | E95: =IF(E$50>0,E48/E$50,0) -> 0 | F95: 0 | G95: 0 | H95: 0 | I95: 0 | J95: 0 | K95: 0 | L95: 0 | M95: 0 | N95: 0 | O95: 0 | P95: 0 | Q95: 0 | R95: 0 | S95: 0 | T95: 0
C96: 0 | D96: 0 | E96: =IF(E$50>0,E49/E$50,0) -> 0 | F96: 0 | G96: 0 | H96: 0 | I96: 0 | J96: 0 | K96: 0 | L96: 0 | M96: 0 | N96: 0 | O96: 0 | P96: 0 | Q96: 0 | R96: 0 | S96: 0 | T96: 0
A109: COUNT
E110: =E3 -> Female | F110: Male | G110: 0 | H110: 0 | I110: 0 | J110: 0 | K110: 0 | L110: 0 | M110: 0 | N110: 0 | O110: 0 | P110: 0 | Q110: 0 | R110: 0 | S110: 0 | T110: 0
E111: =E4 -> 0 | F111: 0 | G111: 0 | H111: 0 | I111: 0 | J111: 0 | K111: 0 | L111: 0 | M111: 0 | N111: 0 | O111: 0 | P111: 0 | Q111: 0 | R111: 0 | S111: 0 | T111: 0
C112: =C5 -> 0 | D112: Do not know | E112: 1 | F112: 0
C113: 1 | D113: Local: Has importance within your city, community, area | E113: 29 | F113: 45
C114: 2 | D114: National: Has importance within your own country | E114: 27 | F114: 74
C115: 3 | D115: National and other: Involves your country and other countries | E115: 14 | F115: 63
C116: 4 | D116: Foreign, international: involves other countries or the world in general (e.g., global warming) | E116: 23 | F116: 55
C117: 0 | D117: 0
C118: 0 | D118: 0
C119: 0 | D119: 0
C120: 0 | D120: 0
C121: 0 | D121: 0
C122: 0 | D122: 0
C123: 0 | D123: 0
C124: 0 | D124: 0
C125: 0 | D125: 0
C126: 0 | D126: 0
C127: 0 | D127: 0
C128: 0 | D128: 0
C129: 0 | D129: 0
C130: 0 | D130: 0
C131: 0 | D131: 0
C132: =C25 -> 0 | D132: 0
C133: 0 | D133: 0
C134: 0 | D134: 0
C135: 0 | D135: 0
C136: 0 | D136: 0
C137: 0 | D137: 0
C138: 0 | D138: 0
C139: 0 | D139: 0
C140: 0 | D140: 0
C141: 0 | D141: 0
C142: 0 | D142: 0
C143: 0 | D143: 0
C144: 0 | D144: 0
C145: 0 | D145: 0
C146: 0 | D146: 0
C147: 0 | D147: 0
C148: 0 | D148: 0
C149: 0 | D149: 0
C150: 0 | D150: 0
C151: 0 | D151: 0
C152: =C45 -> 0 | D152: 0
C153: 0 | D153: 0
C154: 0 | D154: 0

Sheet 9cF - Sex of news subjects
A1: ='9c'!$A$1 -> Sex of news subjects (sources) in local, national & other, and Foreign/International
F2: ='9c'!W3 & " %F" -> Female %F | K2: Male %M
E3: Scope | F3: 1995 | G3: 2000 | H3: 2005 | I3: 2010 | J3: N | K3: 2010 | L3: N
E5: Local | F5: 0.22 | G5: 0.23 | H5: 0.27 | I5: ='9c'!W6 -> 0.3903224719 | J5: ='9c'!E113 -> 29 | K5: ='9c'!X6 -> 0.6096775281 | L5: ='9c'!F113 -> 45
E6: National | F6: 0.14 | G6: 0.17 | H6: 0.19 | I6: ='9c'!W7 -> 0.2652067217 | J6: ='9c'!E114 -> 27 | K6: ='9c'!X7 -> 0.7347932783 | L6: ='9c'!F114 -> 74
E7: National and other | F7: new code | G7: new code | H7: new code | I7: ='9c'!W8 -> 0.1861509117 | J7: ='9c'!E115 -> 14 | K7: ='9c'!X8 -> 0.8138490883 | L7: ='9c'!F115 -> 63
E8: International | F8: 0.17 | G8: 0.15 | H8: 0.18 | I8: ='9c'!W9 -> 0.2865072292 | J8: ='9c'!E116 -> 23 | K8: ='9c'!X9 -> 0.7134927708 | L8: ='9c'!F116 -> 55
E13: Total | F13: 0 | G13: 0 | H13: 0 | I13: ='9c'!$W$50 -> 0.2784489043 | J13: =SUM(J5:J8) -> 93 | K13: ='9c'!$X$50 -> 0.7215510957 | L13: =SUM(L5:L8) -> 237

Sheet 9d (hidden)
A1: Sex of news subjects in different story topics by GMMP year
E3: Female | F3: Male | W3: =E3 -> Female | X3: Male | Y3: 0 | Z3: 0 | AA3: 0 | AB3: 0 | AC3: 0 | AD3: 0 | AE3: 0 | AF3: 0 | AG3: 0 | AH3: 0 | AI3: 0 | AJ3: 0 | AK3: 0
V4: TOTAL | W4: 0 | X4: 0 | Y4: 0 | Z4: 0 | AA4: 0 | AB4: 0 | AC4: 0 | AD4: 0 | AE4: 0 | AF4: 0 | AG4: 0 | AH4: 0 | AI4: 0 | AJ4: 0 | AK4: 0 | AL4: =T4 -> 0
C5: 1 | D5: Women in political power and decision-making (local, regional, national), | V5: =SUM(E5:O5) -> 0 | W5: =IF((E5+F5)>0,E5/(E5+F5),0) -> 0 | X5: =IF((E5+F5)>0,F5/(E5+F5),0) -> 0 | Y5: =IF((G5+H5)>0,G5/(G5+H5),0) -> 0 | Z5: =IF((G5+H5)>0,H5/(G5+H5),0) -> 0 | AA5: =IF((I5+J5)>0,I5/(I5+J5),0) -> 0 | AB5: =IF((I5+J5)>0,J5/(I5+J5),0) -> 0 | AC5: =IF((K5+L5)>0,K5/(K5+L5),0) -> 0 | AD5: =IF((K5+L5)>0,L5/(K5+L5),0) -> 0 | AE5: =IF((M5+N5)>0,M5/(M5+N5),0) -> 0 | AF5: =IF((M5+N5)>0,N5/(M5+N5),0) -> 0 | AG5: =IF((O5+P5)>0,O5/(O5+P5),0) -> 0 | AH5: =IF((O5+P5)>0,P5/(O5+P5),0) -> 0 | AI5: =IF((Q5+R5)>0,Q5/(Q5+R5),0) -> 0 | AJ5: =IF((Q5+R5)>0,R5/(Q5+R5),0) -> 0 | AK5: =IF((S5+T5)>0,S5/(S5+T5),0) -> 0 | AL5: =IF((S5+T5)>0,T5/(S5+T5),0) -> 0
C6: 2 | D6: Women electoral candidates (local, regional, national), | E6: 0.005100000184 | F6: 0.01020000037 | V6: 0.01530000055 | W6: 0.3333333333 | X6: 0.6666666667 | Y6: 0 | Z6: 0 | AA6: 0 | AB6: 0 | AC6: 0 | AD6: 0 | AE6: 0 | AF6: 0 | AG6: 0 | AH6: 0 | AI6: 0 | AJ6: 0 | AK6: 0 | AL6: 0
C7: 3 | D7: Peace, negotiations, treaties…(local, regional, national), | E7: 0.02242949931 | F7: 0.0747649977 | V7: 0.09719449701 | W7: 0.2307692308 | X7: 0.7692307692 | Y7: 0 | Z7: 0 | AA7: 0 | AB7: 0 | AC7: 0 | AD7: 0 | AE7: 0 | AF7: 0 | AG7: 0 | AH7: 0 | AI7: 0 | AJ7: 0 | AK7: 0 | AL7: 0
C8: 4 | D8: Other domestic politics/government (local, regional, national), elections, speeches, the political process … | E8: 0.02505299961 | F8: 0.1105119991 | V8: 0.1355649987 | W8: 0.1848043363 | X8: 0.8151956637 | Y8: 0 | Z8: 0 | AA8: 0 | AB8: 0 | AC8: 0 | AD8: 0 | AE8: 0 | AF8: 0 | AG8: 0 | AH8: 0 | AI8: 0 | AJ8: 0 | AK8: 0 | AL8: 0
C9: 5 | D9: Global partnerships (international trade and finance systems, e.g. WTO, IMF, World Bank, debt) … | V9: 0 | W9: 0 | X9: 0 | Y9: 0 | Z9: 0 | AA9: 0 | AB9: 0 | AC9: 0 | AD9: 0 | AE9: 0 | AF9: 0 | AG9: 0 | AH9: 0 | AI9: 0 | AJ9: 0 | AK9: 0 | AL9: 0
C10: 6 | D10: Foreign/international politics, relations with other countries, negotiations, treaties, UN peacekeeping … | E10: 0.04520599963 | F10: 0.2210239982 | V10: 0.2662299979 | W10: 0.1698005484 | X10: 0.8301994516 | Y10: 0 | Z10: 0 | AA10: 0 | AB10: 0 | AC10: 0 | AD10: 0 | AE10: 0 | AF10: 0 | AG10: 0 | AH10: 0 | AI10: 0 | AJ10: 0 | AK10: 0 | AL10: 0
C11: 7 | D11: National defence, military spending, military training, military parades, internal security … | F11: 0.02990599908 | V11: 0.02990599908 | W11: 0 | X11: 1 | Y11: 0 | Z11: 0 | AA11: 0 | AB11: 0 | AC11: 0 | AD11: 0 | AE11: 0 | AF11: 0 | AG11: 0 | AH11: 0 | AI11: 0 | AJ11: 0 | AK11: 0 | AL11: 0
C12: 8 | D12: Other stories on politics and government (specify the subject in 'Comments' section of coding sheet) | E12: 0.1151179979 | F12: 0.1676004967 | V12: 0.2827184945 | W12: 0.4071824097 | X12: 0.5928175903 | Y12: 0 | Z12: 0 | AA12: 0 | AB12: 0 | AC12: 0 | AD12: 0 | AE12: 0 | AF12: 0 | AG12: 0 | AH12: 0 | AI12: 0 | AJ12: 0 | AK12: 0 | AL12: 0
C13: 9 | D13: Economic policies, strategies, models (national, international) … | F13: 0.1026414982 | V13: 0.1026414982 | W13: 0 | X13: 1
C14: 10 | D14: Economic indicators, statistics, business, trade, stock markets … | F14: 0.00747649977 | V14: =SUM(E14:O14) -> 0.00747649977 | W14: 0 | X14: 1
C15: 11 | D15: Economic crisis, state bailouts of companies, company takeovers and mergers … | F15: 0.004999999888 | V15: 0.004999999888 | W15: 0 | X15: 1
C16: 12 | D16: Poverty, housing, social welfare, aid to those in need … | E16: 0.01020000037 | F16: 0.01530000055 | V16: 0.02550000092 | W16: 0.4 | X16: 0.6
C17: 13 | D17: Women's participation in economic processes (informal work, paid employment, unemployment, unpaid labour) | V17: 0 | W17: 0 | X17: 0
C18: 14 | D18: Other labour issues, strikes, trade unions, negotiations, other employment and unemployment … | E18: 0.02495299932 | F18: 0.01995299943 | V18: 0.04490599874 | W18: 0.5556718482 | X18: 0.4443281518
C19: 15 | D19: Rural economy, agriculture, farming practices, agricultural policy, land rights … | V19: 0 | W19: 0 | X19: 0
C20: 16 | D20: Consumer issues, consumer protection, regulation, prices, consumer fraud … | F20: 0.01257649995 | V20: 0.01257649995 | W20: 0 | X20: 1
C21: 17 | D21: Transport, traffic, roads …… | V21: 0 | W21: 0 | X21: 0
C22: 18 | D22: Other stories on the economy (specify the subject in 'Comments' section of coding sheet) | E22: 0.01257649995 | F22: 0.03025300009 | V22: 0.04282950005 | W22: 0.2936410638 | X22: 0.7063589362
C23: 19 | D23: Science, technology, research, funding, discoveries, developments … | F23: 0.005100000184 | V23: 0.005100000184 | W23: 0 | X23: 1
C24: 20 | D24: Medicine, health, hygiene, safety, disability, medical research, funding (apart from HIV-AIDS)… | E24: 0.005100000184 | F24: 0.005100000184 | V24: 0.01020000037 | W24: 0.5 | X24: 0.5
C25: 21 | D25: HIV and AIDS, incidence, policy, treatment, people affected … | V25: 0 | W25: 0 | X25: 0
C26: 22 | D26: Other epidemics, viruses, contagions, Influenza, BSE, SARS … | E26: 0.02040000074 | F26: 0.03040000051 | V26: 0.05080000125 | W26: 0.4015748078 | X26: 0.5984251922
C27: 23 | D27: Birth control, fertility, sterilisation, amniocentesis, termination of pregnancy … | V27: 0 | W27: 0 | X27: 0
C28: 24 | D28: Environment, nature, pollution, global warming, ecology, tourism … | E28: 0.01257649995 | V28: 0.01257649995 | W28: 1 | X28: 0
C29: 25 | D29: Other stories on science or health (specify the subject in 'Comments' section of coding sheet) | F29: 0.02040000074 | V29: 0.02040000074 | W29: 0 | X29: 1
C30: 26 | D30: Development issues, sustainability, community development … | V30: 0 | W30: 0 | X30: 0
C31: 27 | D31: Education, child care, nurseries, pre-school to university, adult education, literacy … | E31: 0.04520599963 | F31: 0.04040000029 | V31: 0.08560599992 | W31: 0.5280704585 | X31: 0.4719295415
C32: 28 | D32: Family relations, inter-generational conflict, single parents … | V32: 0 | W32: 0 | X32: 0
C33: 29 | D33: Human rights, women's rights, children's rights, gay & lesbian rights, rights of minorities .. | E33: 0.01247649966 | V33: 0.01247649966 | W33: 1 | X33: 0
C34: 30 | D34: Religion, culture, tradition, controversies, teachings, celebrations, practices … | V34: 0 | W34: 0 | X34: 0
C35: 31 | D35: Migration, refugees, asylum seekers, ethnic conflict, integration, racism, xenophobia … | V35: 0 | W35: 0 | X35: 0
C36: 32 | D36: Women's movement, activism, events, demonstrations, gender equality advocacy … | V36: 0 | W36: 0 | X36: 0
C37: 33 | D37: Changing gender relations, roles and relationships of women and men inside and outside the home … | V37: 0 | W37: 0 | X37: 0
C38: 34 | D38: Family law, family codes, property law, inheritance law and rights … | V38: 0 | W38: 0 | X38: 0
C39: 35 | D39: Legal system, judicial system, legislation (apart from family, property & inheritance law) … | E39: 0.01257649995 | F39: 0.02257649973 | V39: 0.03515299968 | W39: 0.3577646308 | X39: 0.6422353692
C40: 36 | D40: Other stories on social or legal issues (specify the subject in 'Comments' section of coding sheet) | E40: 0.0306000011 | F40: 0.07620000187 | V40: 0.106800003 | W40: 0.2865168563 | X40: 0.7134831437
C41: 37 | D41: Non-violent crime, bribery, theft, drug-dealing, corruption, (including political corruption/malpractice) … | E41: 0.02267650003 | F41: 0.04738249863 | V41: 0.07005899865 | W41: 0.323677193 | X41: 0.676322807
C42: 38 | D42: Violent crime, murder, abduction, kidnapping, assault, drug-related violence … | E42: 0.01499999966 | F42: 0.01999999955 | V42: 0.03499999922 | W42: 0.4285714286 | X42: 0.5714285714
C43: 39 | D43: Gender-based violence, feminicide, harassment, domestic violence, rape, trafficking, genital mutilation … | E43: 0.02277650032 | F43: 0.03297650069 | V43: 0.05575300101 | W43: 0.4085251001 | X43: 0.5914748999
C44: 40 | D44: Child abuse, sexual violence against children, trafficking, neglect. | E44: 0.01020000037 | F44: 0.02040000074 | V44: 0.0306000011 | W44: 0.3333333333 | X44: 0.6666666667
C45: 41 | D45: War, civil war, terrorism, state-based violence … | E45: 0.02267650003 | F45: 0.02550000092 | V45: 0.04817650095 | W45: 0.4706962851 | X45: 0.5293037149
C46: 42 | D46: Riots, demonstrations, public disorder … | V46: 0 | W46: 0 | X46: 0
C47: 43 | D47: Disaster, accident, famine, earthquake, flood, hurricane, plane crash, car crash … | E47: 0.02550000092 | F47: 0.004999999888 | V47: 0.03050000081 | W47: 0.8360655818 | X47: 0.1639344182
C48: 44 | D48: Other stories on crime and violence (specify the subject in 'Comments' section of coding sheet) | F48: 0.02242949931 | V48: 0.02242949931 | W48: 0 | X48: 1
C49: 45 | D49: Celebrity news, births, marriages, deaths, obituaries, famous people, royalty … | V49: 0 | W49: 0 | X49: 0
C50: 46 | D50: Arts, entertainment, leisure, cinema, theatre, books, dance … | E50: 0.04272949975 | F50: 0.1448709965 | V50: 0.1876004962 | W50: 0.227768586 | X50: 0.772231414
C51: 47 | D51: Media, including new media (computers, internet), portrayal of women and/or men, pornography … | V51: 0 | W51: 0 | X51: 0
C52: 48 | D52: Beauty contests, models, fashion, beauty aids, cosmetic surgery … | E52: 0.00747649977 | V52: 0.00747649977 | W52: 1 | X52: 0
C53: 49 | D53: Sports, events, players, facilities, training, policies, funding … | F53: 0.1022944972 | V53: 0.1022944972 | W53: 0 | X53: 1
C54: 50 | D54: Other stories on celebrities, arts, media (specify the subject in 'Comments' section of coding sheet) | F54: 0.04520599963 | V54: 0.04520599963 | W54: 0 | X54: 1
C55: 51 | D55: News about the girl child, including, cultural attitudes and practices impinging on girls, education, health, economic exploitation, violence (ONLY WHERE EMPHASIS IS ON THE GIRL CHILD)… | V55: 0 | W55: 0 | X55: 0
C56: 52 | D56: Other subject: use only if none of the above subject codes is suitable (specify the subject in 'Comments' section of coding sheet) | V56: 0 | W56: 0 | X56: 0
D68: TOTAL | E68: =SUM(E5:E67) -> 0.5686069983 | F68: 1.473444486 | G68: 0 | H68: 0 | I68: 0 | J68: 0 | K68: 0 | L68: 0 | M68: 0 | N68: 0 | O68: 0 | P68: 0 | Q68: 0 | R68: 0 | S68: 0 | T68: 0 | V68: =SUM(E68:O68) -> 2.042051484 | W68: =IF((E68+F68)>0,E68/(E68+F68),0) -> 0.2784489043 | X68: =IF((E68+F68)>0,F68/(E68+F68),0) -> 0.7215510957 | Y68: =IF((G68+H68)>0,G68/(G68+H68),0) -> 0 | Z68: =IF((G68+H68)>0,H68/(G68+H68),0) -> 0 | AA68: =IF((I68+J68)>0,I68/(I68+J68),0) -> 0 | AB68: =IF((I68+J68)>0,J68/(I68+J68),0) -> 0 | AC68: =IF((K68+L68)>0,K68/(K68+L68),0) -> 0 | AD68: =IF((K68+L68)>0,L68/(K68+L68),0) -> 0 | AE68: =IF((M68+N68)>0,M68/(M68+N68),0) -> 0 | AF68: =IF((M68+N68)>0,N68/(M68+N68),0) -> 0 | AG68: =IF((O68+P68)>0,O68/(O68+P68),0) -> 0 | AH68: =IF((O68+P68)>0,P68/(O68+P68),0) -> 0 | AI68: =IF((Q68+R68)>0,Q68/(Q68+R68),0) -> 0 | AJ68: =IF((Q68+R68)>0,R68/(Q68+R68),0) -> 0 | AK68: =IF((S68+T68)>0,S68/(S68+T68),0) -> 0 | AL68: =IF((S68+T68)>0,T68/(S68+T68),0) -> 0
C70: =C5 -> 1 | D70: Women in political power and decision-making (local, regional, national), | E70: =IF(E$68>0,E5/E$68,0) -> 0 | F70: 0 | G70: 0 | H70: 0 | I70: 0 | J70: 0 | K70: 0 | L70: 0 | M70: 0 | N70: 0 | O70: 0 | P70: 0 | Q70: 0 | R70: 0 | S70: 0 | T70: 0
C71: 2 | D71: Women electoral candidates (local, regional, national), | E71: =IF(E$68>0,E6/E$68,0) -> 0.008969288453 | F71: 0.006922554917 | G71: 0 | H71: 0 | I71: 0 | J71: 0 | K71: 0 | L71: 0 | M71: 0 | N71: 0 | O71: 0 | P71: 0 | Q71: 0 | R71: 0 | S71: 0 | T71: 0
C72: 3 | D72: Peace, negotiations, treaties…(local, regional, national), | E72: =IF(E$68>0,E7/E$68,0) -> 0.03944640037 | F72: 0.05074164546 | G72: 0 | H72: 0 | I72: 0 | J72: 0 | K72: 0 | L72: 0 | M72: 0 | N72: 0 | O72: 0 | P72: 0 | Q72: 0 | R72: 0 | S72: 0 | T72: 0
C73: 4 | D73: Other domestic politics/government (local, regional, national), elections, speeches, the political process … | E73: =IF(E$68>0,E8/E$68,0) -> 0.04406030824 | F73: 0.0750024858 | G73: 0 | H73: 0 | I73: 0 | J73: 0 | K73: 0 | L73: 0 | M73: 0 | N73: 0 | O73: 0 | P73: 0 | Q73: 0 | R73: 0 | S73: 0 | T73: 0
C74: 5 | D74: Global partnerships (international trade and finance systems, e.g. WTO, IMF, World Bank, debt) … | E74: =IF(E$68>0,E9/E$68,0) -> 0 | F74: 0 | G74: 0 | H74: 0 | I74: 0 | J74: 0 | K74: 0 | L74: 0 | M74: 0 | N74: 0 | O74: 0 | P74: 0 | Q74: 0 | R74: 0 | S74: 0 | T74: 0
C75: 6 | D75: Foreign/international politics, relations with other countries, negotiations, treaties, UN peacekeeping … | E75: =IF(E$68>0,E10/E$68,0) -> 0.07950306585 | F75: 0.1500049716 | G75: 0 | H75: 0 | I75: 0 | J75: 0 | K75: 0 | L75: 0 | M75: 0 | N75: 0 | O75: 0 | P75: 0 | Q75: 0 | R75: 0 | S75: 0 | T75: 0
C76: 7 | D76: National defence, military spending, military training, military parades, internal security … | E76: =IF(E$68>0,E11/E$68,0) -> 0 | F76: 0.02029665819 | G76: 0 | H76: 0 | I76: 0 | J76: 0 | K76: 0 | L76: 0 | M76: 0 | N76: 0 | O76: 0 | P76: 0 | Q76: 0 | R76: 0 | S76: 0 | T76: 0
C77: 8 | D77: Other stories on politics and government (specify the subject in 'Comments' section of coding sheet) | E77: =IF(E$68>0,E12/E$68,0) -> 0.2024561748 | F77: 0.1137474118 | G77: 0 | H77: 0 | I77: 0 | J77: 0 | K77: 0 | L77: 0 | M77: 0 | N77: 0 | O77: 0 | P77: 0 | Q77: 0 | R77: 0 | S77: 0 | T77: 0
C78: 9 | D78: Economic policies, strategies, models (national, international) … | E78: =IF(E$68>0,E13/E$68,0) -> 0 | F78: 0.06966091984 | G78: 0 | H78: 0 | I78: 0 | J78: 0 | K78: 0 | L78: 0 | M78: 0 | N78: 0 | O78: 0 | P78: 0 | Q78: 0 | R78: 0 | S78: 0 | T78: 0
C79: 10 | D79: Economic indicators, statistics, business, trade, stock markets … | E79: =IF(E$68>0,E14/E$68,0) -> 0 | F79: 0.005074164546 | G79: 0 | H79: 0 | I79: 0 | J79: 0 | K79: 0 | L79: 0 | M79: 0 | N79: 0 | O79: 0 | P79: 0 | Q79: 0 | R79: 0 | S79: 0 | T79: 0
C80: 11 | D80: Economic crisis, state bailouts of companies, company takeovers and mergers … | E80: =IF(E$68>0,E15/E$68,0) -> 0 | F80: 0.003393409075 | G80: 0 | H80: 0 | I80: 0 | J80: 0 | K80: 0 | L80: 0 | M80: 0 | N80: 0 | O80: 0 | P80: 0 | Q80: 0 | R80: 0 | S80: 0 | T80: 0
C81: 12 | D81: Poverty, housing, social welfare, aid to those in need … | E81: =IF(E$68>0,E16/E$68,0) -> 0.01793857691 | F81: 0.01038383238 | G81: 0 | H81: 0 | I81: 0 | J81: 0 | K81: 0 | L81: 0 | M81: 0 | N81: 0 | O81: 0 | P81: 0 | Q81: 0 | R81: 0 | S81: 0 | T81: 0
C82: 13 | D82: Women's participation in economic processes (informal work, paid employment, unemployment, unpaid labour) | E82: =IF(E$68>0,E17/E$68,0) -> 0 | F82: 0 | G82: 0 | H82: 0 | I82: 0 | J82: 0 | K82: 0 | L82: 0 | M82: 0 | N82: 0 | O82: 0 | P82: 0 | Q82: 0 | R82: 0 | S82: 0 | T82: 0
C83: 14 | D83: Other labour issues, strikes, trade unions, negotiations, other employment and unemployment … | E83: =IF(E$68>0,E18/E$68,0) -> 0.04388443932 | F83: 0.01354173817 | G83: 0 | H83: 0 | I83: 0 | J83: 0 | K83: 0 | L83: 0 | M83: 0 | N83: 0 | O83: 0 | P83: 0 | Q83: 0 | R83: 0 | S83: 0 | T83: 0
C84: 15 | D84: Rural economy, agriculture, farming practices, agricultural policy, land rights … | E84: =IF(E$68>0,E19/E$68,0) -> 0 | F84: 0 | G84: 0 | H84: 0 | I84: 0 | J84: 0 | K84: 0 | L84: 0 | M84: 0 | N84: 0 | O84: 0 | P84: 0 | Q84: 0 | R84: 0 | S84: 0 | T84: 0
C85: 16 | D85: Consumer issues, consumer protection, regulation, prices, consumer fraud … | E85: =IF(E$68>0,E20/E$68,0) -> 0 | F85: 0.008535442005 | G85: 0 | H85: 0 | I85: 0 | J85: 0 | K85: 0 | L85: 0 | M85: 0 | N85: 0 | O85: 0 | P85: 0 | Q85: 0 | R85: 0 | S85: 0 | T85: 0
C86: 17 | D86: Transport, traffic, roads …… | E86: =IF(E$68>0,E21/E$68,0) -> 0 | F86: 0 | G86: 0 | H86: 0 | I86: 0 | J86: 0 | K86: 0 | L86: 0 | M86: 0 | N86: 0 | O86: 0 | P86: 0 | Q86: 0 | R86: 0 | S86: 0 | T86: 0
C87: 18 | D87: Other stories on the economy (specify the subject in 'Comments' section of coding sheet) | E87: =IF(E$68>0,E22/E$68,0) -> 0.02211808858 | F87: 0.02053216147 | G87: 0 | H87: 0 | I87: 0 | J87: 0 | K87: 0 | L87: 0 | M87: 0 | N87: 0 | O87: 0 | P87: 0 | Q87: 0 | R87: 0 | S87: 0 | T87: 0
C88: 19 | D88: Science, technology, research, funding, discoveries, developments … | E88: =IF(E$68>0,E23/E$68,0) -> 0 | F88: 0.003461277458 | G88: 0 | H88: 0 | I88: 0 | J88: 0 | K88: 0 | L88: 0 | M88: 0 | N88: 0 | O88: 0 | P88: 0 | Q88: 0 | R88: 0 | S88: 0 | T88: 0
C89: 20 | D89: Medicine, health, hygiene, safety, disability, medical research, funding (apart from HIV-AIDS)… | E89: =IF(E$68>0,E24/E$68,0) -> 0.008969288453 | F89: 0.003461277458 | G89: 0 | H89: 0 | I89: 0 | J89: 0 | K89: 0 | L89: 0 | M89: 0 | N89: 0 | O89: 0 | P89: 0 | Q89: 0 | R89: 0 | S89: 0 | T89: 0
C90: =C25 -> 21 | D90: HIV and AIDS, incidence, policy, treatment, people affected … | E90: =IF(E$68>0,E25/E$68,0) -> 0 | F90: 0 | G90: 0 | H90: 0 | I90: 0 | J90: 0 | K90: 0 | L90: 0 | M90: 0 | N90: 0 | O90: 0 | P90: 0 | Q90: 0 | R90: 0 | S90: 0 | T90: 0
C91: 22 | D91: Other epidemics, viruses, contagions, Influenza, BSE, SARS … | E91: =IF(E$68>0,E26/E$68,0) -> 0.03587715381 | F91: 0.02063192798 | G91: 0 | H91: 0 | I91: 0 | J91: 0 | K91: 0 | L91: 0 | M91: 0 | N91: 0 | O91: 0 | P91: 0 | Q91: 0 | R91: 0 | S91: 0 | T91: 0
C92: 23 | D92: Birth control, fertility, sterilisation, amniocentesis, termination of pregnancy … | E92: =IF(E$68>0,E27/E$68,0) -> 0 | F92: 0 | G92: 0 | H92: 0 | I92: 0 | J92: 0 | K92: 0 | L92: 0 | M92: 0 | N92: 0 | O92: 0 | P92: 0 | Q92: 0 | R92: 0 | S92: 0 | T92: 0
C93: 24 | D93: Environment, nature, pollution, global warming, ecology, tourism … | E93: =IF(E$68>0,E28/E$68,0) -> 0.02211808858 | F93: 0 | G93: 0 | H93: 0 | I93: 0 | J93: 0 | K93: 0 | L93: 0 | M93: 0 | N93: 0 | O93: 0 | P93: 0 | Q93: 0 | R93: 0 | S93: 0 | T93: 0
C94: 25 | D94: Other stories on science or health (specify the subject in 'Comments' section of coding sheet) | E94: =IF(E$68>0,E29/E$68,0) -> 0 | F94: 0.01384510983 | G94: 0 | H94: 0 | I94: 0 | J94: 0 | K94: 0 | L94: 0 | M94: 0 | N94: 0 | O94: 0 | P94: 0 | Q94: 0 | R94: 0 | S94: 0 | T94: 0
C95: 26 | D95: Development issues, sustainability, community development … | E95: =IF(E$68>0,E30/E$68,0) -> 0 | F95: 0 | G95: 0 | H95: 0 | I95: 0 | J95: 0 | K95: 0 | L95: 0 | M95: 0 | N95: 0 | O95: 0 | P95: 0 | Q95: 0 | R95: 0 | S95: 0 | T95: 0
C96: 27 | D96: Education, child care, nurseries, pre-school to university, adult education, literacy … | E96: =IF(E$68>0,E31/E$68,0) -> 0.07950306585 | F96: 0.02741874613 | G96: 0 | H96: 0 | I96: 0 | J96: 0 | K96: 0 | L96: 0 | M96: 0 | N96: 0 | O96: 0 | P96: 0 | Q96: 0 | R96: 0 | S96: 0 | T96: 0
C97: 28 | D97: Family relations, inter-generational conflict, single parents … | E97: =IF(E$68>0,E32/E$68,0) -> 0 | F97: 0 | G97: 0 | H97: 0 | I97: 0 | J97: 0 | K97: 0 | L97: 0 | M97: 0 | N97: 0 | O97: 0 | P97: 0 | Q97: 0 | R97: 0 | S97: 0 | T97: 0
C98: 29 | D98: Human rights, women's rights, children's rights, gay & lesbian rights, rights of minorities .. | E98: =IF(E$68>0,E33/E$68,0) -> 0.02194221966 | F98: 0 | G98: 0 | H98: 0 | I98: 0 | J98: 0 | K98: 0 | L98: 0 | M98: 0 | N98: 0 | O98: 0 | P98: 0 | Q98: 0 | R98: 0 | S98: 0 | T98: 0
C99: 30 | D99: Religion, culture, tradition, controversies, teachings, celebrations, practices … | E99: =IF(E$68>0,E34/E$68,0) -> 0 | F99: 0 | G99: 0 | H99: 0 | I99: 0 | J99: 0 | K99: 0 | L99: 0 | M99: 0 | N99: 0 | O99: 0 | P99: 0 | Q99: 0 | R99: 0 | S99: 0 | T99: 0
C100: 31 | D100: Migration, refugees, asylum seekers, ethnic conflict, integration, racism, xenophobia … | E100: =IF(E$68>0,E35/E$68,0) -> 0 | F100: 0 | G100: 0 | H100: 0 | I100: 0 | J100: 0 | K100: 0 | L100: 0 | M100: 0 | N100: 0 | O100: 0 | P100: 0 | Q100: 0 | R100: 0 | S100: 0 | T100: 0
C101: 32 | D101: Women's movement, activism, events, demonstrations, gender equality advocacy … | E101: =IF(E$68>0,E36/E$68,0) -> 0 | F101: 0 | G101: 0 | H101: 0 | I101: 0 | J101: 0 | K101: 0 | L101: 0 | M101: 0 | N101: 0 | O101: 0 | P101: 0 | Q101: 0 | R101: 0 | S101: 0 | T101: 0
C102: 33 | D102: Changing gender relations, roles and relationships of women and men inside and outside the home … | E102: =IF(E$68>0,E37/E$68,0) -> 0 | F102: 0 | G102: 0 | H102: 0 | I102: 0 | J102: 0 | K102: 0 | L102: 0 | M102: 0 | N102: 0 | O102: 0 | P102: 0 | Q102: 0 | R102: 0 | S102: 0 | T102: 0
C103: 34 | D103: Family law, family codes, property law, inheritance law and rights … | E103: =IF(E$68>0,E38/E$68,0) -> 0 | F103: 0 | G103: 0 | H103: 0 | I103: 0 | J103: 0 | K103: 0 | L103: 0 | M103: 0 | N103: 0 | O103: 0 | P103: 0 | Q103: 0 | R103: 0 | S103: 0 | T103: 0
C104: 35 | D104: Legal system, judicial system, legislation (apart from family, property & inheritance law) … | E104: =IF(E$68>0,E39/E$68,0) -> 0.02211808858 | F104: 0.01532226015 | G104: 0 | H104: 0 | I104: 0 | J104: 0 | K104: 0 | L104: 0 | M104: 0 | N104: 0 | O104: 0 | P104: 0 | Q104: 0 | R104: 0 | S104: 0 | T104: 0
C105: 36 | D105: Other stories on social or legal issues (specify the subject in 'Comments' section of coding sheet) | E105: =IF(E$68>0,E40/E$68,0) -> 0.05381573072 | F105: 0.05171555672 | G105: 0 | H105: 0 | I105: 0 | J105: 0 | K105: 0 | L105: 0 | M105: 0 | N105: 0 | O105: 0 | P105: 0 | Q105: 0 | R105: 0 | S105: 0 | T105: 0
C106: 37 | D106: Non-violent crime, bribery, theft, drug-dealing, corruption, (including political corruption/malpractice) … | E106: =IF(E$68>0,E41/E$68,0) -> 0.03988079657 | F106: 0.03215764088 | G106: 0 | H106: 0 | I106: 0 | J106: 0 | K106: 0 | L106: 0 | M106: 0 | N106: 0 | O106: 0 | P106: 0 | Q106: 0 | R106: 0 | S106: 0 | T106: 0
C107: 38 | D107: Violent crime, murder, abduction, kidnapping, assault, drug-related violence … | E107: =IF(E$68>0,E42/E$68,0) -> 0.02638025861 | F107: 0.0135736363 | G107: 0 | H107: 0 | I107: 0 | J107: 0 | K107: 0 | L107: 0 | M107: 0 | N107: 0 | O107: 0 | P107: 0 | Q107: 0 | R107: 0 | S107: 0 | T107: 0
C108: 39 | D108: Gender-based violence, feminicide, harassment, domestic violence, rape, trafficking, genital mutilation … | E108: =IF(E$68>0,E43/E$68,0) -> 0.04005666548 | F108: 0.02238055184 | G108: 0 | H108: 0 | I108: 0 | J108: 0 | K108: 0 | L108: 0 | M108: 0 | N108: 0 | O108: 0 | P108: 0 | Q108: 0 | R108: 0 | S108: 0 | T108: 0
C109: 40 | D109: Child abuse, sexual violence against children, trafficking, neglect. | E109: =IF(E$68>0,E44/E$68,0) -> 0.01793857691 | F109: 0.01384510983 | G109: 0 | H109: 0 | I109: 0 | J109: 0 | K109: 0 | L109: 0 | M109: 0 | N109: 0 | O109: 0 | P109: 0 | Q109: 0 | R109: 0 | S109: 0 | T109: 0
C110: =C45 -> 41 | D110: War, civil war, terrorism, state-based violence … | E110: =IF(E$68>0,E45/E$68,0) -> 0.03988079657 | F110: 0.01730638729 | G110: 0 | H110: 0 | I110: 0 | J110: 0 | K110: 0 | L110: 0 | M110: 0 | N110: 0 | O110: 0 | P110: 0 | Q110: 0 | R110: 0 | S110: 0 | T110: 0
C111: 42 | D111: Riots, demonstrations, public disorder … | E111: =IF(E$68>0,E46/E$68,0) -> 0 | F111: 0 | G111: 0 | H111: 0 | I111: 0 | J111: 0 | K111: 0 | L111: 0 | M111: 0 | N111: 0 | O111: 0 | P111: 0 | Q111: 0 | R111: 0 | S111: 0 | T111: 0
C112: 43 | D112: Disaster, accident, famine, earthquake, flood, hurricane, plane crash, car crash … | E112: =IF(E$68>0,E47/E$68,0) -> 0.04484644226 | F112: 0.003393409075 | G112: 0 | H112: 0 | I112: 0 | J112: 0 | K112: 0 | L112: 0 | M112: 0 | N112: 0 | O112: 0 | P112: 0 | Q112: 0 | R112: 0 | S112: 0 | T112: 0
C113: 44 | D113: Other stories on crime and violence (specify the subject in 'Comments' section of coding sheet) | E113: =IF(E$68>0,E48/E$68,0) -> 0 | F113: 0.01522249364 | G113: 0 | H113: 0 | I113: 0 | J113: 0 | K113: 0 | L113: 0 | M113: 0 | N113: 0 | O113: 0 | P113: 0 | Q113: 0 | R113: 0 | S113: 0 | T113: 0
C114: 45 | D114: Celebrity news, births, marriages, deaths, obituaries, famous people, royalty … | E114: =IF(E$68>0,E49/E$68,0) -> 0 | F114: 0 | G114: 0 | H114: 0 | I114: 0 | J114: 0 | K114: 0 | L114: 0 | M114: 0 | N114: 0 | O114: 0 | P114: 0 | Q114: 0 | R114: 0 | S114: 0 | T114: 0
C115: 46 | D115: Arts, entertainment, leisure, cinema, theatre, books, dance … | E115: =IF(E$68>0,E50/E$68,0) -> 0.07514768527 | F115: 0.09832131301 | G115: 0 | H115: 0 | I115: 0 | J115: 0 | K115: 0 | L115: 0 | M115: 0 | N115: 0 | O115: 0 | P115: 0 | Q115: 0 | R115: 0 | S115: 0 | T115: 0
C116: 47 | D116: Media, including new media (computers, internet), portrayal of women and/or men, pornography … | E116: =IF(E$68>0,E51/E$68,0) -> 0 | F116: 0 | G116: 0 | H116: 0 | I116: 0 | J116: 0 | K116: 0 | L116: 0 | M116: 0 | N116: 0 | O116: 0 | P116: 0 | Q116: 0 | R116: 0 | S116: 0 | T116: 0
C117: 48 | D117: Beauty contests, models, fashion, beauty aids, cosmetic surgery … | E117: =IF(E$68>0,E52/E$68,0) -> 0.01314880012 | F117: 0 | G117: 0 | H117: 0 | I117: 0 | J117: 0 | K117: 0 | L117: 0 | M117: 0 | N117: 0 | O117: 0 | P117: 0 | Q117: 0 | R117: 0 | S117: 0 | T117: 0
C118: 49 | D118: Sports, events, players, facilities, training, policies, funding … | E118: =IF(E$68>0,E53/E$68,0) -> 0 | F118: 0.06942541656 | G118: 0 | H118: 0 | I118: 0 | J118: 0 | K118: 0 | L118: 0 | M118: 0 | N118: 0 | O118: 0 | P118: 0 | Q118: 0 | R118: 0 | S118: 0 | T118: 0
C119: 50 | D119: Other stories on celebrities, arts, media (specify the subject in 'Comments' section of coding sheet) | E119: =IF(E$68>0,E54/E$68,0) -> 0 | F119: 0.03068049056 | G119: 0 | H119: 0 | I119: 0 | J119: 0 | K119: 0 | L119: 0 | M119: 0 | N119: 0 | O119: 0 | P119: 0 | Q119: 0 | R119: 0 | S119: 0 | T119: 0
C120: 51 | D120: News about the girl child, including, cultural attitudes and practices impinging on girls, education, health, economic exploitation, violence (ONLY WHERE EMPHASIS IS ON THE GIRL CHILD)… | E120: =IF(E$68>0,E55/E$68,0) -> 0 | F120: 0 | G120: 0 | H120: 0 | I120: 0 | J120: 0 | K120: 0 | L120: 0 | M120: 0 | N120: 0 | O120: 0 | P120: 0 | Q120: 0 | R120: 0 | S120: 0 | T120: 0
C121: 52 | D121: Other subject: use only if none of the above subject codes is suitable (specify the subject in 'Comments' section of coding sheet) | E121: =IF(E$68>0,E56/E$68,0) -> 0 | F121: 0 | G121: 0 | H121: 0 | I121: 0 | J121: 0 | K121: 0 | L121: 0 | M121: 0 | N121: 0 | O121: 0 | P121: 0 | Q121: 0 | R121: 0 | S121: 0 | T121: 0
C122: 0 | D122: 0 | E122: =IF(E$68>0,E57/E$68,0) -> 0 | F122: 0 | G122: 0 | H122: 0 | I122: 0 | J122: 0 | K122: 0 | L122: 0 | M122: 0 | N122: 0 | O122: 0 | P122: 0 | Q122: 0 | R122: 0 | S122: 0 | T122: 0
C123: 0 | D123: 0 | E123: =IF(E$68>0,E58/E$68,0) -> 0 | F123: 0 | G123: 0 | H123: 0 | I123: 0 | J123: 0 | K123: 0 | L123: 0 | M123: 0 | N123: 0 | O123: 0 | P123: 0 | Q123: 0 | R123: 0 | S123: 0 | T123: 0
C124: 0 | D124: 0 | E124: =IF(E$68>0,E59/E$68,0) -> 0 | F124: 0 | G124: 0 | H124: 0 | I124: 0 | J124: 0 | K124: 0 | L124: 0 | M124: 0 | N124: 0 | O124: 0 | P124: 0 | Q124: 0 | R124: 0 | S124: 0 | T124: 0
C125: 0 | D125: 0 | E125: =IF(E$68>0,E60/E$68,0) -> 0 | F125: 0 | G125: 0 | H125: 0 | I125: 0 | J125: 0 | K125: 0 | L125: 0 | M125: 0 | N125: 0 | O125: 0 | P125: 0 | Q125: 0 | R125: 0 | S125: 0 | T125: 0
C126: 0 | D126: 0 | E126: =IF(E$68>0,E61/E$68,0) -> 0 | F126: 0 | G126: 0 | H126: 0 | I126: 0 | J126: 0 | K126: 0 | L126: 0 | M126: 0 | N126: 0 | O126: 0 | P126: 0 | Q126: 0 | R126: 0 | S126: 0 | T126: 0
C127: 0 | D127: 0 | E127: =IF(E$68>0,E62/E$68,0) -> 0 | F127: 0 | G127: 0 | H127: 0 | I127: 0 | J127: 0 | K127: 0 | L127: 0 | M127: 0 | N127: 0 | O127: 0 | P127: 0 | Q127: 0 | R127: 0 | S127: 0 | T127: 0
A148: COUNT
E149: =E3 -> Female | F149: Male | G149: 0 | H149: 0 | I149: 0 | J149: 0 | K149: 0 | L149: 0 | M149: 0 | N149: 0 | O149: 0 | P149: 0 | Q149: 0 | R149: 0 | S149: 0 | T149: 0
E150: =E4 -> 0 | F150: 0 | G150: 0 | H150: 0 | I150: 0 | J150: 0 | K150: 0 | L150: 0 | M150: 0 | N150: 0 | O150: 0 | P150: 0 | Q150: 0 | R150: 0 | S150: 0 | T150: 0
C151: =C5 -> 1 | D151: Women in political power and decision-making (local, regional, national), | E151: 0 | F151: 0
C152: 2 | D152: Women electoral candidates (local, regional, national), | E152: 1 | F152: 2
C153: 3 | D153: Peace, negotiations, treaties…(local, regional, national), | E153: 3 | F153: 10
C154: 4 | D154: Other domestic politics/government (local, regional, national), elections, speeches, the political process … | E154: 4 | F154: 18
C155: 5 | D155: Global partnerships (international trade and finance systems, e.g. WTO, IMF, World Bank, debt) … | E155: 0 | F155: 0
C156: 6 | D156: Foreign/international politics, relations with other countries, negotiations, treaties, UN peacekeeping … | E156: 7 | F156: 36
C157: 7 | D157: National defence, military spending, military training, military parades, internal security … | E157: 0 | F157: 4
C158: 8 | D158: Other stories on politics and government (specify the subject in 'Comments' section of coding sheet) | E158: 17 | F158: 25
C159: 9 | D159: Economic policies, strategies, models (national, international) … | E159: 0 | F159: 15
C160: 10 | D160: Economic indicators, statistics, business, trade, stock markets … | E160: 0 | F160: 1
C161: 11 | D161: Economic crisis, state bailouts of companies, company takeovers and mergers … | E161: 0 | F161: 1
C162: 12 | D162: Poverty, housing, social welfare, aid to those in need … | E162: 2 | F162: 3
C163: 13 | D163: Women's participation in economic processes (informal work, paid employment, unemployment, unpaid labour) | E163: 0 | F163: 0
C164: 14 | D164: Other labour issues, strikes, trade unions, negotiations, other employment and unemployment … | E164: 4 | F164: 3
C165: 15 | D165: Rural economy, agriculture, farming practices, agricultural policy, land rights … | E165: 0 | F165: 0
C166: 16 | D166: Consumer issues, consumer protection, regulation, prices, consumer fraud … | E166: 0 | F166: 2
C167: 17 | D167: Transport, traffic, roads …… | E167: 0 | F167: 0
C168: 18 | D168: Other stories on the economy (specify the subject in 'Comments' section of coding sheet) | E168: 2 | F168: 5
C169: 19 | D169: Science, technology, research, funding, discoveries, developments … | E169: 0 | F169: 1
C170: 20 | D170: Medicine, health, hygiene, safety, disability, medical research, funding (apart from HIV-AIDS)… | E170: 1 | F170: 1
C171: =C25 -> 21 | D171: HIV and AIDS, incidence, policy, treatment, people affected … | E171: 0 | F171: 0
C172: 22 | D172: Other epidemics, viruses, contagions, Influenza, BSE, SARS … | E172: 4 | F172: 6
C173: 23 | D173: Birth control, fertility, sterilisation, amniocentesis, termination of pregnancy … | E173: 0 | F173: 0
C174: 24 | D174: Environment, nature, pollution, global warming, ecology, tourism … | E174: 2 | F174: 0
C175: 25 | D175: Other stories on science or health (specify the subject in 'Comments' section of coding sheet) | E175: 0 | F175: 4
C176: 26 | D176: Development issues, sustainability, community development … | E176: 0 | F176: 0
C177: 27 | D177: Education, child care, nurseries, pre-school to university, adult education, literacy … | E177: 7 | F177: 8
C178: 28 | D178: Family relations, inter-generational conflict, single parents … | E178: 0 | F178: 0
C179: 29 | D179: Human rights, women's rights, children's rights, gay & lesbian rights, rights of minorities .. | E179: 2 | F179: 0
C180: 30 | D180: Religion, culture, tradition, controversies, teachings, celebrations, practices … | E180: 0 | F180: 0
C181: 31 | D181: Migration, refugees, asylum seekers, ethnic conflict, integration, racism, xenophobia … | E181: 0 | F181: 0
C182: 32 | D182: Women's movement, activism, events, demonstrations, gender equality advocacy … | E182: 0 | F182: 0
C183: 33 | D183: Changing gender relations, roles and relationships of women and men inside and outside the home … | E183: 0 | F183: 0
C184: 34 | D184: Family law, family codes, property law, inheritance law and rights … | E184: 0 | F184: 0
C185: 35 | D185: Legal system, judicial system, legislation (apart from family, property & inheritance law) … | E185: 2 | F185: 4
C186: 36 | D186: Other stories on social or legal issues (specify the subject in 'Comments' section of coding sheet) | E186: 6 | F186: 15
C187: 37 | D187: Non-violent crime, bribery, theft, drug-dealing, corruption, (including political corruption/malpractice) … | E187: 4 | F187: 7
C188: 38 | D188: Violent crime, murder, abduction, kidnapping, assault, drug-related violence … | E188: 3 | F188: 4
C189: 39 | D189: Gender-based violence, feminicide, harassment, domestic violence, rape, trafficking, genital mutilation … | E189: 4 | F189: 6
C190: 40 | D190: Child abuse, sexual violence against children, trafficking, neglect. | E190: 2 | F190: 4
C191: =C45 -> 41 | D191: War, civil war, terrorism, state-based violence … | E191: 4 | F191: 5
C192: 42 | D192: Riots, demonstrations, public disorder … | E192: 0 | F192: 0
C193: 43 | D193: Disaster, accident, famine, earthquake, flood, hurricane, plane crash, car crash … | E193: 5 | F193: 1
C194: 44 | D194: Other stories on crime and violence (specify the subject in 'Comments' section of coding sheet) | E194: 0 | F194: 3
C195: 45 | D195: Celebrity news, births, marriages, deaths, obituaries, famous people, royalty … | E195: 0 | F195: 0
C196: 46 | D196: Arts, entertainment, leisure, cinema, theatre, books, dance … | E196: 7 | F196: 22
C197: 47 | D197: Media, including new media (computers, internet), portrayal of women and/or men, pornography … | E197: 0 | F197: 0
C198: 48 | D198: Beauty contests, models, fashion, beauty aids, cosmetic surgery … | E198: 1 | F198: 0
C199: 49 | D199: Sports, events, players, facilities, training, policies, funding … | E199: 0 | F199: 14
C200: 50 | D200: Other stories on celebrities, arts, media (specify the subject in 'Comments' section of coding sheet) | E200: 0 | F200: 7
C201: 51 | D201: News about the girl child, including, cultural attitudes and practices impinging on girls, education, health, economic exploitation, violence (ONLY WHERE EMPHASIS IS ON THE GIRL CHILD)… | E201: 0 | F201: 0
C202: 52 | D202: Other subject: use only if none of the above subject codes is suitable (specify the subject in 'Comments' section of coding sheet) | E202: 0 | F202: 0
C203: 0 | D203: 0
C204: 0 | D204: 0
C205: 0 | D205: 0

Sheet 9dF - Sex of news subjects
A1: ='9d'!$A$1 -> Sex of news subjects in different story topics by GMMP year
H2: Female %F | J2: Male %M
E3: Story Topics | F3: 2000 | G3: 2005 | H3: %F | I3: N | J3: %M | K3: N
E4: ='9d'!D5 -> Women in political power and decision-making (local, regional, national), | F4: 0 | G4: 0 | H4: ='9d'!W5 -> 0 | I4: ='9d'!E151 -> 0 | J4: ='9d'!X5 -> 0 | K4: ='9d'!F151 -> 0
E5: ='9d'!D6 -> Women electoral candidates (local, regional, national), | F5: 0 | G5: 0 | H5: ='9d'!W6 -> 0.3333333333 | I5: ='9d'!E152 -> 1 | J5: ='9d'!X6 -> 0.6666666667 | K5: ='9d'!F152 -> 2
E6: ='9d'!D7 -> Peace, negotiations, treaties…(local, regional, national), | F6: 0 | G6: 0 | H6: ='9d'!W7 -> 0.2307692308 | I6: ='9d'!E153 -> 3 | J6: ='9d'!X7 -> 0.7692307692 | K6: ='9d'!F153 -> 10
E7: ='9d'!D8 -> Other domestic politics/government (local, regional, national), elections, speeches, the political process … | F7: 0 | G7: 0 | H7: ='9d'!W8 -> 0.1848043363 | I7: ='9d'!E154 -> 4 | J7: ='9d'!X8 -> 0.8151956637 | K7: ='9d'!F154 -> 18
E8: ='9d'!D9 -> Global partnerships (international trade and finance systems, e.g. WTO, IMF, World Bank, debt) … | F8: 0 | G8: 0 | H8: ='9d'!W9 -> 0 | I8: ='9d'!E155 -> 0 | J8: ='9d'!X9 -> 0 | K8: ='9d'!F155 -> 0
E9: ='9d'!D10 -> Foreign/international politics, relations with other countries, negotiations, treaties, UN peacekeeping … | F9: 0 | G9: 0 | H9: ='9d'!W10 -> 0.1698005484 | I9: ='9d'!E156 -> 7 | J9: ='9d'!X10 -> 0.8301994516 | K9: ='9d'!F156 -> 36
E10: ='9d'!D11 -> National defence, military spending, military training, military parades, internal security … | F10: 0 | G10: 0 | H10: ='9d'!W11 -> 0 | I10: ='9d'!E157 -> 0 | J10: ='9d'!X11 -> 1 | K10: ='9d'!F157 -> 4
E11: ='9d'!D12 -> Other stories on politics and government (specify the subject in 'Comments' section of coding sheet) | F11: 0 | G11: 0 | H11: ='9d'!W12 -> 0.4071824097 | I11: ='9d'!E158 -> 17 | J11: ='9d'!X12 -> 0.5928175903 | K11: ='9d'!F158 -> 25
E12: ='9d'!D13 -> Economic policies, strategies, models (national, international) … | F12: 0 | G12: 0 | H12: ='9d'!W13 -> 0 | I12: ='9d'!E159 -> 0 | J12: ='9d'!X13 -> 1 | K12: ='9d'!F159 -> 15
E13: ='9d'!D14 -> Economic indicators, statistics, business, trade, stock markets … | F13: 0 | G13: 0 | H13: ='9d'!W14 -> 0 | I13: ='9d'!E160 -> 0 | J13: ='9d'!X14 -> 1 | K13: ='9d'!F160 -> 1
E14: ='9d'!D15 -> Economic crisis, state bailouts of companies, company takeovers and mergers … | F14: 0 | G14: 0 | H14: ='9d'!W15 -> 0 | I14: ='9d'!E161 -> 0 | J14: ='9d'!X15 -> 1 | K14: ='9d'!F161 -> 1
E15: ='9d'!D16 -> Poverty, housing, social welfare, aid to those in need … | F15: 0 | G15: 0 | H15: ='9d'!W16 -> 0.4 | I15: ='9d'!E162 -> 2 | J15: ='9d'!X16 -> 0.6 | K15: ='9d'!F162 -> 3
E16: ='9d'!D17 -> Women's participation in economic processes (informal work, paid employment, unemployment, unpaid labour) | F16: 0 | G16: 0 | H16: ='9d'!W17 -> 0 | I16: ='9d'!E163 -> 0 | J16: ='9d'!X17 -> 0 | K16: ='9d'!F163 -> 0
E17: ='9d'!D18 -> Other labour issues, strikes, trade unions, negotiations, other employment and unemployment … | F17: 0 | G17: 0 | H17: ='9d'!W18 -> 0.5556718482 | I17: ='9d'!E164 -> 4 | J17: ='9d'!X18 -> 0.4443281518 | K17: ='9d'!F164 -> 3
E18: ='9d'!D19 -> Rural economy, agriculture, farming practices, agricultural policy, land rights … | F18: 0 | G18: 0 | H18: ='9d'!W19 -> 0 | I18: ='9d'!E165 -> 0 | J18: ='9d'!X19 -> 0 | K18: ='9d'!F165 -> 0
E19: ='9d'!D20 -> Consumer issues, consumer protection, regulation, prices, consumer fraud … | F19: 0 | G19: 0 | H19: ='9d'!W20 -> 0 | I19: ='9d'!E166 -> 0 | J19: ='9d'!X20 -> 1 | K19: ='9d'!F166 -> 2
E20: ='9d'!D21 -> Transport, traffic, roads …… | F20: 0 | G20: 0 | H20: ='9d'!W21 -> 0 | I20: ='9d'!E167 -> 0 | J20: ='9d'!X21 -> 0 | K20: ='9d'!F167 -> 0
E21: ='9d'!D22 -> Other stories on the economy (specify the subject in 'Comments' section of coding sheet) | F21: 0 | G21: 0 | H21: ='9d'!W22 -> 0.2936410638 | I21: ='9d'!E168 -> 2 | J21: ='9d'!X22 -> 0.7063589362 | K21: ='9d'!F168 -> 5
E22: ='9d'!D23 -> Science, technology, research, funding, discoveries, developments … | F22: 0 | G22: 0 | H22: ='9d'!W23 -> 0 | I22: ='9d'!E169 -> 0 | J22: ='9d'!X23 -> 1 | K22: ='9d'!F169 -> 1
E23: ='9d'!D24 -> Medicine, health, hygiene, safety, disability, medical research, funding (apart from HIV-AIDS)… | F23: 0 | G23: 0 | H23: ='9d'!W24 -> 0.5 | I23: ='9d'!E170 -> 1 | J23: ='9d'!X24 -> 0.5 | K23: ='9d'!F170 -> 1
E24: ='9d'!D25 -> HIV and AIDS, incidence, policy, treatment, people affected … | F24: 0 | G24: 0 | H24: ='9d'!W25 -> 0 | I24: ='9d'!E171 -> 0 | J24: ='9d'!X25 -> 0 | K24: ='9d'!F171 -> 0
E25: ='9d'!D26 -> Other epidemics, viruses, contagions, Influenza, BSE, SARS … | F25: 0 | G25: 0 | H25: ='9d'!W26 -> 0.4015748078 | I25: ='9d'!E172 -> 4 | J25: ='9d'!X26 -> 0.5984251922 | K25: ='9d'!F172 -> 6
E26: ='9d'!D27 -> Birth control, fertility, sterilisation, amniocentesis, termination of pregnancy … | F26: 0 | G26: 0 | H26: ='9d'!W27 -> 0 | I26: ='9d'!E173 -> 0 | J26: ='9d'!X27 -> 0 | K26: ='9d'!F173 -> 0
E27: ='9d'!D28 -> Environment, nature, pollution, global warming, ecology, tourism … | F27: 0 | G27: 0 | H27: ='9d'!W28 -> 1 | I27: ='9d'!E174 -> 2 | J27: ='9d'!X28 -> 0 | K27: ='9d'!F174 -> 0
E28: ='9d'!D29 -> Other stories on science or health (specify the subject in 'Comments' section of coding sheet) | F28: 0 | G28: 0 | H28: ='9d'!W29 -> 0 | I28: ='9d'!E175 -> 0 | J28: ='9d'!X29 -> 1 | K28: ='9d'!F175 -> 4
E29: ='9d'!D30 -> Development issues, sustainability, community development … | F29: 0 | G29: 0 | H29: ='9d'!W30 -> 0 | I29: ='9d'!E176 -> 0 | J29: ='9d'!X30 -> 0 | K29: ='9d'!F176 -> 0
E30: ='9d'!D31 -> Education, child care, nurseries, pre-school to university, adult education, literacy … | F30: 0 | G30: 0 | H30: ='9d'!W31 -> 0.5280704585 | I30: ='9d'!E177 -> 7 | J30: ='9d'!X31 -> 0.4719295415 | K30: ='9d'!F177 -> 8
E31: ='9d'!D32 -> Family relations, inter-generational conflict, single parents … | F31: 0 | G31: 0 | H31: ='9d'!W32 -> 0 | I31: ='9d'!E178 -> 0 | J31: ='9d'!X32 -> 0 | K31: ='9d'!F178 -> 0
E32: ='9d'!D33 -> Human rights, women's rights, children's rights, gay & lesbian rights, rights of minorities .. | F32: 0 | G32: 0 | H32: ='9d'!W33 -> 1 | I32: ='9d'!E179 -> 2 | J32: ='9d'!X33 -> 0 | K32: ='9d'!F179 -> 0
E33: ='9d'!D34 -> Religion, culture, tradition, controversies, teachings, celebrations, practices … | F33: 0 | G33: 0 | H33: ='9d'!W34 -> 0 | I33: ='9d'!E180 -> 0 | J33: ='9d'!X34 -> 0 | K33: ='9d'!F180 -> 0
E34: ='9d'!D35 -> Migration, refugees, asylum seekers, ethnic conflict, integration, racism, xenophobia … | F34: 0 | G34: 0 | H34: ='9d'!W35 -> 0 | I34: ='9d'!E181 -> 0 | J34: ='9d'!X35 -> 0 | K34: ='9d'!F181 -> 0
E35: ='9d'!D36 -> Women's movement, activism, events, demonstrations, gender equality advocacy … | F35: 0 | G35: 0 | H35: ='9d'!W36 -> 0 | I35: ='9d'!E182 -> 0 | J35: ='9d'!X36 -> 0 | K35: ='9d'!F182 -> 0
E36: ='9d'!D37 -> Changing gender relations, roles and relationships of women and men inside and outside the home … | F36: 0 | G36: 0 | H36: ='9d'!W37 -> 0 | I36: ='9d'!E183 -> 0 | J36: ='9d'!X37 -> 0 | K36: ='9d'!F183 -> 0
E37: ='9d'!D38 -> Family law, family codes, property law, inheritance law and rights … | F37: 0 | G37: 0 | H37: ='9d'!W38 -> 0 | I37: ='9d'!E184 -> 0 | J37: ='9d'!X38 -> 0 | K37: ='9d'!F184 -> 0
E38: ='9d'!D39 -> Legal system, judicial system, legislation (apart from family, property & inheritance law) … | F38: 0 | G38: 0 | H38: ='9d'!W39 -> 0.3577646308 | I38: ='9d'!E185 -> 2 | J38: ='9d'!X39 -> 0.6422353692 | K38: ='9d'!F185 -> 4
E39: ='9d'!D40 -> Other stories on social or legal issues (specify the subject in 'Comments' section of coding sheet) | F39: 0 | G39: 0 | H39: ='9d'!W40 -> 0.2865168563 | I39: ='9d'!E186 -> 6 | J39: ='9d'!X40 -> 0.7134831437 | K39: ='9d'!F186 -> 15
E40: ='9d'!D41 -> Non-violent crime, bribery, theft, drug-dealing, corruption, (including political corruption/malpractice) … | F40: 0 | G40: 0 | H40: ='9d'!W41 -> 0.323677193 | I40: ='9d'!E187 -> 4 | J40: ='9d'!X41 -> 0.676322807 | K40: ='9d'!F187 -> 7
E41: ='9d'!D42 -> Violent crime, murder, abduction, kidnapping, assault, drug-related violence … | F41: 0 | G41: 0 | H41: ='9d'!W42 -> 0.4285714286 | I41: ='9d'!E188 -> 3 | J41: ='9d'!X42 -> 0.5714285714 | K41: ='9d'!F188 -> 4
E42: ='9d'!D43 -> Gender-based violence, feminicide, harassment, domestic violence, rape, trafficking, genital mutilation … | F42: 0 | G42: 0 | H42: ='9d'!W43 -> 0.4085251001 | I42: ='9d'!E189 -> 4 | J42: ='9d'!X43 -> 0.5914748999 | K42: ='9d'!F189 -> 6
E43: ='9d'!D44 -> Child abuse, sexual violence against children, trafficking, neglect. | F43: 0 | G43: 0 | H43: ='9d'!W44 -> 0.3333333333 | I43: ='9d'!E190 -> 2 | J43: ='9d'!X44 -> 0.6666666667 | K43: ='9d'!F190 -> 4
E44: ='9d'!D45 -> War, civil war, terrorism, state-based violence … | F44: 0 | G44: 0 | H44: ='9d'!W45 -> 0.4706962851 | I44: ='9d'!E191 -> 4 | J44: ='9d'!X45 -> 0.5293037149 | K44: ='9d'!F191 -> 5
E45: ='9d'!D46 -> Riots, demonstrations, public disorder … | F45: 0 | G45: 0 | H45: ='9d'!W46 -> 0 | I45: ='9d'!E192 -> 0 | J45: ='9d'!X46 -> 0 | K45: ='9d'!F192 -> 0
E46: ='9d'!D47 -> Disaster, accident, famine, earthquake, flood, hurricane, plane crash, car crash … | F46: 0 | G46: 0 | H46: ='9d'!W47 -> 0.8360655818 | I46: ='9d'!E193 -> 5 | J46: ='9d'!X47 -> 0.1639344182 | K46: ='9d'!F193 -> 1
E47: ='9d'!D48 -> Other stories on crime and violence (specify the subject in 'Comments' section of coding sheet) | F47: 0 | G47: 0 | H47: ='9d'!W48 -> 0 | I47: ='9d'!E194 -> 0 | J47: ='9d'!X48 -> 1 | K47: ='9d'!F194 -> 3
E48: ='9d'!D49 -> Celebrity news, births, marriages, deaths, obituaries, famous people, royalty … | F48: 0 | G48: 0 | H48: ='9d'!W49 -> 0 | I48: ='9d'!E195 -> 0 | J48: ='9d'!X49 -> 0 | K48: ='9d'!F195 -> 0
E49: ='9d'!D50 -> Arts, entertainment, leisure, cinema, theatre, books, dance … | F49: 0 | G49: 0 | H49: ='9d'!W50 -> 0.227768586 | I49: ='9d'!E196 -> 7 | J49: ='9d'!X50 -> 0.772231414 | K49: ='9d'!F196 -> 22
E50: ='9d'!D51 -> Media, including new media (computers, internet), portrayal of women and/or men, pornography … | F50: 0 | G50: 0 | H50: ='9d'!W51 -> 0 | I50: ='9d'!E197 -> 0 | J50: ='9d'!X51 -> 0 | K50: ='9d'!F197 -> 0
E51: ='9d'!D52 -> Beauty contests, models, fashion, beauty aids, cosmetic surgery … | F51: 0 | G51: 0 | H51: ='9d'!W52 -> 1 | I51: ='9d'!E198 -> 1 | J51: ='9d'!X52 -> 0 | K51: ='9d'!F198 -> 0
E52: ='9d'!D53 -> Sports, events, players, facilities, training, policies, funding … | F52: 0 | G52: 0 | H52: ='9d'!W53 -> 0 | I52: ='9d'!E199 -> 0 | J52: ='9d'!X53 -> 1 | K52: ='9d'!F199 -> 14
E53: ='9d'!D54 -> Other stories on celebrities, arts, media (specify the subject in 'Comments' section of coding sheet) | F53: 0 | G53: 0 | H53: ='9d'!W54 -> 0 | I53: ='9d'!E200 -> 0 | J53: ='9d'!X54 -> 1 | K53: ='9d'!F200 -> 7
E54: ='9d'!D55 -> News about the girl child, including, cultural attitudes and practices impinging on girls, education, health, economic exploitation, violence (ONLY WHERE EMPHASIS IS ON THE GIRL CHILD)… | F54: 0 | G54: 0 | H54: ='9d'!W55 -> 0 | I54: ='9d'!E201 -> 0 | J54: ='9d'!X55 -> 0 | K54: ='9d'!F201 -> 0
E57: Total | F57: 0 | G57: 0 | H57: ='9d'!$W$68 -> 0.2784489043 | I57: =SUM(I4:I54) -> 94 | J57: ='9d'!$X$68 -> 0.7215510957 | K57: =SUM(K4:K54) -> 237

Sheet 9e (hidden)
A1: Position or Occupation of News Subjects, by sex
E3: Female | F3: Male | W3: =E3 -> Female | X3: Male | Y3: 0 | Z3: 0 | AA3: 0 | AB3: 0 | AC3: 0 | AD3: 0 | AE3: 0 | AF3: 0 | AG3: 0 | AH3: 0 | AI3: 0 | AJ3: 0 | AK3: 0
V4: TOTAL | W4: 0 | X4: 0 | Y4: 0 | Z4: 0 | AA4: 0 | AB4: 0 | AC4: 0 | AD4: 0 | AE4: 0 | AF4: 0 | AG4: 0 | AH4: 0 | AI4: 0 | AJ4: 0 | AK4: 0 | AL4: =T4 -> 0
C5: 0 | D5: Not stated. Story does not describe the person’s occupation or position. | E5: 0.05792950001 | F5: 0.04252949916 | V5: =SUM(E5:O5) -> 0.1004589992 | W5: =IF((E5+F5)>0,E5/(E5+F5),0) -> 0.5766481897 | X5: =IF((E5+F5)>0,F5/(E5+F5),0) -> 0.4233518103 | Y5: =IF((G5+H5)>0,G5/(G5+H5),0) -> 0 | Z5: =IF((G5+H5)>0,H5/(G5+H5),0) -> 0 | AA5: =IF((I5+J5)>0,I5/(I5+J5),0) -> 0 | AB5: =IF((I5+J5)>0,J5/(I5+J5),0) -> 0 | AC5: =IF((K5+L5)>0,K5/(K5+L5),0) -> 0 | AD5: =IF((K5+L5)>0,L5/(K5+L5),0) -> 0 | AE5: =IF((M5+N5)>0,M5/(M5+N5),0) -> 0 | AF5: =IF((M5+N5)>0,N5/(M5+N5),0) -> 0 | AG5: =IF((O5+P5)>0,O5/(O5+P5),0) -> 0 | AH5: =IF((O5+P5)>0,P5/(O5+P5),0) -> 0 | AI5: =IF((Q5+R5)>0,Q5/(Q5+R5),0) -> 0 | AJ5: =IF((Q5+R5)>0,R5/(Q5+R5),0) -> 0 | AK5: =IF((S5+T5)>0,S5/(S5+T5),0) -> 0 | AL5: =IF((S5+T5)>0,T5/(S5+T5),0) -> 0
C6: 1 | D6: Royalty, ruling monarch, deposed monarch, any member of royal family … | V6: 0 | W6: 0 | X6: 0 | Y6: 0 | Z6: 0 | AA6: 0 | AB6: 0 | AC6: 0 | AD6: 0 | AE6: 0 | AF6: 0 | AG6: 0 | AH6: 0 | AI6: 0 | AJ6: 0 | AK6: 0 | AL6: 0
C7: 2 | D7: Government official, politician, president, government minister, political leader, political party staff, spokesperson … | E7: 0.190376997 | F7: 0.5788544915 | V7: 0.7692314885 | W7: 0.2474898647 | X7: 0.7525101353 | Y7: 0 | Z7: 0 | AA7: 0 | AB7: 0 | AC7: 0 | AD7: 0 | AE7: 0 | AF7: 0 | AG7: 0 | AH7: 0 | AI7: 0 | AJ7: 0 | AK7: 0 | AL7: 0
C8: 3 | D8: Government employee, public servant, bureaucrat, diplomat, intelligence officer … | E8: 0.005100000184 | F8: 0.01257649995 | V8: 0.01767650014 | W8: 0.2885186629 | X8: 0.7114813371 | Y8: 0 | Z8: 0 | AA8: 0 | AB8: 0 | AC8: 0 | AD8: 0 | AE8: 0 | AF8: 0 | AG8: 0 | AH8: 0 | AI8: 0 | AJ8: 0 | AK8: 0 | AL8: 0
C9: 4 | D9: Police, military, para-military group, militia, prison officer, security officer, fire officer … | E9: 0.00747649977 | F9: 0.03762949957 | V9: 0.04510599934 | W9: 0.165753999 | X9: 0.834246001 | Y9: 0 | Z9: 0 | AA9: 0 | AB9: 0 | AC9: 0 | AD9: 0 | AE9: 0 | AF9: 0 | AG9: 0 | AH9: 0 | AI9: 0 | AJ9: 0 | AK9: 0 | AL9: 0
C10: 5 | D10: Academic expert, education professional, teacher or university lecturer (all disciplines), nursery or kindergarten teacher, child care worker … | E10: 0.02752949949 | F10: 0.04758249922 | V10: 0.07511199871 | W10: 0.366512674 | X10: 0.633487326 | Y10: 0 | Z10: 0 | AA10: 0 | AB10: 0 | AC10: 0 | AD10: 0 | AE10: 0 | AF10: 0 | AG10: 0 | AH10: 0 | AI10: 0 | AJ10: 0 | AK10: 0 | AL10: 0
C11: 6 | D11: Health or social service professional, doctor, nurse, laboratory technician, social worker, psychologist … | E11: 0.02030000044 | F11: 0.03040000051 | V11: 0.05070000095 | W11: 0.4003944785 | X11: 0.5996055215 | Y11: 0 | Z11: 0 | AA11: 0 | AB11: 0 | AC11: 0 | AD11: 0 | AE11: 0 | AF11: 0 | AG11: 0 | AH11: 0 | AI11: 0 | AJ11: 0 | AK11: 0 | AL11: 0
C12: 7 | D12: Science or technology professional, engineer, technician, computer specialist … | F12: 0.07986499788 | V12: 0.07986499788 | W12: 0 | X12: 1 | Y12: 0 | Z12: 0 | AA12: 0 | AB12: 0 | AC12: 0 | AD12: 0 | AE12: 0 | AF12: 0 | AG12: 0 | AH12: 0 | AI12: 0 | AJ12: 0 | AK12: 0 | AL12: 0
C13: 8 | D13: Media professional, journalist, video or film-maker, theatre director ... | E13: 0.005100000184 | F13: 0.01257649995 | V13: =SUM(E13:O13) -> 0.01767650014 | W13: =IF((E13+F13)>0,E13/(E13+F13),0) -> 0.2885186629 | X13: 0.7114813371
C14: 9 | D14: Lawyer, judge, magistrate, legal advocate, legal expert, legal clerk … | E14: 0.02550000092 | F14: 0.06292949989 | V14: =SUM(E14:O14) -> 0.08842950081 | W14: =IF((E14+F14)>0,E14/(E14+F14),0) -> 0.2883653157 | X14: 0.7116346843
C15: 10 | D15: Business person, executive, manager, entrepreneur, economist, financial expert, stock broker … | F15: 0.02540000062 | V15: =SUM(E15:O15) -> 0.02540000062 | W15: =IF((E15+F15)>0,E15/(E15+F15),0) -> 0 | X15: 1
C16: 11 | D16: Office or service worker, non-management worker in office, store, restaurant, catering … | E16: 0.005100000184 | F16: 0.004999999888 | V16: 0.01010000007 | W16: 0.5049505097 | X16: 0.4950494903
C17: 12 | D17: Tradesperson, artisan, labourer, truck driver, construction, factory, domestic worker … | E17: 0.00747649977 | F17: 0.02505299961 | V17: 0.03252949938 | W17: 0.2298375294 | X17: 0.7701624706
C18: 13 | D18: Agriculture, mining, fishing, forestry worker … | V18: 0 | W18: 0 | X18: 0
C19: 14 | D19: Religious figure, priest, monk, rabbi, mullah, nun … | F19: 0.00747649977 | V19: 0.00747649977 | W19: 0 | X19: 1
C20: 15 | D20: Activist or worker in civil society organisation, non-governmental organisation, trade union, human rights, consumer issues, environment, aid agency, peasant leader, United Nations … | E20: 0.02005299972 | F20: 0.05560000055 | V20: 0.07565300027 | W20: 0.2650654918 | X20: 0.7349345082
C21: 16 | D21: Sex worker, prostitute … | V21: 0 | W21: 0 | X21: 0
C22: 17 | D22: Celebrity, artist, actor, writer, singer, radio or television personality … | E22: 0.04272949975 | F22: 0.1499709967 | V22: 0.1927004964 | W22: 0.2217404757 | X22: 0.7782595243
C23: 18 | D23: Sportsperson, athlete, player, coach, referee … | E23: 0.005100000184 | F23: 0.1123944973 | V23: 0.1174944974 | W23: 0.04340628961 | X23: 0.9565937104
C24: 19 | D24: Student, pupil, schoolchild | E24: 0.01257649995 | V24: 0.01257649995 | W24: 1 | X24: 0
C25: 20 | D25: Homemaker, parent, either female or male. Code this only if no other occupation is given, e.g. a doctor who is also described as a mother is coded 6. | E25: 0.02777650021 | F25: 0.005100000184 | V25: 0.03287650039 | W25: 0.8448739944 | X25: 0.1551260056
C26: 21 | D26: Child, young person (up to 18 years). Code this only if no other occupation/position is given, e.g. a schoolchild is coded 19; a child labourer is coded 12. | E26: 0.005100000184 | F26: 0.02550000092 | V26: 0.0306000011 | W26: 0.1666666667 | X26: 0.8333333333
C27: 22 | D27: Villager or resident engaged in unspecified occupation. Code this only if no other occupation is given, e.g. a teacher who is also described as a villager is coded 5. | E27: 0.0580295003 | F27: 0.02787650051 | V27: 0.08590600081 | W27: 0.6754999622 | X27: 0.3245000378
C28: 23 | D28: Retired person, pensioner. Code this only if no other occupation is given, e.g. a retired police officer is coded 4; a retired politician is coded 2. | E28: 0.03287650039 | F28: 0.01530000055 | V28: 0.04817650095 | W28: 0.6824177711 | X28: 0.3175822289
C29: 24 | D29: Criminal, suspect. Code this only if no other occupation is given, e.g, a lawyer suspected of committing a crime is coded 9; a former politician who has committed a crime is coded 2. | E29: 0.00747649977 | F29: 0.06045300001 | V29: 0.06792949978 | W29: 0.1100626354 | X29: 0.8899373646
C30: 25 | D30: Unemployed. Code this only if no other occupation is given, e.g. an unemployed actor is coded 17; an unemployed person who commits a crime is coded 24. | E30: 0.004999999888 | V30: 0.004999999888 | W30: 1 | X30: 0
C31: 26 | D31: Other. Use only as a last resort (specify the occupation/position in 'Comments' section of coding sheet) | F31: 0.05337650143 | V31: 0.05337650143 | W31: 0 | X31: 1
C32: 27 | D32: NA – Use this where you are coding a secondary source only | V32: 0 | W32: 0 | X32: 0
D50: TOTAL | E50: =SUM(E5:E49) -> 0.5686069983 | F50: 1.473444486 | G50: 0 | H50: 0 | I50: 0 | J50: 0 | K50: 0 | L50: 0 | M50: 0 | N50: 0 | O50: 0 | P50: 0 | Q50: 0 | R50: 0 | S50: 0 | T50: 0 | V50: =SUM(E50:O50) -> 2.042051484 | W50: =IF((E50+F50)>0,E50/(E50+F50),0) -> 0.2784489043 | X50: =IF((E50+F50)>0,F50/(E50+F50),0) -> 0.7215510957 | Y50: =IF((G50+H50)>0,G50/(G50+H50),0) -> 0 | Z50: =IF((G50+H50)>0,H50/(G50+H50),0) -> 0 | AA50: =IF((I50+J50)>0,I50/(I50+J50),0) -> 0 | AB50: =IF((I50+J50)>0,J50/(I50+J50),0) -> 0 | AC50: =IF((K50+L50)>0,K50/(K50+L50),0) -> 0 | AD50: =IF((K50+L50)>0,L50/(K50+L50),0) -> 0 | AE50: =IF((M50+N50)>0,M50/(M50+N50),0) -> 0 | AF50: =IF((M50+N50)>0,N50/(M50+N50),0) -> 0 | AG50: =IF((O50+P50)>0,O50/(O50+P50),0) -> 0 | AH50: =IF((O50+P50)>0,P50/(O50+P50),0) -> 0 | AI50: =IF((Q50+R50)>0,Q50/(Q50+R50),0) -> 0 | AJ50: =IF((Q50+R50)>0,R50/(Q50+R50),0) -> 0 | AK50: =IF((S50+T50)>0,S50/(S50+T50),0) -> 0 | AL50: =IF((S50+T50)>0,T50/(S50+T50),0) -> 0
C52: =C5 -> 0 | D52: Not stated. Story does not describe the person’s occupation or position. | E52: =IF(E$50>0,E5/E$50,0) -> 0.1018796817 | F52: 0.02886399832 | G52: 0 | H52: 0 | I52: 0 | J52: 0 | K52: 0 | L52: 0 | M52: 0 | N52: 0 | O52: 0 | P52: 0 | Q52: 0 | R52: 0 | S52: 0 | T52: 0
C53: 1 | D53: Royalty, ruling monarch, deposed monarch, any member of royal family … | E53: =IF(E$50>0,E6/E$50,0) -> 0 | F53: 0 | G53: 0 | H53: 0 | I53: 0 | J53: 0 | K53: 0 | L53: 0 | M53: 0 | N53: 0 | O53: 0 | P53: 0 | Q53: 0 | R53: 0 | S53: 0 | T53: 0
C54: 2 | D54: Government official, politician, president, government minister, political leader, political party staff, spokesperson … | E54: =IF(E$50>0,E7/E$50,0) -> 0.3348129685 | F54: 0.3928580256 | G54: 0 | H54: 0 | I54: 0 | J54: 0 | K54: 0 | L54: 0 | M54: 0 | N54: 0 | O54: 0 | P54: 0 | Q54: 0 | R54: 0 | S54: 0 | T54: 0
C55: 3 | D55: Government employee, public servant, bureaucrat, diplomat, intelligence officer … | E55: =IF(E$50>0,E8/E$50,0) -> 0.008969288453 | F55: 0.008535442005 | G55: 0 | H55: 0 | I55: 0 | J55: 0 | K55: 0 | L55: 0 | M55: 0 | N55: 0 | O55: 0 | P55: 0 | Q55: 0 | R55: 0 | S55: 0 | T55: 0
C56: 4 | D56: Police, military, para-military group, militia, prison officer, security officer, fire officer … | E56: =IF(E$50>0,E9/E$50,0) -> 0.01314880012 | F56: 0.02553845763 | G56: 0 | H56: 0 | I56: 0 | J56: 0 | K56: 0 | L56: 0 | M56: 0 | N56: 0 | O56: 0 | P56: 0 | Q56: 0 | R56: 0 | S56: 0 | T56: 0
C57: 5 | D57: Academic expert, education professional, teacher or university lecturer (all disciplines), nursery or kindergarten teacher, child care worker … | E57: =IF(E$50>0,E10/E$50,0) -> 0.04841568882 | F57: 0.03229337765 | G57: 0 | H57: 0 | I57: 0 | J57: 0 | K57: 0 | L57: 0 | M57: 0 | N57: 0 | O57: 0 | P57: 0 | Q57: 0 | R57: 0 | S57: 0 | T57: 0
C58: 6 | D58: Health or social service professional, doctor, nurse, laboratory technician, social worker, psychologist … | E58: =IF(E$50>0,E11/E$50,0) -> 0.0357012849 | F58: 0.02063192798 | G58: 0 | H58: 0 | I58: 0 | J58: 0 | K58: 0 | L58: 0 | M58: 0 | N58: 0 | O58: 0 | P58: 0 | Q58: 0 | R58: 0 | S58: 0 | T58: 0
C59: 7 | D59: Science or technology professional, engineer, technician, computer specialist … | E59: =IF(E$50>0,E12/E$50,0) -> 0 | F59: 0.05420292292 | G59: 0 | H59: 0 | I59: 0 | J59: 0 | K59: 0 | L59: 0 | M59: 0 | N59: 0 | O59: 0 | P59: 0 | Q59: 0 | R59: 0 | S59: 0 | T59: 0
C60: 8 | D60: Media professional, journalist, video or film-maker, theatre director ... | E60: =IF(E$50>0,E13/E$50,0) -> 0.008969288453 | F60: 0.008535442005 | G60: 0 | H60: 0 | I60: 0 | J60: 0 | K60: 0 | L60: 0 | M60: 0 | N60: 0 | O60: 0 | P60: 0 | Q60: 0 | R60: 0 | S60: 0 | T60: 0
C61: 9 | D61: Lawyer, judge, magistrate, legal advocate, legal expert, legal clerk … | E61: =IF(E$50>0,E14/E$50,0) -> 0.04484644226 | F61: 0.04270910815 | G61: 0 | H61: 0 | I61: 0 | J61: 0 | K61: 0 | L61: 0 | M61: 0 | N61: 0 | O61: 0 | P61: 0 | Q61: 0 | R61: 0 | S61: 0 | T61: 0
C62: 10 | D62: Business person, executive, manager, entrepreneur, economist, financial expert, stock broker … | E62: =IF(E$50>0,E15/E$50,0) -> 0 | F62: 0.01723851891 | G62: 0 | H62: 0 | I62: 0 | J62: 0 | K62: 0 | L62: 0 | M62: 0 | N62: 0 | O62: 0 | P62: 0 | Q62: 0 | R62: 0 | S62: 0 | T62: 0
C63: 11 | D63: Office or service worker, non-management worker in office, store, restaurant, catering … | E63: =IF(E$50>0,E16/E$50,0) -> 0.008969288453 | F63: 0.003393409075 | G63: 0 | H63: 0 | I63: 0 | J63: 0 | K63: 0 | L63: 0 | M63: 0 | N63: 0 | O63: 0 | P63: 0 | Q63: 0 | R63: 0 | S63: 0 | T63: 0
C64: 12 | D64: Tradesperson, artisan, labourer, truck driver, construction, factory, domestic worker … | E64: =IF(E$50>0,E17/E$50,0) -> 0.01314880012 | F64: 0.01700301563 | G64: 0 | H64: 0 | I64: 0 | J64: 0 | K64: 0 | L64: 0 | M64: 0 | N64: 0 | O64: 0 | P64: 0 | Q64: 0 | R64: 0 | S64: 0 | T64: 0
C65: 13 | D65: Agriculture, mining, fishing, forestry worker … | E65: =IF(E$50>0,E18/E$50,0) -> 0 | F65: 0 | G65: 0 | H65: 0 | I65: 0 | J65: 0 | K65: 0 | L65: 0 | M65: 0 | N65: 0 | O65: 0 | P65: 0 | Q65: 0 | R65: 0 | S65: 0 | T65: 0
C66: 14 | D66: Religious figure, priest, monk, rabbi, mullah, nun … | E66: =IF(E$50>0,E19/E$50,0) -> 0 | F66: 0.005074164546 | G66: 0 | H66: 0 | I66: 0 | J66: 0 | K66: 0 | L66: 0 | M66: 0 | N66: 0 | O66: 0 | P66: 0 | Q66: 0 | R66: 0 | S66: 0 | T66: 0
C67: 15 | D67: Activist or worker in civil society organisation, non-governmental organisation, trade union, human rights, consumer issues, environment, aid agency, peasant leader, United Nations … | E67: =IF(E$50>0,E20/E$50,0) -> 0.0352668887 | F67: 0.03773471012 | G67: 0 | H67: 0 | I67: 0 | J67: 0 | K67: 0 | L67: 0 | M67: 0 | N67: 0 | O67: 0 | P67: 0 | Q67: 0 | R67: 0 | S67: 0 | T67: 0
C68: 16 | D68: Sex worker, prostitute … | E68: =IF(E$50>0,E21/E$50,0) -> 0 | F68: 0 | G68: 0 | H68: 0 | I68: 0 | J68: 0 | K68: 0 | L68: 0 | M68: 0 | N68: 0 | O68: 0 | P68: 0 | Q68: 0 | R68: 0 | S68: 0 | T68: 0
C69: 17 | D69: Celebrity, artist, actor, writer, singer, radio or television personality … | E69: =IF(E$50>0,E22/E$50,0) -> 0.07514768527 | F69: 0.1017825905 | G69: 0 | H69: 0 | I69: 0 | J69: 0 | K69: 0 | L69: 0 | M69: 0 | N69: 0 | O69: 0 | P69: 0 | Q69: 0 | R69: 0 | S69: 0 | T69: 0
C70: 18 | D70: Sportsperson, athlete, player, coach, referee … | E70: =IF(E$50>0,E23/E$50,0) -> 0.008969288453 | F70: 0.0762801031 | G70: 0 | H70: 0 | I70: 0 | J70: 0 | K70: 0 | L70: 0 | M70: 0 | N70: 0 | O70: 0 | P70: 0 | Q70: 0 | R70: 0 | S70: 0 | T70: 0
C71: 19 | D71: Student, pupil, schoolchild | E71: =IF(E$50>0,E24/E$50,0) -> 0.02211808858 | F71: 0 | G71: 0 | H71: 0 | I71: 0 | J71: 0 | K71: 0 | L71: 0 | M71: 0 | N71: 0 | O71: 0 | P71: 0 | Q71: 0 | R71: 0 | S71: 0 | T71: 0
C72: =C25 -> 20 | D72: Homemaker, parent, either female or male. Code this only if no other occupation is given, e.g. a doctor who is also described as a mother is coded 6. | E72: =IF(E$50>0,E25/E$50,0) -> 0.04885008502 | F72: 0.003461277458 | G72: 0 | H72: 0 | I72: 0 | J72: 0 | K72: 0 | L72: 0 | M72: 0 | N72: 0 | O72: 0 | P72: 0 | Q72: 0 | R72: 0 | S72: 0 | T72: 0
C73: 21 | D73: Child, young person (up to 18 years). Code this only if no other occupation/position is given, e.g. a schoolchild is coded 19; a child labourer is coded 12. | E73: =IF(E$50>0,E26/E$50,0) -> 0.008969288453 | F73: 0.01730638729 | G73: 0 | H73: 0 | I73: 0 | J73: 0 | K73: 0 | L73: 0 | M73: 0 | N73: 0 | O73: 0 | P73: 0 | Q73: 0 | R73: 0 | S73: 0 | T73: 0
C74: 22 | D74: Villager or resident engaged in unspecified occupation. Code this only if no other occupation is given, e.g. a teacher who is also described as a villager is coded 5. | E74: =IF(E$50>0,E27/E$50,0) -> 0.1020555506 | F74: 0.01891927438 | G74: 0 | H74: 0 | I74: 0 | J74: 0 | K74: 0 | L74: 0 | M74: 0 | N74: 0 | O74: 0 | P74: 0 | Q74: 0 | R74: 0 | S74: 0 | T74: 0
C75: 23 | D75: Retired person, pensioner. Code this only if no other occupation is given, e.g. a retired police officer is coded 4; a retired politician is coded 2. | E75: =IF(E$50>0,E28/E$50,0) -> 0.05781937347 | F75: 0.01038383238 | G75: 0 | H75: 0 | I75: 0 | J75: 0 | K75: 0 | L75: 0 | M75: 0 | N75: 0 | O75: 0 | P75: 0 | Q75: 0 | R75: 0 | S75: 0 | T75: 0
C76: 24 | D76: Criminal, suspect. Code this only if no other occupation is given, e.g, a lawyer suspected of committing a crime is coded 9; a former politician who has committed a crime is coded 2. | E76: =IF(E$50>0,E29/E$50,0) -> 0.01314880012 | F76: 0.04102835268 | G76: 0 | H76: 0 | I76: 0 | J76: 0 | K76: 0 | L76: 0 | M76: 0 | N76: 0 | O76: 0 | P76: 0 | Q76: 0 | R76: 0 | S76: 0 | T76: 0
C77: 25 | D77: Unemployed. Code this only if no other occupation is given, e.g. an unemployed actor is coded 17; an unemployed person who commits a crime is coded 24. | E77: =IF(E$50>0,E30/E$50,0) -> 0.008793419538 | F77: 0 | G77: 0 | H77: 0 | I77: 0 | J77: 0 | K77: 0 | L77: 0 | M77: 0 | N77: 0 | O77: 0 | P77: 0 | Q77: 0 | R77: 0 | S77: 0 | T77: 0
C78: 26 | D78: Other. Use only as a last resort (specify the occupation/position in 'Comments' section of coding sheet) | E78: =IF(E$50>0,E31/E$50,0) -> 0 | F78: 0.03622566167 | G78: 0 | H78: 0 | I78: 0 | J78: 0 | K78: 0 | L78: 0 | M78: 0 | N78: 0 | O78: 0 | P78: 0 | Q78: 0 | R78: 0 | S78: 0 | T78: 0
C79: 27 | D79: NA – Use this where you are coding a secondary source only | E79: =IF(E$50>0,E32/E$50,0) -> 0 | F79: 0 | G79: 0 | H79: 0 | I79: 0 | J79: 0 | K79: 0 | L79: 0 | M79: 0 | N79: 0 | O79: 0 | P79: 0 | Q79: 0 | R79: 0 | S79: 0 | T79: 0
C80: 0 | D80: 0 | E80: =IF(E$50>0,E33/E$50,0) -> 0 | F80: 0 | G80: 0 | H80: 0 | I80: 0 | J80: 0 | K80: 0 | L80: 0 | M80: 0 | N80: 0 | O80: 0 | P80: 0 | Q80: 0 | R80: 0 | S80: 0 | T80: 0
C81: 0 | D81: 0 | E81: =IF(E$50>0,E34/E$50,0) -> 0 | F81: 0 | G81: 0 | H81: 0 | I81: 0 | J81: 0 | K81: 0 | L81: 0 | M81: 0 | N81: 0 | O81: 0 | P81: 0 | Q81: 0 | R81: 0 | S81: 0 | T81: 0
C82: 0 | D82: 0 | E82: =IF(E$50>0,E35/E$50,0) -> 0 | F82: 0 | G82: 0 | H82: 0 | I82: 0 | J82: 0 | K82: 0 | L82: 0 | M82: 0 | N82: 0 | O82: 0 | P82: 0 | Q82: 0 | R82: 0 | S82: 0 | T82: 0
C83: 0 | D83: 0 | E83: =IF(E$50>0,E36/E$50,0) -> 0 | F83: 0 | G83: 0 | H83: 0 | I83: 0 | J83: 0 | K83: 0 | L83: 0 | M83: 0 | N83: 0 | O83: 0 | P83: 0 | Q83: 0 | R83: 0 | S83: 0 | T83: 0
C84: 0 | D84: 0 | E84: =IF(E$50>0,E37/E$50,0) -> 0 | F84: 0 | G84: 0 | H84: 0 | I84: 0 | J84: 0 | K84: 0 | L84: 0 | M84: 0 | N84: 0 | O84: 0 | P84: 0 | Q84: 0 | R84: 0 | S84: 0 | T84: 0
C85: 0 | D85: 0 | E85: =IF(E$50>0,E38/E$50,0) -> 0 | F85: 0 | G85: 0 | H85: 0 | I85: 0 | J85: 0 | K85: 0 | L85: 0 | M85: 0 | N85: 0 | O85: 0 | P85: 0 | Q85: 0 | R85: 0 | S85: 0 | T85: 0
C86: 0 | D86: 0 | E86: =IF(E$50>0,E39/E$50,0) -> 0 | F86: 0 | G86: 0 | H86: 0 | I86: 0 | J86: 0 | K86: 0 | L86: 0 | M86: 0 | N86: 0 | O86: 0 | P86: 0 | Q86: 0 | R86: 0 | S86: 0 | T86: 0
C87: 0 | D87: 0 | E87: =IF(E$50>0,E40/E$50,0) -> 0 | F87: 0 | G87: 0 | H87: 0 | I87: 0 | J87: 0 | K87: 0 | L87: 0 | M87: 0 | N87: 0 | O87: 0 | P87: 0 | Q87: 0 | R87: 0 | S87: 0 | T87: 0
C88: 0 | D88: 0 | E88: =IF(E$50>0,E41/E$50,0) -> 0 | F88: 0 | G88: 0 | H88: 0 | I88: 0 | J88: 0 | K88: 0 | L88: 0 | M88: 0 | N88: 0 | O88: 0 | P88: 0 | Q88: 0 | R88: 0 | S88: 0 | T88: 0
C89: 0 | D89: 0 | E89: =IF(E$50>0,E42/E$50,0) -> 0 | F89: 0 | G89: 0 | H89: 0 | I89: 0 | J89: 0 | K89: 0 | L89: 0 | M89: 0 | N89: 0 | O89: 0 | P89: 0 | Q89: 0 | R89: 0 | S89: 0 | T89: 0
C90: 0 | D90: 0 | E90: =IF(E$50>0,E43/E$50,0) -> 0 | F90: 0 | G90: 0 | H90: 0 | I90: 0 | J90: 0 | K90: 0 | L90: 0 | M90: 0 | N90: 0 | O90: 0 | P90: 0 | Q90: 0 | R90: 0 | S90: 0 | T90: 0
C91: 0 | D91: 0 | E91: =IF(E$50>0,E44/E$50,0) -> 0 | F91: 0 | G91: 0 | H91: 0 | I91: 0 | J91: 0 | K91: 0 | L91: 0 | M91: 0 | N91: 0 | O91: 0 | P91: 0 | Q91: 0 | R91: 0 | S91: 0 | T91: 0
C92: =C45 -> 0 | D92: 0 | E92: =IF(E$50>0,E45/E$50,0) -> 0 | F92: 0 | G92: 0 | H92: 0 | I92: 0 | J92: 0 | K92: 0 | L92: 0 | M92: 0 | N92: 0 | O92: 0 | P92: 0 | Q92: 0 | R92: 0 | S92: 0 | T92: 0
C93: 0 | D93: 0 | E93: =IF(E$50>0,E46/E$50,0) -> 0 | F93: 0 | G93: 0 | H93: 0 | I93: 0 | J93: 0 | K93: 0 | L93: 0 | M93: 0 | N93: 0 | O93: 0 | P93: 0 | Q93: 0 | R93: 0 | S93: 0 | T93: 0
C94: 0 | D94: 0 | E94: =IF(E$50>0,E47/E$50,0) -> 0 | F94: 0 | G94: 0 | H94: 0 | I94: 0 | J94: 0 | K94: 0 | L94: 0 | M94: 0 | N94: 0 | O94: 0 | P94: 0 | Q94: 0 | R94: 0 | S94: 0 | T94: 0
C95: 0 | D95: 0 | E95: =IF(E$50>0,E48/E$50,0) -> 0 | F95: 0 | G95: 0 | H95: 0 | I95: 0 | J95: 0 | K95: 0 | L95: 0 | M95: 0 | N95: 0 | O95: 0 | P95: 0 | Q95: 0 | R95: 0 | S95: 0 | T95: 0
C96: 0 | D96: 0 | E96: =IF(E$50>0,E49/E$50,0) -> 0 | F96: 0 | G96: 0 | H96: 0 | I96: 0 | J96: 0 | K96: 0 | L96: 0 | M96: 0 | N96: 0 | O96: 0 | P96: 0 | Q96: 0 | R96: 0 | S96: 0 | T96: 0
A109: COUNT
E110: =E3 -> Female | F110: Male | G110: 0 | H110: 0 | I110: 0 | J110: 0 | K110: 0 | L110: 0 | M110: 0 | N110: 0 | O110: 0 | P110: 0 | Q110: 0 | R110: 0 | S110: 0 | T110: 0
E111: =E4 -> 0 | F111: 0 | G111: 0 | H111: 0 | I111: 0 | J111: 0 | K111: 0 | L111: 0 | M111: 0 | N111: 0 | O111: 0 | P111: 0 | Q111: 0 | R111: 0 | S111: 0 | T111: 0
C112: =C5 -> 0 | D112: Not stated. Story does not describe the person’s occupation or position. | E112: 10 | F112: 7
C113: 1 | D113: Royalty, ruling monarch, deposed monarch, any member of royal family … | E113: 0 | F113: 0
C114: 2 | D114: Government official, politician, president, government minister, political leader, political party staff, spokesperson … | E114: 29 | F114: 89
C115: 3 | D115: Government employee, public servant, bureaucrat, diplomat, intelligence officer … | E115: 1 | F115: 2
C116: 4 | D116: Police, military, para-military group, militia, prison officer, security officer, fire officer … | E116: 1 | F116: 6
C117: 5 | D117: Academic expert, education professional, teacher or university lecturer (all disciplines), nursery or kindergarten teacher, child care worker … | E117: 4 | F117: 7
C118: 6 | D118: Health or social service professional, doctor, nurse, laboratory technician, social worker, psychologist … | E118: 4 | F118: 6
C119: 7 | D119: Science or technology professional, engineer, technician, computer specialist … | E119: 0 | F119: 11
C120: 8 | D120: Media professional, journalist, video or film-maker, theatre director ... | E120: 1 | F120: 2
C121: 9 | D121: Lawyer, judge, magistrate, legal advocate, legal expert, legal clerk … | E121: 5 | F121: 11
C122: 10 | D122: Business person, executive, manager, entrepreneur, economist, financial expert, stock broker … | E122: 0 | F122: 5
C123: 11 | D123: Office or service worker, non-management worker in office, store, restaurant, catering … | E123: 1 | F123: 1
C124: 12 | D124: Tradesperson, artisan, labourer, truck driver, construction, factory, domestic worker … | E124: 1 | F124: 4
C125: 13 | D125: Agriculture, mining, fishing, forestry worker … | E125: 0 | F125: 0
C126: 14 | D126: Religious figure, priest, monk, rabbi, mullah, nun … | E126: 0 | F126: 1
C127: 15 | D127: Activist or worker in civil society organisation, non-governmental organisation, trade union, human rights, consumer issues, environment, aid agency, peasant leader, United Nations … | E127: 3 | F127: 11
C128: 16 | D128: Sex worker, prostitute … | E128: 0 | F128: 0
C129: 17 | D129: Celebrity, artist, actor, writer, singer, radio or television personality … | E129: 7 | F129: 23
C130: 18 | D130: Sportsperson, athlete, player, coach, referee … | E130: 1 | F130: 16
C131: 19 | D131: Student, pupil, schoolchild | E131: 2 | F131: 0
C132: =C25 -> 20 | D132: Homemaker, parent, either female or male. Code this only if no other occupation is given, e.g. a doctor who is also described as a mother is coded 6. | E132: 5 | F132: 1
C133: 21 | D133: Child, young person (up to 18 years). Code this only if no other occupation/position is given, e.g. a schoolchild is coded 19; a child labourer is coded 12. | E133: 1 | F133: 5
C134: 22 | D134: Villager or resident engaged in unspecified occupation. Code this only if no other occupation is given, e.g. a teacher who is also described as a villager is coded 5. | E134: 10 | F134: 5
C135: 23 | D135: Retired person, pensioner. Code this only if no other occupation is given, e.g. a retired police officer is coded 4; a retired politician is coded 2. | E135: 6 | F135: 3
C136: 24 | D136: Criminal, suspect. Code this only if no other occupation is given, e.g, a lawyer suspected of committing a crime is coded 9; a former politician who has committed a crime is coded 2. | E136: 1 | F136: 11
C137: 25 | D137: Unemployed. Code this only if no other occupation is given, e.g. an unemployed actor is coded 17; an unemployed person who commits a crime is coded 24. | E137: 1 | F137: 0
C138: 26 | D138: Other. Use only as a last resort (specify the occupation/position in 'Comments' section of coding sheet) | E138: 0 | F138: 10
C139: 27 | D139: NA – Use this where you are coding a secondary source only | E139: 0 | F139: 0
C140: 0 | D140: 0
C141: 0 | D141: 0
C142: 0 | D142: 0
C143: 0 | D143: 0
C144: 0 | D144: 0
C145: 0 | D145: 0
C146: 0 | D146: 0
C147: 0 | D147: 0
C148: 0 | D148: 0
C149: 0 | D149: 0
C150: 0 | D150: 0
C151: 0 | D151: 0
C152: =C45 -> 0 | D152: 0
C153: 0 | D153: 0
C154: 0 | D154: 0

Sheet 9eF - Occ of News Subjects
A1: ='9e'!$A$1 -> Position or Occupation of News Subjects, by sex
F2: ='9e'!W3 & " %F" -> Female %F | K2: Male %M
E3: Position or Occupation | F3: 1995 | G3: 2000 | H3: 2005 | I3: 2010 | J3: N | K3: 2010 | L3: N
E5: ='9e'!D6 -> Royalty, ruling monarch, deposed monarch, any member of royal family … | F5: n/a | G5: n/a | H5: 0.33 | I5: ='9e'!W6 -> 0 | J5: ='9e'!E113 -> 0 | K5: ='9e'!X6 -> 0 | L5: ='9e'!F113 -> 0
E6: ='9e'!D7 -> Government official, politician, president, government minister, political leader, political party staff, spokesperson … | F6: 0 | G6: 0.1 | H6: 0.12 | I6: ='9e'!W7 -> 0.2474898647 | J6: ='9e'!E114 -> 29 | K6: ='9e'!X7 -> 0.7525101353 | L6: ='9e'!F114 -> 89
E7: ='9e'!D8 -> Government employee, public servant, bureaucrat, diplomat, intelligence officer … | F7: 0 | G7: 0.12 | H7: 0.17 | I7: ='9e'!W8 -> 0.2885186629 | J7: ='9e'!E115 -> 1 | K7: ='9e'!X8 -> 0.7114813371 | L7: ='9e'!F115 -> 2
E8: ='9e'!D9 -> Police, military, para-military group, militia, prison officer, security officer, fire officer … | F8: 0 | G8: 0.04 | H8: 0.05 | I8: ='9e'!W9 -> 0.165753999 | J8: ='9e'!E116 -> 1 | K8: ='9e'!X9 -> 0.834246001 | L8: ='9e'!F116 -> 6
E9: ='9e'!D10 -> Academic expert, education professional, teacher or university lecturer (all disciplines), nursery or kindergarten teacher, child care worker … | F9: 0 | G9: 0.27 | H9: 0.25 | I9: ='9e'!W10 -> 0.366512674 | J9: ='9e'!E117 -> 4 | K9: ='9e'!X10 -> 0.633487326 | L9: ='9e'!F117 -> 7
E10: ='9e'!D11 -> Health or social service professional, doctor, nurse, laboratory technician, social worker, psychologist … | F10: 0 | G10: 0.2 | H10: 0.3 | I10: ='9e'!W11 -> 0.4003944785 | J10: ='9e'!E118 -> 4 | K10: ='9e'!X11 -> 0.5996055215 | L10: ='9e'!F118 -> 6
E11: ='9e'!D12 -> Science or technology professional, engineer, technician, computer specialist … | F11: 0 | G11: 0.12 | H11: 0.1 | I11: ='9e'!W12 -> 0 | J11: ='9e'!E119 -> 0 | K11: ='9e'!X12 -> 1 | L11: ='9e'!F119 -> 11
E12: ='9e'!D13 -> Media professional, journalist, video or film-maker, theatre director ... | F12: 0 | G12: n/a | H12: 0.36 | I12: ='9e'!W13 -> 0.2885186629 | J12: ='9e'!E120 -> 1 | K12: ='9e'!X13 -> 0.7114813371 | L12: ='9e'!F120 -> 2
E13: ='9e'!D14 -> Lawyer, judge, magistrate, legal advocate, legal expert, legal clerk … | F13: 0 | G13: n/a | H13: 0.18 | I13: ='9e'!W14 -> 0.2883653157 | J13: ='9e'!E121 -> 5 | K13: ='9e'!X14 -> 0.7116346843 | L13: ='9e'!F121 -> 11
E14: ='9e'!D15 -> Business person, executive, manager, entrepreneur, economist, financial expert, stock broker … | F14: 0 | G14: n/a | H14: 0.12 | I14: ='9e'!W15 -> 0 | J14: ='9e'!E122 -> 0 | K14: ='9e'!X15 -> 1 | L14: ='9e'!F122 -> 5
E15: ='9e'!D16 -> Office or service worker, non-management worker in office, store, restaurant, catering … | F15: 0 | G15: 0.35 | H15: 0.4 | I15: ='9e'!W16 -> 0.5049505097 | J15: ='9e'!E123 -> 1 | K15: ='9e'!X16 -> 0.4950494903 | L15: ='9e'!F123 -> 1
E16: ='9e'!D17 -> Tradesperson, artisan, labourer, truck driver, construction, factory, domestic worker … | F16: 0 | G16: 0.15 | H16: 0.23 | I16: ='9e'!W17 -> 0.2298375294 | J16: ='9e'!E124 -> 1 | K16: ='9e'!X17 -> 0.7701624706 | L16: ='9e'!F124 -> 4
E17: ='9e'!D18 -> Agriculture, mining, fishing, forestry worker … | F17: 0 | G17: 0.15 | H17: 0.13 | I17: ='9e'!W18 -> 0 | J17: ='9e'!E125 -> 0 | K17: ='9e'!X18 -> 0 | L17: ='9e'!F125 -> 0
E18: ='9e'!D19 -> Religious figure, priest, monk, rabbi, mullah, nun … | F18: 0 | G18: 0.09 | H18: 0.21 | I18: ='9e'!W19 -> 0 | J18: ='9e'!E126 -> 0 | K18: ='9e'!X19 -> 1 | L18: ='9e'!F126 -> 1
E19: ='9e'!D20 -> Activist or worker in civil society organisation, non-governmental organisation, trade union, human rights, consumer issues, environment, aid agency, peasant leader, United Nations … | F19: 0 | G19: 0.24 | H19: 0.23 | I19: ='9e'!W20 -> 0.2650654918 | J19: ='9e'!E127 -> 3 | K19: ='9e'!X20 -> 0.7349345082 | L19: ='9e'!F127 -> 11
E20: ='9e'!D21 -> Sex worker, prostitute … | F20: 0 | G20: n/a | H20: n/a | I20: ='9e'!W21 -> 0 | J20: ='9e'!E128 -> 0 | K20: ='9e'!X21 -> 0 | L20: ='9e'!F128 -> 0
E21: ='9e'!D22 -> Celebrity, artist, actor, writer, singer, radio or television personality … | F21: 0 | G21: 0.45 | H21: 0.42 | I21: ='9e'!W22 -> 0.2217404757 | J21: ='9e'!E129 -> 7 | K21: ='9e'!X22 -> 0.7782595243 | L21: ='9e'!F129 -> 23
E22: ='9e'!D23 -> Sportsperson, athlete, player, coach, referee … | F22: 0 | G22: 0.09 | H22: 0.16 | I22: ='9e'!W23 -> 0.04340628961 | J22: ='9e'!E130 -> 1 | K22: ='9e'!X23 -> 0.9565937104 | L22: ='9e'!F130 -> 16
E23: ='9e'!D24 -> Student, pupil, schoolchild | F23: 0 | G23: 0.46 | H23: 0.51 | I23: ='9e'!W24 -> 1 | J23: ='9e'!E131 -> 2 | K23: ='9e'!X24 -> 0 | L23: ='9e'!F131 -> 0
E24: ='9e'!D25 -> Homemaker, parent, either female or male. Code this only if no other occupation is given, e.g. a doctor who is also described as a mother is coded 6. | F24: 0 | G24: 0.81 | H24: 0.75 | I24: ='9e'!W25 -> 0.8448739944 | J24: ='9e'!E132 -> 5 | K24: ='9e'!X25 -> 0.1551260056 | L24: ='9e'!F132 -> 1
E25: ='9e'!D26 -> Child, young person (up to 18 years). Code this only if no other occupation/position is given, e.g. a schoolchild is coded 19; a child labourer is coded 12. | F25: 0 | G25: n/a | H25: 0.44 | I25: ='9e'!W26 -> 0.1666666667 | J25: ='9e'!E133 -> 1 | K25: ='9e'!X26 -> 0.8333333333 | L25: ='9e'!F133 -> 5
E26: ='9e'!D27 -> Villager or resident engaged in unspecified occupation. Code this only if no other occupation is given, e.g. a teacher who is also described as a villager is coded 5. | F26: 0 | G26: n/a | H26: 0.39 | I26: ='9e'!W27 -> 0.6754999622 | J26: ='9e'!E134 -> 10 | K26: ='9e'!X27 -> 0.3245000378 | L26: ='9e'!F134 -> 5
E27: ='9e'!D28 -> Retired person, pensioner. Code this only if no other occupation is given, e.g. a retired police officer is coded 4; a retired politician is coded 2. | F27: 0 | G27: 0.35 | H27: 0.33 | I27: ='9e'!W28 -> 0.6824177711 | J27: ='9e'!E135 -> 6 | K27: ='9e'!X28 -> 0.3175822289 | L27: ='9e'!F135 -> 3
E28: ='9e'!D29 -> Criminal, suspect. Code this only if no other occupation is given, e.g, a lawyer suspected of committing a crime is coded 9; a former politician who has committed a crime is coded 2. | F28: 0 | G28: 0.07 | H28: 0.09 | I28: ='9e'!W29 -> 0.1100626354 | J28: ='9e'!E136 -> 1 | K28: ='9e'!X29 -> 0.8899373646 | L28: ='9e'!F136 -> 11
E29: ='9e'!D30 -> Unemployed. Code this only if no other occupation is given, e.g. an unemployed actor is coded 17; an unemployed person who commits a crime is coded 24. | F29: 0 | G29: 0.33 | H29: 0.19 | I29: ='9e'!W30 -> 1 | J29: ='9e'!E137 -> 1 | K29: ='9e'!X30 -> 0 | L29: ='9e'!F137 -> 0
E30: ='9e'!D31 -> Other. Use only as a last resort (specify the occupation/position in 'Comments' section of coding sheet) | F30: 0 | G30: 0.44 | H30: 0.42 | I30: ='9e'!W31 -> 0 | J30: ='9e'!E138 -> 0 | K30: ='9e'!X31 -> 1 | L30: ='9e'!F138 -> 10
E33: Total | F33: 0 | G33: 0 | H33: 0 | I33: ='9e'!$W$50 -> 0.2784489043 | J33: =SUM(J5:J30) -> 84 | K33: ='9e'!$X$50 -> 0.7215510957 | L33: =SUM(L5:L30) -> 230

Sheet 9f (hidden)
A1: News subject's Function in news story, by sex
E3: Female | F3: Male | W3: =E3 -> Female | X3: Male | Y3: 0 | Z3: 0 | AA3: 0 | AB3: 0 | AC3: 0 | AD3: 0 | AE3: 0 | AF3: 0 | AG3: 0 | AH3: 0 | AI3: 0 | AJ3: 0 | AK3: 0
V4: TOTAL | W4: 0 | X4: 0 | Y4: 0 | Z4: 0 | AA4: 0 | AB4: 0 | AC4: 0 | AD4: 0 | AE4: 0 | AF4: 0 | AG4: 0 | AH4: 0 | AI4: 0 | AJ4: 0 | AK4: 0 | AL4: =T4 -> 0
C5: 0 | D5: Do not know: the person's function is not clear. | E5: 0.005100000184 | V5: =SUM(E5:O5) -> 0.005100000184 | W5: =IF((E5+F5)>0,E5/(E5+F5),0) -> 1 | X5: =IF((E5+F5)>0,F5/(E5+F5),0) -> 0 | Y5: =IF((G5+H5)>0,G5/(G5+H5),0) -> 0 | Z5: =IF((G5+H5)>0,H5/(G5+H5),0) -> 0 | AA5: =IF((I5+J5)>0,I5/(I5+J5),0) -> 0 | AB5: =IF((I5+J5)>0,J5/(I5+J5),0) -> 0 | AC5: =IF((K5+L5)>0,K5/(K5+L5),0) -> 0 | AD5: =IF((K5+L5)>0,L5/(K5+L5),0) -> 0 | AE5: =IF((M5+N5)>0,M5/(M5+N5),0) -> 0 | AF5: =IF((M5+N5)>0,N5/(M5+N5),0) -> 0 | AG5: =IF((O5+P5)>0,O5/(O5+P5),0) -> 0 | AH5: =IF((O5+P5)>0,P5/(O5+P5),0) -> 0 | AI5: =IF((Q5+R5)>0,Q5/(Q5+R5),0) -> 0 | AJ5: =IF((Q5+R5)>0,R5/(Q5+R5),0) -> 0 | AK5: =IF((S5+T5)>0,S5/(S5+T5),0) -> 0 | AL5: =IF((S5+T5)>0,T5/(S5+T5),0) -> 0
C6: 1 | D6: Subject: the story is about this person, or about something the person has done, said etc. | E6: 0.3387654964 | F6: 1.003767482 | V6: 1.342532978 | W6: 0.2523330911 | X6: 0.7476669089 | Y6: 0 | Z6: 0 | AA6: 0 | AB6: 0 | AC6: 0 | AD6: 0 | AE6: 0 | AF6: 0 | AG6: 0 | AH6: 0 | AI6: 0 | AJ6: 0 | AK6: 0 | AL6: 0
C7: 2 | D7: Spokesperson: the person represents, or speaks on behalf of another person, a group or an organisation | E7: 0.04555300064 | F7: 0.1367530022 | V7: 0.1823060028 | W7: 0.2498710955 | X7: 0.7501289045 | Y7: 0 | Z7: 0 | AA7: 0 | AB7: 0 | AC7: 0 | AD7: 0 | AE7: 0 | AF7: 0 | AG7: 0 | AH7: 0 | AI7: 0 | AJ7: 0 | AK7: 0 | AL7: 0
C8: 3 | D8: Expert or commentator: the person provides additional information, opinion or comment, based on specialist knowledge or expertise | E8: 0.06322950078 | F8: 0.1766120009 | V8: 0.2398415017 | W8: 0.2636303573 | X8: 0.7363696427 | Y8: 0 | Z8: 0 | AA8: 0 | AB8: 0 | AC8: 0 | AD8: 0 | AE8: 0 | AF8: 0 | AG8: 0 | AH8: 0 | AI8: 0 | AJ8: 0 | AK8: 0 | AL8: 0
C9: 4 | D9: Personal experience: the person provides opinion or comment, based on individual personal experience; the opinion is not necessarily meant to reflect the views of a wider group | E9: 0.05565300072 | F9: 0.1235355004 | V9: 0.1791885011 | W9: 0.3105835496 | X9: 0.6894164504 | Y9: 0 | Z9: 0 | AA9: 0 | AB9: 0 | AC9: 0 | AD9: 0 | AE9: 0 | AF9: 0 | AG9: 0 | AH9: 0 | AI9: 0 | AJ9: 0 | AK9: 0 | AL9: 0
C10: 5 | D10: Eye witness: the person gives testimony or comment, based on direct observation (e.g. being present at an event) | E10: 0.04025299987 | F10: 0.01747649955 | V10: 0.05772949941 | W10: 0.6972691653 | X10: 0.3027308347 | Y10: 0 | Z10: 0 | AA10: 0 | AB10: 0 | AC10: 0 | AD10: 0 | AE10: 0 | AF10: 0 | AG10: 0 | AH10: 0 | AI10: 0 | AJ10: 0 | AK10: 0 | AL10: 0
C11: 6 | D11: Popular opinion: the person's opinion is assumed to reflect that of the 'ordinary citizen' (e.g., in a street interview, vox populi etc); it is implied that the person's point of view is shared by a wider group of people. | E11: 0.02005299972 | F11: 0.01530000055 | V11: 0.03535300028 | W11: 0.5672220057 | X11: 0.4327779943 | Y11: 0 | Z11: 0 | AA11: 0 | AB11: 0 | AC11: 0 | AD11: 0 | AE11: 0 | AF11: 0 | AG11: 0 | AH11: 0 | AI11: 0 | AJ11: 0 | AK11: 0 | AL11: 0
C12: 7 | D12: Other. Use only as a last resort (describe the function in 'Comments' section of coding sheet). | V12: 0 | W12: 0 | X12: 0 | Y12: 0 | Z12: 0 | AA12: 0 | AB12: 0 | AC12: 0 | AD12: 0 | AE12: 0 | AF12: 0 | AG12: 0 | AH12: 0 | AI12: 0 | AJ12: 0 | AK12: 0 | AL12: 0
C13: 8 | D13: NA – Use this where you are coding a secondary source only
D50: TOTAL | E50: =SUM(E5:E49) -> 0.5686069983 | F50: 1.473444486 | G50: 0 | H50: 0 | I50: 0 | J50: 0 | K50: 0 | L50: 0 | M50: 0 | N50: 0 | O50: 0 | P50: 0 | Q50: 0 | R50: 0 | S50: 0 | T50: 0 | V50: =SUM(E50:O50) -> 2.042051484 | W50: =IF((E50+F50)>0,E50/(E50+F50),0) -> 0.2784489043 | X50: =IF((E50+F50)>0,F50/(E50+F50),0) -> 0.7215510957 | Y50: =IF((G50+H50)>0,G50/(G50+H50),0) -> 0 | Z50: =IF((G50+H50)>0,H50/(G50+H50),0) -> 0 | AA50: =IF((I50+J50)>0,I50/(I50+J50),0) -> 0 | AB50: =IF((I50+J50)>0,J50/(I50+J50),0) -> 0 | AC50: =IF((K50+L50)>0,K50/(K50+L50),0) -> 0 | AD50: =IF((K50+L50)>0,L50/(K50+L50),0) -> 0 | AE50: =IF((M50+N50)>0,M50/(M50+N50),0) -> 0 | AF50: =IF((M50+N50)>0,N50/(M50+N50),0) -> 0 | AG50: =IF((O50+P50)>0,O50/(O50+P50),0) -> 0 | AH50: =IF((O50+P50)>0,P50/(O50+P50),0) -> 0 | AI50: =IF((Q50+R50)>0,Q50/(Q50+R50),0) -> 0 | AJ50: =IF((Q50+R50)>0,R50/(Q50+R50),0) -> 0 | AK50: =IF((S50+T50)>0,S50/(S50+T50),0) -> 0 | AL50: =IF((S50+T50)>0,T50/(S50+T50),0) -> 0
C52: =C5 -> 0 | D52: Do not know: the person's function is not clear. | E52: =IF(E$50>0,E5/E$50,0) -> 0.008969288453 | F52: 0 | G52: 0 | H52: 0 | I52: 0 | J52: 0 | K52: 0 | L52: 0 | M52: 0 | N52: 0 | O52: 0 | P52: 0 | Q52: 0 | R52: 0 | S52: 0 | T52: 0
C53: 1 | D53: Subject: the story is about this person, or about something the person has done, said etc. | E53: =IF(E$50>0,E6/E$50,0) -> 0.5957814403 | F53: 0.6812387517 | G53: 0 | H53: 0 | I53: 0 | J53: 0 | K53: 0 | L53: 0 | M53: 0 | N53: 0 | O53: 0 | P53: 0 | Q53: 0 | R53: 0 | S53: 0 | T53: 0
C54: 2 | D54: Spokesperson: the person represents, or speaks on behalf of another person, a group or an organisation | E54: =IF(E$50>0,E7/E$50,0) -> 0.08011333096 | F54: 0.09281177779 | G54: 0 | H54: 0 | I54: 0 | J54: 0 | K54: 0 | L54: 0 | M54: 0 | N54: 0 | O54: 0 | P54: 0 | Q54: 0 | R54: 0 | S54: 0 | T54: 0
C55: 3 | D55: Expert or commentator: the person provides additional information, opinion or comment, based on specialist knowledge or expertise | E55: =IF(E$50>0,E8/E$50,0) -> 0.111200708 | F55: 0.119863356 | G55: 0 | H55: 0 | I55: 0 | J55: 0 | K55: 0 | L55: 0 | M55: 0 | N55: 0 | O55: 0 | P55: 0 | Q55: 0 | R55: 0 | S55: 0 | T55: 0
C56: 4 | D56: Personal experience: the person provides opinion or comment, based on individual personal experience; the opinion is not necessarily meant to reflect the views of a wider group | E56: =IF(E$50>0,E9/E$50,0) -> 0.09787603895 | F56: 0.08384129947 | G56: 0 | H56: 0 | I56: 0 | J56: 0 | K56: 0 | L56: 0 | M56: 0 | N56: 0 | O56: 0 | P56: 0 | Q56: 0 | R56: 0 | S56: 0 | T56: 0
C57: 5 | D57: Eye witness: the person gives testimony or comment, based on direct observation (e.g. being present at an event) | E57: =IF(E$50>0,E10/E$50,0) -> 0.07079230468 | F57: 0.0118609827 | G57: 0 | H57: 0 | I57: 0 | J57: 0 | K57: 0 | L57: 0 | M57: 0 | N57: 0 | O57: 0 | P57: 0 | Q57: 0 | R57: 0 | S57: 0 | T57: 0
C58: 6 | D58: Popular opinion: the person's opinion is assumed to reflect that of the 'ordinary citizen' (e.g., in a street interview, vox populi etc); it is implied that the person's point of view is shared by a wider group of people. | E58: =IF(E$50>0,E11/E$50,0) -> 0.0352668887 | F58: 0.01038383238 | G58: 0 | H58: 0 | I58: 0 | J58: 0 | K58: 0 | L58: 0 | M58: 0 | N58: 0 | O58: 0 | P58: 0 | Q58: 0 | R58: 0 | S58: 0 | T58: 0
C59: 7 | D59: Other. Use only as a last resort (describe the function in 'Comments' section of coding sheet). | E59: =IF(E$50>0,E12/E$50,0) -> 0 | F59: 0 | G59: 0 | H59: 0 | I59: 0 | J59: 0 | K59: 0 | L59: 0 | M59: 0 | N59: 0 | O59: 0 | P59: 0 | Q59: 0 | R59: 0 | S59: 0 | T59: 0
C60: 8 | D60: NA – Use this where you are coding a secondary source only | E60: =IF(E$50>0,E13/E$50,0) -> 0 | F60: 0 | G60: 0 | H60: 0 | I60: 0 | J60: 0 | K60: 0 | L60: 0 | M60: 0 | N60: 0 | O60: 0 | P60: 0 | Q60: 0 | R60: 0 | S60: 0 | T60: 0
C61: 0 | D61: 0 | E61: =IF(E$50>0,E14/E$50,0) -> 0 | F61: 0 | G61: 0 | H61: 0 | I61: 0 | J61: 0 | K61: 0 | L61: 0 | M61: 0 | N61: 0 | O61: 0 | P61: 0 | Q61: 0 | R61: 0 | S61: 0 | T61: 0
C62: 0 | D62: 0 | E62: =IF(E$50>0,E15/E$50,0) -> 0 | F62: 0 | G62: 0 | H62: 0 | I62: 0 | J62: 0 | K62: 0 | L62: 0 | M62: 0 | N62: 0 | O62: 0 | P62: 0 | Q62: 0 | R62: 0 | S62: 0 | T62: 0
C63: 0 | D63: 0 | E63: =IF(E$50>0,E16/E$50,0) -> 0 | F63: 0 | G63: 0 | H63: 0 | I63: 0 | J63: 0 | K63: 0 | L63: 0 | M63: 0 | N63: 0 | O63: 0 | P63: 0 | Q63: 0 | R63: 0 | S63: 0 | T63: 0
C64: 0 | D64: 0 | E64: =IF(E$50>0,E17/E$50,0) -> 0 | F64: 0 | G64: 0 | H64: 0 | I64: 0 | J64: 0 | K64: 0 | L64: 0 | M64: 0 | N64: 0 | O64: 0 | P64: 0 | Q64: 0 | R64: 0 | S64: 0 | T64: 0
C65: 0 | D65: 0 | E65: =IF(E$50>0,E18/E$50,0) -> 0 | F65: 0 | G65: 0 | H65: 0 | I65: 0 | J65: 0 | K65: 0 | L65: 0 | M65: 0 | N65: 0 | O65: 0 | P65: 0 | Q65: 0 | R65: 0 | S65: 0 | T65: 0
C66: 0 | D66: 0 | E66: =IF(E$50>0,E19/E$50,0) -> 0 | F66: 0 | G66: 0 | H66: 0 | I66: 0 | J66: 0 | K66: 0 | L66: 0 | M66: 0 | N66: 0 | O66: 0 | P66: 0 | Q66: 0 | R66: 0 | S66: 0 | T66: 0
C67: 0 | D67: 0 | E67: =IF(E$50>0,E20/E$50,0) -> 0 | F67: 0 | G67: 0 | H67: 0 | I67: 0 | J67: 0 | K67: 0 | L67: 0 | M67: 0 | N67: 0 | O67: 0 | P67: 0 | Q67: 0 | R67: 0 | S67: 0 | T67: 0
C68: 0 | D68: 0 | E68: =IF(E$50>0,E21/E$50,0) -> 0 | F68: 0 | G68: 0 | H68: 0 | I68: 0 | J68: 0 | K68: 0 | L68: 0 | M68: 0 | N68: 0 | O68: 0 | P68: 0 | Q68: 0 | R68: 0 | S68: 0 | T68: 0
C69: 0 | D69: 0 | E69: =IF(E$50>0,E22/E$50,0) -> 0 | F69: 0 | G69: 0 | H69: 0 | I69: 0 | J69: 0 | K69: 0 | L69: 0 | M69: 0 | N69: 0 | O69: 0 | P69: 0 | Q69: 0 | R69: 0 | S69: 0 | T69: 0
C70: 0 | D70: 0 | E70: =IF(E$50>0,E23/E$50,0) -> 0 | F70: 0 | G70: 0 | H70: 0 | I70: 0 | J70: 0 | K70: 0 | L70: 0 | M70: 0 | N70: 0 | O70: 0 | P70: 0 | Q70: 0 | R70: 0 | S70: 0 | T70: 0
C71: 0 | D71: 0 | E71: =IF(E$50>0,E24/E$50,0) -> 0 | F71: 0 | G71: 0 | H71: 0 | I71: 0 | J71: 0 | K71: 0 | L71: 0 | M71: 0 | N71: 0 | O71: 0 | P71: 0 | Q71: 0 | R71: 0 | S71: 0 | T71: 0
C72: =C25 -> 0 | D72: 0 | E72: =IF(E$50>0,E25/E$50,0) -> 0 | F72: 0 | G72: 0 | H72: 0 | I72: 0 | J72: 0 | K72: 0 | L72: 0 | M72: 0 | N72: 0 | O72: 0 | P72: 0 | Q72: 0 | R72: 0 | S72: 0 | T72: 0
C73: 0 | D73: 0 | E73: =IF(E$50>0,E26/E$50,0) -> 0 | F73: 0 | G73: 0 | H73: 0 | I73: 0 | J73: 0 | K73: 0 | L73: 0 | M73: 0 | N73: 0 | O73: 0 | P73: 0 | Q73: 0 | R73: 0 | S73: 0 | T73: 0
C74: 0 | D74: 0 | E74: =IF(E$50>0,E27/E$50,0) -> 0 | F74: 0 | G74: 0 | H74: 0 | I74: 0 | J74: 0 | K74: 0 | L74: 0 | M74: 0 | N74: 0 | O74: 0 | P74: 0 | Q74: 0 | R74: 0 | S74: 0 | T74: 0
C75: 0 | D75: 0 | E75: =IF(E$50>0,E28/E$50,0) -> 0 | F75: 0 | G75: 0 | H75: 0 | I75: 0 | J75: 0 | K75: 0 | L75: 0 | M75: 0 | N75: 0 | O75: 0 | P75: 0 | Q75: 0 | R75: 0 | S75: 0 | T75: 0
C76: 0 | D76: 0 | E76: =IF(E$50>0,E29/E$50,0) -> 0 | F76: 0 | G76: 0 | H76: 0 | I76: 0 | J76: 0 | K76: 0 | L76: 0 | M76: 0 | N76: 0 | O76: 0 | P76: 0 | Q76: 0 | R76: 0 | S76: 0 | T76: 0
C77: 0 | D77: 0 | E77: =IF(E$50>0,E30/E$50,0) -> 0 | F77: 0 | G77: 0 | H77: 0 | I77: 0 | J77: 0 | K77: 0 | L77: 0 | M77: 0 | N77: 0 | O77: 0 | P77: 0 | Q77: 0 | R77: 0 | S77: 0 | T77: 0
C78: 0 | D78: 0 | E78: =IF(E$50>0,E31/E$50,0) -> 0 | F78: 0 | G78: 0 | H78: 0 | I78: 0 | J78: 0 | K78: 0 | L78: 0 | M78: 0 | N78: 0 | O78: 0 | P78: 0 | Q78: 0 | R78: 0 | S78: 0 | T78: 0
C79: 0 | D79: 0 | E79: =IF(E$50>0,E32/E$50,0) -> 0 | F79: 0 | G79: 0 | H79: 0 | I79: 0 | J79: 0 | K79: 0 | L79: 0 | M79: 0 | N79: 0 | O79: 0 | P79: 0 | Q79: 0 | R79: 0 | S79: 0 | T79: 0
C80: 0 | D80: 0 | E80: =IF(E$50>0,E33/E$50,0) -> 0 | F80: 0 | G80: 0 | H80: 0 | I80: 0 | J80: 0 | K80: 0 | L80: 0 | M80: 0 | N80: 0 | O80: 0 | P80: 0 | Q80: 0 | R80: 0 | S80: 0 | T80: 0
C81: 0 | D81: 0 | E81: =IF(E$50>0,E34/E$50,0) -> 0 | F81: 0 | G81: 0 | H81: 0 | I81: 0 | J81: 0 | K81: 0 | L81: 0 | M81: 0 | N81: 0 | O81: 0 | P81: 0 | Q81: 0 | R81: 0 | S81: 0 | T81: 0
C82: 0 | D82: 0 | E82: =IF(E$50>0,E35/E$50,0) -> 0 | F82: 0 | G82: 0 | H82: 0 | I82: 0 | J82: 0 | K82: 0 | L82: 0 | M82: 0 | N82: 0 | O82: 0 | P82: 0 | Q82: 0 | R82: 0 | S82: 0 | T82: 0
C83: 0 | D83: 0 | E83: =IF(E$50>0,E36/E$50,0) -> 0 | F83: 0 | G83: 0 | H83: 0 | I83: 0 | J83: 0 | K83: 0 | L83: 0 | M83: 0 | N83: 0 | O83: 0 | P83: 0 | Q83: 0 | R83: 0 | S83: 0 | T83: 0
C84: 0 | D84: 0 | E84: =IF(E$50>0,E37/E$50,0) -> 0 | F84: 0 | G84: 0 | H84: 0 | I84: 0 | J84: 0 | K84: 0 | L84: 0 | M84: 0 | N84: 0 | O84: 0 | P84: 0 | Q84: 0 | R84: 0 | S84: 0 | T84: 0
C85: 0 | D85: 0 | E85: =IF(E$50>0,E38/E$50,0) -> 0 | F85: 0 | G85: 0 | H85: 0 | I85: 0 | J85: 0 | K85: 0 | L85: 0 | M85: 0 | N85: 0 | O85: 0 | P85: 0 | Q85: 0 | R85: 0 | S85: 0 | T85: 0
C86: 0 | D86: 0 | E86: =IF(E$50>0,E39/E$50,0) -> 0 | F86: 0 | G86: 0 | H86: 0 | I86: 0 | J86: 0 | K86: 0 | L86: 0 | M86: 0 | N86: 0 | O86: 0 | P86: 0 | Q86: 0 | R86: 0 | S86: 0 | T86: 0
C87: 0 | D87: 0 | E87: =IF(E$50>0,E40/E$50,0) -> 0 | F87: 0 | G87: 0 | H87: 0 | I87: 0 | J87: 0 | K87: 0 | L87: 0 | M87: 0 | N87: 0 | O87: 0 | P87: 0 | Q87: 0 | R87: 0 | S87: 0 | T87: 0
C88: 0 | D88: 0 | E88: =IF(E$50>0,E41/E$50,0) -> 0 | F88: 0 | G88: 0 | H88: 0 | I88: 0 | J88: 0 | K88: 0 | L88: 0 | M88: 0 | N88: 0 | O88: 0 | P88: 0 | Q88: 0 | R88: 0 | S88: 0 | T88: 0
C89: 0 | D89: 0 | E89: =IF(E$50>0,E42/E$50,0) -> 0 | F89: 0 | G89: 0 | H89: 0 | I89: 0 | J89: 0 | K89: 0 | L89: 0 | M89: 0 | N89: 0 | O89: 0 | P89: 0 | Q89: 0 | R89: 0 | S89: 0 | T89: 0
C90: 0 | D90: 0 | E90: =IF(E$50>0,E43/E$50,0) -> 0 | F90: 0 | G90: 0 | H90: 0 | I90: 0 | J90: 0 | K90: 0 | L90: 0 | M90: 0 | N90: 0 | O90: 0 | P90: 0 | Q90: 0 | R90: 0 | S90: 0 | T90: 0
C91: 0 | D91: 0 | E91: =IF(E$50>0,E44/E$50,0) -> 0 | F91: 0 | G91: 0 | H91: 0 | I91: 0 | J91: 0 | K91: 0 | L91: 0 | M91: 0 | N91: 0 | O91: 0 | P91: 0 | Q91: 0 | R91: 0 | S91: 0 | T91: 0
C92: =C45 -> 0 | D92: 0 | E92: =IF(E$50>0,E45/E$50,0) -> 0 | F92: 0 | G92: 0 | H92: 0 | I92: 0 | J92: 0 | K92: 0 | L92: 0 | M92: 0 | N92: 0 | O92: 0 | P92: 0 | Q92: 0 | R92: 0 | S92: 0 | T92: 0
C93: 0 | D93: 0 | E93: =IF(E$50>0,E46/E$50,0) -> 0 | F93: 0 | G93: 0 | H93: 0 | I93: 0 | J93: 0 | K93: 0 | L93: 0 | M93: 0 | N93: 0 | O93: 0 | P93: 0 | Q93: 0 | R93: 0 | S93: 0 | T93: 0
C94: 0 | D94: 0 | E94: =IF(E$50>0,E47/E$50,0) -> 0 | F94: 0 | G94: 0 | H94: 0 | I94: 0 | J94: 0 | K94: 0 | L94: 0 | M94: 0 | N94: 0 | O94: 0 | P94: 0 | Q94: 0 | R94: 0 | S94: 0 | T94: 0
C95: 0 | D95: 0 | E95: =IF(E$50>0,E48/E$50,0) -> 0 | F95: 0 | G95: 0 | H95: 0 | I95: 0 | J95: 0 | K95: 0 | L95: 0 | M95: 0 | N95: 0 | O95: 0 | P95: 0 | Q95: 0 | R95: 0 | S95: 0 | T95: 0
C96: 0 | D96: 0 | E96: =IF(E$50>0,E49/E$50,0) -> 0 | F96: 0 | G96: 0 | H96: 0 | I96: 0 | J96: 0 | K96: 0 | L96: 0 | M96: 0 | N96: 0 | O96: 0 | P96: 0 | Q96: 0 | R96: 0 | S96: 0 | T96: 0
A109: COUNT
E110: =E3 -> Female | F110: Male | G110: 0 | H110: 0 | I110: 0 | J110: 0 | K110: 0 | L110: 0 | M110: 0 | N110: 0 | O110: 0 | P110: 0 | Q110: 0 | R110: 0 | S110: 0 | T110: 0
E111: =E4 -> 0 | F111: 0 | G111: 0 | H111: 0 | I111: 0 | J111: 0 | K111: 0 | L111: 0 | M111: 0 | N111: 0 | O111: 0 | P111: 0 | Q111: 0 | R111: 0 | S111: 0 | T111: 0
C112: =C5 -> 0 | D112: Do not know: the person's function is not clear. | E112: 1 | F112: 0
C113: 1 | D113: Subject: the story is about this person, or about something the person has done, said etc. | E113: 54 | F113: 153
C114: 2 | D114: Spokesperson: the person represents, or speaks on behalf of another person, a group or an organisation | E114: 8 | F114: 26
C115: 3 | D115: Expert or commentator: the person provides additional information, opinion or comment, based on specialist knowledge or expertise | E115: 11 | F115: 31
C116: 4 | D116: Personal experience: the person provides opinion or comment, based on individual personal experience; the opinion is not necessarily meant to reflect the views of a wider group | E116: 10 | F116: 21
C117: 5 | D117: Eye witness: the person gives testimony or comment, based on direct observation (e.g. being present at an event) | E117: 7 | F117: 3
C118: 6 | D118: Popular opinion: the person's opinion is assumed to reflect that of the 'ordinary citizen' (e.g., in a street interview, vox populi etc); it is implied that the person's point of view is shared by a wider group of people. | E118: 3 | F118: 3
C119: 7 | D119: Other. Use only as a last resort (describe the function in 'Comments' section of coding sheet). | E119: 0 | F119: 0
C120: 8 | D120: NA – Use this where you are coding a secondary source only | E120: 0 | F120: 0
C121: 0 | D121: 0
C122: 0 | D122: 0
C123: 0 | D123: 0
C124: 0 | D124: 0
C125: 0 | D125: 0
C126: 0 | D126: 0
C127: 0 | D127: 0
C128: 0 | D128: 0
C129: 0 | D129: 0
C130: 0 | D130: 0
C131: 0 | D131: 0
C132: =C25 -> 0 | D132: 0
C133: 0 | D133: 0
C134: 0 | D134: 0
C135: 0 | D135: 0
C136: 0 | D136: 0
C137: 0 | D137: 0
C138: 0 | D138: 0
C139: 0 | D139: 0
C140: 0 | D140: 0
C141: 0 | D141: 0
C142: 0 | D142: 0
C143: 0 | D143: 0
C144: 0 | D144: 0
C145: 0 | D145: 0
C146: 0 | D146: 0
C147: 0 | D147: 0
C148: 0 | D148: 0
C149: 0 | D149: 0
C150: 0 | D150: 0
C151: 0 | D151: 0
C152: =C45 -> 0 | D152: 0
C153: 0 | D153: 0
C154: 0 | D154: 0

Sheet 9fF - subject's Function
A1: ='9f'!$A$1 -> News subject's Function in news story, by sex
F2: ='9f'!W3 & " %F" -> Female %F | K2: Male %M
E3: Function in News Story | F3: 1995 | G3: 2000 | H3: 2005 | I3: 2010 | J3: N | K3: 2010 | L3: N
E5: ='9f'!D6 -> Subject: the story is about this person, or about something the person has done, said etc. | F5: 0 | G5: 0 | H5: 0.23 | I5: ='9f'!W6 -> 0.2523330911 | J5: ='9f'!E113 -> 54 | K5: ='9f'!X6 -> 0.7476669089 | L5: ='9f'!F113 -> 153
E6: ='9f'!D7 -> Spokesperson: the person represents, or speaks on behalf of another person, a group or an organisation | F6: 0 | G6: 0 | H6: 0.14 | I6: ='9f'!W7 -> 0.2498710955 | J6: ='9f'!E114 -> 8 | K6: ='9f'!X7 -> 0.7501289045 | L6: ='9f'!F114 -> 26
E7: ='9f'!D8 -> Expert or commentator: the person provides additional information, opinion or comment, based on specialist knowledge or expertise | F7: 0 | G7: 0 | H7: 0.17 | I7: ='9f'!W8 -> 0.2636303573 | J7: ='9f'!E115 -> 11 | K7: ='9f'!X8 -> 0.7363696427 | L7: ='9f'!F115 -> 31
E8: ='9f'!D9 -> Personal experience: the person provides opinion or comment, based on individual personal experience; the opinion is not necessarily meant to reflect the views of a wider group | F8: 0 | G8: 0 | H8: 0.31 | I8: ='9f'!W9 -> 0.3105835496 | J8: ='9f'!E116 -> 10 | K8: ='9f'!X9 -> 0.6894164504 | L8: ='9f'!F116 -> 21
E9: ='9f'!D10 -> Eye witness: the person gives testimony or comment, based on direct observation (e.g. being present at an event) | F9: 0 | G9: 0 | H9: 0.3 | I9: ='9f'!W10 -> 0.6972691653 | J9: ='9f'!E117 -> 7 | K9: ='9f'!X10 -> 0.3027308347 | L9: ='9f'!F117 -> 3
E10: ='9f'!D11 -> Popular opinion: the person's opinion is assumed to reflect that of the 'ordinary citizen' (e.g., in a street interview, vox populi etc); it is implied that the person's point of view is shared by a wider group of people. | F10: 0 | G10: 0 | H10: 0.34 | I10: ='9f'!W11 -> 0.5672220057 | J10: ='9f'!E118 -> 3 | K10: ='9f'!X11 -> 0.4327779943 | L10: ='9f'!F118 -> 3
E11: ='9f'!D12 -> Other. Use only as a last resort (describe the function in 'Comments' section of coding sheet). | F11: 0 | G11: 0 | H11: n/a | I11: ='9f'!W12 -> 0 | J11: ='9f'!E119 -> 0 | K11: ='9f'!X12 -> 0 | L11: ='9f'!F119 -> 0
E12: ='9f'!D13 -> NA – Use this where you are coding a secondary source only | F12: 0 | G12: 0 | H12: n/a | I12: ='9f'!W13 -> 0 | J12: ='9f'!E120 -> 0 | K12: ='9f'!X13 -> 0 | L12: ='9f'!F120 -> 0
E15: Total | F15: 0 | G15: 0 | H15: 0 | I15: ='9f'!$W$50 -> 0.2784489043 | J15: =SUM(J5:J12) -> 93 | K15: ='9f'!$X$50 -> 0.7215510957 | L15: =SUM(L5:L12) -> 237
F18: No data available for 2000

Sheet 9g (hidden)
A1: News Subjects who are portrayed as victims, by sex
E3: Female | F3: Male | W3: =E3 -> Female | X3: Male | Y3: 0 | Z3: 0 | AA3: 0 | AB3: 0 | AC3: 0 | AD3: 0 | AE3: 0 | AF3: 0 | AG3: 0 | AH3: 0 | AI3: 0 | AJ3: 0 | AK3: 0
V4: TOTAL | W4: 0 | X4: 0 | Y4: 0 | Z4: 0 | AA4: 0 | AB4: 0 | AC4: 0 | AD4: 0 | AE4: 0 | AF4: 0 | AG4: 0 | AH4: 0 | AI4: 0 | AJ4: 0 | AK4: 0 | AL4: =T4 -> 0
C5: 0 | D5: Not a victim | E5: 0.4829009981 | F5: 1.385014985 | V5: =SUM(E5:O5) -> 1.867915983 | W5: =IF((E5+F5)>0,E5/(E5+F5),0) -> 0.2585239393 | X5: =IF((E5+F5)>0,F5/(E5+F5),0) -> 0.7414760607 | Y5: =IF((G5+H5)>0,G5/(G5+H5),0) -> 0 | Z5: =IF((G5+H5)>0,H5/(G5+H5),0) -> 0 | AA5: =IF((I5+J5)>0,I5/(I5+J5),0) -> 0 | AB5: =IF((I5+J5)>0,J5/(I5+J5),0) -> 0 | AC5: =IF((K5+L5)>0,K5/(K5+L5),0) -> 0 | AD5: =IF((K5+L5)>0,L5/(K5+L5),0) -> 0 | AE5: =IF((M5+N5)>0,M5/(M5+N5),0) -> 0 | AF5: =IF((M5+N5)>0,N5/(M5+N5),0) -> 0 | AG5: =IF((O5+P5)>0,O5/(O5+P5),0) -> 0 | AH5: =IF((O5+P5)>0,P5/(O5+P5),0) -> 0 | AI5: =IF((Q5+R5)>0,Q5/(Q5+R5),0) -> 0 | AJ5: =IF((Q5+R5)>0,R5/(Q5+R5),0) -> 0 | AK5: =IF((S5+T5)>0,S5/(S5+T5),0) -> 0 | AL5: =IF((S5+T5)>0,T5/(S5+T5),0) -> 0
C6: 1 | D6: Victim of an accident, natural disaster, poverty, disease, illness … | E6: 0.01530000055 | F6: 0.04297650047 | V6: 0.05827650102 | W6: 0.2625415096 | X6: 0.7374584904 | Y6: 0 | Z6: 0 | AA6: 0 | AB6: 0 | AC6: 0 | AD6: 0 | AE6: 0 | AF6: 0 | AG6: 0 | AH6: 0 | AI6: 0 | AJ6: 0 | AK6: 0 | AL6: 0
C7: 2 | D7: Victim of domestic violence (by husband/wife/partner/other family member), psychological violence, physical assault, marital rape, murder … | E7: 0.0327765001 | F7: 0.005100000184 | V7: 0.03787650028 | W7: 0.8653518634 | X7: 0.1346481366 | Y7: 0 | Z7: 0 | AA7: 0 | AB7: 0 | AC7: 0 | AD7: 0 | AE7: 0 | AF7: 0 | AG7: 0 | AH7: 0 | AI7: 0 | AJ7: 0 | AK7: 0 | AL7: 0
C8: 3 | D8: Victim of non-domestic sexual violence or abuse, sexual harassment, rape, trafficking … | F8: 0.00747649977 | V8: 0.00747649977 | W8: 0 | X8: 1 | Y8: 0 | Z8: 0 | AA8: 0 | AB8: 0 | AC8: 0 | AD8: 0 | AE8: 0 | AF8: 0 | AG8: 0 | AH8: 0 | AI8: 0 | AJ8: 0 | AK8: 0 | AL8: 0
C9: 4 | D9: Victim of other crime, robbery, assault, murder … | F9: 0.02267650003 | V9: 0.02267650003 | W9: 0 | X9: 1 | Y9: 0 | Z9: 0 | AA9: 0 | AB9: 0 | AC9: 0 | AD9: 0 | AE9: 0 | AF9: 0 | AG9: 0 | AH9: 0 | AI9: 0 | AJ9: 0 | AK9: 0 | AL9: 0
C10: 5 | D10: Victim of violation based on religion, tradition, cultural belief, genital mutilation, bride-burning … | V10: 0 | W10: 0 | X10: 0 | Y10: 0 | Z10: 0 | AA10: 0 | AB10: 0 | AC10: 0 | AD10: 0 | AE10: 0 | AF10: 0 | AG10: 0 | AH10: 0 | AI10: 0 | AJ10: 0 | AK10: 0 | AL10: 0
C11: 6 | D11: Victim of war, terrorism, vigilantism, state-based violence … | E11: 0.03252949938 | V11: 0.03252949938 | W11: 1 | X11: 0 | Y11: 0 | Z11: 0 | AA11: 0 | AB11: 0 | AC11: 0 | AD11: 0 | AE11: 0 | AF11: 0 | AG11: 0 | AH11: 0 | AI11: 0 | AJ11: 0 | AK11: 0 | AL11: 0
C12: 7 | D12: Victim of discrimination based on gender, race, ethnicity, age, religion, ability … | V12: 0 | W12: 0 | X12: 0 | Y12: 0 | Z12: 0 | AA12: 0 | AB12: 0 | AC12: 0 | AD12: 0 | AE12: 0 | AF12: 0 | AG12: 0 | AH12: 0 | AI12: 0 | AJ12: 0 | AK12: 0 | AL12: 0
C13: 8 | D13: Other victim: describe in 'Comments' section of coding sheet … | E13: 0.005100000184 | F13: 0.01020000037 | V13: =SUM(E13:O13) -> 0.01530000055 | W13: =IF((E13+F13)>0,E13/(E13+F13),0) -> 0.3333333333 | X13: =IF((E13+F13)>0,F13/(E13+F13),0) -> 0.6666666667 | Y13: =IF((G13+H13)>0,G13/(G13+H13),0) -> 0 | Z13: =IF((G13+H13)>0,H13/(G13+H13),0) -> 0 | AA13: =IF((I13+J13)>0,I13/(I13+J13),0) -> 0 | AB13: =IF((I13+J13)>0,J13/(I13+J13),0) -> 0 | AC13: =IF((K13+L13)>0,K13/(K13+L13),0) -> 0 | AD13: =IF((K13+L13)>0,L13/(K13+L13),0) -> 0 | AE13: =IF((M13+N13)>0,M13/(M13+N13),0) -> 0 | AF13: =IF((M13+N13)>0,N13/(M13+N13),0) -> 0 | AG13: =IF((O13+P13)>0,O13/(O13+P13),0) -> 0 | AH13: =IF((O13+P13)>0,P13/(O13+P13),0) -> 0 | AI13: =IF((Q13+R13)>0,Q13/(Q13+R13),0) -> 0 | AJ13: =IF((Q13+R13)>0,R13/(Q13+R13),0) -> 0 | AK13: =IF((S13+T13)>0,S13/(S13+T13),0) -> 0 | AL13: =IF((S13+T13)>0,T13/(S13+T13),0) -> 0
C14: 9 | D14: Do not know, cannot decide
C15: 10 | D15: NA – Use this where you are coding a secondary source only
D50: TOTAL | E50: =SUM(E6:E13) -> 0.08570600022 | F50: =SUM(F6:F13) -> 0.08842950081 | G50: =SUM(G5:G49) -> 0 | H50: 0 | I50: 0 | J50: 0 | K50: 0 | L50: 0 | M50: 0 | N50: 0 | O50: 0 | P50: 0 | Q50: 0 | R50: 0 | S50: 0 | T50: 0 | V50: =SUM(E50:O50) -> 0.174135501 | W50: =IF((E50+F50)>0,E50/(E50+F50),0) -> 0.4921799387 | X50: =IF((E50+F50)>0,F50/(E50+F50),0) -> 0.5078200613 | Y50: =IF((G50+H50)>0,G50/(G50+H50),0) -> 0 | Z50: =IF((G50+H50)>0,H50/(G50+H50),0) -> 0 | AA50: =IF((I50+J50)>0,I50/(I50+J50),0) -> 0 | AB50: =IF((I50+J50)>0,J50/(I50+J50),0) -> 0 | AC50: =IF((K50+L50)>0,K50/(K50+L50),0) -> 0 | AD50: =IF((K50+L50)>0,L50/(K50+L50),0) -> 0 | AE50: =IF((M50+N50)>0,M50/(M50+N50),0) -> 0 | AF50: =IF((M50+N50)>0,N50/(M50+N50),0) -> 0 | AG50: =IF((O50+P50)>0,O50/(O50+P50),0) -> 0 | AH50: =IF((O50+P50)>0,P50/(O50+P50),0) -> 0 | AI50: =IF((Q50+R50)>0,Q50/(Q50+R50),0) -> 0 | AJ50: =IF((Q50+R50)>0,R50/(Q50+R50),0) -> 0 | AK50: =IF((S50+T50)>0,S50/(S50+T50),0) -> 0 | AL50: =IF((S50+T50)>0,T50/(S50+T50),0) -> 0
C52: =C5 -> 0 | D52: Not a victim | E52: =IF(E$50>0,E5/E$50,0) -> 5.634389621 | F52: 15.66236349 | G52: 0 | H52: 0 | I52: 0 | J52: 0 | K52: 0 | L52: 0 | M52: 0 | N52: 0 | O52: 0 | P52: 0 | Q52: 0 | R52: 0 | S52: 0 | T52: 0
C53: 1 | D53: Victim of an accident, natural disaster, poverty, disease, illness … | E53: =IF(E$50>0,E6/E$50,0) -> 0.1785172627 | F53: 0.4859973207 | G53: 0 | H53: 0 | I53: 0 | J53: 0 | K53: 0 | L53: 0 | M53: 0 | N53: 0 | O53: 0 | P53: 0 | Q53: 0 | R53: 0 | S53: 0 | T53: 0
C54: 2 | D54: Victim of domestic violence (by husband/wife/partner/other family member), psychological violence, physical assault, marital rape, murder … | E54: =IF(E$50>0,E7/E$50,0) -> 0.3824294684 | F54: 0.05767306314 | G54: 0 | H54: 0 | I54: 0 | J54: 0 | K54: 0 | L54: 0 | M54: 0 | N54: 0 | O54: 0 | P54: 0 | Q54: 0 | R54: 0 | S54: 0 | T54: 0
C55: 3 | D55: Victim of non-domestic sexual violence or abuse, sexual harassment, rape, trafficking … | E55: =IF(E$50>0,E8/E$50,0) -> 0 | F55: 0.08454757407 | G55: 0 | H55: 0 | I55: 0 | J55: 0 | K55: 0 | L55: 0 | M55: 0 | N55: 0 | O55: 0 | P55: 0 | Q55: 0 | R55: 0 | S55: 0 | T55: 0
C56: 4 | D56: Victim of other crime, robbery, assault, murder … | E56: =IF(E$50>0,E9/E$50,0) -> 0 | F56: 0.2564359158 | G56: 0 | H56: 0 | I56: 0 | J56: 0 | K56: 0 | L56: 0 | M56: 0 | N56: 0 | O56: 0 | P56: 0 | Q56: 0 | R56: 0 | S56: 0 | T56: 0
C57: 5 | D57: Victim of violation based on religion, tradition, cultural belief, genital mutilation, bride-burning … | E57: =IF(E$50>0,E10/E$50,0) -> 0 | F57: 0 | G57: 0 | H57: 0 | I57: 0 | J57: 0 | K57: 0 | L57: 0 | M57: 0 | N57: 0 | O57: 0 | P57: 0 | Q57: 0 | R57: 0 | S57: 0 | T57: 0
C58: 6 | D58: Victim of war, terrorism, vigilantism, state-based violence … | E58: =IF(E$50>0,E11/E$50,0) -> 0.3795475148 | F58: 0 | G58: 0 | H58: 0 | I58: 0 | J58: 0 | K58: 0 | L58: 0 | M58: 0 | N58: 0 | O58: 0 | P58: 0 | Q58: 0 | R58: 0 | S58: 0 | T58: 0
C59: 7 | D59: Victim of discrimination based on gender, race, ethnicity, age, religion, ability … | E59: =IF(E$50>0,E12/E$50,0) -> 0 | F59: 0 | G59: 0 | H59: 0 | I59: 0 | J59: 0 | K59: 0 | L59: 0 | M59: 0 | N59: 0 | O59: 0 | P59: 0 | Q59: 0 | R59: 0 | S59: 0 | T59: 0
C60: 8 | D60: Other victim: describe in 'Comments' section of coding sheet … | E60: =IF(E$50>0,E13/E$50,0) -> 0.05950575422 | F60: 0.1153461263 | G60: 0 | H60: 0 | I60: 0 | J60: 0 | K60: 0 | L60: 0 | M60: 0 | N60: 0 | O60: 0 | P60: 0 | Q60: 0 | R60: 0 | S60: 0 | T60: 0
C61: 9 | D61: Do not know, cannot decide | E61: =IF(E$50>0,E14/E$50,0) -> 0 | F61: 0 | G61: 0 | H61: 0 | I61: 0 | J61: 0 | K61: 0 | L61: 0 | M61: 0 | N61: 0 | O61: 0 | P61: 0 | Q61: 0 | R61: 0 | S61: 0 | T61: 0
C62: 10 | D62: NA – Use this where you are coding a secondary source only | E62: =IF(E$50>0,E15/E$50,0) -> 0 | F62: 0 | G62: 0 | H62: 0 | I62: 0 | J62: 0 | K62: 0 | L62: 0 | M62: 0 | N62: 0 | O62: 0 | P62: 0 | Q62: 0 | R62: 0 | S62: 0 | T62: 0
C63: 0 | D63: 0 | E63: =IF(E$50>0,E16/E$50,0) -> 0 | F63: 0 | G63: 0 | H63: 0 | I63: 0 | J63: 0 | K63: 0 | L63: 0 | M63: 0 | N63: 0 | O63: 0 | P63: 0 | Q63: 0 | R63: 0 | S63: 0 | T63: 0
C64: 0 | D64: 0 | E64: =IF(E$50>0,E17/E$50,0) -> 0 | F64: 0 | G64: 0 | H64: 0 | I64: 0 | J64: 0 | K64: 0 | L64: 0 | M64: 0 | N64: 0 | O64: 0 | P64: 0 | Q64: 0 | R64: 0 | S64: 0 | T64: 0
C65: 0 | D65: 0 | E65: =IF(E$50>0,E18/E$50,0) -> 0 | F65: 0 | G65: 0 | H65: 0 | I65: 0 | J65: 0 | K65: 0 | L65: 0 | M65: 0 | N65: 0 | O65: 0 | P65: 0 | Q65: 0 | R65: 0 | S65: 0 | T65: 0
C66: 0 | D66: 0 | E66: =IF(E$50>0,E19/E$50,0) -> 0 | F66: 0 | G66: 0 | H66: 0 | I66: 0 | J66: 0 | K66: 0 | L66: 0 | M66: 0 | N66: 0 | O66: 0 | P66: 0 | Q66: 0 | R66: 0 | S66: 0 | T66: 0
C67: 0 | D67: 0 | E67: =IF(E$50>0,E20/E$50,0) -> 0 | F67: 0 | G67: 0 | H67: 0 | I67: 0 | J67: 0 | K67: 0 | L67: 0 | M67: 0 | N67: 0 | O67: 0 | P67: 0 | Q67: 0 | R67: 0 | S67: 0 | T67: 0
C68: 0 | D68: 0 | E68: =IF(E$50>0,E21/E$50,0) -> 0 | F68: 0 | G68: 0 | H68: 0 | I68: 0 | J68: 0 | K68: 0 | L68: 0 | M68: 0 | N68: 0 | O68: 0 | P68: 0 | Q68: 0 | R68: 0 | S68: 0 | T68: 0
C69: 0 | D69: 0 | E69: =IF(E$50>0,E22/E$50,0) -> 0 | F69: 0 | G69: 0 | H69: 0 | I69: 0 | J69: 0 | K69: 0 | L69: 0 | M69: 0 | N69: 0 | O69: 0 | P69: 0 | Q69: 0 | R69: 0 | S69: 0 | T69: 0
C70: 0 | D70: 0 | E70: =IF(E$50>0,E23/E$50,0) -> 0 | F70: 0 | G70: 0 | H70: 0 | I70: 0 | J70: 0 | K70: 0 | L70: 0 | M70: 0 | N70: 0 | O70: 0 | P70: 0 | Q70: 0 | R70: 0 | S70: 0 | T70: 0
C71: 0 | D71: 0 | E71: =IF(E$50>0,E24/E$50,0) -> 0 | F71: 0 | G71: 0 | H71: 0 | I71: 0 | J71: 0 | K71: 0 | L71: 0 | M71: 0 | N71: 0 | O71: 0 | P71: 0 | Q71: 0 | R71: 0 | S71: 0 | T71: 0
C72: =C25 -> 0 | D72: 0 | E72: =IF(E$50>0,E25/E$50,0) -> 0 | F72: 0 | G72: 0 | H72: 0 | I72: 0 | J72: 0 | K72: 0 | L72: 0 | M72: 0 | N72: 0 | O72: 0 | P72: 0 | Q72: 0 | R72: 0 | S72: 0 | T72: 0
C73: 0 | D73: 0 | E73: =IF(E$50>0,E26/E$50,0) -> 0 | F73: 0 | G73: 0 | H73: 0 | I73: 0 | J73: 0 | K73: 0 | L73: 0 | M73: 0 | N73: 0 | O73: 0 | P73: 0 | Q73: 0 | R73: 0 | S73: 0 | T73: 0
C74: 0 | D74: 0 | E74: =IF(E$50>0,E27/E$50,0) -> 0 | F74: 0 | G74: 0 | H74: 0 | I74: 0 | J74: 0 | K74: 0 | L74: 0 | M74: 0 | N74: 0 | O74: 0 | P74: 0 | Q74: 0 | R74: 0 | S74: 0 | T74: 0
C75: 0 | D75: 0 | E75: =IF(E$50>0,E28/E$50,0) -> 0 | F75: 0 | G75: 0 | H75: 0 | I75: 0 | J75: 0 | K75: 0 | L75: 0 | M75: 0 | N75: 0 | O75: 0 | P75: 0 | Q75: 0 | R75: 0 | S75: 0 | T75: 0
C76: 0 | D76: 0 | E76: =IF(E$50>0,E29/E$50,0) -> 0 | F76: 0 | G76: 0 | H76: 0 | I76: 0 | J76: 0 | K76: 0 | L76: 0 | M76: 0 | N76: 0 | O76: 0 | P76: 0 | Q76: 0 | R76: 0 | S76: 0 | T76: 0
C77: 0 | D77: 0 | E77: =IF(E$50>0,E30/E$50,0) -> 0 | F77: 0 | G77: 0 | H77: 0 | I77: 0 | J77: 0 | K77: 0 | L77: 0 | M77: 0 | N77: 0 | O77: 0 | P77: 0 | Q77: 0 | R77: 0 | S77: 0 | T77: 0
C78: 0 | D78: 0 | E78: =IF(E$50>0,E31/E$50,0) -> 0 | F78: 0 | G78: 0 | H78: 0 | I78: 0 | J78: 0 | K78: 0 | L78: 0 | M78: 0 | N78: 0 | O78: 0 | P78: 0 | Q78: 0 | R78: 0 | S78: 0 | T78: 0
C79: 0 | D79: 0 | E79: =IF(E$50>0,E32/E$50,0) -> 0 | F79: 0 | G79: 0 | H79: 0 | I79: 0 | J79: 0 | K79: 0 | L79: 0 | M79: 0 | N79: 0 | O79: 0 | P79: 0 | Q79: 0 | R79: 0 | S79: 0 | T79: 0
C80: 0 | D80: 0 | E80: =IF(E$50>0,E33/E$50,0) -> 0 | F80: 0 | G80: 0 | H80: 0 | I80: 0 | J80: 0 | K80: 0 | L80: 0 | M80: 0 | N80: 0 | O80: 0 | P80: 0 | Q80: 0 | R80: 0 | S80: 0 | T80: 0
C81: 0 | D81: 0 | E81: =IF(E$50>0,E34/E$50,0) -> 0 | F81: 0 | G81: 0 | H81: 0 | I81: 0 | J81: 0 | K81: 0 | L81: 0 | M81: 0 | N81: 0 | O81: 0 | P81: 0 | Q81: 0 | R81: 0 | S81: 0 | T81: 0
C82: 0 | D82: 0 | E82: =IF(E$50>0,E35/E$50,0) -> 0 | F82: 0 | G82: 0 | H82: 0 | I82: 0 | J82: 0 | K82: 0 | L82: 0 | M82: 0 | N82: 0 | O82: 0 | P82: 0 | Q82: 0 | R82: 0 | S82: 0 | T82: 0
C83: 0 | D83: 0 | E83: =IF(E$50>0,E36/E$50,0) -> 0 | F83: 0 | G83: 0 | H83: 0 | I83: 0 | J83: 0 | K83: 0 | L83: 0 | M83: 0 | N83: 0 | O83: 0 | P83: 0 | Q83: 0 | R83: 0 | S83: 0 | T83: 0
C84: 0 | D84: 0 | E84: =IF(E$50>0,E37/E$50,0) -> 0 | F84: 0 | G84: 0 | H84: 0 | I84: 0 | J84: 0 | K84: 0 | L84: 0 | M84: 0 | N84: 0 | O84: 0 | P84: 0 | Q84: 0 | R84: 0 | S84: 0 | T84: 0
C85: 0 | D85: 0 | E85: =IF(E$50>0,E38/E$50,0) -> 0 | F85: 0 | G85: 0 | H85: 0 | I85: 0 | J85: 0 | K85: 0 | L85: 0 | M85: 0 | N85: 0 | O85: 0 | P85: 0 | Q85: 0 | R85: 0 | S85: 0 | T85: 0
C86: 0 | D86: 0 | E86: =IF(E$50>0,E39/E$50,0) -> 0 | F86: 0 | G86: 0 | H86: 0 | I86: 0 | J86: 0 | K86: 0 | L86: 0 | M86: 0 | N86: 0 | O86: 0 | P86: 0 | Q86: 0 | R86: 0 | S86: 0 | T86: 0
C87: 0 | D87: 0 | E87: =IF(E$50>0,E40/E$50,0) -> 0 | F87: 0 | G87: 0 | H87: 0 | I87: 0 | J87: 0 | K87: 0 | L87: 0 | M87: 0 | N87: 0 | O87: 0 | P87: 0 | Q87: 0 | R87: 0 | S87: 0 | T87: 0
C88: 0 | D88: 0 | E88: =IF(E$50>0,E41/E$50,0) -> 0 | F88: 0 | G88: 0 | H88: 0 | I88: 0 | J88: 0 | K88: 0 | L88: 0 | M88: 0 | N88: 0 | O88: 0 | P88: 0 | Q88: 0 | R88: 0 | S88: 0 | T88: 0
C89: 0 | D89: 0 | E89: =IF(E$50>0,E42/E$50,0) -> 0 | F89: 0 | G89: 0 | H89: 0 | I89: 0 | J89: 0 | K89: 0 | L89: 0 | M89: 0 | N89: 0 | O89: 0 | P89: 0 | Q89: 0 | R89: 0 | S89: 0 | T89: 0
C90: 0 | D90: 0 | E90: =IF(E$50>0,E43/E$50,0) -> 0 | F90: 0 | G90: 0 | H90: 0 | I90: 0 | J90: 0 | K90: 0 | L90: 0 | M90: 0 | N90: 0 | O90: 0 | P90: 0 | Q90: 0 | R90: 0 | S90: 0 | T90: 0
C91: 0 | D91: 0 | E91: =IF(E$50>0,E44/E$50,0) -> 0 | F91: 0 | G91: 0 | H91: 0 | I91: 0 | J91: 0 | K91: 0 | L91: 0 | M91: 0 | N91: 0 | O91: 0 | P91: 0 | Q91: 0 | R91: 0 | S91: 0 | T91: 0
C92: =C45 -> 0 | D92: 0 | E92: =IF(E$50>0,E45/E$50,0) -> 0 | F92: 0 | G92: 0 | H92: 0 | I92: 0 | J92: 0 | K92: 0 | L92: 0 | M92: 0 | N92: 0 | O92: 0 | P92: 0 | Q92: 0 | R92: 0 | S92: 0 | T92: 0
C93: 0 | D93: 0 | E93: =IF(E$50>0,E46/E$50,0) -> 0 | F93: 0 | G93: 0 | H93: 0 | I93: 0 | J93: 0 | K93: 0 | L93: 0 | M93: 0 | N93: 0 | O93: 0 | P93: 0 | Q93: 0 | R93: 0 | S93: 0 | T93: 0
C94: 0 | D94: 0 | E94: =IF(E$50>0,E47/E$50,0) -> 0 | F94: 0 | G94: 0 | H94: 0 | I94: 0 | J94: 0 | K94: 0 | L94: 0 | M94: 0 | N94: 0 | O94: 0 | P94: 0 | Q94: 0 | R94: 0 | S94: 0 | T94: 0
C95: 0 | D95: 0 | E95: =IF(E$50>0,E48/E$50,0) -> 0 | F95: 0 | G95: 0 | H95: 0 | I95: 0 | J95: 0 | K95: 0 | L95: 0 | M95: 0 | N95: 0 | O95: 0 | P95: 0 | Q95: 0 | R95: 0 | S95: 0 | T95: 0
C96: 0 | D96: 0 | E96: =IF(E$50>0,E49/E$50,0) -> 0 | F96: 0 | G96: 0 | H96: 0 | I96: 0 | J96: 0 | K96: 0 | L96: 0 | M96: 0 | N96: 0 | O96: 0 | P96: 0 | Q96: 0 | R96: 0 | S96: 0 | T96: 0
A109: COUNT
E110: =E3 -> Female | F110: Male | G110: 0 | H110: 0 | I110: 0 | J110: 0 | K110: 0 | L110: 0 | M110: 0 | N110: 0 | O110: 0 | P110: 0 | Q110: 0 | R110: 0 | S110: 0 | T110: 0
E111: =E4 -> 0 | F111: 0 | G111: 0 | H111: 0 | I111: 0 | J111: 0 | K111: 0 | L111: 0 | M111: 0 | N111: 0 | O111: 0 | P111: 0 | Q111: 0 | R111: 0 | S111: 0 | T111: 0
C112: =C5 -> 0 | D112: Not a victim | E112: 79 | F112: 221
C113: 1 | D113: Victim of an accident, natural disaster, poverty, disease, illness … | E113: 3 | F113: 8
C114: 2 | D114: Victim of domestic violence (by husband/wife/partner/other family member), psychological violence, physical assault, marital rape, murder … | E114: 6 | F114: 1
C115: 3 | D115: Victim of non-domestic sexual violence or abuse, sexual harassment, rape, trafficking … | E115: 0 | F115: 1
C116: 4 | D116: Victim of other crime, robbery, assault, murder … | E116: 0 | F116: 4
C117: 5 | D117: Victim of violation based on religion, tradition, cultural belief, genital mutilation, bride-burning … | E117: 0 | F117: 0
C118: 6 | D118: Victim of war, terrorism, vigilantism, state-based violence … | E118: 5 | F118: 0
C119: 7 | D119: Victim of discrimination based on gender, race, ethnicity, age, religion, ability … | E119: 0 | F119: 0
C120: 8 | D120: Other victim: describe in 'Comments' section of coding sheet … | E120: 1 | F120: 2
C121: 9 | D121: Do not know, cannot decide | E121: 0 | F121: 0
C122: 10 | D122: NA – Use this where you are coding a secondary source only | E122: 0 | F122: 0
C123: 0 | D123: 0
C124: 0 | D124: 0
C125: 0 | D125: 0
C126: 0 | D126: 0
C127: 0 | D127: 0
C128: 0 | D128: 0
C129: 0 | D129: 0
C130: 0 | D130: 0
C131: 0 | D131: 0
C132: =C25 -> 0 | D132: 0
C133: 0 | D133: 0
C134: 0 | D134: 0
C135: 0 | D135: 0
C136: 0 | D136: 0
C137: 0 | D137: 0
C138: 0 | D138: 0
C139: 0 | D139: 0
C140: 0 | D140: 0
C141: 0 | D141: 0
C142: 0 | D142: 0
C143: 0 | D143: 0
C144: 0 | D144: 0
C145: 0 | D145: 0
C146: 0 | D146: 0
C147: 0 | D147: 0
C148: 0 | D148: 0
C149: 0 | D149: 0
C150: 0 | D150: 0
C151: 0 | D151: 0
C152: =C45 -> 0 | D152: 0
C153: 0 | D153: 0
C154: 0 | D154: 0

Sheet 9gF - Victims, by sex
A1: ='9g'!$A$1 -> News Subjects who are portrayed as victims, by sex
F2: % Female | K2: % Male
E3: Victim Type | F3: 1995 | G3: 2000 | H3: 2005 | I3: 2010 | J3: N | K3: 1995 | L3: 2000 | M3: 2005 | N3: 2010 | O3: N
E5: ='9g'!D6 -> Victim of an accident, natural disaster, poverty, disease, illness … | F5: 0.16 | G5: 0.29 | H5: 0.35 | I5: ='9g'!W6 -> 0.2625415096 | J5: ='9g'!E113 -> 3 | K5: =1-F5 -> 0.84 | L5: =1-G5 -> 0.71 | M5: =1-H5 -> 0.65 | N5: ='9g'!X6 -> 0.7374584904 | O5: ='9g'!F113 -> 8
E6: ='9g'!D7 -> Victim of domestic violence (by husband/wife/partner/other family member), psychological violence, physical assault, marital rape, murder … | F6: n/a | G6: 0.88 | H6: 0.47 | I6: ='9g'!W7 -> 0.8653518634 | J6: ='9g'!E114 -> 6 | K6: n/a | L6: =1-G6 -> 0.12 | M6: =1-H6 -> 0.53 | N6: ='9g'!X7 -> 0.1346481366 | O6: ='9g'!F114 -> 1
E7: ='9g'!D8 -> Victim of non-domestic sexual violence or abuse, sexual harassment, rape, trafficking … | F7: n/a | G7: n/a | H7: 0.7 | I7: ='9g'!W8 -> 0 | J7: ='9g'!E115 -> 0 | K7: n/a | L7: n/a | M7: 0.3 | N7: ='9g'!X8 -> 1 | O7: ='9g'!F115 -> 1
E8: ='9g'!D9 -> Victim of other crime, robbery, assault, murder … | F8: 0.06 | G8: 0.4 | H8: 0.35 | I8: ='9g'!W9 -> 0 | J8: ='9g'!E116 -> 0 | K8: =1-F8 -> 0.94 | L8: =1-G8 -> 0.6 | M8: 0.65 | N8: ='9g'!X9 -> 1 | O8: ='9g'!F116 -> 4
E9: ='9g'!D10 -> Victim of violation based on religion, tradition, cultural belief, genital mutilation, bride-burning … | F9: n/a | G9: n/a | H9: 0.52 | I9: ='9g'!W10 -> 0 | J9: ='9g'!E117 -> 0 | K9: n/a | L9: n/a | M9: 0.48 | N9: ='9g'!X10 -> 0 | O9: ='9g'!F117 -> 0
E10: ='9g'!D11 -> Victim of war, terrorism, vigilantism, state-based violence … | F10: n/a | G10: 0.17 | H10: 0.25 | I10: ='9g'!W11 -> 1 | J10: ='9g'!E118 -> 5 | K10: n/a | L10: =1-G10 -> 0.83 | M10: 0.75 | N10: ='9g'!X11 -> 0 | O10: ='9g'!F118 -> 0
E11: ='9g'!D12 -> Victim of discrimination based on gender, race, ethnicity, age, religion, ability … | F11: n/a | G11: n/a | H11: 0.42 | I11: ='9g'!W12 -> 0 | J11: ='9g'!E119 -> 0 | K11: n/a | L11: n/a | M11: 0.58 | N11: ='9g'!X12 -> 0 | O11: ='9g'!F119 -> 0
E12: ='9g'!D13 -> Other victim: describe in 'Comments' section of coding sheet … | F12: n/a | G12: n/a | H12: 1.42 | I12: ='9g'!W13 -> 0.3333333333 | J12: ='9g'!E120 -> 1 | K12: n/a | L12: n/a | M12: =1-H12 -> -0.42 | N12: ='9g'!X13 -> 0.6666666667 | O12: ='9g'!F120 -> 2
E15: Total | I15: ='9g'!$W$50 -> 0.4921799387 | J15: =SUM(J5:J12) -> 15 | N15: =1-I15 -> 0.5078200613 | O15: =SUM(O5:O12) -> 16

Sheet 9h (hidden)
A1: News subjects who are identified by family status, by sex
E3: Female | F3: Male | W3: =E3 -> Female | X3: Male | Y3: 0 | Z3: 0 | AA3: 0 | AB3: 0 | AC3: 0 | AD3: 0 | AE3: 0 | AF3: 0 | AG3: 0 | AH3: 0 | AI3: 0 | AJ3: 0 | AK3: 0
V4: TOTAL | W4: 0 | X4: 0 | Y4: 0 | Z4: 0 | AA4: 0 | AB4: 0 | AC4: 0 | AD4: 0 | AE4: 0 | AF4: 0 | AG4: 0 | AH4: 0 | AI4: 0 | AJ4: 0 | AK4: 0 | AL4: =T4 -> 0
C5: 0 | D5: No | E5: 0.4604714988 | F5: 1.355008985 | V5: =SUM(E5:O5) -> 1.815480484 | W5: =IF((E5+F5)>0,E5/(E5+F5),0) -> 0.2536361601 | X5: =IF((E5+F5)>0,F5/(E5+F5),0) -> 0.7463638399 | Y5: =IF((G5+H5)>0,G5/(G5+H5),0) -> 0 | Z5: =IF((G5+H5)>0,H5/(G5+H5),0) -> 0 | AA5: =IF((I5+J5)>0,I5/(I5+J5),0) -> 0 | AB5: =IF((I5+J5)>0,J5/(I5+J5),0) -> 0 | AC5: =IF((K5+L5)>0,K5/(K5+L5),0) -> 0 | AD5: =IF((K5+L5)>0,L5/(K5+L5),0) -> 0 | AE5: =IF((M5+N5)>0,M5/(M5+N5),0) -> 0 | AF5: =IF((M5+N5)>0,N5/(M5+N5),0) -> 0 | AG5: =IF((O5+P5)>0,O5/(O5+P5),0) -> 0 | AH5: =IF((O5+P5)>0,P5/(O5+P5),0) -> 0 | AI5: =IF((Q5+R5)>0,Q5/(Q5+R5),0) -> 0 | AJ5: =IF((Q5+R5)>0,R5/(Q5+R5),0) -> 0 | AK5: =IF((S5+T5)>0,S5/(S5+T5),0) -> 0 | AL5: =IF((S5+T5)>0,T5/(S5+T5),0) -> 0
C6: 1 | D6: Yes. Code ‘yes only if the word ‘wife’, ‘husband’ is actually used to describe the person. | E6: 0.1081354995 | F6: 0.1184355002 | V6: 0.2265709997 | W6: 0.4772698168 | X6: 0.5227301832 | Y6: 0 | Z6: 0 | AA6: 0 | AB6: 0 | AC6: 0 | AD6: 0 | AE6: 0 | AF6: 0 | AG6: 0 | AH6: 0 | AI6: 0 | AJ6: 0 | AK6: 0 | AL6: 0
C7: 2 | D7: NA – Use this where you are coding a secondary source only | V7: 0 | W7: 0 | X7: 0 | Y7: 0 | Z7: 0 | AA7: 0 | AB7: 0 | AC7: 0 | AD7: 0 | AE7: 0 | AF7: 0 | AG7: 0 | AH7: 0 | AI7: 0 | AJ7: 0 | AK7: 0 | AL7: 0
V8: 0 | W8: 0 | X8: 0 | Y8: 0 | Z8: 0 | AA8: 0 | AB8: 0 | AC8: 0 | AD8: 0 | AE8: 0 | AF8: 0 | AG8: 0 | AH8: 0 | AI8: 0 | AJ8: 0 | AK8: 0 | AL8: 0
V9: 0 | W9: 0 | X9: 0 | Y9: 0 | Z9: 0 | AA9: 0 | AB9: 0 | AC9: 0 | AD9: 0 | AE9: 0 | AF9: 0 | AG9: 0 | AH9: 0 | AI9: 0 | AJ9: 0 | AK9: 0 | AL9: 0
V10: 0 | W10: 0 | X10: 0 | Y10: 0 | Z10: 0 | AA10: 0 | AB10: 0 | AC10: 0 | AD10: 0 | AE10: 0 | AF10: 0 | AG10: 0 | AH10: 0 | AI10: 0 | AJ10: 0 | AK10: 0 | AL10: 0
V11: 0 | W11: 0 | X11: 0 | Y11: 0 | Z11: 0 | AA11: 0 | AB11: 0 | AC11: 0 | AD11: 0 | AE11: 0 | AF11: 0 | AG11: 0 | AH11: 0 | AI11: 0 | AJ11: 0 | AK11: 0 | AL11: 0
V12: 0 | W12: 0 | X12: 0 | Y12: 0 | Z12: 0 | AA12: 0 | AB12: 0 | AC12: 0 | AD12: 0 | AE12: 0 | AF12: 0 | AG12: 0 | AH12: 0 | AI12: 0 | AJ12: 0 | AK12: 0 | AL12: 0
D50: TOTAL | E50: =SUM(E5:E49) -> 0.5686069983 | F50: 1.473444486 | G50: 0 | H50: 0 | I50: 0 | J50: 0 | K50: 0 | L50: 0 | M50: 0 | N50: 0 | O50: 0 | P50: 0 | Q50: 0 | R50: 0 | S50: 0 | T50: 0 | V50: =SUM(E50:O50) -> 2.042051484 | W50: =IF((E50+F50)>0,E50/(E50+F50),0) -> 0.2784489043 | X50: =IF((E50+F50)>0,F50/(E50+F50),0) -> 0.7215510957 | Y50: =IF((G50+H50)>0,G50/(G50+H50),0) -> 0 | Z50: =IF((G50+H50)>0,H50/(G50+H50),0) -> 0 | AA50: =IF((I50+J50)>0,I50/(I50+J50),0) -> 0 | AB50: =IF((I50+J50)>0,J50/(I50+J50),0) -> 0 | AC50: =IF((K50+L50)>0,K50/(K50+L50),0) -> 0 | AD50: =IF((K50+L50)>0,L50/(K50+L50),0) -> 0 | AE50: =IF((M50+N50)>0,M50/(M50+N50),0) -> 0 | AF50: =IF((M50+N50)>0,N50/(M50+N50),0) -> 0 | AG50: =IF((O50+P50)>0,O50/(O50+P50),0) -> 0 | AH50: =IF((O50+P50)>0,P50/(O50+P50),0) -> 0 | AI50: =IF((Q50+R50)>0,Q50/(Q50+R50),0) -> 0 | AJ50: =IF((Q50+R50)>0,R50/(Q50+R50),0) -> 0 | AK50: =IF((S50+T50)>0,S50/(S50+T50),0) -> 0 | AL50: =IF((S50+T50)>0,T50/(S50+T50),0) -> 0
C52: =C5 -> 0 | D52: No | E52: =IF(E$50>0,E5/E$50,0) -> 0.8098238329 | F52: 0.919619978 | G52: 0 | H52: 0 | I52: 0 | J52: 0 | K52: 0 | L52: 0 | M52: 0 | N52: 0 | O52: 0 | P52: 0 | Q52: 0 | R52: 0 | S52: 0 | T52: 0
C53: 1 | D53: Yes. Code ‘yes only if the word ‘wife’, ‘husband’ is actually used to describe the person. | E53: =IF(E$50>0,E6/E$50,0) -> 0.1901761671 | F53: 0.08038002202 | G53: 0 | H53: 0 | I53: 0 | J53: 0 | K53: 0 | L53: 0 | M53: 0 | N53: 0 | O53: 0 | P53: 0 | Q53: 0 | R53: 0 | S53: 0 | T53: 0
C54: 2 | D54: NA – Use this where you are coding a secondary source only | E54: =IF(E$50>0,E7/E$50,0) -> 0 | F54: 0 | G54: 0 | H54: 0 | I54: 0 | J54: 0 | K54: 0 | L54: 0 | M54: 0 | N54: 0 | O54: 0 | P54: 0 | Q54: 0 | R54: 0 | S54: 0 | T54: 0
C55: 0 | D55: 0 | E55: =IF(E$50>0,E8/E$50,0) -> 0 | F55: 0 | G55: 0 | H55: 0 | I55: 0 | J55: 0 | K55: 0 | L55: 0 | M55: 0 | N55: 0 | O55: 0 | P55: 0 | Q55: 0 | R55: 0 | S55: 0 | T55: 0
C56: 0 | D56: 0 | E56: =IF(E$50>0,E9/E$50,0) -> 0 | F56: 0 | G56: 0 | H56: 0 | I56: 0 | J56: 0 | K56: 0 | L56: 0 | M56: 0 | N56: 0 | O56: 0 | P56: 0 | Q56: 0 | R56: 0 | S56: 0 | T56: 0
C57: 0 | D57: 0 | E57: =IF(E$50>0,E10/E$50,0) -> 0 | F57: 0 | G57: 0 | H57: 0 | I57: 0 | J57: 0 | K57: 0 | L57: 0 | M57: 0 | N57: 0 | O57: 0 | P57: 0 | Q57: 0 | R57: 0 | S57: 0 | T57: 0
C58: 0 | D58: 0 | E58: =IF(E$50>0,E11/E$50,0) -> 0 | F58: 0 | G58: 0 | H58: 0 | I58: 0 | J58: 0 | K58: 0 | L58: 0 | M58: 0 | N58: 0 | O58: 0 | P58: 0 | Q58: 0 | R58: 0 | S58: 0 | T58: 0
C59: 0 | D59: 0 | E59: =IF(E$50>0,E12/E$50,0) -> 0 | F59: 0 | G59: 0 | H59: 0 | I59: 0 | J59: 0 | K59: 0 | L59: 0 | M59: 0 | N59: 0 | O59: 0 | P59: 0 | Q59: 0 | R59: 0 | S59: 0 | T59: 0
C60: 0 | D60: 0 | E60: =IF(E$50>0,E13/E$50,0) -> 0 | F60: 0 | G60: 0 | H60: 0 | I60: 0 | J60: 0 | K60: 0 | L60: 0 | M60: 0 | N60: 0 | O60: 0 | P60: 0 | Q60: 0 | R60: 0 | S60: 0 | T60: 0
C61: 0 | D61: 0 | E61: =IF(E$50>0,E14/E$50,0) -> 0 | F61: 0 | G61: 0 | H61: 0 | I61: 0 | J61: 0 | K61: 0 | L61: 0 | M61: 0 | N61: 0 | O61: 0 | P61: 0 | Q61: 0 | R61: 0 | S61: 0 | T61: 0
C62: 0 | D62: 0 | E62: =IF(E$50>0,E15/E$50,0) -> 0 | F62: 0 | G62: 0 | H62: 0 | I62: 0 | J62: 0 | K62: 0 | L62: 0 | M62: 0 | N62: 0 | O62: 0 | P62: 0 | Q62: 0 | R62: 0 | S62: 0 | T62: 0
C63: 0 | D63: 0 | E63: =IF(E$50>0,E16/E$50,0) -> 0 | F63: 0 | G63: 0 | H63: 0 | I63: 0 | J63: 0 | K63: 0 | L63: 0 | M63: 0 | N63: 0 | O63: 0 | P63: 0 | Q63: 0 | R63: 0 | S63: 0 | T63: 0
C64: 0 | D64: 0 | E64: =IF(E$50>0,E17/E$50,0) -> 0 | F64: 0 | G64: 0 | H64: 0 | I64: 0 | J64: 0 | K64: 0 | L64: 0 | M64: 0 | N64: 0 | O64: 0 | P64: 0 | Q64: 0 | R64: 0 | S64: 0 | T64: 0
C65: 0 | D65: 0 | E65: =IF(E$50>0,E18/E$50,0) -> 0 | F65: 0 | G65: 0 | H65: 0 | I65: 0 | J65: 0 | K65: 0 | L65: 0 | M65: 0 | N65: 0 | O65: 0 | P65: 0 | Q65: 0 | R65: 0 | S65: 0 | T65: 0
C66: 0 | D66: 0 | E66: =IF(E$50>0,E19/E$50,0) -> 0 | F66: 0 | G66: 0 | H66: 0 | I66: 0 | J66: 0 | K66: 0 | L66: 0 | M66: 0 | N66: 0 | O66: 0 | P66: 0 | Q66: 0 | R66: 0 | S66: 0 | T66: 0
C67: 0 | D67: 0 | E67: =IF(E$50>0,E20/E$50,0) -> 0 | F67: 0 | G67: 0 | H67: 0 | I67: 0 | J67: 0 | K67: 0 | L67: 0 | M67: 0 | N67: 0 | O67: 0 | P67: 0 | Q67: 0 | R67: 0 | S67: 0 | T67: 0
C68: 0 | D68: 0 | E68: =IF(E$50>0,E21/E$50,0) -> 0 | F68: 0 | G68: 0 | H68: 0 | I68: 0 | J68: 0 | K68: 0 | L68: 0 | M68: 0 | N68: 0 | O68: 0 | P68: 0 | Q68: 0 | R68: 0 | S68: 0 | T68: 0
C69: 0 | D69: 0 | E69: =IF(E$50>0,E22/E$50,0) -> 0 | F69: 0 | G69: 0 | H69: 0 | I69: 0 | J69: 0 | K69: 0 | L69: 0 | M69: 0 | N69: 0 | O69: 0 | P69: 0 | Q69: 0 | R69: 0 | S69: 0 | T69: 0
C70: 0 | D70: 0 | E70: =IF(E$50>0,E23/E$50,0) -> 0 | F70: 0 | G70: 0 | H70: 0 | I70: 0 | J70: 0 | K70: 0 | L70: 0 | M70: 0 | N70: 0 | O70: 0 | P70: 0 | Q70: 0 | R70: 0 | S70: 0 | T70: 0
C71: 0 | D71: 0 | E71: =IF(E$50>0,E24/E$50,0) -> 0 | F71: 0 | G71: 0 | H71: 0 | I71: 0 | J71: 0 | K71: 0 | L71: 0 | M71: 0 | N71: 0 | O71: 0 | P71: 0 | Q71: 0 | R71: 0 | S71: 0 | T71: 0
C72: =C25 -> 0 | D72: 0 | E72: =IF(E$50>0,E25/E$50,0) -> 0 | F72: 0 | G72: 0 | H72: 0 | I72: 0 | J72: 0 | K72: 0 | L72: 0 | M72: 0 | N72: 0 | O72: 0 | P72: 0 | Q72: 0 | R72: 0 | S72: 0 | T72: 0
C73: 0 | D73: 0 | E73: =IF(E$50>0,E26/E$50,0) -> 0 | F73: 0 | G73: 0 | H73: 0 | I73: 0 | J73: 0 | K73: 0 | L73: 0 | M73: 0 | N73: 0 | O73: 0 | P73: 0 | Q73: 0 | R73: 0 | S73: 0 | T73: 0
C74: 0 | D74: 0 | E74: =IF(E$50>0,E27/E$50,0) -> 0 | F74: 0 | G74: 0 | H74: 0 | I74: 0 | J74: 0 | K74: 0 | L74: 0 | M74: 0 | N74: 0 | O74: 0 | P74: 0 | Q74: 0 | R74: 0 | S74: 0 | T74: 0
C75: 0 | D75: 0 | E75: =IF(E$50>0,E28/E$50,0) -> 0 | F75: 0 | G75: 0 | H75: 0 | I75: 0 | J75: 0 | K75: 0 | L75: 0 | M75: 0 | N75: 0 | O75: 0 | P75: 0 | Q75: 0 | R75: 0 | S75: 0 | T75: 0
C76: 0 | D76: 0 | E76: =IF(E$50>0,E29/E$50,0) -> 0 | F76: 0 | G76: 0 | H76: 0 | I76: 0 | J76: 0 | K76: 0 | L76: 0 | M76: 0 | N76: 0 | O76: 0 | P76: 0 | Q76: 0 | R76: 0 | S76: 0 | T76: 0
C77: 0 | D77: 0 | E77: =IF(E$50>0,E30/E$50,0) -> 0 | F77: 0 | G77: 0 | H77: 0 | I77: 0 | J77: 0 | K77: 0 | L77: 0 | M77: 0 | N77: 0 | O77: 0 | P77: 0 | Q77: 0 | R77: 0 | S77: 0 | T77: 0
C78: 0 | D78: 0 | E78: =IF(E$50>0,E31/E$50,0) -> 0 | F78: 0 | G78: 0 | H78: 0 | I78: 0 | J78: 0 | K78: 0 | L78: 0 | M78: 0 | N78: 0 | O78: 0 | P78: 0 | Q78: 0 | R78: 0 | S78: 0 | T78: 0
C79: 0 | D79: 0 | E79: =IF(E$50>0,E32/E$50,0) -> 0 | F79: 0 | G79: 0 | H79: 0 | I79: 0 | J79: 0 | K79: 0 | L79: 0 | M79: 0 | N79: 0 | O79: 0 | P79: 0 | Q79: 0 | R79: 0 | S79: 0 | T79: 0
C80: 0 | D80: 0 | E80: =IF(E$50>0,E33/E$50,0) -> 0 | F80: 0 | G80: 0 | H80: 0 | I80: 0 | J80: 0 | K80: 0 | L80: 0 | M80: 0 | N80: 0 | O80: 0 | P80: 0 | Q80: 0 | R80: 0 | S80: 0 | T80: 0
C81: 0 | D81: 0 | E81: =IF(E$50>0,E34/E$50,0) -> 0 | F81: 0 | G81: 0 | H81: 0 | I81: 0 | J81: 0 | K81: 0 | L81: 0 | M81: 0 | N81: 0 | O81: 0 | P81: 0 | Q81: 0 | R81: 0 | S81: 0 | T81: 0
C82: 0 | D82: 0 | E82: =IF(E$50>0,E35/E$50,0) -> 0 | F82: 0 | G82: 0 | H82: 0 | I82: 0 | J82: 0 | K82: 0 | L82: 0 | M82: 0 | N82: 0 | O82: 0 | P82: 0 | Q82: 0 | R82: 0 | S82: 0 | T82: 0
C83: 0 | D83: 0 | E83: =IF(E$50>0,E36/E$50,0) -> 0 | F83: 0 | G83: 0 | H83: 0 | I83: 0 | J83: 0 | K83: 0 | L83: 0 | M83: 0 | N83: 0 | O83: 0 | P83: 0 | Q83: 0 | R83: 0 | S83: 0 | T83: 0
C84: 0 | D84: 0 | E84: =IF(E$50>0,E37/E$50,0) -> 0 | F84: 0 | G84: 0 | H84: 0 | I84: 0 | J84: 0 | K84: 0 | L84: 0 | M84: 0 | N84: 0 | O84: 0 | P84: 0 | Q84: 0 | R84: 0 | S84: 0 | T84: 0
C85: 0 | D85: 0 | E85: =IF(E$50>0,E38/E$50,0) -> 0 | F85: 0 | G85: 0 | H85: 0 | I85: 0 | J85: 0 | K85: 0 | L85: 0 | M85: 0 | N85: 0 | O85: 0 | P85: 0 | Q85: 0 | R85: 0 | S85: 0 | T85: 0
C86: 0 | D86: 0 | E86: =IF(E$50>0,E39/E$50,0) -> 0 | F86: 0 | G86: 0 | H86: 0 | I86: 0 | J86: 0 | K86: 0 | L86: 0 | M86: 0 | N86: 0 | O86: 0 | P86: 0 | Q86: 0 | R86: 0 | S86: 0 | T86: 0
C87: 0 | D87: 0 | E87: =IF(E$50>0,E40/E$50,0) -> 0 | F87: 0 | G87: 0 | H87: 0 | I87: 0 | J87: 0 | K87: 0 | L87: 0 | M87: 0 | N87: 0 | O87: 0 | P87: 0 | Q87: 0 | R87: 0 | S87: 0 | T87: 0
C88: 0 | D88: 0 | E88: =IF(E$50>0,E41/E$50,0) -> 0 | F88: 0 | G88: 0 | H88: 0 | I88: 0 | J88: 0 | K88: 0 | L88: 0 | M88: 0 | N88: 0 | O88: 0 | P88: 0 | Q88: 0 | R88: 0 | S88: 0 | T88: 0
C89: 0 | D89: 0 | E89: =IF(E$50>0,E42/E$50,0) -> 0 | F89: 0 | G89: 0 | H89: 0 | I89: 0 | J89: 0 | K89: 0 | L89: 0 | M89: 0 | N89: 0 | O89: 0 | P89: 0 | Q89: 0 | R89: 0 | S89: 0 | T89: 0
C90: 0 | D90: 0 | E90: =IF(E$50>0,E43/E$50,0) -> 0 | F90: 0 | G90: 0 | H90: 0 | I90: 0 | J90: 0 | K90: 0 | L90: 0 | M90: 0 | N90: 0 | O90: 0 | P90: 0 | Q90: 0 | R90: 0 | S90: 0 | T90: 0
C91: 0 | D91: 0 | E91: =IF(E$50>0,E44/E$50,0) -> 0 | F91: 0 | G91: 0 | H91: 0 | I91: 0 | J91: 0 | K91: 0 | L91: 0 | M91: 0 | N91: 0 | O91: 0 | P91: 0 | Q91: 0 | R91: 0 | S91: 0 | T91: 0
C92: =C45 -> 0 | D92: 0 | E92: =IF(E$50>0,E45/E$50,0) -> 0 | F92: 0 | G92: 0 | H92: 0 | I92: 0 | J92: 0 | K92: 0 | L92: 0 | M92: 0 | N92: 0 | O92: 0 | P92: 0 | Q92: 0 | R92: 0 | S92: 0 | T92: 0
C93: 0 | D93: 0 | E93: =IF(E$50>0,E46/E$50,0) -> 0 | F93: 0 | G93: 0 | H93: 0 | I93: 0 | J93: 0 | K93: 0 | L93: 0 | M93: 0 | N93: 0 | O93: 0 | P93: 0 | Q93: 0 | R93: 0 | S93: 0 | T93: 0
C94: 0 | D94: 0 | E94: =IF(E$50>0,E47/E$50,0) -> 0 | F94: 0 | G94: 0 | H94: 0 | I94: 0 | J94: 0 | K94: 0 | L94: 0 | M94: 0 | N94: 0 | O94: 0 | P94: 0 | Q94: 0 | R94: 0 | S94: 0 | T94: 0
C95: 0 | D95: 0 | E95: =IF(E$50>0,E48/E$50,0) -> 0 | F95: 0 | G95: 0 | H95: 0 | I95: 0 | J95: 0 | K95: 0 | L95: 0 | M95: 0 | N95: 0 | O95: 0 | P95: 0 | Q95: 0 | R95: 0 | S95: 0 | T95: 0
C96: 0 | D96: 0 | E96: =IF(E$50>0,E49/E$50,0) -> 0 | F96: 0 | G96: 0 | H96: 0 | I96: 0 | J96: 0 | K96: 0 | L96: 0 | M96: 0 | N96: 0 | O96: 0 | P96: 0 | Q96: 0 | R96: 0 | S96: 0 | T96: 0
A109: COUNT
E110: =E3 -> Female | F110: Male | G110: 0 | H110: 0 | I110: 0 | J110: 0 | K110: 0 | L110: 0 | M110: 0 | N110: 0 | O110: 0 | P110: 0 | Q110: 0 | R110: 0 | S110: 0 | T110: 0
E111: =E4 -> 0 | F111: 0 | G111: 0 | H111: 0 | I111: 0 | J111: 0 | K111: 0 | L111: 0 | M111: 0 | N111: 0 | O111: 0 | P111: 0 | Q111: 0 | R111: 0 | S111: 0 | T111: 0
C112: =C5 -> 0 | D112: No | E112: 76 | F112: 217
C113: 1 | D113: Yes. Code ‘yes only if the word ‘wife’, ‘husband’ is actually used to describe the person. | E113: 18 | F113: 20
C114: 2 | D114: NA – Use this where you are coding a secondary source only | E114: 0 | F114: 0
C115: 0 | D115: 0 | E115: 0 | F115: 0
C116: 0 | D116: 0 | E116: 0 | F116: 0
C117: 0 | D117: 0
C118: 0 | D118: 0
C119: 0 | D119: 0
C120: 0 | D120: 0
C121: 0 | D121: 0
C122: 0 | D122: 0
C123: 0 | D123: 0
C124: 0 | D124: 0
C125: 0 | D125: 0
C126: 0 | D126: 0
C127: 0 | D127: 0
C128: 0 | D128: 0
C129: 0 | D129: 0
C130: 0 | D130: 0
C131: 0 | D131: 0
C132: =C25 -> 0 | D132: 0
C133: 0 | D133: 0
C134: 0 | D134: 0
C135: 0 | D135: 0
C136: 0 | D136: 0
C137: 0 | D137: 0
C138: 0 | D138: 0
C139: 0 | D139: 0
C140: 0 | D140: 0
C141: 0 | D141: 0
C142: 0 | D142: 0
C143: 0 | D143: 0
C144: 0 | D144: 0
C145: 0 | D145: 0
C146: 0 | D146: 0
C147: 0 | D147: 0
C148: 0 | D148: 0
C149: 0 | D149: 0
C150: 0 | D150: 0
C151: 0 | D151: 0
C152: =C45 -> 0 | D152: 0
C153: 0 | D153: 0
C154: 0 | D154: 0

Sheet 9hF - Family status, by sex
A1: ='9h'!$A$1 -> News subjects who are identified by family status, by sex
F2: % Female | K2: % Male
E3: Whether identified by family status | F3: 1995 | G3: 2000 | H3: 2005 | I3: 2010 | J3: N | K3: 2005 | L3: 2010 | M3: N
E4: No | F4: 0 | G4: 0 | H4: =1-H5 -> 0.83 | I4: ='9h'!E52 -> 0.8098238329 | J4: ='9h'!E112 -> 76 | K4: XXX | L4: ='9h'!F52 -> 0.919619978 | M4: ='9h'!F112 -> 217
E5: Yes | F5: 0 | G5: 0 | H5: 0.17 | I5: ='9h'!E53 -> 0.1901761671 | J5: ='9h'!E113 -> 18 | K5: XXX | L5: ='9h'!F53 -> 0.08038002202 | M5: ='9h'!F113 -> 20
E6: NA | F6: 0 | G6: 0 | H6: n/a | I6: ='9h'!E54 -> 0 | J6: ='9h'!E114 -> 0 | K6: n/a | L6: ='9h'!H54 -> 0 | M6: ='9h'!H114 -> 0
F8: 0 | G8: 0

Sheet 9j (hidden)
A1: Sex of news subjects in photographs & overall
E3: Female | F3: Male | W3: =E3 -> Female | X3: =F3 -> Male
V4: TOTAL | W4: =E4 -> 0 | X4: =F4 -> 0
C5: 0 | D5: No | E5: 0.2093419936 | F5: 0.6055964814 | V5: =SUM(E5:O5) -> 0.8149384749 | W5: =+E5/E$50 -> 0.7777777778 | X5: =+F5/F$50 -> 0.7570093458
C6: 1 | D6: Yes | E6: 0.05981199816 | F6: 0.194388994 | V6: =SUM(E6:O6) -> 0.2542009922 | W6: =+E6/E$50 -> 0.2222222222 | X6: =+F6/F$50 -> 0.2429906542
C7: 2 | D7: Don't know (e.g. there is a photo, but you are not sure if this person appears in it) | E7: 0.01495299954 | F7: 0.04485899862 | V7: =SUM(E7:O7) -> 0.05981199816
C8: 3 | D8: NA – Use this where you are coding a secondary source only
D50: TOTAL | E50: =SUM(E5:E6) -> 0.2691539917 | F50: =SUM(F5:F6) -> 0.7999854754 | G50: =SUM(G5:G49) -> 0 | H50: 0 | I50: 0 | J50: 0 | K50: 0 | L50: 0 | M50: 0 | N50: 0 | O50: 0 | P50: 0 | Q50: 0 | R50: 0 | S50: 0 | T50: 0 | V50: =SUM(E50:O50) -> 1.069139467 | W50: =IF((E50+F50)>0,E50/(E50+F50),0) -> 0.2517482517 | X50: =IF((E50+F50)>0,F50/(E50+F50),0) -> 0.7482517483 | Y50: =IF((G50+H50)>0,G50/(G50+H50),0) -> 0 | Z50: =IF((G50+H50)>0,H50/(G50+H50),0) -> 0 | AA50: =IF((I50+J50)>0,I50/(I50+J50),0) -> 0 | AB50: =IF((I50+J50)>0,J50/(I50+J50),0) -> 0 | AC50: =IF((K50+L50)>0,K50/(K50+L50),0) -> 0 | AD50: =IF((K50+L50)>0,L50/(K50+L50),0) -> 0 | AE50: =IF((M50+N50)>0,M50/(M50+N50),0) -> 0 | AF50: =IF((M50+N50)>0,N50/(M50+N50),0) -> 0 | AG50: =IF((O50+P50)>0,O50/(O50+P50),0) -> 0 | AH50: =IF((O50+P50)>0,P50/(O50+P50),0) -> 0 | AI50: =IF((Q50+R50)>0,Q50/(Q50+R50),0) -> 0 | AJ50: =IF((Q50+R50)>0,R50/(Q50+R50),0) -> 0 | AK50: =IF((S50+T50)>0,S50/(S50+T50),0) -> 0 | AL50: =IF((S50+T50)>0,T50/(S50+T50),0) -> 0
C52: =C5 -> 0 | D52: No | E52: =IF(E$50>0,E5/E$50,0) -> 0.7777777778 | F52: 0.7570093458 | G52: 0 | H52: 0 | I52: 0 | J52: 0 | K52: 0 | L52: 0 | M52: 0 | N52: 0 | O52: 0 | P52: 0 | Q52: 0 | R52: 0 | S52: 0 | T52: 0
C53: 1 | D53: Yes | E53: =IF(E$50>0,E6/E$50,0) -> 0.2222222222 | F53: 0.2429906542 | G53: 0 | H53: 0 | I53: 0 | J53: 0 | K53: 0 | L53: 0 | M53: 0 | N53: 0 | O53: 0 | P53: 0 | Q53: 0 | R53: 0 | S53: 0 | T53: 0
C54: 2 | D54: Don't know (e.g. there is a photo, but you are not sure if this person appears in it) | E54: =IF(E$50>0,E7/E$50,0) -> 0.05555555556 | F54: 0.05607476636 | G54: 0 | H54: 0 | I54: 0 | J54: 0 | K54: 0 | L54: 0 | M54: 0 | N54: 0 | O54: 0 | P54: 0 | Q54: 0 | R54: 0 | S54: 0 | T54: 0
C55: 3 | D55: NA – Use this where you are coding a secondary source only | E55: =IF(E$50>0,E8/E$50,0) -> 0 | F55: 0 | G55: 0 | H55: 0 | I55: 0 | J55: 0 | K55: 0 | L55: 0 | M55: 0 | N55: 0 | O55: 0 | P55: 0 | Q55: 0 | R55: 0 | S55: 0 | T55: 0
C56: 0 | D56: 0 | E56: =IF(E$50>0,E9/E$50,0) -> 0 | F56: 0 | G56: 0 | H56: 0 | I56: 0 | J56: 0 | K56: 0 | L56: 0 | M56: 0 | N56: 0 | O56: 0 | P56: 0 | Q56: 0 | R56: 0 | S56: 0 | T56: 0
C57: 0 | D57: 0 | E57: =IF(E$50>0,E10/E$50,0) -> 0 | F57: 0 | G57: 0 | H57: 0 | I57: 0 | J57: 0 | K57: 0 | L57: 0 | M57: 0 | N57: 0 | O57: 0 | P57: 0 | Q57: 0 | R57: 0 | S57: 0 | T57: 0
C58: 0 | D58: 0 | E58: =IF(E$50>0,E11/E$50,0) -> 0 | F58: 0 | G58: 0 | H58: 0 | I58: 0 | J58: 0 | K58: 0 | L58: 0 | M58: 0 | N58: 0 | O58: 0 | P58: 0 | Q58: 0 | R58: 0 | S58: 0 | T58: 0
C59: 0 | D59: 0 | E59: =IF(E$50>0,E12/E$50,0) -> 0 | F59: 0 | G59: 0 | H59: 0 | I59: 0 | J59: 0 | K59: 0 | L59: 0 | M59: 0 | N59: 0 | O59: 0 | P59: 0 | Q59: 0 | R59: 0 | S59: 0 | T59: 0
C60: 0 | D60: 0 | E60: =IF(E$50>0,E13/E$50,0) -> 0 | F60: 0 | G60: 0 | H60: 0 | I60: 0 | J60: 0 | K60: 0 | L60: 0 | M60: 0 | N60: 0 | O60: 0 | P60: 0 | Q60: 0 | R60: 0 | S60: 0 | T60: 0
C61: 0 | D61: 0 | E61: =IF(E$50>0,E14/E$50,0) -> 0 | F61: 0 | G61: 0 | H61: 0 | I61: 0 | J61: 0 | K61: 0 | L61: 0 | M61: 0 | N61: 0 | O61: 0 | P61: 0 | Q61: 0 | R61: 0 | S61: 0 | T61: 0
C62: 0 | D62: 0 | E62: =IF(E$50>0,E15/E$50,0) -> 0 | F62: 0 | G62: 0 | H62: 0 | I62: 0 | J62: 0 | K62: 0 | L62: 0 | M62: 0 | N62: 0 | O62: 0 | P62: 0 | Q62: 0 | R62: 0 | S62: 0 | T62: 0
C63: 0 | D63: 0 | E63: =IF(E$50>0,E16/E$50,0) -> 0 | F63: 0 | G63: 0 | H63: 0 | I63: 0 | J63: 0 | K63: 0 | L63: 0 | M63: 0 | N63: 0 | O63: 0 | P63: 0 | Q63: 0 | R63: 0 | S63: 0 | T63: 0
C64: 0 | D64: 0 | E64: =IF(E$50>0,E17/E$50,0) -> 0 | F64: 0 | G64: 0 | H64: 0 | I64: 0 | J64: 0 | K64: 0 | L64: 0 | M64: 0 | N64: 0 | O64: 0 | P64: 0 | Q64: 0 | R64: 0 | S64: 0 | T64: 0
C65: 0 | D65: 0 | E65: =IF(E$50>0,E18/E$50,0) -> 0 | F65: 0 | G65: 0 | H65: 0 | I65: 0 | J65: 0 | K65: 0 | L65: 0 | M65: 0 | N65: 0 | O65: 0 | P65: 0 | Q65: 0 | R65: 0 | S65: 0 | T65: 0
C66: 0 | D66: 0 | E66: =IF(E$50>0,E19/E$50,0) -> 0 | F66: 0 | G66: 0 | H66: 0 | I66: 0 | J66: 0 | K66: 0 | L66: 0 | M66: 0 | N66: 0 | O66: 0 | P66: 0 | Q66: 0 | R66: 0 | S66: 0 | T66: 0
C67: 0 | D67: 0 | E67: =IF(E$50>0,E20/E$50,0) -> 0 | F67: 0 | G67: 0 | H67: 0 | I67: 0 | J67: 0 | K67: 0 | L67: 0 | M67: 0 | N67: 0 | O67: 0 | P67: 0 | Q67: 0 | R67: 0 | S67: 0 | T67: 0
C68: 0 | D68: 0 | E68: =IF(E$50>0,E21/E$50,0) -> 0 | F68: 0 | G68: 0 | H68: 0 | I68: 0 | J68: 0 | K68: 0 | L68: 0 | M68: 0 | N68: 0 | O68: 0 | P68: 0 | Q68: 0 | R68: 0 | S68: 0 | T68: 0
C69: 0 | D69: 0 | E69: =IF(E$50>0,E22/E$50,0) -> 0 | F69: 0 | G69: 0 | H69: 0 | I69: 0 | J69: 0 | K69: 0 | L69: 0 | M69: 0 | N69: 0 | O69: 0 | P69: 0 | Q69: 0 | R69: 0 | S69: 0 | T69: 0
C70: 0 | D70: 0 | E70: =IF(E$50>0,E23/E$50,0) -> 0 | F70: 0 | G70: 0 | H70: 0 | I70: 0 | J70: 0 | K70: 0 | L70: 0 | M70: 0 | N70: 0 | O70: 0 | P70: 0 | Q70: 0 | R70: 0 | S70: 0 | T70: 0
C71: 0 | D71: 0 | E71: =IF(E$50>0,E24/E$50,0) -> 0 | F71: 0 | G71: 0 | H71: 0 | I71: 0 | J71: 0 | K71: 0 | L71: 0 | M71: 0 | N71: 0 | O71: 0 | P71: 0 | Q71: 0 | R71: 0 | S71: 0 | T71: 0
C72: =C25 -> 0 | D72: 0 | E72: =IF(E$50>0,E25/E$50,0) -> 0 | F72: 0 | G72: 0 | H72: 0 | I72: 0 | J72: 0 | K72: 0 | L72: 0 | M72: 0 | N72: 0 | O72: 0 | P72: 0 | Q72: 0 | R72: 0 | S72: 0 | T72: 0
C73: 0 | D73: 0 | E73: =IF(E$50>0,E26/E$50,0) -> 0 | F73: 0 | G73: 0 | H73: 0 | I73: 0 | J73: 0 | K73: 0 | L73: 0 | M73: 0 | N73: 0 | O73: 0 | P73: 0 | Q73: 0 | R73: 0 | S73: 0 | T73: 0
C74: 0 | D74: 0 | E74: =IF(E$50>0,E27/E$50,0) -> 0 | F74: 0 | G74: 0 | H74: 0 | I74: 0 | J74: 0 | K74: 0 | L74: 0 | M74: 0 | N74: 0 | O74: 0 | P74: 0 | Q74: 0 | R74: 0 | S74: 0 | T74: 0
C75: 0 | D75: 0 | E75: =IF(E$50>0,E28/E$50,0) -> 0 | F75: 0 | G75: 0 | H75: 0 | I75: 0 | J75: 0 | K75: 0 | L75: 0 | M75: 0 | N75: 0 | O75: 0 | P75: 0 | Q75: 0 | R75: 0 | S75: 0 | T75: 0
C76: 0 | D76: 0 | E76: =IF(E$50>0,E29/E$50,0) -> 0 | F76: 0 | G76: 0 | H76: 0 | I76: 0 | J76: 0 | K76: 0 | L76: 0 | M76: 0 | N76: 0 | O76: 0 | P76: 0 | Q76: 0 | R76: 0 | S76: 0 | T76: 0
C77: 0 | D77: 0 | E77: =IF(E$50>0,E30/E$50,0) -> 0 | F77: 0 | G77: 0 | H77: 0 | I77: 0 | J77: 0 | K77: 0 | L77: 0 | M77: 0 | N77: 0 | O77: 0 | P77: 0 | Q77: 0 | R77: 0 | S77: 0 | T77: 0
C78: 0 | D78: 0 | E78: =IF(E$50>0,E31/E$50,0) -> 0 | F78: 0 | G78: 0 | H78: 0 | I78: 0 | J78: 0 | K78: 0 | L78: 0 | M78: 0 | N78: 0 | O78: 0 | P78: 0 | Q78: 0 | R78: 0 | S78: 0 | T78: 0
C79: 0 | D79: 0 | E79: =IF(E$50>0,E32/E$50,0) -> 0 | F79: 0 | G79: 0 | H79: 0 | I79: 0 | J79: 0 | K79: 0 | L79: 0 | M79: 0 | N79: 0 | O79: 0 | P79: 0 | Q79: 0 | R79: 0 | S79: 0 | T79: 0
C80: 0 | D80: 0 | E80: =IF(E$50>0,E33/E$50,0) -> 0 | F80: 0 | G80: 0 | H80: 0 | I80: 0 | J80: 0 | K80: 0 | L80: 0 | M80: 0 | N80: 0 | O80: 0 | P80: 0 | Q80: 0 | R80: 0 | S80: 0 | T80: 0
C81: 0 | D81: 0 | E81: =IF(E$50>0,E34/E$50,0) -> 0 | F81: 0 | G81: 0 | H81: 0 | I81: 0 | J81: 0 | K81: 0 | L81: 0 | M81: 0 | N81: 0 | O81: 0 | P81: 0 | Q81: 0 | R81: 0 | S81: 0 | T81: 0
C82: 0 | D82: 0 | E82: =IF(E$50>0,E35/E$50,0) -> 0 | F82: 0 | G82: 0 | H82: 0 | I82: 0 | J82: 0 | K82: 0 | L82: 0 | M82: 0 | N82: 0 | O82: 0 | P82: 0 | Q82: 0 | R82: 0 | S82: 0 | T82: 0
C83: 0 | D83: 0 | E83: =IF(E$50>0,E36/E$50,0) -> 0 | F83: 0 | G83: 0 | H83: 0 | I83: 0 | J83: 0 | K83: 0 | L83: 0 | M83: 0 | N83: 0 | O83: 0 | P83: 0 | Q83: 0 | R83: 0 | S83: 0 | T83: 0
C84: 0 | D84: 0 | E84: =IF(E$50>0,E37/E$50,0) -> 0 | F84: 0 | G84: 0 | H84: 0 | I84: 0 | J84: 0 | K84: 0 | L84: 0 | M84: 0 | N84: 0 | O84: 0 | P84: 0 | Q84: 0 | R84: 0 | S84: 0 | T84: 0
C85: 0 | D85: 0 | E85: =IF(E$50>0,E38/E$50,0) -> 0 | F85: 0 | G85: 0 | H85: 0 | I85: 0 | J85: 0 | K85: 0 | L85: 0 | M85: 0 | N85: 0 | O85: 0 | P85: 0 | Q85: 0 | R85: 0 | S85: 0 | T85: 0
C86: 0 | D86: 0 | E86: =IF(E$50>0,E39/E$50,0) -> 0 | F86: 0 | G86: 0 | H86: 0 | I86: 0 | J86: 0 | K86: 0 | L86: 0 | M86: 0 | N86: 0 | O86: 0 | P86: 0 | Q86: 0 | R86: 0 | S86: 0 | T86: 0
C87: 0 | D87: 0 | E87: =IF(E$50>0,E40/E$50,0) -> 0 | F87: 0 | G87: 0 | H87: 0 | I87: 0 | J87: 0 | K87: 0 | L87: 0 | M87: 0 | N87: 0 | O87: 0 | P87: 0 | Q87: 0 | R87: 0 | S87: 0 | T87: 0
C88: 0 | D88: 0 | E88: =IF(E$50>0,E41/E$50,0) -> 0 | F88: 0 | G88: 0 | H88: 0 | I88: 0 | J88: 0 | K88: 0 | L88: 0 | M88: 0 | N88: 0 | O88: 0 | P88: 0 | Q88: 0 | R88: 0 | S88: 0 | T88: 0
C89: 0 | D89: 0 | E89: =IF(E$50>0,E42/E$50,0) -> 0 | F89: 0 | G89: 0 | H89: 0 | I89: 0 | J89: 0 | K89: 0 | L89: 0 | M89: 0 | N89: 0 | O89: 0 | P89: 0 | Q89: 0 | R89: 0 | S89: 0 | T89: 0
C90: 0 | D90: 0 | E90: =IF(E$50>0,E43/E$50,0) -> 0 | F90: 0 | G90: 0 | H90: 0 | I90: 0 | J90: 0 | K90: 0 | L90: 0 | M90: 0 | N90: 0 | O90: 0 | P90: 0 | Q90: 0 | R90: 0 | S90: 0 | T90: 0
C91: 0 | D91: 0 | E91: =IF(E$50>0,E44/E$50,0) -> 0 | F91: 0 | G91: 0 | H91: 0 | I91: 0 | J91: 0 | K91: 0 | L91: 0 | M91: 0 | N91: 0 | O91: 0 | P91: 0 | Q91: 0 | R91: 0 | S91: 0 | T91: 0
C92: =C45 -> 0 | D92: 0 | E92: =IF(E$50>0,E45/E$50,0) -> 0 | F92: 0 | G92: 0 | H92: 0 | I92: 0 | J92: 0 | K92: 0 | L92: 0 | M92: 0 | N92: 0 | O92: 0 | P92: 0 | Q92: 0 | R92: 0 | S92: 0 | T92: 0
C93: 0 | D93: 0 | E93: =IF(E$50>0,E46/E$50,0) -> 0 | F93: 0 | G93: 0 | H93: 0 | I93: 0 | J93: 0 | K93: 0 | L93: 0 | M93: 0 | N93: 0 | O93: 0 | P93: 0 | Q93: 0 | R93: 0 | S93: 0 | T93: 0
C94: 0 | D94: 0 | E94: =IF(E$50>0,E47/E$50,0) -> 0 | F94: 0 | G94: 0 | H94: 0 | I94: 0 | J94: 0 | K94: 0 | L94: 0 | M94: 0 | N94: 0 | O94: 0 | P94: 0 | Q94: 0 | R94: 0 | S94: 0 | T94: 0
C95: 0 | D95: 0 | E95: =IF(E$50>0,E48/E$50,0) -> 0 | F95: 0 | G95: 0 | H95: 0 | I95: 0 | J95: 0 | K95: 0 | L95: 0 | M95: 0 | N95: 0 | O95: 0 | P95: 0 | Q95: 0 | R95: 0 | S95: 0 | T95: 0
C96: 0 | D96: 0 | E96: =IF(E$50>0,E49/E$50,0) -> 0 | F96: 0 | G96: 0 | H96: 0 | I96: 0 | J96: 0 | K96: 0 | L96: 0 | M96: 0 | N96: 0 | O96: 0 | P96: 0 | Q96: 0 | R96: 0 | S96: 0 | T96: 0
A109: COUNT
E110: =E3 -> Female | F110: Male | G110: 0 | H110: 0 | I110: 0 | J110: 0 | K110: 0 | L110: 0 | M110: 0 | N110: 0 | O110: 0 | P110: 0 | Q110: 0 | R110: 0 | S110: 0 | T110: 0
E111: =E4 -> 0 | F111: 0 | G111: 0 | H111: 0 | I111: 0 | J111: 0 | K111: 0 | L111: 0 | M111: 0 | N111: 0 | O111: 0 | P111: 0 | Q111: 0 | R111: 0 | S111: 0 | T111: 0
C112: =C5 -> 0 | D112: No | E112: 28 | F112: 81
C113: 1 | D113: Yes | E113: 8 | F113: 26
C114: 2 | D114: Don't know (e.g. there is a photo, but you are not sure if this person appears in it) | E114: 2 | F114: 6
C115: 3 | D115: NA – Use this where you are coding a secondary source only | E115: 0 | F115: 0
C116: 0 | D116: 0 | E116: 0 | F116: 0
C117: 0 | D117: 0
C118: 0 | D118: 0
C119: 0 | D119: 0
C120: 0 | D120: 0
C121: 0 | D121: 0
C122: 0 | D122: 0
C123: 0 | D123: 0
C124: 0 | D124: 0
C125: 0 | D125: 0
C126: 0 | D126: 0
C127: 0 | D127: 0
C128: 0 | D128: 0
C129: 0 | D129: 0
C130: 0 | D130: 0
C131: 0 | D131: 0
C132: =C25 -> 0 | D132: 0
C133: 0 | D133: 0
C134: 0 | D134: 0
C135: 0 | D135: 0
C136: 0 | D136: 0
C137: 0 | D137: 0
C138: 0 | D138: 0
C139: 0 | D139: 0
C140: 0 | D140: 0
C141: 0 | D141: 0
C142: 0 | D142: 0
C143: 0 | D143: 0
C144: 0 | D144: 0
C145: 0 | D145: 0
C146: 0 | D146: 0
C147: 0 | D147: 0
C148: 0 | D148: 0
C149: 0 | D149: 0
C150: 0 | D150: 0
C151: 0 | D151: 0
C152: =C45 -> 0 | D152: 0
C153: 0 | D153: 0
C154: 0 | D154: 0

Sheet 9jF - Photographs
A1: News subjects appearing in photographs
F2: % Female | K2: % Male
E3: Whether photographed | F3: 1995 | G3: 2000 | H3: 2005 | I3: 2010 | J3: N | K3: 1995 | L3: 2000 | M3: 2005 | N3: 2010 | O3: N
E5: No | F5: 0 | G5: 0.75 | H5: =1-H6 -> 0.77 | I5: ='9j'!W5 -> 0.7777777778 | J5: ='9j'!E112 -> 28 | K5: 0 | L5: 0.89 | M5: =1-M6 -> 0.84 | N5: ='9j'!X5 -> 0.7570093458 | O5: ='9j'!F112 -> 81
E6: Yes | F6: 0 | G6: 0.25 | H6: 0.23 | I6: ='9j'!W6 -> 0.2222222222 | J6: ='9j'!E113 -> 8 | K6: 0 | L6: 0.11 | M6: 0.16 | N6: ='9j'!X6 -> 0.2429906542 | O6: ='9j'!F113 -> 26
E7: Don't know | F7: 0 | G7: n/a | H7: n/a | I7: ='9j'!W7 -> 0 | J7: ='9j'!E114 -> 2 | K7: 0 | L7: n/a | M7: n/a | N7: ='9j'!X7 -> 0 | O7: ='9j'!F114 -> 6
G12: Data from 1995 not the same query

Sheet 9k (hidden)
A1: News subjects who are identified by family status, by sex by sex of reporter
D3: JA Sex | E3: Female | G3: Male | W3: =E3 -> Female | X3: 0 | Y3: Male | Z3: 0 | AA3: 0 | AB3: 0 | AC3: 0 | AD3: 0 | AE3: 0 | AF3: 0 | AG3: 0 | AH3: 0 | AI3: 0 | AJ3: 0 | AK3: 0
D4: Subject Sex | E4: Female | F4: Male | G4: Female | H4: Male | V4: TOTAL | W4: Female | X4: Male | Y4: Female | Z4: Male | AA4: 0 | AB4: 0 | AC4: 0 | AD4: 0 | AE4: 0 | AF4: 0 | AG4: 0 | AH4: 0 | AI4: 0 | AJ4: 0 | AK4: 0 | AL4: =T4 -> 0
C5: 0 | D5: No | E5: 0.04485899862 | F5: 0.1869124942 | G5: 0.1271004961 | H5: 0.5084019843 | V5: =SUM(E5:O5) -> 0.8672739733 | W5: =IF((E5+F5)>0,E5/(E5+F5),0) -> 0.1935483871 | X5: =IF((E5+F5)>0,F5/(E5+F5),0) -> 0.8064516129 | Y5: =IF((G5+H5)>0,G5/(G5+H5),0) -> 0.2 | Z5: =IF((G5+H5)>0,H5/(G5+H5),0) -> 0.8 | AA5: =IF((I5+J5)>0,I5/(I5+J5),0) -> 0 | AB5: =IF((I5+J5)>0,J5/(I5+J5),0) -> 0 | AC5: =IF((K5+L5)>0,K5/(K5+L5),0) -> 0 | AD5: =IF((K5+L5)>0,L5/(K5+L5),0) -> 0 | AE5: =IF((M5+N5)>0,M5/(M5+N5),0) -> 0 | AF5: =IF((M5+N5)>0,N5/(M5+N5),0) -> 0 | AG5: =IF((O5+P5)>0,O5/(O5+P5),0) -> 0 | AH5: =IF((O5+P5)>0,P5/(O5+P5),0) -> 0 | AI5: =IF((Q5+R5)>0,Q5/(Q5+R5),0) -> 0 | AJ5: =IF((Q5+R5)>0,R5/(Q5+R5),0) -> 0 | AK5: =IF((S5+T5)>0,S5/(S5+T5),0) -> 0 | AL5: =IF((S5+T5)>0,T5/(S5+T5),0) -> 0
C6: 1 | D6: Yes. Code ‘yes only if the word ‘wife’, ‘husband’ is actually used to describe the person. | E6: 0.00747649977 | G6: 0.02990599908 | H6: 0.05233549839 | V6: 0.08971799724 | W6: 1 | X6: 0 | Y6: 0.3636363636 | Z6: 0.6363636364 | AA6: 0 | AB6: 0 | AC6: 0 | AD6: 0 | AE6: 0 | AF6: 0 | AG6: 0 | AH6: 0 | AI6: 0 | AJ6: 0 | AK6: 0 | AL6: 0
C7: 2 | D7: NA – Use this where you are coding a secondary source only | V7: 0 | W7: 0 | X7: 0 | Y7: 0 | Z7: 0 | AA7: 0 | AB7: 0 | AC7: 0 | AD7: 0 | AE7: 0 | AF7: 0 | AG7: 0 | AH7: 0 | AI7: 0 | AJ7: 0 | AK7: 0 | AL7: 0
V8: 0 | W8: 0 | X8: 0 | Y8: 0 | Z8: 0 | AA8: 0 | AB8: 0 | AC8: 0 | AD8: 0 | AE8: 0 | AF8: 0 | AG8: 0 | AH8: 0 | AI8: 0 | AJ8: 0 | AK8: 0 | AL8: 0
V9: 0 | W9: 0 | X9: 0 | Y9: 0 | Z9: 0 | AA9: 0 | AB9: 0 | AC9: 0 | AD9: 0 | AE9: 0 | AF9: 0 | AG9: 0 | AH9: 0 | AI9: 0 | AJ9: 0 | AK9: 0 | AL9: 0
V10: 0 | W10: 0 | X10: 0 | Y10: 0 | Z10: 0 | AA10: 0 | AB10: 0 | AC10: 0 | AD10: 0 | AE10: 0 | AF10: 0 | AG10: 0 | AH10: 0 | AI10: 0 | AJ10: 0 | AK10: 0 | AL10: 0
V11: 0 | W11: 0 | X11: 0 | Y11: 0 | Z11: 0 | AA11: 0 | AB11: 0 | AC11: 0 | AD11: 0 | AE11: 0 | AF11: 0 | AG11: 0 | AH11: 0 | AI11: 0 | AJ11: 0 | AK11: 0 | AL11: 0
V12: 0 | W12: 0 | X12: 0 | Y12: 0 | Z12: 0 | AA12: 0 | AB12: 0 | AC12: 0 | AD12: 0 | AE12: 0 | AF12: 0 | AG12: 0 | AH12: 0 | AI12: 0 | AJ12: 0 | AK12: 0 | AL12: 0
D50: TOTAL | E50: =SUM(E5:E6) -> 0.05233549839 | F50: =SUM(F5:F6) -> 0.1869124942 | G50: =SUM(G5:G6) -> 0.1570064952 | H50: 0.5607374827 | I50: 0 | J50: 0 | K50: 0 | L50: 0 | M50: 0 | N50: 0 | O50: 0 | P50: 0 | Q50: 0 | R50: 0 | S50: 0 | T50: =SUM(T5:T49) -> 0 | V50: =SUM(E50:O50) -> 0.9569919705 | W50: =IF((E50+F50)>0,E50/(E50+F50),0) -> 0.21875 | X50: =IF((E50+F50)>0,F50/(E50+F50),0) -> 0.78125 | Y50: =IF((G50+H50)>0,G50/(G50+H50),0) -> 0.21875 | Z50: =IF((G50+H50)>0,H50/(G50+H50),0) -> 0.78125 | AA50: =IF((I50+J50)>0,I50/(I50+J50),0) -> 0 | AB50: =IF((I50+J50)>0,J50/(I50+J50),0) -> 0 | AC50: =IF((K50+L50)>0,K50/(K50+L50),0) -> 0 | AD50: =IF((K50+L50)>0,L50/(K50+L50),0) -> 0 | AE50: =IF((M50+N50)>0,M50/(M50+N50),0) -> 0 | AF50: =IF((M50+N50)>0,N50/(M50+N50),0) -> 0 | AG50: =IF((O50+P50)>0,O50/(O50+P50),0) -> 0 | AH50: =IF((O50+P50)>0,P50/(O50+P50),0) -> 0 | AI50: =IF((Q50+R50)>0,Q50/(Q50+R50),0) -> 0 | AJ50: =IF((Q50+R50)>0,R50/(Q50+R50),0) -> 0 | AK50: =IF((S50+T50)>0,S50/(S50+T50),0) -> 0 | AL50: =IF((S50+T50)>0,T50/(S50+T50),0) -> 0
C52: =C5 -> 0 | D52: No | E52: =IF(E$50>0,E5/E$50,0) -> 0.8571428571 | F52: 1 | G52: 0.8095238095 | H52: 0.9066666667 | I52: 0 | J52: 0 | K52: 0 | L52: 0 | M52: 0 | N52: 0 | O52: 0 | P52: 0 | Q52: 0 | R52: 0 | S52: 0 | T52: 0
C53: 1 | D53: Yes. Code ‘yes only if the word ‘wife’, ‘husband’ is actually used to describe the person. | E53: =IF(E$50>0,E6/E$50,0) -> 0.1428571429 | F53: 0 | G53: 0.1904761905 | H53: 0.09333333333 | I53: 0 | J53: 0 | K53: 0 | L53: 0 | M53: 0 | N53: 0 | O53: 0 | P53: 0 | Q53: 0 | R53: 0 | S53: 0 | T53: 0
C54: 2 | D54: NA – Use this where you are coding a secondary source only | E54: =IF(E$50>0,E7/E$50,0) -> 0 | F54: 0 | G54: 0 | H54: 0 | I54: 0 | J54: 0 | K54: 0 | L54: 0 | M54: 0 | N54: 0 | O54: 0 | P54: 0 | Q54: 0 | R54: 0 | S54: 0 | T54: 0
C55: 0 | D55: 0 | E55: =IF(E$50>0,E8/E$50,0) -> 0 | F55: 0 | G55: 0 | H55: 0 | I55: 0 | J55: 0 | K55: 0 | L55: 0 | M55: 0 | N55: 0 | O55: 0 | P55: 0 | Q55: 0 | R55: 0 | S55: 0 | T55: 0
C56: 0 | D56: 0 | E56: =IF(E$50>0,E9/E$50,0) -> 0 | F56: 0 | G56: 0 | H56: 0 | I56: 0 | J56: 0 | K56: 0 | L56: 0 | M56: 0 | N56: 0 | O56: 0 | P56: 0 | Q56: 0 | R56: 0 | S56: 0 | T56: 0
C57: 0 | D57: 0 | E57: =IF(E$50>0,E10/E$50,0) -> 0 | F57: 0 | G57: 0 | H57: 0 | I57: 0 | J57: 0 | K57: 0 | L57: 0 | M57: 0 | N57: 0 | O57: 0 | P57: 0 | Q57: 0 | R57: 0 | S57: 0 | T57: 0
C58: 0 | D58: 0 | E58: =IF(E$50>0,E11/E$50,0) -> 0 | F58: 0 | G58: 0 | H58: 0 | I58: 0 | J58: 0 | K58: 0 | L58: 0 | M58: 0 | N58: 0 | O58: 0 | P58: 0 | Q58: 0 | R58: 0 | S58: 0 | T58: 0
C59: 0 | D59: 0 | E59: =IF(E$50>0,E12/E$50,0) -> 0 | F59: 0 | G59: 0 | H59: 0 | I59: 0 | J59: 0 | K59: 0 | L59: 0 | M59: 0 | N59: 0 | O59: 0 | P59: 0 | Q59: 0 | R59: 0 | S59: 0 | T59: 0
C60: 0 | D60: 0 | E60: =IF(E$50>0,E13/E$50,0) -> 0 | F60: 0 | G60: 0 | H60: 0 | I60: 0 | J60: 0 | K60: 0 | L60: 0 | M60: 0 | N60: 0 | O60: 0 | P60: 0 | Q60: 0 | R60: 0 | S60: 0 | T60: 0
C61: 0 | D61: 0 | E61: =IF(E$50>0,E14/E$50,0) -> 0 | F61: 0 | G61: 0 | H61: 0 | I61: 0 | J61: 0 | K61: 0 | L61: 0 | M61: 0 | N61: 0 | O61: 0 | P61: 0 | Q61: 0 | R61: 0 | S61: 0 | T61: 0
C62: 0 | D62: 0 | E62: =IF(E$50>0,E15/E$50,0) -> 0 | F62: 0 | G62: 0 | H62: 0 | I62: 0 | J62: 0 | K62: 0 | L62: 0 | M62: 0 | N62: 0 | O62: 0 | P62: 0 | Q62: 0 | R62: 0 | S62: 0 | T62: 0
C63: 0 | D63: 0 | E63: =IF(E$50>0,E16/E$50,0) -> 0 | F63: 0 | G63: 0 | H63: 0 | I63: 0 | J63: 0 | K63: 0 | L63: 0 | M63: 0 | N63: 0 | O63: 0 | P63: 0 | Q63: 0 | R63: 0 | S63: 0 | T63: 0
C64: 0 | D64: 0 | E64: =IF(E$50>0,E17/E$50,0) -> 0 | F64: 0 | G64: 0 | H64: 0 | I64: 0 | J64: 0 | K64: 0 | L64: 0 | M64: 0 | N64: 0 | O64: 0 | P64: 0 | Q64: 0 | R64: 0 | S64: 0 | T64: 0
C65: 0 | D65: 0 | E65: =IF(E$50>0,E18/E$50,0) -> 0 | F65: 0 | G65: 0 | H65: 0 | I65: 0 | J65: 0 | K65: 0 | L65: 0 | M65: 0 | N65: 0 | O65: 0 | P65: 0 | Q65: 0 | R65: 0 | S65: 0 | T65: 0
C66: 0 | D66: 0 | E66: =IF(E$50>0,E19/E$50,0) -> 0 | F66: 0 | G66: 0 | H66: 0 | I66: 0 | J66: 0 | K66: 0 | L66: 0 | M66: 0 | N66: 0 | O66: 0 | P66: 0 | Q66: 0 | R66: 0 | S66: 0 | T66: 0
C67: 0 | D67: 0 | E67: =IF(E$50>0,E20/E$50,0) -> 0 | F67: 0 | G67: 0 | H67: 0 | I67: 0 | J67: 0 | K67: 0 | L67: 0 | M67: 0 | N67: 0 | O67: 0 | P67: 0 | Q67: 0 | R67: 0 | S67: 0 | T67: 0
C68: 0 | D68: 0 | E68: =IF(E$50>0,E21/E$50,0) -> 0 | F68: 0 | G68: 0 | H68: 0 | I68: 0 | J68: 0 | K68: 0 | L68: 0 | M68: 0 | N68: 0 | O68: 0 | P68: 0 | Q68: 0 | R68: 0 | S68: 0 | T68: 0
C69: 0 | D69: 0 | E69: =IF(E$50>0,E22/E$50,0) -> 0 | F69: 0 | G69: 0 | H69: 0 | I69: 0 | J69: 0 | K69: 0 | L69: 0 | M69: 0 | N69: 0 | O69: 0 | P69: 0 | Q69: 0 | R69: 0 | S69: 0 | T69: 0
C70: 0 | D70: 0 | E70: =IF(E$50>0,E23/E$50,0) -> 0 | F70: 0 | G70: 0 | H70: 0 | I70: 0 | J70: 0 | K70: 0 | L70: 0 | M70: 0 | N70: 0 | O70: 0 | P70: 0 | Q70: 0 | R70: 0 | S70: 0 | T70: 0
C71: 0 | D71: 0 | E71: =IF(E$50>0,E24/E$50,0) -> 0 | F71: 0 | G71: 0 | H71: 0 | I71: 0 | J71: 0 | K71: 0 | L71: 0 | M71: 0 | N71: 0 | O71: 0 | P71: 0 | Q71: 0 | R71: 0 | S71: 0 | T71: 0
C72: =C25 -> 0 | D72: 0 | E72: =IF(E$50>0,E25/E$50,0) -> 0 | F72: 0 | G72: 0 | H72: 0 | I72: 0 | J72: 0 | K72: 0 | L72: 0 | M72: 0 | N72: 0 | O72: 0 | P72: 0 | Q72: 0 | R72: 0 | S72: 0 | T72: 0
C73: 0 | D73: 0 | E73: =IF(E$50>0,E26/E$50,0) -> 0 | F73: 0 | G73: 0 | H73: 0 | I73: 0 | J73: 0 | K73: 0 | L73: 0 | M73: 0 | N73: 0 | O73: 0 | P73: 0 | Q73: 0 | R73: 0 | S73: 0 | T73: 0
C74: 0 | D74: 0 | E74: =IF(E$50>0,E27/E$50,0) -> 0 | F74: 0 | G74: 0 | H74: 0 | I74: 0 | J74: 0 | K74: 0 | L74: 0 | M74: 0 | N74: 0 | O74: 0 | P74: 0 | Q74: 0 | R74: 0 | S74: 0 | T74: 0
C75: 0 | D75: 0 | E75: =IF(E$50>0,E28/E$50,0) -> 0 | F75: 0 | G75: 0 | H75: 0 | I75: 0 | J75: 0 | K75: 0 | L75: 0 | M75: 0 | N75: 0 | O75: 0 | P75: 0 | Q75: 0 | R75: 0 | S75: 0 | T75: 0
C76: 0 | D76: 0 | E76: =IF(E$50>0,E29/E$50,0) -> 0 | F76: 0 | G76: 0 | H76: 0 | I76: 0 | J76: 0 | K76: 0 | L76: 0 | M76: 0 | N76: 0 | O76: 0 | P76: 0 | Q76: 0 | R76: 0 | S76: 0 | T76: 0
C77: 0 | D77: 0 | E77: =IF(E$50>0,E30/E$50,0) -> 0 | F77: 0 | G77: 0 | H77: 0 | I77: 0 | J77: 0 | K77: 0 | L77: 0 | M77: 0 | N77: 0 | O77: 0 | P77: 0 | Q77: 0 | R77: 0 | S77: 0 | T77: 0
C78: 0 | D78: 0 | E78: =IF(E$50>0,E31/E$50,0) -> 0 | F78: 0 | G78: 0 | H78: 0 | I78: 0 | J78: 0 | K78: 0 | L78: 0 | M78: 0 | N78: 0 | O78: 0 | P78: 0 | Q78: 0 | R78: 0 | S78: 0 | T78: 0
C79: 0 | D79: 0 | E79: =IF(E$50>0,E32/E$50,0) -> 0 | F79: 0 | G79: 0 | H79: 0 | I79: 0 | J79: 0 | K79: 0 | L79: 0 | M79: 0 | N79: 0 | O79: 0 | P79: 0 | Q79: 0 | R79: 0 | S79: 0 | T79: 0
C80: 0 | D80: 0 | E80: =IF(E$50>0,E33/E$50,0) -> 0 | F80: 0 | G80: 0 | H80: 0 | I80: 0 | J80: 0 | K80: 0 | L80: 0 | M80: 0 | N80: 0 | O80: 0 | P80: 0 | Q80: 0 | R80: 0 | S80: 0 | T80: 0
C81: 0 | D81: 0 | E81: =IF(E$50>0,E34/E$50,0) -> 0 | F81: 0 | G81: 0 | H81: 0 | I81: 0 | J81: 0 | K81: 0 | L81: 0 | M81: 0 | N81: 0 | O81: 0 | P81: 0 | Q81: 0 | R81: 0 | S81: 0 | T81: 0
C82: 0 | D82: 0 | E82: =IF(E$50>0,E35/E$50,0) -> 0 | F82: 0 | G82: 0 | H82: 0 | I82: 0 | J82: 0 | K82: 0 | L82: 0 | M82: 0 | N82: 0 | O82: 0 | P82: 0 | Q82: 0 | R82: 0 | S82: 0 | T82: 0
C83: 0 | D83: 0 | E83: =IF(E$50>0,E36/E$50,0) -> 0 | F83: 0 | G83: 0 | H83: 0 | I83: 0 | J83: 0 | K83: 0 | L83: 0 | M83: 0 | N83: 0 | O83: 0 | P83: 0 | Q83: 0 | R83: 0 | S83: 0 | T83: 0
C84: 0 | D84: 0 | E84: =IF(E$50>0,E37/E$50,0) -> 0 | F84: 0 | G84: 0 | H84: 0 | I84: 0 | J84: 0 | K84: 0 | L84: 0 | M84: 0 | N84: 0 | O84: 0 | P84: 0 | Q84: 0 | R84: 0 | S84: 0 | T84: 0
C85: 0 | D85: 0 | E85: =IF(E$50>0,E38/E$50,0) -> 0 | F85: 0 | G85: 0 | H85: 0 | I85: 0 | J85: 0 | K85: 0 | L85: 0 | M85: 0 | N85: 0 | O85: 0 | P85: 0 | Q85: 0 | R85: 0 | S85: 0 | T85: 0
C86: 0 | D86: 0 | E86: =IF(E$50>0,E39/E$50,0) -> 0 | F86: 0 | G86: 0 | H86: 0 | I86: 0 | J86: 0 | K86: 0 | L86: 0 | M86: 0 | N86: 0 | O86: 0 | P86: 0 | Q86: 0 | R86: 0 | S86: 0 | T86: 0
C87: 0 | D87: 0 | E87: =IF(E$50>0,E40/E$50,0) -> 0 | F87: 0 | G87: 0 | H87: 0 | I87: 0 | J87: 0 | K87: 0 | L87: 0 | M87: 0 | N87: 0 | O87: 0 | P87: 0 | Q87: 0 | R87: 0 | S87: 0 | T87: 0
C88: 0 | D88: 0 | E88: =IF(E$50>0,E41/E$50,0) -> 0 | F88: 0 | G88: 0 | H88: 0 | I88: 0 | J88: 0 | K88: 0 | L88: 0 | M88: 0 | N88: 0 | O88: 0 | P88: 0 | Q88: 0 | R88: 0 | S88: 0 | T88: 0
C89: 0 | D89: 0 | E89: =IF(E$50>0,E42/E$50,0) -> 0 | F89: 0 | G89: 0 | H89: 0 | I89: 0 | J89: 0 | K89: 0 | L89: 0 | M89: 0 | N89: 0 | O89: 0 | P89: 0 | Q89: 0 | R89: 0 | S89: 0 | T89: 0
C90: 0 | D90: 0 | E90: =IF(E$50>0,E43/E$50,0) -> 0 | F90: 0 | G90: 0 | H90: 0 | I90: 0 | J90: 0 | K90: 0 | L90: 0 | M90: 0 | N90: 0 | O90: 0 | P90: 0 | Q90: 0 | R90: 0 | S90: 0 | T90: 0
C91: 0 | D91: 0 | E91: =IF(E$50>0,E44/E$50,0) -> 0 | F91: 0 | G91: 0 | H91: 0 | I91: 0 | J91: 0 | K91: 0 | L91: 0 | M91: 0 | N91: 0 | O91: 0 | P91: 0 | Q91: 0 | R91: 0 | S91: 0 | T91: 0
C92: =C45 -> 0 | D92: 0 | E92: =IF(E$50>0,E45/E$50,0) -> 0 | F92: 0 | G92: 0 | H92: 0 | I92: 0 | J92: 0 | K92: 0 | L92: 0 | M92: 0 | N92: 0 | O92: 0 | P92: 0 | Q92: 0 | R92: 0 | S92: 0 | T92: 0
C93: 0 | D93: 0 | E93: =IF(E$50>0,E46/E$50,0) -> 0 | F93: 0 | G93: 0 | H93: 0 | I93: 0 | J93: 0 | K93: 0 | L93: 0 | M93: 0 | N93: 0 | O93: 0 | P93: 0 | Q93: 0 | R93: 0 | S93: 0 | T93: 0
C94: 0 | D94: 0 | E94: =IF(E$50>0,E47/E$50,0) -> 0 | F94: 0 | G94: 0 | H94: 0 | I94: 0 | J94: 0 | K94: 0 | L94: 0 | M94: 0 | N94: 0 | O94: 0 | P94: 0 | Q94: 0 | R94: 0 | S94: 0 | T94: 0
C95: 0 | D95: 0 | E95: =IF(E$50>0,E48/E$50,0) -> 0 | F95: 0 | G95: 0 | H95: 0 | I95: 0 | J95: 0 | K95: 0 | L95: 0 | M95: 0 | N95: 0 | O95: 0 | P95: 0 | Q95: 0 | R95: 0 | S95: 0 | T95: 0
C96: 0 | D96: 0 | E96: =IF(E$50>0,E49/E$50,0) -> 0 | F96: 0 | G96: 0 | H96: 0 | I96: 0 | J96: 0 | K96: 0 | L96: 0 | M96: 0 | N96: 0 | O96: 0 | P96: 0 | Q96: 0 | R96: 0 | S96: 0 | T96: 0
A109: COUNT
E110: =E3 -> Female | F110: 0 | G110: Male | H110: 0 | I110: 0 | J110: 0 | K110: 0 | L110: 0 | M110: 0 | N110: 0 | O110: 0 | P110: 0 | Q110: 0 | R110: 0 | S110: 0 | T110: 0
E111: =E4 -> Female | F111: Male | G111: Female | H111: Male | I111: 0 | J111: 0 | K111: 0 | L111: 0 | M111: 0 | N111: 0 | O111: 0 | P111: 0 | Q111: 0 | R111: 0 | S111: 0 | T111: 0
C112: =C5 -> 0 | D112: No | E112: 6 | F112: 25 | G112: 17 | H112: 68 | I112: 0 | J112: 0 | K112: 0 | L112: 0 | M112: 0 | N112: 0 | O112: 0 | P112: 0 | Q112: 0 | R112: 0 | S112: 0 | T112: 0
C113: 1 | D113: Yes. Code ‘yes only if the word ‘wife’, ‘husband’ is actually used to describe the person. | E113: 1 | F113: 0 | G113: 4 | H113: 7 | I113: 0 | J113: 0 | K113: 0 | L113: 0 | M113: 0 | N113: 0 | O113: 0 | P113: 0 | Q113: 0 | R113: 0 | S113: 0 | T113: 0
C114: 2 | D114: NA – Use this where you are coding a secondary source only | E114: 0 | F114: 0 | G114: 0 | H114: 0 | I114: 0 | J114: 0 | K114: 0 | L114: 0 | M114: 0 | N114: 0 | O114: 0 | P114: 0 | Q114: 0 | R114: 0 | S114: 0 | T114: 0
C115: 0 | D115: 0 | E115: 0 | F115: 0 | G115: 0 | H115: 0 | I115: 0 | J115: 0 | K115: 0 | L115: 0 | M115: 0 | N115: 0 | O115: 0 | P115: 0 | Q115: 0 | R115: 0 | S115: 0 | T115: 0
C116: 0 | D116: 0 | E116: 0 | F116: 0 | G116: 0 | H116: 0 | I116: 0 | J116: 0 | K116: 0 | L116: 0 | M116: 0 | N116: 0 | O116: 0 | P116: 0 | Q116: 0 | R116: 0 | S116: 0 | T116: 0
C117: 0 | D117: 0 | E117: 0 | F117: 0 | G117: 0 | H117: 0 | I117: 0 | J117: 0 | K117: 0 | L117: 0 | M117: 0 | N117: 0 | O117: 0 | P117: 0 | Q117: 0 | R117: 0 | S117: 0 | T117: 0
C118: 0 | D118: 0 | E118: 0 | F118: 0 | G118: 0 | H118: 0 | I118: 0 | J118: 0 | K118: 0 | L118: 0 | M118: 0 | N118: 0 | O118: 0 | P118: 0 | Q118: 0 | R118: 0 | S118: 0 | T118: 0
C119: 0 | D119: 0 | E119: 0 | F119: 0 | G119: 0 | H119: 0 | I119: 0 | J119: 0 | K119: 0 | L119: 0 | M119: 0 | N119: 0 | O119: 0 | P119: 0 | Q119: 0 | R119: 0 | S119: 0 | T119: 0
C120: 0 | D120: 0
C121: 0 | D121: 0
C122: 0 | D122: 0
C123: 0 | D123: 0
C124: 0 | D124: 0
C125: 0 | D125: 0
C126: 0 | D126: 0
C127: 0 | D127: 0
C128: 0 | D128: 0
C129: 0 | D129: 0
C130: 0 | D130: 0
C131: 0 | D131: 0
C132: =C25 -> 0 | D132: 0
C133: 0 | D133: 0
C134: 0 | D134: 0
C135: 0 | D135: 0
C136: 0 | D136: 0
C137: 0 | D137: 0
C138: 0 | D138: 0
C139: 0 | D139: 0
C140: 0 | D140: 0
C141: 0 | D141: 0
C142: 0 | D142: 0
C143: 0 | D143: 0
C144: 0 | D144: 0
C145: 0 | D145: 0
C146: 0 | D146: 0
C147: 0 | D147: 0
C148: 0 | D148: 0
C149: 0 | D149: 0
C150: 0 | D150: 0
C151: 0 | D151: 0
C152: =C45 -> 0 | D152: 0
C153: 0 | D153: 0
C154: 0 | D154: 0

Sheet 9kF - Family status, by sex
A1: ='9k'!A1 -> News subjects who are identified by family status, by sex by sex of reporter
D3: Year | E3: 1995 | I3: 2000 | M3: 2005 | Q3: 2010
D4: Sex of reporter/announcer | E4: Female | G4: Male | I4: Female | K4: Male | M4: Female | O4: Male | Q4: Female | T4: Male
D5: Sex of news subject | E5: Female | F5: Male | G5: Female | H5: Male | I5: Female | J5: Male | K5: Female | L5: Male | M5: Female | N5: Male | O5: Female | P5: Male | Q5: Female | R5: Male | S5: N | T5: Female | U5: Male | V5: N
D6: No | E6: 0 | F6: 0 | G6: 0 | H6: 0 | I6: 0 | J6: 0 | K6: 0 | L6: 0 | M6: 0 | N6: 0 | O6: 0 | P6: 0 | Q6: ='9k'!E52 -> 0.8571428571 | R6: ='9k'!F52 -> 1 | S6: ='9k'!E112+'9k'!F112 -> 31 | T6: ='9k'!G52 -> 0.8095238095 | U6: ='9k'!H52 -> 0.9066666667 | V6: ='9k'!G112+'9k'!H112 -> 85
D7: Yes | E7: 0 | F7: 0 | G7: 0 | H7: 0 | I7: 0 | J7: 0 | K7: 0 | L7: 0 | M7: 0 | N7: 0 | O7: 0 | P7: 0 | Q7: ='9k'!E53 -> 0.1428571429 | R7: ='9k'!F53 -> 0 | S7: ='9k'!E113+'9k'!F113 -> 1 | T7: ='9k'!G53 -> 0.1904761905 | U7: ='9k'!H53 -> 0.09333333333 | V7: ='9k'!G113+'9k'!H113 -> 11

Sheet 10a (hidden)
A1: Presenters in broadcasting, by sex
E3: Female | F3: Male | W3: =E3 -> Female | X3: Male | Y3: 0 | Z3: 0 | AA3: 0 | AB3: 0 | AC3: 0 | AD3: 0 | AE3: 0 | AF3: 0 | AG3: 0 | AH3: 0 | AI3: 0 | AJ3: 0 | AK3: 0
V4: TOTAL | W4: 0 | X4: 0 | Y4: 0 | Z4: 0 | AA4: 0 | AB4: 0 | AC4: 0 | AD4: 0 | AE4: 0 | AF4: 0 | AG4: 0 | AH4: 0 | AI4: 0 | AJ4: 0 | AK4: 0 | AL4: =T4 -> 0
C5: 1 | D5: Africa | V5: =SUM(E5:O5) -> 0 | W5: =IF((E5+F5)>0,E5/(E5+F5),0) -> 0 | X5: =IF((E5+F5)>0,F5/(E5+F5),0) -> 0 | Y5: =IF((G5+H5)>0,G5/(G5+H5),0) -> 0 | Z5: =IF((G5+H5)>0,H5/(G5+H5),0) -> 0 | AA5: =IF((I5+J5)>0,I5/(I5+J5),0) -> 0 | AB5: =IF((I5+J5)>0,J5/(I5+J5),0) -> 0 | AC5: =IF((K5+L5)>0,K5/(K5+L5),0) -> 0 | AD5: =IF((K5+L5)>0,L5/(K5+L5),0) -> 0 | AE5: =IF((M5+N5)>0,M5/(M5+N5),0) -> 0 | AF5: =IF((M5+N5)>0,N5/(M5+N5),0) -> 0 | AG5: =IF((O5+P5)>0,O5/(O5+P5),0) -> 0 | AH5: =IF((O5+P5)>0,P5/(O5+P5),0) -> 0 | AI5: =IF((Q5+R5)>0,Q5/(Q5+R5),0) -> 0 | AJ5: =IF((Q5+R5)>0,R5/(Q5+R5),0) -> 0 | AK5: =IF((S5+T5)>0,S5/(S5+T5),0) -> 0 | AL5: =IF((S5+T5)>0,T5/(S5+T5),0) -> 0
C6: 2 | D6: Asia | V6: 0 | W6: 0 | X6: 0 | Y6: 0 | Z6: 0 | AA6: 0 | AB6: 0 | AC6: 0 | AD6: 0 | AE6: 0 | AF6: 0 | AG6: 0 | AH6: 0 | AI6: 0 | AJ6: 0 | AK6: 0 | AL6: 0
C7: 3 | D7: Caribbean | V7: 0 | W7: 0 | X7: 0 | Y7: 0 | Z7: 0 | AA7: 0 | AB7: 0 | AC7: 0 | AD7: 0 | AE7: 0 | AF7: 0 | AG7: 0 | AH7: 0 | AI7: 0 | AJ7: 0 | AK7: 0 | AL7: 0
C8: 4 | D8: Europe | E8: 0.3143000058 | F8: 0.5156000052 | V8: 0.829900011 | W8: 0.3787203297 | X8: 0.6212796703 | Y8: 0 | Z8: 0 | AA8: 0 | AB8: 0 | AC8: 0 | AD8: 0 | AE8: 0 | AF8: 0 | AG8: 0 | AH8: 0 | AI8: 0 | AJ8: 0 | AK8: 0 | AL8: 0
C9: 5 | D9: Latin America | V9: 0 | W9: 0 | X9: 0 | Y9: 0 | Z9: 0 | AA9: 0 | AB9: 0 | AC9: 0 | AD9: 0 | AE9: 0 | AF9: 0 | AG9: 0 | AH9: 0 | AI9: 0 | AJ9: 0 | AK9: 0 | AL9: 0
C10: 6 | D10: Middle East | V10: 0 | W10: 0 | X10: 0 | Y10: 0 | Z10: 0 | AA10: 0 | AB10: 0 | AC10: 0 | AD10: 0 | AE10: 0 | AF10: 0 | AG10: 0 | AH10: 0 | AI10: 0 | AJ10: 0 | AK10: 0 | AL10: 0
C11: 7 | D11: North America | V11: 0 | W11: 0 | X11: 0 | Y11: 0 | Z11: 0 | AA11: 0 | AB11: 0 | AC11: 0 | AD11: 0 | AE11: 0 | AF11: 0 | AG11: 0 | AH11: 0 | AI11: 0 | AJ11: 0 | AK11: 0 | AL11: 0
C12: 8 | D12: Pacific | V12: 0 | W12: 0 | X12: 0 | Y12: 0 | Z12: 0 | AA12: 0 | AB12: 0 | AC12: 0 | AD12: 0 | AE12: 0 | AF12: 0 | AG12: 0 | AH12: 0 | AI12: 0 | AJ12: 0 | AK12: 0 | AL12: 0
D50: TOTAL | E50: =SUM(E5:E49) -> 0.3143000058 | F50: 0.5156000052 | G50: 0 | H50: 0 | I50: 0 | J50: 0 | K50: 0 | L50: 0 | M50: 0 | N50: 0 | O50: 0 | P50: 0 | Q50: 0 | R50: 0 | S50: 0 | T50: 0 | V50: =SUM(E50:O50) -> 0.829900011 | W50: =IF((E50+F50)>0,E50/(E50+F50),0) -> 0.3787203297 | X50: =IF((E50+F50)>0,F50/(E50+F50),0) -> 0.6212796703 | Y50: =IF((G50+H50)>0,G50/(G50+H50),0) -> 0 | Z50: =IF((G50+H50)>0,H50/(G50+H50),0) -> 0 | AA50: =IF((I50+J50)>0,I50/(I50+J50),0) -> 0 | AB50: =IF((I50+J50)>0,J50/(I50+J50),0) -> 0 | AC50: =IF((K50+L50)>0,K50/(K50+L50),0) -> 0 | AD50: =IF((K50+L50)>0,L50/(K50+L50),0) -> 0 | AE50: =IF((M50+N50)>0,M50/(M50+N50),0) -> 0 | AF50: =IF((M50+N50)>0,N50/(M50+N50),0) -> 0 | AG50: =IF((O50+P50)>0,O50/(O50+P50),0) -> 0 | AH50: =IF((O50+P50)>0,P50/(O50+P50),0) -> 0 | AI50: =IF((Q50+R50)>0,Q50/(Q50+R50),0) -> 0 | AJ50: =IF((Q50+R50)>0,R50/(Q50+R50),0) -> 0 | AK50: =IF((S50+T50)>0,S50/(S50+T50),0) -> 0 | AL50: =IF((S50+T50)>0,T50/(S50+T50),0) -> 0
C52: =C5 -> 1 | D52: Africa | E52: =IF(E$50>0,E5/E$50,0) -> 0 | F52: 0 | G52: 0 | H52: 0 | I52: 0 | J52: 0 | K52: 0 | L52: 0 | M52: 0 | N52: 0 | O52: 0 | P52: 0 | Q52: 0 | R52: 0 | S52: 0 | T52: 0
C53: 2 | D53: Asia | E53: =IF(E$50>0,E6/E$50,0) -> 0 | F53: 0 | G53: 0 | H53: 0 | I53: 0 | J53: 0 | K53: 0 | L53: 0 | M53: 0 | N53: 0 | O53: 0 | P53: 0 | Q53: 0 | R53: 0 | S53: 0 | T53: 0
C54: 3 | D54: Caribbean | E54: =IF(E$50>0,E7/E$50,0) -> 0 | F54: 0 | G54: 0 | H54: 0 | I54: 0 | J54: 0 | K54: 0 | L54: 0 | M54: 0 | N54: 0 | O54: 0 | P54: 0 | Q54: 0 | R54: 0 | S54: 0 | T54: 0
C55: 4 | D55: Europe | E55: =IF(E$50>0,E8/E$50,0) -> 1 | F55: 1 | G55: 0 | H55: 0 | I55: 0 | J55: 0 | K55: 0 | L55: 0 | M55: 0 | N55: 0 | O55: 0 | P55: 0 | Q55: 0 | R55: 0 | S55: 0 | T55: 0
C56: 5 | D56: Latin America | E56: =IF(E$50>0,E9/E$50,0) -> 0 | F56: 0 | G56: 0 | H56: 0 | I56: 0 | J56: 0 | K56: 0 | L56: 0 | M56: 0 | N56: 0 | O56: 0 | P56: 0 | Q56: 0 | R56: 0 | S56: 0 | T56: 0
C57: 6 | D57: Middle East | E57: =IF(E$50>0,E10/E$50,0) -> 0 | F57: 0 | G57: 0 | H57: 0 | I57: 0 | J57: 0 | K57: 0 | L57: 0 | M57: 0 | N57: 0 | O57: 0 | P57: 0 | Q57: 0 | R57: 0 | S57: 0 | T57: 0
C58: 7 | D58: North America | E58: =IF(E$50>0,E11/E$50,0) -> 0 | F58: 0 | G58: 0 | H58: 0 | I58: 0 | J58: 0 | K58: 0 | L58: 0 | M58: 0 | N58: 0 | O58: 0 | P58: 0 | Q58: 0 | R58: 0 | S58: 0 | T58: 0
C59: 8 | D59: Pacific | E59: =IF(E$50>0,E12/E$50,0) -> 0 | F59: 0 | G59: 0 | H59: 0 | I59: 0 | J59: 0 | K59: 0 | L59: 0 | M59: 0 | N59: 0 | O59: 0 | P59: 0 | Q59: 0 | R59: 0 | S59: 0 | T59: 0
C60: 0 | D60: 0 | E60: =IF(E$50>0,E13/E$50,0) -> 0 | F60: 0 | G60: 0 | H60: 0 | I60: 0 | J60: 0 | K60: 0 | L60: 0 | M60: 0 | N60: 0 | O60: 0 | P60: 0 | Q60: 0 | R60: 0 | S60: 0 | T60: 0
C61: 0 | D61: 0 | E61: =IF(E$50>0,E14/E$50,0) -> 0 | F61: 0 | G61: 0 | H61: 0 | I61: 0 | J61: 0 | K61: 0 | L61: 0 | M61: 0 | N61: 0 | O61: 0 | P61: 0 | Q61: 0 | R61: 0 | S61: 0 | T61: 0
C62: 0 | D62: 0 | E62: =IF(E$50>0,E15/E$50,0) -> 0 | F62: 0 | G62: 0 | H62: 0 | I62: 0 | J62: 0 | K62: 0 | L62: 0 | M62: 0 | N62: 0 | O62: 0 | P62: 0 | Q62: 0 | R62: 0 | S62: 0 | T62: 0
C63: 0 | D63: 0 | E63: =IF(E$50>0,E16/E$50,0) -> 0 | F63: 0 | G63: 0 | H63: 0 | I63: 0 | J63: 0 | K63: 0 | L63: 0 | M63: 0 | N63: 0 | O63: 0 | P63: 0 | Q63: 0 | R63: 0 | S63: 0 | T63: 0
C64: 0 | D64: 0 | E64: =IF(E$50>0,E17/E$50,0) -> 0 | F64: 0 | G64: 0 | H64: 0 | I64: 0 | J64: 0 | K64: 0 | L64: 0 | M64: 0 | N64: 0 | O64: 0 | P64: 0 | Q64: 0 | R64: 0 | S64: 0 | T64: 0
C65: 0 | D65: 0 | E65: =IF(E$50>0,E18/E$50,0) -> 0 | F65: 0 | G65: 0 | H65: 0 | I65: 0 | J65: 0 | K65: 0 | L65: 0 | M65: 0 | N65: 0 | O65: 0 | P65: 0 | Q65: 0 | R65: 0 | S65: 0 | T65: 0
C66: 0 | D66: 0 | E66: =IF(E$50>0,E19/E$50,0) -> 0 | F66: 0 | G66: 0 | H66: 0 | I66: 0 | J66: 0 | K66: 0 | L66: 0 | M66: 0 | N66: 0 | O66: 0 | P66: 0 | Q66: 0 | R66: 0 | S66: 0 | T66: 0
C67: 0 | D67: 0 | E67: =IF(E$50>0,E20/E$50,0) -> 0 | F67: 0 | G67: 0 | H67: 0 | I67: 0 | J67: 0 | K67: 0 | L67: 0 | M67: 0 | N67: 0 | O67: 0 | P67: 0 | Q67: 0 | R67: 0 | S67: 0 | T67: 0
C68: 0 | D68: 0 | E68: =IF(E$50>0,E21/E$50,0) -> 0 | F68: 0 | G68: 0 | H68: 0 | I68: 0 | J68: 0 | K68: 0 | L68: 0 | M68: 0 | N68: 0 | O68: 0 | P68: 0 | Q68: 0 | R68: 0 | S68: 0 | T68: 0
C69: 0 | D69: 0 | E69: =IF(E$50>0,E22/E$50,0) -> 0 | F69: 0 | G69: 0 | H69: 0 | I69: 0 | J69: 0 | K69: 0 | L69: 0 | M69: 0 | N69: 0 | O69: 0 | P69: 0 | Q69: 0 | R69: 0 | S69: 0 | T69: 0
C70: 0 | D70: 0 | E70: =IF(E$50>0,E23/E$50,0) -> 0 | F70: 0 | G70: 0 | H70: 0 | I70: 0 | J70: 0 | K70: 0 | L70: 0 | M70: 0 | N70: 0 | O70: 0 | P70: 0 | Q70: 0 | R70: 0 | S70: 0 | T70: 0
C71: 0 | D71: 0 | E71: =IF(E$50>0,E24/E$50,0) -> 0 | F71: 0 | G71: 0 | H71: 0 | I71: 0 | J71: 0 | K71: 0 | L71: 0 | M71: 0 | N71: 0 | O71: 0 | P71: 0 | Q71: 0 | R71: 0 | S71: 0 | T71: 0
C72: =C25 -> 0 | D72: 0 | E72: =IF(E$50>0,E25/E$50,0) -> 0 | F72: 0 | G72: 0 | H72: 0 | I72: 0 | J72: 0 | K72: 0 | L72: 0 | M72: 0 | N72: 0 | O72: 0 | P72: 0 | Q72: 0 | R72: 0 | S72: 0 | T72: 0
C73: 0 | D73: 0 | E73: =IF(E$50>0,E26/E$50,0) -> 0 | F73: 0 | G73: 0 | H73: 0 | I73: 0 | J73: 0 | K73: 0 | L73: 0 | M73: 0 | N73: 0 | O73: 0 | P73: 0 | Q73: 0 | R73: 0 | S73: 0 | T73: 0
C74: 0 | D74: 0 | E74: =IF(E$50>0,E27/E$50,0) -> 0 | F74: 0 | G74: 0 | H74: 0 | I74: 0 | J74: 0 | K74: 0 | L74: 0 | M74: 0 | N74: 0 | O74: 0 | P74: 0 | Q74: 0 | R74: 0 | S74: 0 | T74: 0
C75: 0 | D75: 0 | E75: =IF(E$50>0,E28/E$50,0) -> 0 | F75: 0 | G75: 0 | H75: 0 | I75: 0 | J75: 0 | K75: 0 | L75: 0 | M75: 0 | N75: 0 | O75: 0 | P75: 0 | Q75: 0 | R75: 0 | S75: 0 | T75: 0
C76: 0 | D76: 0 | E76: =IF(E$50>0,E29/E$50,0) -> 0 | F76: 0 | G76: 0 | H76: 0 | I76: 0 | J76: 0 | K76: 0 | L76: 0 | M76: 0 | N76: 0 | O76: 0 | P76: 0 | Q76: 0 | R76: 0 | S76: 0 | T76: 0
C77: 0 | D77: 0 | E77: =IF(E$50>0,E30/E$50,0) -> 0 | F77: 0 | G77: 0 | H77: 0 | I77: 0 | J77: 0 | K77: 0 | L77: 0 | M77: 0 | N77: 0 | O77: 0 | P77: 0 | Q77: 0 | R77: 0 | S77: 0 | T77: 0
C78: 0 | D78: 0 | E78: =IF(E$50>0,E31/E$50,0) -> 0 | F78: 0 | G78: 0 | H78: 0 | I78: 0 | J78: 0 | K78: 0 | L78: 0 | M78: 0 | N78: 0 | O78: 0 | P78: 0 | Q78: 0 | R78: 0 | S78: 0 | T78: 0
C79: 0 | D79: 0 | E79: =IF(E$50>0,E32/E$50,0) -> 0 | F79: 0 | G79: 0 | H79: 0 | I79: 0 | J79: 0 | K79: 0 | L79: 0 | M79: 0 | N79: 0 | O79: 0 | P79: 0 | Q79: 0 | R79: 0 | S79: 0 | T79: 0
C80: 0 | D80: 0 | E80: =IF(E$50>0,E33/E$50,0) -> 0 | F80: 0 | G80: 0 | H80: 0 | I80: 0 | J80: 0 | K80: 0 | L80: 0 | M80: 0 | N80: 0 | O80: 0 | P80: 0 | Q80: 0 | R80: 0 | S80: 0 | T80: 0
C81: 0 | D81: 0 | E81: =IF(E$50>0,E34/E$50,0) -> 0 | F81: 0 | G81: 0 | H81: 0 | I81: 0 | J81: 0 | K81: 0 | L81: 0 | M81: 0 | N81: 0 | O81: 0 | P81: 0 | Q81: 0 | R81: 0 | S81: 0 | T81: 0
C82: 0 | D82: 0 | E82: =IF(E$50>0,E35/E$50,0) -> 0 | F82: 0 | G82: 0 | H82: 0 | I82: 0 | J82: 0 | K82: 0 | L82: 0 | M82: 0 | N82: 0 | O82: 0 | P82: 0 | Q82: 0 | R82: 0 | S82: 0 | T82: 0
C83: 0 | D83: 0 | E83: =IF(E$50>0,E36/E$50,0) -> 0 | F83: 0 | G83: 0 | H83: 0 | I83: 0 | J83: 0 | K83: 0 | L83: 0 | M83: 0 | N83: 0 | O83: 0 | P83: 0 | Q83: 0 | R83: 0 | S83: 0 | T83: 0
C84: 0 | D84: 0 | E84: =IF(E$50>0,E37/E$50,0) -> 0 | F84: 0 | G84: 0 | H84: 0 | I84: 0 | J84: 0 | K84: 0 | L84: 0 | M84: 0 | N84: 0 | O84: 0 | P84: 0 | Q84: 0 | R84: 0 | S84: 0 | T84: 0
C85: 0 | D85: 0 | E85: =IF(E$50>0,E38/E$50,0) -> 0 | F85: 0 | G85: 0 | H85: 0 | I85: 0 | J85: 0 | K85: 0 | L85: 0 | M85: 0 | N85: 0 | O85: 0 | P85: 0 | Q85: 0 | R85: 0 | S85: 0 | T85: 0
C86: 0 | D86: 0 | E86: =IF(E$50>0,E39/E$50,0) -> 0 | F86: 0 | G86: 0 | H86: 0 | I86: 0 | J86: 0 | K86: 0 | L86: 0 | M86: 0 | N86: 0 | O86: 0 | P86: 0 | Q86: 0 | R86: 0 | S86: 0 | T86: 0
C87: 0 | D87: 0 | E87: =IF(E$50>0,E40/E$50,0) -> 0 | F87: 0 | G87: 0 | H87: 0 | I87: 0 | J87: 0 | K87: 0 | L87: 0 | M87: 0 | N87: 0 | O87: 0 | P87: 0 | Q87: 0 | R87: 0 | S87: 0 | T87: 0
C88: 0 | D88: 0 | E88: =IF(E$50>0,E41/E$50,0) -> 0 | F88: 0 | G88: 0 | H88: 0 | I88: 0 | J88: 0 | K88: 0 | L88: 0 | M88: 0 | N88: 0 | O88: 0 | P88: 0 | Q88: 0 | R88: 0 | S88: 0 | T88: 0
C89: 0 | D89: 0 | E89: =IF(E$50>0,E42/E$50,0) -> 0 | F89: 0 | G89: 0 | H89: 0 | I89: 0 | J89: 0 | K89: 0 | L89: 0 | M89: 0 | N89: 0 | O89: 0 | P89: 0 | Q89: 0 | R89: 0 | S89: 0 | T89: 0
C90: 0 | D90: 0 | E90: =IF(E$50>0,E43/E$50,0) -> 0 | F90: 0 | G90: 0 | H90: 0 | I90: 0 | J90: 0 | K90: 0 | L90: 0 | M90: 0 | N90: 0 | O90: 0 | P90: 0 | Q90: 0 | R90: 0 | S90: 0 | T90: 0
C91: 0 | D91: 0 | E91: =IF(E$50>0,E44/E$50,0) -> 0 | F91: 0 | G91: 0 | H91: 0 | I91: 0 | J91: 0 | K91: 0 | L91: 0 | M91: 0 | N91: 0 | O91: 0 | P91: 0 | Q91: 0 | R91: 0 | S91: 0 | T91: 0
C92: =C45 -> 0 | D92: 0 | E92: =IF(E$50>0,E45/E$50,0) -> 0 | F92: 0 | G92: 0 | H92: 0 | I92: 0 | J92: 0 | K92: 0 | L92: 0 | M92: 0 | N92: 0 | O92: 0 | P92: 0 | Q92: 0 | R92: 0 | S92: 0 | T92: 0
C93: 0 | D93: 0 | E93: =IF(E$50>0,E46/E$50,0) -> 0 | F93: 0 | G93: 0 | H93: 0 | I93: 0 | J93: 0 | K93: 0 | L93: 0 | M93: 0 | N93: 0 | O93: 0 | P93: 0 | Q93: 0 | R93: 0 | S93: 0 | T93: 0
C94: 0 | D94: 0 | E94: =IF(E$50>0,E47/E$50,0) -> 0 | F94: 0 | G94: 0 | H94: 0 | I94: 0 | J94: 0 | K94: 0 | L94: 0 | M94: 0 | N94: 0 | O94: 0 | P94: 0 | Q94: 0 | R94: 0 | S94: 0 | T94: 0
C95: 0 | D95: 0 | E95: =IF(E$50>0,E48/E$50,0) -> 0 | F95: 0 | G95: 0 | H95: 0 | I95: 0 | J95: 0 | K95: 0 | L95: 0 | M95: 0 | N95: 0 | O95: 0 | P95: 0 | Q95: 0 | R95: 0 | S95: 0 | T95: 0
C96: 0 | D96: 0 | E96: =IF(E$50>0,E49/E$50,0) -> 0 | F96: 0 | G96: 0 | H96: 0 | I96: 0 | J96: 0 | K96: 0 | L96: 0 | M96: 0 | N96: 0 | O96: 0 | P96: 0 | Q96: 0 | R96: 0 | S96: 0 | T96: 0
A109: COUNT
E110: =E3 -> Female | F110: Male | G110: 0 | H110: 0 | I110: 0 | J110: 0 | K110: 0 | L110: 0 | M110: 0 | N110: 0 | O110: 0 | P110: 0 | Q110: 0 | R110: 0 | S110: 0 | T110: 0
E111: =E4 -> 0 | F111: 0 | G111: 0 | H111: 0 | I111: 0 | J111: 0 | K111: 0 | L111: 0 | M111: 0 | N111: 0 | O111: 0 | P111: 0 | Q111: 0 | R111: 0 | S111: 0 | T111: 0
C112: =C5 -> 1 | D112: Africa | E112: 0 | F112: 0
C113: 2 | D113: Asia | E113: 0 | F113: 0
C114: 3 | D114: Caribbean | E114: 0 | F114: 0
C115: 4 | D115: Europe | E115: 62 | F115: 102
C116: 5 | D116: Latin America | E116: 0 | F116: 0
C117: 6 | D117: Middle East | E117: 0 | F117: 0
C118: 7 | D118: North America | E118: 0 | F118: 0
C119: 8 | D119: Pacific | E119: 0 | F119: 0
C120: 0 | D120: 0
C121: 0 | D121: 0
C122: 0 | D122: 0
C123: 0 | D123: 0
C124: 0 | D124: 0
C125: 0 | D125: 0
C126: 0 | D126: 0
C127: 0 | D127: 0
C128: 0 | D128: 0
C129: 0 | D129: 0
C130: 0 | D130: 0
C131: 0 | D131: 0
C132: =C25 -> 0 | D132: 0
C133: 0 | D133: 0
C134: 0 | D134: 0
C135: 0 | D135: 0
C136: 0 | D136: 0
C137: 0 | D137: 0
C138: 0 | D138: 0
C139: 0 | D139: 0
C140: 0 | D140: 0
C141: 0 | D141: 0
C142: 0 | D142: 0
C143: 0 | D143: 0
C144: 0 | D144: 0
C145: 0 | D145: 0
C146: 0 | D146: 0
C147: 0 | D147: 0
C148: 0 | D148: 0
C149: 0 | D149: 0
C150: 0 | D150: 0
C151: 0 | D151: 0
C152: =C45 -> 0 | D152: 0
C153: 0 | D153: 0
C154: 0 | D154: 0

Sheet 10aF - Presenters
A1: Presenters in broadcasting, by sex
C4: 1995 | D4: 2000 | E4: 2005 | F4: 2010 | G4: N
B5: Female | C5: 0.51 | D5: 0.49 | E5: 0.53 | F5: ='10a'!$W$50 -> 0.3787203297 | G5: =SUM('10a'!E112:E119) -> 62
B6: Male | C6: 0.49 | D6: 0.51 | E6: 0.47 | F6: ='10a'!$X$50 -> 0.6212796703 | G6: =SUM('10a'!F112:F119) -> 102

Sheet 10a2 (hidden)
A1: Presenters in broadcasting, by sex
E2: Radio | G2: Television
E3: Female | F3: Male | G3: Female | H3: Male | W3: =E3 -> Female | X3: Male | Y3: Female | Z3: Male | AA3: 0 | AB3: 0 | AC3: 0 | AD3: 0 | AE3: 0 | AF3: 0 | AG3: 0 | AH3: 0 | AI3: 0 | AJ3: 0 | AK3: 0
V4: TOTAL | W4: 0 | X4: 0 | Y4: 0 | Z4: 0 | AA4: 0 | AB4: 0 | AC4: 0 | AD4: 0 | AE4: 0 | AF4: 0 | AG4: 0 | AH4: 0 | AI4: 0 | AJ4: 0 | AK4: 0 | AL4: =T4 -> 0
C5: 1 | D5: Africa | V5: =SUM(E5:O5) -> 0 | W5: =IF((E5+F5)>0,E5/(E5+F5),0) -> 0 | X5: =IF((E5+F5)>0,F5/(E5+F5),0) -> 0 | Y5: =IF((G5+H5)>0,G5/(G5+H5),0) -> 0 | Z5: =IF((G5+H5)>0,H5/(G5+H5),0) -> 0 | AA5: =IF((I5+J5)>0,I5/(I5+J5),0) -> 0 | AB5: =IF((I5+J5)>0,J5/(I5+J5),0) -> 0 | AC5: =IF((K5+L5)>0,K5/(K5+L5),0) -> 0 | AD5: =IF((K5+L5)>0,L5/(K5+L5),0) -> 0 | AE5: =IF((M5+N5)>0,M5/(M5+N5),0) -> 0 | AF5: =IF((M5+N5)>0,N5/(M5+N5),0) -> 0 | AG5: =IF((O5+P5)>0,O5/(O5+P5),0) -> 0 | AH5: =IF((O5+P5)>0,P5/(O5+P5),0) -> 0 | AI5: =IF((Q5+R5)>0,Q5/(Q5+R5),0) -> 0 | AJ5: =IF((Q5+R5)>0,R5/(Q5+R5),0) -> 0 | AK5: =IF((S5+T5)>0,S5/(S5+T5),0) -> 0 | AL5: =IF((S5+T5)>0,T5/(S5+T5),0) -> 0
C6: 2 | D6: Asia | V6: 0 | W6: 0 | X6: 0 | Y6: 0 | Z6: 0 | AA6: 0 | AB6: 0 | AC6: 0 | AD6: 0 | AE6: 0 | AF6: 0 | AG6: 0 | AH6: 0 | AI6: 0 | AJ6: 0 | AK6: 0 | AL6: 0
C7: 3 | D7: Caribbean | V7: 0 | W7: 0 | X7: 0 | Y7: 0 | Z7: 0 | AA7: 0 | AB7: 0 | AC7: 0 | AD7: 0 | AE7: 0 | AF7: 0 | AG7: 0 | AH7: 0 | AI7: 0 | AJ7: 0 | AK7: 0 | AL7: 0
C8: 4 | D8: Europe | E8: 0.09499999788 | F8: 0.2299999949 | G8: 0.2193000079 | H8: 0.2856000103 | V8: 0.829900011 | W8: 0.2923076923 | X8: 0.7076923077 | Y8: 0.4343434343 | Z8: 0.5656565657 | AA8: 0 | AB8: 0 | AC8: 0 | AD8: 0 | AE8: 0 | AF8: 0 | AG8: 0 | AH8: 0 | AI8: 0 | AJ8: 0 | AK8: 0 | AL8: 0
C9: 5 | D9: Latin America | V9: 0 | W9: 0 | X9: 0 | Y9: 0 | Z9: 0 | AA9: 0 | AB9: 0 | AC9: 0 | AD9: 0 | AE9: 0 | AF9: 0 | AG9: 0 | AH9: 0 | AI9: 0 | AJ9: 0 | AK9: 0 | AL9: 0
C10: 6 | D10: Middle East | V10: 0 | W10: 0 | X10: 0 | Y10: 0 | Z10: 0 | AA10: 0 | AB10: 0 | AC10: 0 | AD10: 0 | AE10: 0 | AF10: 0 | AG10: 0 | AH10: 0 | AI10: 0 | AJ10: 0 | AK10: 0 | AL10: 0
C11: 7 | D11: North America | V11: 0 | W11: 0 | X11: 0 | Y11: 0 | Z11: 0 | AA11: 0 | AB11: 0 | AC11: 0 | AD11: 0 | AE11: 0 | AF11: 0 | AG11: 0 | AH11: 0 | AI11: 0 | AJ11: 0 | AK11: 0 | AL11: 0
C12: 8 | D12: Pacific | V12: 0 | W12: 0 | X12: 0 | Y12: 0 | Z12: 0 | AA12: 0 | AB12: 0 | AC12: 0 | AD12: 0 | AE12: 0 | AF12: 0 | AG12: 0 | AH12: 0 | AI12: 0 | AJ12: 0 | AK12: 0 | AL12: 0
D50: TOTAL | E50: =SUM(E5:E49) -> 0.09499999788 | F50: 0.2299999949 | G50: 0.2193000079 | H50: 0.2856000103 | I50: 0 | J50: 0 | K50: 0 | L50: 0 | M50: 0 | N50: 0 | O50: 0 | P50: 0 | Q50: 0 | R50: 0 | S50: 0 | T50: 0 | V50: =SUM(E50:O50) -> 0.829900011 | W50: =IF((E50+F50)>0,E50/(E50+F50),0) -> 0.2923076923 | X50: =IF((E50+F50)>0,F50/(E50+F50),0) -> 0.7076923077 | Y50: =IF((G50+H50)>0,G50/(G50+H50),0) -> 0.4343434343 | Z50: =IF((G50+H50)>0,H50/(G50+H50),0) -> 0.5656565657 | AA50: =IF((I50+J50)>0,I50/(I50+J50),0) -> 0 | AB50: =IF((I50+J50)>0,J50/(I50+J50),0) -> 0 | AC50: =IF((K50+L50)>0,K50/(K50+L50),0) -> 0 | AD50: =IF((K50+L50)>0,L50/(K50+L50),0) -> 0 | AE50: =IF((M50+N50)>0,M50/(M50+N50),0) -> 0 | AF50: =IF((M50+N50)>0,N50/(M50+N50),0) -> 0 | AG50: =IF((O50+P50)>0,O50/(O50+P50),0) -> 0 | AH50: =IF((O50+P50)>0,P50/(O50+P50),0) -> 0 | AI50: =IF((Q50+R50)>0,Q50/(Q50+R50),0) -> 0 | AJ50: =IF((Q50+R50)>0,R50/(Q50+R50),0) -> 0 | AK50: =IF((S50+T50)>0,S50/(S50+T50),0) -> 0 | AL50: =IF((S50+T50)>0,T50/(S50+T50),0) -> 0
C52: =C5 -> 1 | D52: Africa | E52: =IF(E$50>0,E5/E$50,0) -> 0 | F52: 0 | G52: 0 | H52: 0 | I52: 0 | J52: 0 | K52: 0 | L52: 0 | M52: 0 | N52: 0 | O52: 0 | P52: 0 | Q52: 0 | R52: 0 | S52: 0 | T52: 0
C53: 2 | D53: Asia | E53: =IF(E$50>0,E6/E$50,0) -> 0 | F53: 0 | G53: 0 | H53: 0 | I53: 0 | J53: 0 | K53: 0 | L53: 0 | M53: 0 | N53: 0 | O53: 0 | P53: 0 | Q53: 0 | R53: 0 | S53: 0 | T53: 0
C54: 3 | D54: Caribbean | E54: =IF(E$50>0,E7/E$50,0) -> 0 | F54: 0 | G54: 0 | H54: 0 | I54: 0 | J54: 0 | K54: 0 | L54: 0 | M54: 0 | N54: 0 | O54: 0 | P54: 0 | Q54: 0 | R54: 0 | S54: 0 | T54: 0
C55: 4 | D55: Europe | E55: =IF(E$50>0,E8/E$50,0) -> 1 | F55: 1 | G55: 1 | H55: 1 | I55: 0 | J55: 0 | K55: 0 | L55: 0 | M55: 0 | N55: 0 | O55: 0 | P55: 0 | Q55: 0 | R55: 0 | S55: 0 | T55: 0
C56: 5 | D56: Latin America | E56: =IF(E$50>0,E9/E$50,0) -> 0 | F56: 0 | G56: 0 | H56: 0 | I56: 0 | J56: 0 | K56: 0 | L56: 0 | M56: 0 | N56: 0 | O56: 0 | P56: 0 | Q56: 0 | R56: 0 | S56: 0 | T56: 0
C57: 6 | D57: Middle East | E57: =IF(E$50>0,E10/E$50,0) -> 0 | F57: 0 | G57: 0 | H57: 0 | I57: 0 | J57: 0 | K57: 0 | L57: 0 | M57: 0 | N57: 0 | O57: 0 | P57: 0 | Q57: 0 | R57: 0 | S57: 0 | T57: 0
C58: 7 | D58: North America | E58: =IF(E$50>0,E11/E$50,0) -> 0 | F58: 0 | G58: 0 | H58: 0 | I58: 0 | J58: 0 | K58: 0 | L58: 0 | M58: 0 | N58: 0 | O58: 0 | P58: 0 | Q58: 0 | R58: 0 | S58: 0 | T58: 0
C59: 8 | D59: Pacific | E59: =IF(E$50>0,E12/E$50,0) -> 0 | F59: 0 | G59: 0 | H59: 0 | I59: 0 | J59: 0 | K59: 0 | L59: 0 | M59: 0 | N59: 0 | O59: 0 | P59: 0 | Q59: 0 | R59: 0 | S59: 0 | T59: 0
C60: 0 | D60: 0 | E60: =IF(E$50>0,E13/E$50,0) -> 0 | F60: 0 | G60: 0 | H60: 0 | I60: 0 | J60: 0 | K60: 0 | L60: 0 | M60: 0 | N60: 0 | O60: 0 | P60: 0 | Q60: 0 | R60: 0 | S60: 0 | T60: 0
C61: 0 | D61: 0 | E61: =IF(E$50>0,E14/E$50,0) -> 0 | F61: 0 | G61: 0 | H61: 0 | I61: 0 | J61: 0 | K61: 0 | L61: 0 | M61: 0 | N61: 0 | O61: 0 | P61: 0 | Q61: 0 | R61: 0 | S61: 0 | T61: 0
C62: 0 | D62: 0 | E62: =IF(E$50>0,E15/E$50,0) -> 0 | F62: 0 | G62: 0 | H62: 0 | I62: 0 | J62: 0 | K62: 0 | L62: 0 | M62: 0 | N62: 0 | O62: 0 | P62: 0 | Q62: 0 | R62: 0 | S62: 0 | T62: 0
C63: 0 | D63: 0 | E63: =IF(E$50>0,E16/E$50,0) -> 0 | F63: 0 | G63: 0 | H63: 0 | I63: 0 | J63: 0 | K63: 0 | L63: 0 | M63: 0 | N63: 0 | O63: 0 | P63: 0 | Q63: 0 | R63: 0 | S63: 0 | T63: 0
C64: 0 | D64: 0 | E64: =IF(E$50>0,E17/E$50,0) -> 0 | F64: 0 | G64: 0 | H64: 0 | I64: 0 | J64: 0 | K64: 0 | L64: 0 | M64: 0 | N64: 0 | O64: 0 | P64: 0 | Q64: 0 | R64: 0 | S64: 0 | T64: 0
C65: 0 | D65: 0 | E65: =IF(E$50>0,E18/E$50,0) -> 0 | F65: 0 | G65: 0 | H65: 0 | I65: 0 | J65: 0 | K65: 0 | L65: 0 | M65: 0 | N65: 0 | O65: 0 | P65: 0 | Q65: 0 | R65: 0 | S65: 0 | T65: 0
C66: 0 | D66: 0 | E66: =IF(E$50>0,E19/E$50,0) -> 0 | F66: 0 | G66: 0 | H66: 0 | I66: 0 | J66: 0 | K66: 0 | L66: 0 | M66: 0 | N66: 0 | O66: 0 | P66: 0 | Q66: 0 | R66: 0 | S66: 0 | T66: 0
C67: 0 | D67: 0 | E67: =IF(E$50>0,E20/E$50,0) -> 0 | F67: 0 | G67: 0 | H67: 0 | I67: 0 | J67: 0 | K67: 0 | L67: 0 | M67: 0 | N67: 0 | O67: 0 | P67: 0 | Q67: 0 | R67: 0 | S67: 0 | T67: 0
C68: 0 | D68: 0 | E68: =IF(E$50>0,E21/E$50,0) -> 0 | F68: 0 | G68: 0 | H68: 0 | I68: 0 | J68: 0 | K68: 0 | L68: 0 | M68: 0 | N68: 0 | O68: 0 | P68: 0 | Q68: 0 | R68: 0 | S68: 0 | T68: 0
C69: 0 | D69: 0 | E69: =IF(E$50>0,E22/E$50,0) -> 0 | F69: 0 | G69: 0 | H69: 0 | I69: 0 | J69: 0 | K69: 0 | L69: 0 | M69: 0 | N69: 0 | O69: 0 | P69: 0 | Q69: 0 | R69: 0 | S69: 0 | T69: 0
C70: 0 | D70: 0 | E70: =IF(E$50>0,E23/E$50,0) -> 0 | F70: 0 | G70: 0 | H70: 0 | I70: 0 | J70: 0 | K70: 0 | L70: 0 | M70: 0 | N70: 0 | O70: 0 | P70: 0 | Q70: 0 | R70: 0 | S70: 0 | T70: 0
C71: 0 | D71: 0 | E71: =IF(E$50>0,E24/E$50,0) -> 0 | F71: 0 | G71: 0 | H71: 0 | I71: 0 | J71: 0 | K71: 0 | L71: 0 | M71: 0 | N71: 0 | O71: 0 | P71: 0 | Q71: 0 | R71: 0 | S71: 0 | T71: 0
C72: =C25 -> 0 | D72: 0 | E72: =IF(E$50>0,E25/E$50,0) -> 0 | F72: 0 | G72: 0 | H72: 0 | I72: 0 | J72: 0 | K72: 0 | L72: 0 | M72: 0 | N72: 0 | O72: 0 | P72: 0 | Q72: 0 | R72: 0 | S72: 0 | T72: 0
C73: 0 | D73: 0 | E73: =IF(E$50>0,E26/E$50,0) -> 0 | F73: 0 | G73: 0 | H73: 0 | I73: 0 | J73: 0 | K73: 0 | L73: 0 | M73: 0 | N73: 0 | O73: 0 | P73: 0 | Q73: 0 | R73: 0 | S73: 0 | T73: 0
C74: 0 | D74: 0 | E74: =IF(E$50>0,E27/E$50,0) -> 0 | F74: 0 | G74: 0 | H74: 0 | I74: 0 | J74: 0 | K74: 0 | L74: 0 | M74: 0 | N74: 0 | O74: 0 | P74: 0 | Q74: 0 | R74: 0 | S74: 0 | T74: 0
C75: 0 | D75: 0 | E75: =IF(E$50>0,E28/E$50,0) -> 0 | F75: 0 | G75: 0 | H75: 0 | I75: 0 | J75: 0 | K75: 0 | L75: 0 | M75: 0 | N75: 0 | O75: 0 | P75: 0 | Q75: 0 | R75: 0 | S75: 0 | T75: 0
C76: 0 | D76: 0 | E76: =IF(E$50>0,E29/E$50,0) -> 0 | F76: 0 | G76: 0 | H76: 0 | I76: 0 | J76: 0 | K76: 0 | L76: 0 | M76: 0 | N76: 0 | O76: 0 | P76: 0 | Q76: 0 | R76: 0 | S76: 0 | T76: 0
C77: 0 | D77: 0 | E77: =IF(E$50>0,E30/E$50,0) -> 0 | F77: 0 | G77: 0 | H77: 0 | I77: 0 | J77: 0 | K77: 0 | L77: 0 | M77: 0 | N77: 0 | O77: 0 | P77: 0 | Q77: 0 | R77: 0 | S77: 0 | T77: 0
C78: 0 | D78: 0 | E78: =IF(E$50>0,E31/E$50,0) -> 0 | F78: 0 | G78: 0 | H78: 0 | I78: 0 | J78: 0 | K78: 0 | L78: 0 | M78: 0 | N78: 0 | O78: 0 | P78: 0 | Q78: 0 | R78: 0 | S78: 0 | T78: 0
C79: 0 | D79: 0 | E79: =IF(E$50>0,E32/E$50,0) -> 0 | F79: 0 | G79: 0 | H79: 0 | I79: 0 | J79: 0 | K79: 0 | L79: 0 | M79: 0 | N79: 0 | O79: 0 | P79: 0 | Q79: 0 | R79: 0 | S79: 0 | T79: 0
C80: 0 | D80: 0 | E80: =IF(E$50>0,E33/E$50,0) -> 0 | F80: 0 | G80: 0 | H80: 0 | I80: 0 | J80: 0 | K80: 0 | L80: 0 | M80: 0 | N80: 0 | O80: 0 | P80: 0 | Q80: 0 | R80: 0 | S80: 0 | T80: 0
C81: 0 | D81: 0 | E81: =IF(E$50>0,E34/E$50,0) -> 0 | F81: 0 | G81: 0 | H81: 0 | I81: 0 | J81: 0 | K81: 0 | L81: 0 | M81: 0 | N81: 0 | O81: 0 | P81: 0 | Q81: 0 | R81: 0 | S81: 0 | T81: 0
C82: 0 | D82: 0 | E82: =IF(E$50>0,E35/E$50,0) -> 0 | F82: 0 | G82: 0 | H82: 0 | I82: 0 | J82: 0 | K82: 0 | L82: 0 | M82: 0 | N82: 0 | O82: 0 | P82: 0 | Q82: 0 | R82: 0 | S82: 0 | T82: 0
C83: 0 | D83: 0 | E83: =IF(E$50>0,E36/E$50,0) -> 0 | F83: 0 | G83: 0 | H83: 0 | I83: 0 | J83: 0 | K83: 0 | L83: 0 | M83: 0 | N83: 0 | O83: 0 | P83: 0 | Q83: 0 | R83: 0 | S83: 0 | T83: 0
C84: 0 | D84: 0 | E84: =IF(E$50>0,E37/E$50,0) -> 0 | F84: 0 | G84: 0 | H84: 0 | I84: 0 | J84: 0 | K84: 0 | L84: 0 | M84: 0 | N84: 0 | O84: 0 | P84: 0 | Q84: 0 | R84: 0 | S84: 0 | T84: 0
C85: 0 | D85: 0 | E85: =IF(E$50>0,E38/E$50,0) -> 0 | F85: 0 | G85: 0 | H85: 0 | I85: 0 | J85: 0 | K85: 0 | L85: 0 | M85: 0 | N85: 0 | O85: 0 | P85: 0 | Q85: 0 | R85: 0 | S85: 0 | T85: 0
C86: 0 | D86: 0 | E86: =IF(E$50>0,E39/E$50,0) -> 0 | F86: 0 | G86: 0 | H86: 0 | I86: 0 | J86: 0 | K86: 0 | L86: 0 | M86: 0 | N86: 0 | O86: 0 | P86: 0 | Q86: 0 | R86: 0 | S86: 0 | T86: 0
C87: 0 | D87: 0 | E87: =IF(E$50>0,E40/E$50,0) -> 0 | F87: 0 | G87: 0 | H87: 0 | I87: 0 | J87: 0 | K87: 0 | L87: 0 | M87: 0 | N87: 0 | O87: 0 | P87: 0 | Q87: 0 | R87: 0 | S87: 0 | T87: 0
C88: 0 | D88: 0 | E88: =IF(E$50>0,E41/E$50,0) -> 0 | F88: 0 | G88: 0 | H88: 0 | I88: 0 | J88: 0 | K88: 0 | L88: 0 | M88: 0 | N88: 0 | O88: 0 | P88: 0 | Q88: 0 | R88: 0 | S88: 0 | T88: 0
C89: 0 | D89: 0 | E89: =IF(E$50>0,E42/E$50,0) -> 0 | F89: 0 | G89: 0 | H89: 0 | I89: 0 | J89: 0 | K89: 0 | L89: 0 | M89: 0 | N89: 0 | O89: 0 | P89: 0 | Q89: 0 | R89: 0 | S89: 0 | T89: 0
C90: 0 | D90: 0 | E90: =IF(E$50>0,E43/E$50,0) -> 0 | F90: 0 | G90: 0 | H90: 0 | I90: 0 | J90: 0 | K90: 0 | L90: 0 | M90: 0 | N90: 0 | O90: 0 | P90: 0 | Q90: 0 | R90: 0 | S90: 0 | T90: 0
C91: 0 | D91: 0 | E91: =IF(E$50>0,E44/E$50,0) -> 0 | F91: 0 | G91: 0 | H91: 0 | I91: 0 | J91: 0 | K91: 0 | L91: 0 | M91: 0 | N91: 0 | O91: 0 | P91: 0 | Q91: 0 | R91: 0 | S91: 0 | T91: 0
C92: =C45 -> 0 | D92: 0 | E92: =IF(E$50>0,E45/E$50,0) -> 0 | F92: 0 | G92: 0 | H92: 0 | I92: 0 | J92: 0 | K92: 0 | L92: 0 | M92: 0 | N92: 0 | O92: 0 | P92: 0 | Q92: 0 | R92: 0 | S92: 0 | T92: 0
C93: 0 | D93: 0 | E93: =IF(E$50>0,E46/E$50,0) -> 0 | F93: 0 | G93: 0 | H93: 0 | I93: 0 | J93: 0 | K93: 0 | L93: 0 | M93: 0 | N93: 0 | O93: 0 | P93: 0 | Q93: 0 | R93: 0 | S93: 0 | T93: 0
C94: 0 | D94: 0 | E94: =IF(E$50>0,E47/E$50,0) -> 0 | F94: 0 | G94: 0 | H94: 0 | I94: 0 | J94: 0 | K94: 0 | L94: 0 | M94: 0 | N94: 0 | O94: 0 | P94: 0 | Q94: 0 | R94: 0 | S94: 0 | T94: 0
C95: 0 | D95: 0 | E95: =IF(E$50>0,E48/E$50,0) -> 0 | F95: 0 | G95: 0 | H95: 0 | I95: 0 | J95: 0 | K95: 0 | L95: 0 | M95: 0 | N95: 0 | O95: 0 | P95: 0 | Q95: 0 | R95: 0 | S95: 0 | T95: 0
C96: 0 | D96: 0 | E96: =IF(E$50>0,E49/E$50,0) -> 0 | F96: 0 | G96: 0 | H96: 0 | I96: 0 | J96: 0 | K96: 0 | L96: 0 | M96: 0 | N96: 0 | O96: 0 | P96: 0 | Q96: 0 | R96: 0 | S96: 0 | T96: 0
A109: COUNT
E110: =E3 -> Female | F110: Male | G110: Female | H110: Male | I110: 0 | J110: 0 | K110: 0 | L110: 0 | M110: 0 | N110: 0 | O110: 0 | P110: 0 | Q110: 0 | R110: 0 | S110: 0 | T110: 0
E111: =E4 -> 0 | F111: 0 | G111: 0 | H111: 0 | I111: 0 | J111: 0 | K111: 0 | L111: 0 | M111: 0 | N111: 0 | O111: 0 | P111: 0 | Q111: 0 | R111: 0 | S111: 0 | T111: 0
C112: =C5 -> 1 | D112: Africa | E112: 0 | F112: 0 | G112: 0 | H112: 0
C113: 2 | D113: Asia | E113: 0 | F113: 0 | G113: 0 | H113: 0
C114: 3 | D114: Caribbean | E114: 0 | F114: 0 | G114: 0 | H114: 0
C115: 4 | D115: Europe | E115: 19 | F115: 46 | G115: 43 | H115: 56
C116: 5 | D116: Latin America | E116: 0 | F116: 0 | G116: 0 | H116: 0
C117: 6 | D117: Middle East | E117: 0 | F117: 0 | G117: 0 | H117: 0
C118: 7 | D118: North America | E118: 0 | F118: 0 | G118: 0 | H118: 0
C119: 8 | D119: Pacific | E119: 0 | F119: 0 | G119: 0 | H119: 0
C120: 0 | D120: 0
C121: 0 | D121: 0
C122: 0 | D122: 0
C123: 0 | D123: 0
C124: 0 | D124: 0
C125: 0 | D125: 0
C126: 0 | D126: 0
C127: 0 | D127: 0
C128: 0 | D128: 0
C129: 0 | D129: 0
C130: 0 | D130: 0
C131: 0 | D131: 0
C132: =C25 -> 0 | D132: 0
C133: 0 | D133: 0
C134: 0 | D134: 0
C135: 0 | D135: 0
C136: 0 | D136: 0
C137: 0 | D137: 0
C138: 0 | D138: 0
C139: 0 | D139: 0
C140: 0 | D140: 0
C141: 0 | D141: 0
C142: 0 | D142: 0
C143: 0 | D143: 0
C144: 0 | D144: 0
C145: 0 | D145: 0
C146: 0 | D146: 0
C147: 0 | D147: 0
C148: 0 | D148: 0
C149: 0 | D149: 0
C150: 0 | D150: 0
C151: 0 | D151: 0
C152: =C45 -> 0 | D152: 0
C153: 0 | D153: 0
C154: 0 | D154: 0

Sheet 10b (hidden)
A1: Reporters and presenters all media, by sex
E3: Female | F3: Male | W3: =E3 -> Female | X3: Male | Y3: 0 | Z3: 0 | AA3: 0 | AB3: 0 | AC3: 0 | AD3: 0 | AE3: 0 | AF3: 0 | AG3: 0 | AH3: 0 | AI3: 0 | AJ3: 0 | AK3: 0
V4: TOTAL | W4: 0 | X4: 0 | Y4: 0 | Z4: 0 | AA4: 0 | AB4: 0 | AC4: 0 | AD4: 0 | AE4: 0 | AF4: 0 | AG4: 0 | AH4: 0 | AI4: 0 | AJ4: 0 | AK4: 0 | AL4: =T4 -> 0
C5: 1 | D5: Africa | V5: =SUM(E5:O5) -> 0 | W5: =IF((E5+F5)>0,E5/(E5+F5),0) -> 0 | X5: =IF((E5+F5)>0,F5/(E5+F5),0) -> 0 | Y5: =IF((G5+H5)>0,G5/(G5+H5),0) -> 0 | Z5: =IF((G5+H5)>0,H5/(G5+H5),0) -> 0 | AA5: =IF((I5+J5)>0,I5/(I5+J5),0) -> 0 | AB5: =IF((I5+J5)>0,J5/(I5+J5),0) -> 0 | AC5: =IF((K5+L5)>0,K5/(K5+L5),0) -> 0 | AD5: =IF((K5+L5)>0,L5/(K5+L5),0) -> 0 | AE5: =IF((M5+N5)>0,M5/(M5+N5),0) -> 0 | AF5: =IF((M5+N5)>0,N5/(M5+N5),0) -> 0 | AG5: =IF((O5+P5)>0,O5/(O5+P5),0) -> 0 | AH5: =IF((O5+P5)>0,P5/(O5+P5),0) -> 0 | AI5: =IF((Q5+R5)>0,Q5/(Q5+R5),0) -> 0 | AJ5: =IF((Q5+R5)>0,R5/(Q5+R5),0) -> 0 | AK5: =IF((S5+T5)>0,S5/(S5+T5),0) -> 0 | AL5: =IF((S5+T5)>0,T5/(S5+T5),0) -> 0
C6: 2 | D6: Asia | V6: 0 | W6: 0 | X6: 0 | Y6: 0 | Z6: 0 | AA6: 0 | AB6: 0 | AC6: 0 | AD6: 0 | AE6: 0 | AF6: 0 | AG6: 0 | AH6: 0 | AI6: 0 | AJ6: 0 | AK6: 0 | AL6: 0
C7: 3 | D7: Caribbean | V7: 0 | W7: 0 | X7: 0 | Y7: 0 | Z7: 0 | AA7: 0 | AB7: 0 | AC7: 0 | AD7: 0 | AE7: 0 | AF7: 0 | AG7: 0 | AH7: 0 | AI7: 0 | AJ7: 0 | AK7: 0 | AL7: 0
C8: 4 | D8: Europe | E8: 0.3741120039 | F8: 0.6875594999 | V8: 1.061671504 | W8: 0.3523801878 | X8: 0.6476198122 | Y8: 0 | Z8: 0 | AA8: 0 | AB8: 0 | AC8: 0 | AD8: 0 | AE8: 0 | AF8: 0 | AG8: 0 | AH8: 0 | AI8: 0 | AJ8: 0 | AK8: 0 | AL8: 0
C9: 5 | D9: Latin America | V9: 0 | W9: 0 | X9: 0 | Y9: 0 | Z9: 0 | AA9: 0 | AB9: 0 | AC9: 0 | AD9: 0 | AE9: 0 | AF9: 0 | AG9: 0 | AH9: 0 | AI9: 0 | AJ9: 0 | AK9: 0 | AL9: 0
C10: 6 | D10: Middle East | V10: 0 | W10: 0 | X10: 0 | Y10: 0 | Z10: 0 | AA10: 0 | AB10: 0 | AC10: 0 | AD10: 0 | AE10: 0 | AF10: 0 | AG10: 0 | AH10: 0 | AI10: 0 | AJ10: 0 | AK10: 0 | AL10: 0
C11: 7 | D11: North America | V11: 0 | W11: 0 | X11: 0 | Y11: 0 | Z11: 0 | AA11: 0 | AB11: 0 | AC11: 0 | AD11: 0 | AE11: 0 | AF11: 0 | AG11: 0 | AH11: 0 | AI11: 0 | AJ11: 0 | AK11: 0 | AL11: 0
C12: 8 | D12: Pacific | V12: 0 | W12: 0 | X12: 0 | Y12: 0 | Z12: 0 | AA12: 0 | AB12: 0 | AC12: 0 | AD12: 0 | AE12: 0 | AF12: 0 | AG12: 0 | AH12: 0 | AI12: 0 | AJ12: 0 | AK12: 0 | AL12: 0
D50: TOTAL | E50: =SUM(E5:E49) -> 0.3741120039 | F50: 0.6875594999 | G50: 0 | H50: 0 | I50: 0 | J50: 0 | K50: 0 | L50: 0 | M50: 0 | N50: 0 | O50: 0 | P50: 0 | Q50: 0 | R50: 0 | S50: 0 | T50: 0 | V50: =SUM(E50:O50) -> 1.061671504 | W50: =IF((E50+F50)>0,E50/(E50+F50),0) -> 0.3523801878 | X50: =IF((E50+F50)>0,F50/(E50+F50),0) -> 0.6476198122 | Y50: =IF((G50+H50)>0,G50/(G50+H50),0) -> 0 | Z50: =IF((G50+H50)>0,H50/(G50+H50),0) -> 0 | AA50: =IF((I50+J50)>0,I50/(I50+J50),0) -> 0 | AB50: =IF((I50+J50)>0,J50/(I50+J50),0) -> 0 | AC50: =IF((K50+L50)>0,K50/(K50+L50),0) -> 0 | AD50: =IF((K50+L50)>0,L50/(K50+L50),0) -> 0 | AE50: =IF((M50+N50)>0,M50/(M50+N50),0) -> 0 | AF50: =IF((M50+N50)>0,N50/(M50+N50),0) -> 0 | AG50: =IF((O50+P50)>0,O50/(O50+P50),0) -> 0 | AH50: =IF((O50+P50)>0,P50/(O50+P50),0) -> 0 | AI50: =IF((Q50+R50)>0,Q50/(Q50+R50),0) -> 0 | AJ50: =IF((Q50+R50)>0,R50/(Q50+R50),0) -> 0 | AK50: =IF((S50+T50)>0,S50/(S50+T50),0) -> 0 | AL50: =IF((S50+T50)>0,T50/(S50+T50),0) -> 0
C52: =C5 -> 1 | D52: Africa | E52: =IF(E$50>0,E5/E$50,0) -> 0 | F52: 0 | G52: 0 | H52: 0 | I52: 0 | J52: 0 | K52: 0 | L52: 0 | M52: 0 | N52: 0 | O52: 0 | P52: 0 | Q52: 0 | R52: 0 | S52: 0 | T52: 0
C53: 2 | D53: Asia | E53: =IF(E$50>0,E6/E$50,0) -> 0 | F53: 0 | G53: 0 | H53: 0 | I53: 0 | J53: 0 | K53: 0 | L53: 0 | M53: 0 | N53: 0 | O53: 0 | P53: 0 | Q53: 0 | R53: 0 | S53: 0 | T53: 0
C54: 3 | D54: Caribbean | E54: =IF(E$50>0,E7/E$50,0) -> 0 | F54: 0 | G54: 0 | H54: 0 | I54: 0 | J54: 0 | K54: 0 | L54: 0 | M54: 0 | N54: 0 | O54: 0 | P54: 0 | Q54: 0 | R54: 0 | S54: 0 | T54: 0
C55: 4 | D55: Europe | E55: =IF(E$50>0,E8/E$50,0) -> 1 | F55: 1 | G55: 0 | H55: 0 | I55: 0 | J55: 0 | K55: 0 | L55: 0 | M55: 0 | N55: 0 | O55: 0 | P55: 0 | Q55: 0 | R55: 0 | S55: 0 | T55: 0
C56: 5 | D56: Latin America | E56: =IF(E$50>0,E9/E$50,0) -> 0 | F56: 0 | G56: 0 | H56: 0 | I56: 0 | J56: 0 | K56: 0 | L56: 0 | M56: 0 | N56: 0 | O56: 0 | P56: 0 | Q56: 0 | R56: 0 | S56: 0 | T56: 0
C57: 6 | D57: Middle East | E57: =IF(E$50>0,E10/E$50,0) -> 0 | F57: 0 | G57: 0 | H57: 0 | I57: 0 | J57: 0 | K57: 0 | L57: 0 | M57: 0 | N57: 0 | O57: 0 | P57: 0 | Q57: 0 | R57: 0 | S57: 0 | T57: 0
C58: 7 | D58: North America | E58: =IF(E$50>0,E11/E$50,0) -> 0 | F58: 0 | G58: 0 | H58: 0 | I58: 0 | J58: 0 | K58: 0 | L58: 0 | M58: 0 | N58: 0 | O58: 0 | P58: 0 | Q58: 0 | R58: 0 | S58: 0 | T58: 0
C59: 8 | D59: Pacific | E59: =IF(E$50>0,E12/E$50,0) -> 0 | F59: 0 | G59: 0 | H59: 0 | I59: 0 | J59: 0 | K59: 0 | L59: 0 | M59: 0 | N59: 0 | O59: 0 | P59: 0 | Q59: 0 | R59: 0 | S59: 0 | T59: 0
C60: 0 | D60: 0 | E60: =IF(E$50>0,E13/E$50,0) -> 0 | F60: 0 | G60: 0 | H60: 0 | I60: 0 | J60: 0 | K60: 0 | L60: 0 | M60: 0 | N60: 0 | O60: 0 | P60: 0 | Q60: 0 | R60: 0 | S60: 0 | T60: 0
C61: 0 | D61: 0 | E61: =IF(E$50>0,E14/E$50,0) -> 0 | F61: 0 | G61: 0 | H61: 0 | I61: 0 | J61: 0 | K61: 0 | L61: 0 | M61: 0 | N61: 0 | O61: 0 | P61: 0 | Q61: 0 | R61: 0 | S61: 0 | T61: 0
C62: 0 | D62: 0 | E62: =IF(E$50>0,E15/E$50,0) -> 0 | F62: 0 | G62: 0 | H62: 0 | I62: 0 | J62: 0 | K62: 0 | L62: 0 | M62: 0 | N62: 0 | O62: 0 | P62: 0 | Q62: 0 | R62: 0 | S62: 0 | T62: 0
C63: 0 | D63: 0 | E63: =IF(E$50>0,E16/E$50,0) -> 0 | F63: 0 | G63: 0 | H63: 0 | I63: 0 | J63: 0 | K63: 0 | L63: 0 | M63: 0 | N63: 0 | O63: 0 | P63: 0 | Q63: 0 | R63: 0 | S63: 0 | T63: 0
C64: 0 | D64: 0 | E64: =IF(E$50>0,E17/E$50,0) -> 0 | F64: 0 | G64: 0 | H64: 0 | I64: 0 | J64: 0 | K64: 0 | L64: 0 | M64: 0 | N64: 0 | O64: 0 | P64: 0 | Q64: 0 | R64: 0 | S64: 0 | T64: 0
C65: 0 | D65: 0 | E65: =IF(E$50>0,E18/E$50,0) -> 0 | F65: 0 | G65: 0 | H65: 0 | I65: 0 | J65: 0 | K65: 0 | L65: 0 | M65: 0 | N65: 0 | O65: 0 | P65: 0 | Q65: 0 | R65: 0 | S65: 0 | T65: 0
C66: 0 | D66: 0 | E66: =IF(E$50>0,E19/E$50,0) -> 0 | F66: 0 | G66: 0 | H66: 0 | I66: 0 | J66: 0 | K66: 0 | L66: 0 | M66: 0 | N66: 0 | O66: 0 | P66: 0 | Q66: 0 | R66: 0 | S66: 0 | T66: 0
C67: 0 | D67: 0 | E67: =IF(E$50>0,E20/E$50,0) -> 0 | F67: 0 | G67: 0 | H67: 0 | I67: 0 | J67: 0 | K67: 0 | L67: 0 | M67: 0 | N67: 0 | O67: 0 | P67: 0 | Q67: 0 | R67: 0 | S67: 0 | T67: 0
C68: 0 | D68: 0 | E68: =IF(E$50>0,E21/E$50,0) -> 0 | F68: 0 | G68: 0 | H68: 0 | I68: 0 | J68: 0 | K68: 0 | L68: 0 | M68: 0 | N68: 0 | O68: 0 | P68: 0 | Q68: 0 | R68: 0 | S68: 0 | T68: 0
C69: 0 | D69: 0 | E69: =IF(E$50>0,E22/E$50,0) -> 0 | F69: 0 | G69: 0 | H69: 0 | I69: 0 | J69: 0 | K69: 0 | L69: 0 | M69: 0 | N69: 0 | O69: 0 | P69: 0 | Q69: 0 | R69: 0 | S69: 0 | T69: 0
C70: 0 | D70: 0 | E70: =IF(E$50>0,E23/E$50,0) -> 0 | F70: 0 | G70: 0 | H70: 0 | I70: 0 | J70: 0 | K70: 0 | L70: 0 | M70: 0 | N70: 0 | O70: 0 | P70: 0 | Q70: 0 | R70: 0 | S70: 0 | T70: 0
C71: 0 | D71: 0 | E71: =IF(E$50>0,E24/E$50,0) -> 0 | F71: 0 | G71: 0 | H71: 0 | I71: 0 | J71: 0 | K71: 0 | L71: 0 | M71: 0 | N71: 0 | O71: 0 | P71: 0 | Q71: 0 | R71: 0 | S71: 0 | T71: 0
C72: =C25 -> 0 | D72: 0 | E72: =IF(E$50>0,E25/E$50,0) -> 0 | F72: 0 | G72: 0 | H72: 0 | I72: 0 | J72: 0 | K72: 0 | L72: 0 | M72: 0 | N72: 0 | O72: 0 | P72: 0 | Q72: 0 | R72: 0 | S72: 0 | T72: 0
C73: 0 | D73: 0 | E73: =IF(E$50>0,E26/E$50,0) -> 0 | F73: 0 | G73: 0 | H73: 0 | I73: 0 | J73: 0 | K73: 0 | L73: 0 | M73: 0 | N73: 0 | O73: 0 | P73: 0 | Q73: 0 | R73: 0 | S73: 0 | T73: 0
C74: 0 | D74: 0 | E74: =IF(E$50>0,E27/E$50,0) -> 0 | F74: 0 | G74: 0 | H74: 0 | I74: 0 | J74: 0 | K74: 0 | L74: 0 | M74: 0 | N74: 0 | O74: 0 | P74: 0 | Q74: 0 | R74: 0 | S74: 0 | T74: 0
C75: 0 | D75: 0 | E75: =IF(E$50>0,E28/E$50,0) -> 0 | F75: 0 | G75: 0 | H75: 0 | I75: 0 | J75: 0 | K75: 0 | L75: 0 | M75: 0 | N75: 0 | O75: 0 | P75: 0 | Q75: 0 | R75: 0 | S75: 0 | T75: 0
C76: 0 | D76: 0 | E76: =IF(E$50>0,E29/E$50,0) -> 0 | F76: 0 | G76: 0 | H76: 0 | I76: 0 | J76: 0 | K76: 0 | L76: 0 | M76: 0 | N76: 0 | O76: 0 | P76: 0 | Q76: 0 | R76: 0 | S76: 0 | T76: 0
C77: 0 | D77: 0 | E77: =IF(E$50>0,E30/E$50,0) -> 0 | F77: 0 | G77: 0 | H77: 0 | I77: 0 | J77: 0 | K77: 0 | L77: 0 | M77: 0 | N77: 0 | O77: 0 | P77: 0 | Q77: 0 | R77: 0 | S77: 0 | T77: 0
C78: 0 | D78: 0 | E78: =IF(E$50>0,E31/E$50,0) -> 0 | F78: 0 | G78: 0 | H78: 0 | I78: 0 | J78: 0 | K78: 0 | L78: 0 | M78: 0 | N78: 0 | O78: 0 | P78: 0 | Q78: 0 | R78: 0 | S78: 0 | T78: 0
C79: 0 | D79: 0 | E79: =IF(E$50>0,E32/E$50,0) -> 0 | F79: 0 | G79: 0 | H79: 0 | I79: 0 | J79: 0 | K79: 0 | L79: 0 | M79: 0 | N79: 0 | O79: 0 | P79: 0 | Q79: 0 | R79: 0 | S79: 0 | T79: 0
C80: 0 | D80: 0 | E80: =IF(E$50>0,E33/E$50,0) -> 0 | F80: 0 | G80: 0 | H80: 0 | I80: 0 | J80: 0 | K80: 0 | L80: 0 | M80: 0 | N80: 0 | O80: 0 | P80: 0 | Q80: 0 | R80: 0 | S80: 0 | T80: 0
C81: 0 | D81: 0 | E81: =IF(E$50>0,E34/E$50,0) -> 0 | F81: 0 | G81: 0 | H81: 0 | I81: 0 | J81: 0 | K81: 0 | L81: 0 | M81: 0 | N81: 0 | O81: 0 | P81: 0 | Q81: 0 | R81: 0 | S81: 0 | T81: 0
C82: 0 | D82: 0 | E82: =IF(E$50>0,E35/E$50,0) -> 0 | F82: 0 | G82: 0 | H82: 0 | I82: 0 | J82: 0 | K82: 0 | L82: 0 | M82: 0 | N82: 0 | O82: 0 | P82: 0 | Q82: 0 | R82: 0 | S82: 0 | T82: 0
C83: 0 | D83: 0 | E83: =IF(E$50>0,E36/E$50,0) -> 0 | F83: 0 | G83: 0 | H83: 0 | I83: 0 | J83: 0 | K83: 0 | L83: 0 | M83: 0 | N83: 0 | O83: 0 | P83: 0 | Q83: 0 | R83: 0 | S83: 0 | T83: 0
C84: 0 | D84: 0 | E84: =IF(E$50>0,E37/E$50,0) -> 0 | F84: 0 | G84: 0 | H84: 0 | I84: 0 | J84: 0 | K84: 0 | L84: 0 | M84: 0 | N84: 0 | O84: 0 | P84: 0 | Q84: 0 | R84: 0 | S84: 0 | T84: 0
C85: 0 | D85: 0 | E85: =IF(E$50>0,E38/E$50,0) -> 0 | F85: 0 | G85: 0 | H85: 0 | I85: 0 | J85: 0 | K85: 0 | L85: 0 | M85: 0 | N85: 0 | O85: 0 | P85: 0 | Q85: 0 | R85: 0 | S85: 0 | T85: 0
C86: 0 | D86: 0 | E86: =IF(E$50>0,E39/E$50,0) -> 0 | F86: 0 | G86: 0 | H86: 0 | I86: 0 | J86: 0 | K86: 0 | L86: 0 | M86: 0 | N86: 0 | O86: 0 | P86: 0 | Q86: 0 | R86: 0 | S86: 0 | T86: 0
C87: 0 | D87: 0 | E87: =IF(E$50>0,E40/E$50,0) -> 0 | F87: 0 | G87: 0 | H87: 0 | I87: 0 | J87: 0 | K87: 0 | L87: 0 | M87: 0 | N87: 0 | O87: 0 | P87: 0 | Q87: 0 | R87: 0 | S87: 0 | T87: 0
C88: 0 | D88: 0 | E88: =IF(E$50>0,E41/E$50,0) -> 0 | F88: 0 | G88: 0 | H88: 0 | I88: 0 | J88: 0 | K88: 0 | L88: 0 | M88: 0 | N88: 0 | O88: 0 | P88: 0 | Q88: 0 | R88: 0 | S88: 0 | T88: 0
C89: 0 | D89: 0 | E89: =IF(E$50>0,E42/E$50,0) -> 0 | F89: 0 | G89: 0 | H89: 0 | I89: 0 | J89: 0 | K89: 0 | L89: 0 | M89: 0 | N89: 0 | O89: 0 | P89: 0 | Q89: 0 | R89: 0 | S89: 0 | T89: 0
C90: 0 | D90: 0 | E90: =IF(E$50>0,E43/E$50,0) -> 0 | F90: 0 | G90: 0 | H90: 0 | I90: 0 | J90: 0 | K90: 0 | L90: 0 | M90: 0 | N90: 0 | O90: 0 | P90: 0 | Q90: 0 | R90: 0 | S90: 0 | T90: 0
C91: 0 | D91: 0 | E91: =IF(E$50>0,E44/E$50,0) -> 0 | F91: 0 | G91: 0 | H91: 0 | I91: 0 | J91: 0 | K91: 0 | L91: 0 | M91: 0 | N91: 0 | O91: 0 | P91: 0 | Q91: 0 | R91: 0 | S91: 0 | T91: 0
C92: =C45 -> 0 | D92: 0 | E92: =IF(E$50>0,E45/E$50,0) -> 0 | F92: 0 | G92: 0 | H92: 0 | I92: 0 | J92: 0 | K92: 0 | L92: 0 | M92: 0 | N92: 0 | O92: 0 | P92: 0 | Q92: 0 | R92: 0 | S92: 0 | T92: 0
C93: 0 | D93: 0 | E93: =IF(E$50>0,E46/E$50,0) -> 0 | F93: 0 | G93: 0 | H93: 0 | I93: 0 | J93: 0 | K93: 0 | L93: 0 | M93: 0 | N93: 0 | O93: 0 | P93: 0 | Q93: 0 | R93: 0 | S93: 0 | T93: 0
C94: 0 | D94: 0 | E94: =IF(E$50>0,E47/E$50,0) -> 0 | F94: 0 | G94: 0 | H94: 0 | I94: 0 | J94: 0 | K94: 0 | L94: 0 | M94: 0 | N94: 0 | O94: 0 | P94: 0 | Q94: 0 | R94: 0 | S94: 0 | T94: 0
C95: 0 | D95: 0 | E95: =IF(E$50>0,E48/E$50,0) -> 0 | F95: 0 | G95: 0 | H95: 0 | I95: 0 | J95: 0 | K95: 0 | L95: 0 | M95: 0 | N95: 0 | O95: 0 | P95: 0 | Q95: 0 | R95: 0 | S95: 0 | T95: 0
C96: 0 | D96: 0 | E96: =IF(E$50>0,E49/E$50,0) -> 0 | F96: 0 | G96: 0 | H96: 0 | I96: 0 | J96: 0 | K96: 0 | L96: 0 | M96: 0 | N96: 0 | O96: 0 | P96: 0 | Q96: 0 | R96: 0 | S96: 0 | T96: 0
A109: COUNT
E110: =E3 -> Female | F110: Male | G110: 0 | H110: 0 | I110: 0 | J110: 0 | K110: 0 | L110: 0 | M110: 0 | N110: 0 | O110: 0 | P110: 0 | Q110: 0 | R110: 0 | S110: 0 | T110: 0
E111: =E4 -> 0 | F111: 0 | G111: 0 | H111: 0 | I111: 0 | J111: 0 | K111: 0 | L111: 0 | M111: 0 | N111: 0 | O111: 0 | P111: 0 | Q111: 0 | R111: 0 | S111: 0 | T111: 0
C112: =C5 -> 1 | D112: Africa | E112: 0 | F112: 0
C113: 2 | D113: Asia | E113: 0 | F113: 0
C114: 3 | D114: Caribbean | E114: 0 | F114: 0
C115: 4 | D115: Europe | E115: 70 | F115: 125
C116: 5 | D116: Latin America | E116: 0 | F116: 0
C117: 6 | D117: Middle East | E117: 0 | F117: 0
C118: 7 | D118: North America | E118: 0 | F118: 0
C119: 8 | D119: Pacific | E119: 0 | F119: 0
C120: 0 | D120: 0
C121: 0 | D121: 0
C122: 0 | D122: 0
C123: 0 | D123: 0
C124: 0 | D124: 0
C125: 0 | D125: 0
C126: 0 | D126: 0
C127: 0 | D127: 0
C128: 0 | D128: 0
C129: 0 | D129: 0
C130: 0 | D130: 0
C131: 0 | D131: 0
C132: =C25 -> 0 | D132: 0
C133: 0 | D133: 0
C134: 0 | D134: 0
C135: 0 | D135: 0
C136: 0 | D136: 0
C137: 0 | D137: 0
C138: 0 | D138: 0
C139: 0 | D139: 0
C140: 0 | D140: 0
C141: 0 | D141: 0
C142: 0 | D142: 0
C143: 0 | D143: 0
C144: 0 | D144: 0
C145: 0 | D145: 0
C146: 0 | D146: 0
C147: 0 | D147: 0
C148: 0 | D148: 0
C149: 0 | D149: 0
C150: 0 | D150: 0
C151: 0 | D151: 0
C152: =C45 -> 0 | D152: 0
C153: 0 | D153: 0
C154: 0 | D154: 0

Sheet 10c (hidden)
A1: Announcers & Reporters by medium type, by sex
E3: Female | F3: Male | W3: =E3 -> Female | X3: Male | Y3: 0 | Z3: 0 | AA3: 0 | AB3: 0 | AC3: 0 | AD3: 0 | AE3: 0 | AF3: 0 | AG3: 0 | AH3: 0 | AI3: 0 | AJ3: 0 | AK3: 0
V4: TOTAL | W4: 0 | X4: 0 | Y4: 0 | Z4: 0 | AA4: 0 | AB4: 0 | AC4: 0 | AD4: 0 | AE4: 0 | AF4: 0 | AG4: 0 | AH4: 0 | AI4: 0 | AJ4: 0 | AK4: 0 | AL4: =T4 -> 0
C5: 1 | D5: PRINT | E5: 0.05981199816 | F5: 0.1719594947 | V5: =SUM(E5:O5) -> 0.2317714929 | W5: =IF((E5+F5)>0,E5/(E5+F5),0) -> 0.2580645161 | X5: =IF((E5+F5)>0,F5/(E5+F5),0) -> 0.7419354839 | Y5: =IF((G5+H5)>0,G5/(G5+H5),0) -> 0 | Z5: =IF((G5+H5)>0,H5/(G5+H5),0) -> 0 | AA5: =IF((I5+J5)>0,I5/(I5+J5),0) -> 0 | AB5: =IF((I5+J5)>0,J5/(I5+J5),0) -> 0 | AC5: =IF((K5+L5)>0,K5/(K5+L5),0) -> 0 | AD5: =IF((K5+L5)>0,L5/(K5+L5),0) -> 0 | AE5: =IF((M5+N5)>0,M5/(M5+N5),0) -> 0 | AF5: =IF((M5+N5)>0,N5/(M5+N5),0) -> 0 | AG5: =IF((O5+P5)>0,O5/(O5+P5),0) -> 0 | AH5: =IF((O5+P5)>0,P5/(O5+P5),0) -> 0 | AI5: =IF((Q5+R5)>0,Q5/(Q5+R5),0) -> 0 | AJ5: =IF((Q5+R5)>0,R5/(Q5+R5),0) -> 0 | AK5: =IF((S5+T5)>0,S5/(S5+T5),0) -> 0 | AL5: =IF((S5+T5)>0,T5/(S5+T5),0) -> 0
C6: 2 | D6: RADIO | E6: 0.09499999788 | F6: 0.2299999949 | V6: 0.3249999927 | W6: 0.2923076923 | X6: 0.7076923077 | Y6: 0 | Z6: 0 | AA6: 0 | AB6: 0 | AC6: 0 | AD6: 0 | AE6: 0 | AF6: 0 | AG6: 0 | AH6: 0 | AI6: 0 | AJ6: 0 | AK6: 0 | AL6: 0
C7: 3 | D7: TELEVISION | E7: 0.2193000079 | F7: 0.2856000103 | V7: 0.5049000182 | W7: 0.4343434343 | X7: 0.5656565657 | Y7: 0 | Z7: 0 | AA7: 0 | AB7: 0 | AC7: 0 | AD7: 0 | AE7: 0 | AF7: 0 | AG7: 0 | AH7: 0 | AI7: 0 | AJ7: 0 | AK7: 0 | AL7: 0
V8: 0 | W8: 0 | X8: 0 | Y8: 0 | Z8: 0 | AA8: 0 | AB8: 0 | AC8: 0 | AD8: 0 | AE8: 0 | AF8: 0 | AG8: 0 | AH8: 0 | AI8: 0 | AJ8: 0 | AK8: 0 | AL8: 0
V9: 0 | W9: 0 | X9: 0 | Y9: 0 | Z9: 0 | AA9: 0 | AB9: 0 | AC9: 0 | AD9: 0 | AE9: 0 | AF9: 0 | AG9: 0 | AH9: 0 | AI9: 0 | AJ9: 0 | AK9: 0 | AL9: 0
V10: 0 | W10: 0 | X10: 0 | Y10: 0 | Z10: 0 | AA10: 0 | AB10: 0 | AC10: 0 | AD10: 0 | AE10: 0 | AF10: 0 | AG10: 0 | AH10: 0 | AI10: 0 | AJ10: 0 | AK10: 0 | AL10: 0
V11: 0 | W11: 0 | X11: 0 | Y11: 0 | Z11: 0 | AA11: 0 | AB11: 0 | AC11: 0 | AD11: 0 | AE11: 0 | AF11: 0 | AG11: 0 | AH11: 0 | AI11: 0 | AJ11: 0 | AK11: 0 | AL11: 0
V12: 0 | W12: 0 | X12: 0 | Y12: 0 | Z12: 0 | AA12: 0 | AB12: 0 | AC12: 0 | AD12: 0 | AE12: 0 | AF12: 0 | AG12: 0 | AH12: 0 | AI12: 0 | AJ12: 0 | AK12: 0 | AL12: 0
D50: TOTAL | E50: =SUM(E5:E49) -> 0.3741120039 | F50: 0.6875594999 | G50: 0 | H50: 0 | I50: 0 | J50: 0 | K50: 0 | L50: 0 | M50: 0 | N50: 0 | O50: 0 | P50: 0 | Q50: 0 | R50: 0 | S50: 0 | T50: 0 | V50: =SUM(E50:O50) -> 1.061671504 | W50: =IF((E50+F50)>0,E50/(E50+F50),0) -> 0.3523801878 | X50: =IF((E50+F50)>0,F50/(E50+F50),0) -> 0.6476198122 | Y50: =IF((G50+H50)>0,G50/(G50+H50),0) -> 0 | Z50: =IF((G50+H50)>0,H50/(G50+H50),0) -> 0 | AA50: =IF((I50+J50)>0,I50/(I50+J50),0) -> 0 | AB50: =IF((I50+J50)>0,J50/(I50+J50),0) -> 0 | AC50: =IF((K50+L50)>0,K50/(K50+L50),0) -> 0 | AD50: =IF((K50+L50)>0,L50/(K50+L50),0) -> 0 | AE50: =IF((M50+N50)>0,M50/(M50+N50),0) -> 0 | AF50: =IF((M50+N50)>0,N50/(M50+N50),0) -> 0 | AG50: =IF((O50+P50)>0,O50/(O50+P50),0) -> 0 | AH50: =IF((O50+P50)>0,P50/(O50+P50),0) -> 0 | AI50: =IF((Q50+R50)>0,Q50/(Q50+R50),0) -> 0 | AJ50: =IF((Q50+R50)>0,R50/(Q50+R50),0) -> 0 | AK50: =IF((S50+T50)>0,S50/(S50+T50),0) -> 0 | AL50: =IF((S50+T50)>0,T50/(S50+T50),0) -> 0
C52: =C5 -> 1 | D52: PRINT | E52: =IF(E$50>0,E5/E$50,0) -> 0.1598772494 | F52: 0.2501012563 | G52: 0 | H52: 0 | I52: 0 | J52: 0 | K52: 0 | L52: 0 | M52: 0 | N52: 0 | O52: 0 | P52: 0 | Q52: 0 | R52: 0 | S52: 0 | T52: 0
C53: 2 | D53: RADIO | E53: =IF(E$50>0,E6/E$50,0) -> 0.2539346422 | F53: 0.3345164962 | G53: 0 | H53: 0 | I53: 0 | J53: 0 | K53: 0 | L53: 0 | M53: 0 | N53: 0 | O53: 0 | P53: 0 | Q53: 0 | R53: 0 | S53: 0 | T53: 0
C54: 3 | D54: TELEVISION | E54: =IF(E$50>0,E7/E$50,0) -> 0.5861881084 | F54: 0.4153822474 | G54: 0 | H54: 0 | I54: 0 | J54: 0 | K54: 0 | L54: 0 | M54: 0 | N54: 0 | O54: 0 | P54: 0 | Q54: 0 | R54: 0 | S54: 0 | T54: 0
C55: 0 | D55: 0 | E55: =IF(E$50>0,E8/E$50,0) -> 0 | F55: 0 | G55: 0 | H55: 0 | I55: 0 | J55: 0 | K55: 0 | L55: 0 | M55: 0 | N55: 0 | O55: 0 | P55: 0 | Q55: 0 | R55: 0 | S55: 0 | T55: 0
C56: 0 | D56: 0 | E56: =IF(E$50>0,E9/E$50,0) -> 0 | F56: 0 | G56: 0 | H56: 0 | I56: 0 | J56: 0 | K56: 0 | L56: 0 | M56: 0 | N56: 0 | O56: 0 | P56: 0 | Q56: 0 | R56: 0 | S56: 0 | T56: 0
C57: 0 | D57: 0 | E57: =IF(E$50>0,E10/E$50,0) -> 0 | F57: 0 | G57: 0 | H57: 0 | I57: 0 | J57: 0 | K57: 0 | L57: 0 | M57: 0 | N57: 0 | O57: 0 | P57: 0 | Q57: 0 | R57: 0 | S57: 0 | T57: 0
C58: 0 | D58: 0 | E58: =IF(E$50>0,E11/E$50,0) -> 0 | F58: 0 | G58: 0 | H58: 0 | I58: 0 | J58: 0 | K58: 0 | L58: 0 | M58: 0 | N58: 0 | O58: 0 | P58: 0 | Q58: 0 | R58: 0 | S58: 0 | T58: 0
C59: 0 | D59: 0 | E59: =IF(E$50>0,E12/E$50,0) -> 0 | F59: 0 | G59: 0 | H59: 0 | I59: 0 | J59: 0 | K59: 0 | L59: 0 | M59: 0 | N59: 0 | O59: 0 | P59: 0 | Q59: 0 | R59: 0 | S59: 0 | T59: 0
C60: 0 | D60: 0 | E60: =IF(E$50>0,E13/E$50,0) -> 0 | F60: 0 | G60: 0 | H60: 0 | I60: 0 | J60: 0 | K60: 0 | L60: 0 | M60: 0 | N60: 0 | O60: 0 | P60: 0 | Q60: 0 | R60: 0 | S60: 0 | T60: 0
C61: 0 | D61: 0 | E61: =IF(E$50>0,E14/E$50,0) -> 0 | F61: 0 | G61: 0 | H61: 0 | I61: 0 | J61: 0 | K61: 0 | L61: 0 | M61: 0 | N61: 0 | O61: 0 | P61: 0 | Q61: 0 | R61: 0 | S61: 0 | T61: 0
C62: 0 | D62: 0 | E62: =IF(E$50>0,E15/E$50,0) -> 0 | F62: 0 | G62: 0 | H62: 0 | I62: 0 | J62: 0 | K62: 0 | L62: 0 | M62: 0 | N62: 0 | O62: 0 | P62: 0 | Q62: 0 | R62: 0 | S62: 0 | T62: 0
C63: 0 | D63: 0 | E63: =IF(E$50>0,E16/E$50,0) -> 0 | F63: 0 | G63: 0 | H63: 0 | I63: 0 | J63: 0 | K63: 0 | L63: 0 | M63: 0 | N63: 0 | O63: 0 | P63: 0 | Q63: 0 | R63: 0 | S63: 0 | T63: 0
C64: 0 | D64: 0 | E64: =IF(E$50>0,E17/E$50,0) -> 0 | F64: 0 | G64: 0 | H64: 0 | I64: 0 | J64: 0 | K64: 0 | L64: 0 | M64: 0 | N64: 0 | O64: 0 | P64: 0 | Q64: 0 | R64: 0 | S64: 0 | T64: 0
C65: 0 | D65: 0 | E65: =IF(E$50>0,E18/E$50,0) -> 0 | F65: 0 | G65: 0 | H65: 0 | I65: 0 | J65: 0 | K65: 0 | L65: 0 | M65: 0 | N65: 0 | O65: 0 | P65: 0 | Q65: 0 | R65: 0 | S65: 0 | T65: 0
C66: 0 | D66: 0 | E66: =IF(E$50>0,E19/E$50,0) -> 0 | F66: 0 | G66: 0 | H66: 0 | I66: 0 | J66: 0 | K66: 0 | L66: 0 | M66: 0 | N66: 0 | O66: 0 | P66: 0 | Q66: 0 | R66: 0 | S66: 0 | T66: 0
C67: 0 | D67: 0 | E67: =IF(E$50>0,E20/E$50,0) -> 0 | F67: 0 | G67: 0 | H67: 0 | I67: 0 | J67: 0 | K67: 0 | L67: 0 | M67: 0 | N67: 0 | O67: 0 | P67: 0 | Q67: 0 | R67: 0 | S67: 0 | T67: 0
C68: 0 | D68: 0 | E68: =IF(E$50>0,E21/E$50,0) -> 0 | F68: 0 | G68: 0 | H68: 0 | I68: 0 | J68: 0 | K68: 0 | L68: 0 | M68: 0 | N68: 0 | O68: 0 | P68: 0 | Q68: 0 | R68: 0 | S68: 0 | T68: 0
C69: 0 | D69: 0 | E69: =IF(E$50>0,E22/E$50,0) -> 0 | F69: 0 | G69: 0 | H69: 0 | I69: 0 | J69: 0 | K69: 0 | L69: 0 | M69: 0 | N69: 0 | O69: 0 | P69: 0 | Q69: 0 | R69: 0 | S69: 0 | T69: 0
C70: 0 | D70: 0 | E70: =IF(E$50>0,E23/E$50,0) -> 0 | F70: 0 | G70: 0 | H70: 0 | I70: 0 | J70: 0 | K70: 0 | L70: 0 | M70: 0 | N70: 0 | O70: 0 | P70: 0 | Q70: 0 | R70: 0 | S70: 0 | T70: 0
C71: 0 | D71: 0 | E71: =IF(E$50>0,E24/E$50,0) -> 0 | F71: 0 | G71: 0 | H71: 0 | I71: 0 | J71: 0 | K71: 0 | L71: 0 | M71: 0 | N71: 0 | O71: 0 | P71: 0 | Q71: 0 | R71: 0 | S71: 0 | T71: 0
C72: =C25 -> 0 | D72: 0 | E72: =IF(E$50>0,E25/E$50,0) -> 0 | F72: 0 | G72: 0 | H72: 0 | I72: 0 | J72: 0 | K72: 0 | L72: 0 | M72: 0 | N72: 0 | O72: 0 | P72: 0 | Q72: 0 | R72: 0 | S72: 0 | T72: 0
C73: 0 | D73: 0 | E73: =IF(E$50>0,E26/E$50,0) -> 0 | F73: 0 | G73: 0 | H73: 0 | I73: 0 | J73: 0 | K73: 0 | L73: 0 | M73: 0 | N73: 0 | O73: 0 | P73: 0 | Q73: 0 | R73: 0 | S73: 0 | T73: 0
C74: 0 | D74: 0 | E74: =IF(E$50>0,E27/E$50,0) -> 0 | F74: 0 | G74: 0 | H74: 0 | I74: 0 | J74: 0 | K74: 0 | L74: 0 | M74: 0 | N74: 0 | O74: 0 | P74: 0 | Q74: 0 | R74: 0 | S74: 0 | T74: 0
C75: 0 | D75: 0 | E75: =IF(E$50>0,E28/E$50,0) -> 0 | F75: 0 | G75: 0 | H75: 0 | I75: 0 | J75: 0 | K75: 0 | L75: 0 | M75: 0 | N75: 0 | O75: 0 | P75: 0 | Q75: 0 | R75: 0 | S75: 0 | T75: 0
C76: 0 | D76: 0 | E76: =IF(E$50>0,E29/E$50,0) -> 0 | F76: 0 | G76: 0 | H76: 0 | I76: 0 | J76: 0 | K76: 0 | L76: 0 | M76: 0 | N76: 0 | O76: 0 | P76: 0 | Q76: 0 | R76: 0 | S76: 0 | T76: 0
C77: 0 | D77: 0 | E77: =IF(E$50>0,E30/E$50,0) -> 0 | F77: 0 | G77: 0 | H77: 0 | I77: 0 | J77: 0 | K77: 0 | L77: 0 | M77: 0 | N77: 0 | O77: 0 | P77: 0 | Q77: 0 | R77: 0 | S77: 0 | T77: 0
C78: 0 | D78: 0 | E78: =IF(E$50>0,E31/E$50,0) -> 0 | F78: 0 | G78: 0 | H78: 0 | I78: 0 | J78: 0 | K78: 0 | L78: 0 | M78: 0 | N78: 0 | O78: 0 | P78: 0 | Q78: 0 | R78: 0 | S78: 0 | T78: 0
C79: 0 | D79: 0 | E79: =IF(E$50>0,E32/E$50,0) -> 0 | F79: 0 | G79: 0 | H79: 0 | I79: 0 | J79: 0 | K79: 0 | L79: 0 | M79: 0 | N79: 0 | O79: 0 | P79: 0 | Q79: 0 | R79: 0 | S79: 0 | T79: 0
C80: 0 | D80: 0 | E80: =IF(E$50>0,E33/E$50,0) -> 0 | F80: 0 | G80: 0 | H80: 0 | I80: 0 | J80: 0 | K80: 0 | L80: 0 | M80: 0 | N80: 0 | O80: 0 | P80: 0 | Q80: 0 | R80: 0 | S80: 0 | T80: 0
C81: 0 | D81: 0 | E81: =IF(E$50>0,E34/E$50,0) -> 0 | F81: 0 | G81: 0 | H81: 0 | I81: 0 | J81: 0 | K81: 0 | L81: 0 | M81: 0 | N81: 0 | O81: 0 | P81: 0 | Q81: 0 | R81: 0 | S81: 0 | T81: 0
C82: 0 | D82: 0 | E82: =IF(E$50>0,E35/E$50,0) -> 0 | F82: 0 | G82: 0 | H82: 0 | I82: 0 | J82: 0 | K82: 0 | L82: 0 | M82: 0 | N82: 0 | O82: 0 | P82: 0 | Q82: 0 | R82: 0 | S82: 0 | T82: 0
C83: 0 | D83: 0 | E83: =IF(E$50>0,E36/E$50,0) -> 0 | F83: 0 | G83: 0 | H83: 0 | I83: 0 | J83: 0 | K83: 0 | L83: 0 | M83: 0 | N83: 0 | O83: 0 | P83: 0 | Q83: 0 | R83: 0 | S83: 0 | T83: 0
C84: 0 | D84: 0 | E84: =IF(E$50>0,E37/E$50,0) -> 0 | F84: 0 | G84: 0 | H84: 0 | I84: 0 | J84: 0 | K84: 0 | L84: 0 | M84: 0 | N84: 0 | O84: 0 | P84: 0 | Q84: 0 | R84: 0 | S84: 0 | T84: 0
C85: 0 | D85: 0 | E85: =IF(E$50>0,E38/E$50,0) -> 0 | F85: 0 | G85: 0 | H85: 0 | I85: 0 | J85: 0 | K85: 0 | L85: 0 | M85: 0 | N85: 0 | O85: 0 | P85: 0 | Q85: 0 | R85: 0 | S85: 0 | T85: 0
C86: 0 | D86: 0 | E86: =IF(E$50>0,E39/E$50,0) -> 0 | F86: 0 | G86: 0 | H86: 0 | I86: 0 | J86: 0 | K86: 0 | L86: 0 | M86: 0 | N86: 0 | O86: 0 | P86: 0 | Q86: 0 | R86: 0 | S86: 0 | T86: 0
C87: 0 | D87: 0 | E87: =IF(E$50>0,E40/E$50,0) -> 0 | F87: 0 | G87: 0 | H87: 0 | I87: 0 | J87: 0 | K87: 0 | L87: 0 | M87: 0 | N87: 0 | O87: 0 | P87: 0 | Q87: 0 | R87: 0 | S87: 0 | T87: 0
C88: 0 | D88: 0 | E88: =IF(E$50>0,E41/E$50,0) -> 0 | F88: 0 | G88: 0 | H88: 0 | I88: 0 | J88: 0 | K88: 0 | L88: 0 | M88: 0 | N88: 0 | O88: 0 | P88: 0 | Q88: 0 | R88: 0 | S88: 0 | T88: 0
C89: 0 | D89: 0 | E89: =IF(E$50>0,E42/E$50,0) -> 0 | F89: 0 | G89: 0 | H89: 0 | I89: 0 | J89: 0 | K89: 0 | L89: 0 | M89: 0 | N89: 0 | O89: 0 | P89: 0 | Q89: 0 | R89: 0 | S89: 0 | T89: 0
C90: 0 | D90: 0 | E90: =IF(E$50>0,E43/E$50,0) -> 0 | F90: 0 | G90: 0 | H90: 0 | I90: 0 | J90: 0 | K90: 0 | L90: 0 | M90: 0 | N90: 0 | O90: 0 | P90: 0 | Q90: 0 | R90: 0 | S90: 0 | T90: 0
C91: 0 | D91: 0 | E91: =IF(E$50>0,E44/E$50,0) -> 0 | F91: 0 | G91: 0 | H91: 0 | I91: 0 | J91: 0 | K91: 0 | L91: 0 | M91: 0 | N91: 0 | O91: 0 | P91: 0 | Q91: 0 | R91: 0 | S91: 0 | T91: 0
C92: =C45 -> 0 | D92: 0 | E92: =IF(E$50>0,E45/E$50,0) -> 0 | F92: 0 | G92: 0 | H92: 0 | I92: 0 | J92: 0 | K92: 0 | L92: 0 | M92: 0 | N92: 0 | O92: 0 | P92: 0 | Q92: 0 | R92: 0 | S92: 0 | T92: 0
C93: 0 | D93: 0 | E93: =IF(E$50>0,E46/E$50,0) -> 0 | F93: 0 | G93: 0 | H93: 0 | I93: 0 | J93: 0 | K93: 0 | L93: 0 | M93: 0 | N93: 0 | O93: 0 | P93: 0 | Q93: 0 | R93: 0 | S93: 0 | T93: 0
C94: 0 | D94: 0 | E94: =IF(E$50>0,E47/E$50,0) -> 0 | F94: 0 | G94: 0 | H94: 0 | I94: 0 | J94: 0 | K94: 0 | L94: 0 | M94: 0 | N94: 0 | O94: 0 | P94: 0 | Q94: 0 | R94: 0 | S94: 0 | T94: 0
C95: 0 | D95: 0 | E95: =IF(E$50>0,E48/E$50,0) -> 0 | F95: 0 | G95: 0 | H95: 0 | I95: 0 | J95: 0 | K95: 0 | L95: 0 | M95: 0 | N95: 0 | O95: 0 | P95: 0 | Q95: 0 | R95: 0 | S95: 0 | T95: 0
C96: 0 | D96: 0 | E96: =IF(E$50>0,E49/E$50,0) -> 0 | F96: 0 | G96: 0 | H96: 0 | I96: 0 | J96: 0 | K96: 0 | L96: 0 | M96: 0 | N96: 0 | O96: 0 | P96: 0 | Q96: 0 | R96: 0 | S96: 0 | T96: 0
A109: COUNT
E110: =E3 -> Female | F110: Male | G110: 0 | H110: 0 | I110: 0 | J110: 0 | K110: 0 | L110: 0 | M110: 0 | N110: 0 | O110: 0 | P110: 0 | Q110: 0 | R110: 0 | S110: 0 | T110: 0
E111: =E4 -> 0 | F111: 0 | G111: 0 | H111: 0 | I111: 0 | J111: 0 | K111: 0 | L111: 0 | M111: 0 | N111: 0 | O111: 0 | P111: 0 | Q111: 0 | R111: 0 | S111: 0 | T111: 0
C112: =C5 -> 1 | D112: PRINT | E112: 8 | F112: 23
C113: 2 | D113: RADIO | E113: 19 | F113: 46
C114: 3 | D114: TELEVISION | E114: 43 | F114: 56
C115: 0 | D115: 0 | E115: 0 | F115: 0
C116: 0 | D116: 0 | E116: 0 | F116: 0
C117: 0 | D117: 0 | E117: 0 | F117: 0
C118: 0 | D118: 0 | E118: 0 | F118: 0
C119: 0 | D119: 0 | E119: 0 | F119: 0
C120: 0 | D120: 0 | E120: 0 | F120: 0
C121: 0 | D121: 0 | E121: 0 | F121: 0
C122: 0 | D122: 0 | E122: 0 | F122: 0
C123: 0 | D123: 0
C124: 0 | D124: 0
C125: 0 | D125: 0
C126: 0 | D126: 0
C127: 0 | D127: 0
C128: 0 | D128: 0
C129: 0 | D129: 0
C130: 0 | D130: 0
C131: 0 | D131: 0
C132: =C25 -> 0 | D132: 0
C133: 0 | D133: 0
C134: 0 | D134: 0
C135: 0 | D135: 0
C136: 0 | D136: 0
C137: 0 | D137: 0
C138: 0 | D138: 0
C139: 0 | D139: 0
C140: 0 | D140: 0
C141: 0 | D141: 0
C142: 0 | D142: 0
C143: 0 | D143: 0
C144: 0 | D144: 0
C145: 0 | D145: 0
C146: 0 | D146: 0
C147: 0 | D147: 0
C148: 0 | D148: 0
C149: 0 | D149: 0
C150: 0 | D150: 0
C151: 0 | D151: 0
C152: =C45 -> 0 | D152: 0
C153: 0 | D153: 0
C154: 0 | D154: 0

Sheet 10a2F - Presenters
D4: RADIO | G4: TELEVSION
D5: Female | E5: Male | F5: N | G5: Female | H5: Male | I5: N
C6: ='10a2'!D112 -> Africa | D6: ='10a2'!W5 -> 0 | E6: ='10a2'!X5 -> 0 | F6: =+'10a2'!E112+'10a2'!F112 -> 0 | G6: ='10a2'!Y5 -> 0 | H6: ='10a2'!Z5 -> 0 | I6: ='10a2'!G112+'10a2'!H112 -> 0
C7: ='10a2'!D113 -> Asia | D7: ='10a2'!W6 -> 0 | E7: ='10a2'!X6 -> 0 | F7: =+'10a2'!E113+'10a2'!F113 -> 0 | G7: ='10a2'!Y6 -> 0 | H7: ='10a2'!Z6 -> 0 | I7: ='10a2'!G113+'10a2'!H113 -> 0
C8: ='10a2'!D114 -> Caribbean | D8: ='10a2'!W7 -> 0 | E8: ='10a2'!X7 -> 0 | F8: =+'10a2'!E114+'10a2'!F114 -> 0 | G8: ='10a2'!Y7 -> 0 | H8: ='10a2'!Z7 -> 0 | I8: ='10a2'!G114+'10a2'!H114 -> 0
C9: ='10a2'!D115 -> Europe | D9: ='10a2'!W8 -> 0.2923076923 | E9: ='10a2'!X8 -> 0.7076923077 | F9: =+'10a2'!E115+'10a2'!F115 -> 65 | G9: ='10a2'!Y8 -> 0.4343434343 | H9: ='10a2'!Z8 -> 0.5656565657 | I9: ='10a2'!G115+'10a2'!H115 -> 99
C10: ='10a2'!D116 -> Latin America | D10: ='10a2'!W9 -> 0 | E10: ='10a2'!X9 -> 0 | F10: =+'10a2'!E116+'10a2'!F116 -> 0 | G10: ='10a2'!Y9 -> 0 | H10: ='10a2'!Z9 -> 0 | I10: ='10a2'!G116+'10a2'!H116 -> 0
C11: ='10a2'!D117 -> Middle East | D11: ='10a2'!W10 -> 0 | E11: ='10a2'!X10 -> 0 | F11: =+'10a2'!E117+'10a2'!F117 -> 0 | G11: ='10a2'!Y10 -> 0 | H11: ='10a2'!Z10 -> 0 | I11: ='10a2'!G117+'10a2'!H117 -> 0
C12: ='10a2'!D118 -> North America | D12: ='10a2'!W11 -> 0 | E12: ='10a2'!X11 -> 0 | F12: =+'10a2'!E118+'10a2'!F118 -> 0 | G12: ='10a2'!Y11 -> 0 | H12: ='10a2'!Z11 -> 0 | I12: ='10a2'!G118+'10a2'!H118 -> 0
C13: ='10a2'!D119 -> Pacific | D13: ='10a2'!W12 -> 0 | E13: ='10a2'!X12 -> 0 | F13: =+'10a2'!E119+'10a2'!F119 -> 0 | G13: ='10a2'!Y12 -> 0 | H13: ='10a2'!Z12 -> 0 | I13: ='10a2'!G119+'10a2'!H119 -> 0

Sheet 10cF - Announcers & Reporters
A1: Announcers & Reporters by medium type, by sex
F2: % Female | K2: % Male
E3: Media Type | F3: 1995 | G3: 2000 | H3: 2005 | I3: % | J3: N | K3: % | L3: N
E5: Print | F5: 0.25 | G5: 0.26 | H5: 0.29 | I5: ='10c'!W5 -> 0.2580645161 | J5: ='10c'!E112 -> 8 | K5: ='10c'!X5 -> 0.7419354839 | L5: ='10c'!F112 -> 23
E6: Radio | F6: 0.48 | G6: =SUM((28+41)/200) -> 0.345 | H6: =SUM((45+49)/200) -> 0.47 | I6: ='10c'!W6 -> 0.2923076923 | J6: ='10c'!E113 -> 19 | K6: ='10c'!X6 -> 0.7076923077 | L6: ='10c'!F113 -> 46
E7: Television | F7: 0.43 | G7: =SUM((36+56)/200) -> 0.46 | H7: =SUM((42+57)/200) -> 0.495 | I7: ='10c'!W7 -> 0.4343434343 | J7: ='10c'!E114 -> 43 | K7: ='10c'!X7 -> 0.5656565657 | L7: ='10c'!F114 -> 56
E10: Total | I10: ='10c'!$W$50 -> 0.3523801878 | J10: =SUM(J5:J8) -> 70 | K10: ='10c'!$X$50 -> 0.6476198122 | L10: =SUM(L5:L8) -> 125

Sheet 10d (hidden)
A1: Announcers by medium type, by sex
E3: Female | F3: Male | W3: =E3 -> Female | X3: Male | Y3: 0 | Z3: 0 | AA3: 0 | AB3: 0 | AC3: 0 | AD3: 0 | AE3: 0 | AF3: 0 | AG3: 0 | AH3: 0 | AI3: 0 | AJ3: 0 | AK3: 0
V4: TOTAL | W4: 0 | X4: 0 | Y4: 0 | Z4: 0 | AA4: 0 | AB4: 0 | AC4: 0 | AD4: 0 | AE4: 0 | AF4: 0 | AG4: 0 | AH4: 0 | AI4: 0 | AJ4: 0 | AK4: 0 | AL4: =T4 -> 0
C5: 1 | D5: PRINT | V5: =SUM(E5:O5) -> 0 | W5: =IF((E5+F5)>0,E5/(E5+F5),0) -> 0 | X5: =IF((E5+F5)>0,F5/(E5+F5),0) -> 0 | Y5: =IF((G5+H5)>0,G5/(G5+H5),0) -> 0 | Z5: =IF((G5+H5)>0,H5/(G5+H5),0) -> 0 | AA5: =IF((I5+J5)>0,I5/(I5+J5),0) -> 0 | AB5: =IF((I5+J5)>0,J5/(I5+J5),0) -> 0 | AC5: =IF((K5+L5)>0,K5/(K5+L5),0) -> 0 | AD5: =IF((K5+L5)>0,L5/(K5+L5),0) -> 0 | AE5: =IF((M5+N5)>0,M5/(M5+N5),0) -> 0 | AF5: =IF((M5+N5)>0,N5/(M5+N5),0) -> 0 | AG5: =IF((O5+P5)>0,O5/(O5+P5),0) -> 0 | AH5: =IF((O5+P5)>0,P5/(O5+P5),0) -> 0 | AI5: =IF((Q5+R5)>0,Q5/(Q5+R5),0) -> 0 | AJ5: =IF((Q5+R5)>0,R5/(Q5+R5),0) -> 0 | AK5: =IF((S5+T5)>0,S5/(S5+T5),0) -> 0 | AL5: =IF((S5+T5)>0,T5/(S5+T5),0) -> 0
C6: 2 | D6: RADIO | E6: 0.04499999899 | F6: 0.179999996 | V6: 0.224999995 | W6: 0.2 | X6: 0.8 | Y6: 0 | Z6: 0 | AA6: 0 | AB6: 0 | AC6: 0 | AD6: 0 | AE6: 0 | AF6: 0 | AG6: 0 | AH6: 0 | AI6: 0 | AJ6: 0 | AK6: 0 | AL6: 0
C7: 3 | D7: TELEVISION | E7: 0.1734000063 | F7: 0.1326000048 | V7: 0.306000011 | W7: 0.5666666667 | X7: 0.4333333333 | Y7: 0 | Z7: 0 | AA7: 0 | AB7: 0 | AC7: 0 | AD7: 0 | AE7: 0 | AF7: 0 | AG7: 0 | AH7: 0 | AI7: 0 | AJ7: 0 | AK7: 0 | AL7: 0
V8: 0 | W8: 0 | X8: 0 | Y8: 0 | Z8: 0 | AA8: 0 | AB8: 0 | AC8: 0 | AD8: 0 | AE8: 0 | AF8: 0 | AG8: 0 | AH8: 0 | AI8: 0 | AJ8: 0 | AK8: 0 | AL8: 0
V9: 0 | W9: 0 | X9: 0 | Y9: 0 | Z9: 0 | AA9: 0 | AB9: 0 | AC9: 0 | AD9: 0 | AE9: 0 | AF9: 0 | AG9: 0 | AH9: 0 | AI9: 0 | AJ9: 0 | AK9: 0 | AL9: 0
V10: 0 | W10: 0 | X10: 0 | Y10: 0 | Z10: 0 | AA10: 0 | AB10: 0 | AC10: 0 | AD10: 0 | AE10: 0 | AF10: 0 | AG10: 0 | AH10: 0 | AI10: 0 | AJ10: 0 | AK10: 0 | AL10: 0
V11: 0 | W11: 0 | X11: 0 | Y11: 0 | Z11: 0 | AA11: 0 | AB11: 0 | AC11: 0 | AD11: 0 | AE11: 0 | AF11: 0 | AG11: 0 | AH11: 0 | AI11: 0 | AJ11: 0 | AK11: 0 | AL11: 0
V12: 0 | W12: 0 | X12: 0 | Y12: 0 | Z12: 0 | AA12: 0 | AB12: 0 | AC12: 0 | AD12: 0 | AE12: 0 | AF12: 0 | AG12: 0 | AH12: 0 | AI12: 0 | AJ12: 0 | AK12: 0 | AL12: 0
D50: TOTAL | E50: =SUM(E5:E49) -> 0.2184000053 | F50: 0.3126000008 | G50: 0 | H50: 0 | I50: 0 | J50: 0 | K50: 0 | L50: 0 | M50: 0 | N50: 0 | O50: 0 | P50: 0 | Q50: 0 | R50: 0 | S50: 0 | T50: 0 | V50: =SUM(E50:O50) -> 0.531000006 | W50: =IF((E50+F50)>0,E50/(E50+F50),0) -> 0.4112994403 | X50: =IF((E50+F50)>0,F50/(E50+F50),0) -> 0.5887005597 | Y50: =IF((G50+H50)>0,G50/(G50+H50),0) -> 0 | Z50: =IF((G50+H50)>0,H50/(G50+H50),0) -> 0 | AA50: =IF((I50+J50)>0,I50/(I50+J50),0) -> 0 | AB50: =IF((I50+J50)>0,J50/(I50+J50),0) -> 0 | AC50: =IF((K50+L50)>0,K50/(K50+L50),0) -> 0 | AD50: =IF((K50+L50)>0,L50/(K50+L50),0) -> 0 | AE50: =IF((M50+N50)>0,M50/(M50+N50),0) -> 0 | AF50: =IF((M50+N50)>0,N50/(M50+N50),0) -> 0 | AG50: =IF((O50+P50)>0,O50/(O50+P50),0) -> 0 | AH50: =IF((O50+P50)>0,P50/(O50+P50),0) -> 0 | AI50: =IF((Q50+R50)>0,Q50/(Q50+R50),0) -> 0 | AJ50: =IF((Q50+R50)>0,R50/(Q50+R50),0) -> 0 | AK50: =IF((S50+T50)>0,S50/(S50+T50),0) -> 0 | AL50: =IF((S50+T50)>0,T50/(S50+T50),0) -> 0
C52: =C5 -> 1 | D52: PRINT | E52: =IF(E$50>0,E5/E$50,0) -> 0 | F52: 0 | G52: 0 | H52: 0 | I52: 0 | J52: 0 | K52: 0 | L52: 0 | M52: 0 | N52: 0 | O52: 0 | P52: 0 | Q52: 0 | R52: 0 | S52: 0 | T52: 0
C53: 2 | D53: RADIO | E53: =IF(E$50>0,E6/E$50,0) -> 0.2060439465 | F53: 0.5758157247 | G53: 0 | H53: 0 | I53: 0 | J53: 0 | K53: 0 | L53: 0 | M53: 0 | N53: 0 | O53: 0 | P53: 0 | Q53: 0 | R53: 0 | S53: 0 | T53: 0
C54: 3 | D54: TELEVISION | E54: =IF(E$50>0,E7/E$50,0) -> 0.7939560535 | F54: 0.4241842753 | G54: 0 | H54: 0 | I54: 0 | J54: 0 | K54: 0 | L54: 0 | M54: 0 | N54: 0 | O54: 0 | P54: 0 | Q54: 0 | R54: 0 | S54: 0 | T54: 0
C55: 0 | D55: 0 | E55: =IF(E$50>0,E8/E$50,0) -> 0 | F55: 0 | G55: 0 | H55: 0 | I55: 0 | J55: 0 | K55: 0 | L55: 0 | M55: 0 | N55: 0 | O55: 0 | P55: 0 | Q55: 0 | R55: 0 | S55: 0 | T55: 0
C56: 0 | D56: 0 | E56: =IF(E$50>0,E9/E$50,0) -> 0 | F56: 0 | G56: 0 | H56: 0 | I56: 0 | J56: 0 | K56: 0 | L56: 0 | M56: 0 | N56: 0 | O56: 0 | P56: 0 | Q56: 0 | R56: 0 | S56: 0 | T56: 0
C57: 0 | D57: 0 | E57: =IF(E$50>0,E10/E$50,0) -> 0 | F57: 0 | G57: 0 | H57: 0 | I57: 0 | J57: 0 | K57: 0 | L57: 0 | M57: 0 | N57: 0 | O57: 0 | P57: 0 | Q57: 0 | R57: 0 | S57: 0 | T57: 0
C58: 0 | D58: 0 | E58: =IF(E$50>0,E11/E$50,0) -> 0 | F58: 0 | G58: 0 | H58: 0 | I58: 0 | J58: 0 | K58: 0 | L58: 0 | M58: 0 | N58: 0 | O58: 0 | P58: 0 | Q58: 0 | R58: 0 | S58: 0 | T58: 0
C59: 0 | D59: 0 | E59: =IF(E$50>0,E12/E$50,0) -> 0 | F59: 0 | G59: 0 | H59: 0 | I59: 0 | J59: 0 | K59: 0 | L59: 0 | M59: 0 | N59: 0 | O59: 0 | P59: 0 | Q59: 0 | R59: 0 | S59: 0 | T59: 0
C60: 0 | D60: 0 | E60: =IF(E$50>0,E13/E$50,0) -> 0 | F60: 0 | G60: 0 | H60: 0 | I60: 0 | J60: 0 | K60: 0 | L60: 0 | M60: 0 | N60: 0 | O60: 0 | P60: 0 | Q60: 0 | R60: 0 | S60: 0 | T60: 0
C61: 0 | D61: 0 | E61: =IF(E$50>0,E14/E$50,0) -> 0 | F61: 0 | G61: 0 | H61: 0 | I61: 0 | J61: 0 | K61: 0 | L61: 0 | M61: 0 | N61: 0 | O61: 0 | P61: 0 | Q61: 0 | R61: 0 | S61: 0 | T61: 0
C62: 0 | D62: 0 | E62: =IF(E$50>0,E15/E$50,0) -> 0 | F62: 0 | G62: 0 | H62: 0 | I62: 0 | J62: 0 | K62: 0 | L62: 0 | M62: 0 | N62: 0 | O62: 0 | P62: 0 | Q62: 0 | R62: 0 | S62: 0 | T62: 0
C63: 0 | D63: 0 | E63: =IF(E$50>0,E16/E$50,0) -> 0 | F63: 0 | G63: 0 | H63: 0 | I63: 0 | J63: 0 | K63: 0 | L63: 0 | M63: 0 | N63: 0 | O63: 0 | P63: 0 | Q63: 0 | R63: 0 | S63: 0 | T63: 0
C64: 0 | D64: 0 | E64: =IF(E$50>0,E17/E$50,0) -> 0 | F64: 0 | G64: 0 | H64: 0 | I64: 0 | J64: 0 | K64: 0 | L64: 0 | M64: 0 | N64: 0 | O64: 0 | P64: 0 | Q64: 0 | R64: 0 | S64: 0 | T64: 0
C65: 0 | D65: 0 | E65: =IF(E$50>0,E18/E$50,0) -> 0 | F65: 0 | G65: 0 | H65: 0 | I65: 0 | J65: 0 | K65: 0 | L65: 0 | M65: 0 | N65: 0 | O65: 0 | P65: 0 | Q65: 0 | R65: 0 | S65: 0 | T65: 0
C66: 0 | D66: 0 | E66: =IF(E$50>0,E19/E$50,0) -> 0 | F66: 0 | G66: 0 | H66: 0 | I66: 0 | J66: 0 | K66: 0 | L66: 0 | M66: 0 | N66: 0 | O66: 0 | P66: 0 | Q66: 0 | R66: 0 | S66: 0 | T66: 0
C67: 0 | D67: 0 | E67: =IF(E$50>0,E20/E$50,0) -> 0 | F67: 0 | G67: 0 | H67: 0 | I67: 0 | J67: 0 | K67: 0 | L67: 0 | M67: 0 | N67: 0 | O67: 0 | P67: 0 | Q67: 0 | R67: 0 | S67: 0 | T67: 0
C68: 0 | D68: 0 | E68: =IF(E$50>0,E21/E$50,0) -> 0 | F68: 0 | G68: 0 | H68: 0 | I68: 0 | J68: 0 | K68: 0 | L68: 0 | M68: 0 | N68: 0 | O68: 0 | P68: 0 | Q68: 0 | R68: 0 | S68: 0 | T68: 0
C69: 0 | D69: 0 | E69: =IF(E$50>0,E22/E$50,0) -> 0 | F69: 0 | G69: 0 | H69: 0 | I69: 0 | J69: 0 | K69: 0 | L69: 0 | M69: 0 | N69: 0 | O69: 0 | P69: 0 | Q69: 0 | R69: 0 | S69: 0 | T69: 0
C70: 0 | D70: 0 | E70: =IF(E$50>0,E23/E$50,0) -> 0 | F70: 0 | G70: 0 | H70: 0 | I70: 0 | J70: 0 | K70: 0 | L70: 0 | M70: 0 | N70: 0 | O70: 0 | P70: 0 | Q70: 0 | R70: 0 | S70: 0 | T70: 0
C71: 0 | D71: 0 | E71: =IF(E$50>0,E24/E$50,0) -> 0 | F71: 0 | G71: 0 | H71: 0 | I71: 0 | J71: 0 | K71: 0 | L71: 0 | M71: 0 | N71: 0 | O71: 0 | P71: 0 | Q71: 0 | R71: 0 | S71: 0 | T71: 0
C72: =C25 -> 0 | D72: 0 | E72: =IF(E$50>0,E25/E$50,0) -> 0 | F72: 0 | G72: 0 | H72: 0 | I72: 0 | J72: 0 | K72: 0 | L72: 0 | M72: 0 | N72: 0 | O72: 0 | P72: 0 | Q72: 0 | R72: 0 | S72: 0 | T72: 0
C73: 0 | D73: 0 | E73: =IF(E$50>0,E26/E$50,0) -> 0 | F73: 0 | G73: 0 | H73: 0 | I73: 0 | J73: 0 | K73: 0 | L73: 0 | M73: 0 | N73: 0 | O73: 0 | P73: 0 | Q73: 0 | R73: 0 | S73: 0 | T73: 0
C74: 0 | D74: 0 | E74: =IF(E$50>0,E27/E$50,0) -> 0 | F74: 0 | G74: 0 | H74: 0 | I74: 0 | J74: 0 | K74: 0 | L74: 0 | M74: 0 | N74: 0 | O74: 0 | P74: 0 | Q74: 0 | R74: 0 | S74: 0 | T74: 0
C75: 0 | D75: 0 | E75: =IF(E$50>0,E28/E$50,0) -> 0 | F75: 0 | G75: 0 | H75: 0 | I75: 0 | J75: 0 | K75: 0 | L75: 0 | M75: 0 | N75: 0 | O75: 0 | P75: 0 | Q75: 0 | R75: 0 | S75: 0 | T75: 0
C76: 0 | D76: 0 | E76: =IF(E$50>0,E29/E$50,0) -> 0 | F76: 0 | G76: 0 | H76: 0 | I76: 0 | J76: 0 | K76: 0 | L76: 0 | M76: 0 | N76: 0 | O76: 0 | P76: 0 | Q76: 0 | R76: 0 | S76: 0 | T76: 0
C77: 0 | D77: 0 | E77: =IF(E$50>0,E30/E$50,0) -> 0 | F77: 0 | G77: 0 | H77: 0 | I77: 0 | J77: 0 | K77: 0 | L77: 0 | M77: 0 | N77: 0 | O77: 0 | P77: 0 | Q77: 0 | R77: 0 | S77: 0 | T77: 0
C78: 0 | D78: 0 | E78: =IF(E$50>0,E31/E$50,0) -> 0 | F78: 0 | G78: 0 | H78: 0 | I78: 0 | J78: 0 | K78: 0 | L78: 0 | M78: 0 | N78: 0 | O78: 0 | P78: 0 | Q78: 0 | R78: 0 | S78: 0 | T78: 0
C79: 0 | D79: 0 | E79: =IF(E$50>0,E32/E$50,0) -> 0 | F79: 0 | G79: 0 | H79: 0 | I79: 0 | J79: 0 | K79: 0 | L79: 0 | M79: 0 | N79: 0 | O79: 0 | P79: 0 | Q79: 0 | R79: 0 | S79: 0 | T79: 0
C80: 0 | D80: 0 | E80: =IF(E$50>0,E33/E$50,0) -> 0 | F80: 0 | G80: 0 | H80: 0 | I80: 0 | J80: 0 | K80: 0 | L80: 0 | M80: 0 | N80: 0 | O80: 0 | P80: 0 | Q80: 0 | R80: 0 | S80: 0 | T80: 0
C81: 0 | D81: 0 | E81: =IF(E$50>0,E34/E$50,0) -> 0 | F81: 0 | G81: 0 | H81: 0 | I81: 0 | J81: 0 | K81: 0 | L81: 0 | M81: 0 | N81: 0 | O81: 0 | P81: 0 | Q81: 0 | R81: 0 | S81: 0 | T81: 0
C82: 0 | D82: 0 | E82: =IF(E$50>0,E35/E$50,0) -> 0 | F82: 0 | G82: 0 | H82: 0 | I82: 0 | J82: 0 | K82: 0 | L82: 0 | M82: 0 | N82: 0 | O82: 0 | P82: 0 | Q82: 0 | R82: 0 | S82: 0 | T82: 0
C83: 0 | D83: 0 | E83: =IF(E$50>0,E36/E$50,0) -> 0 | F83: 0 | G83: 0 | H83: 0 | I83: 0 | J83: 0 | K83: 0 | L83: 0 | M83: 0 | N83: 0 | O83: 0 | P83: 0 | Q83: 0 | R83: 0 | S83: 0 | T83: 0
C84: 0 | D84: 0 | E84: =IF(E$50>0,E37/E$50,0) -> 0 | F84: 0 | G84: 0 | H84: 0 | I84: 0 | J84: 0 | K84: 0 | L84: 0 | M84: 0 | N84: 0 | O84: 0 | P84: 0 | Q84: 0 | R84: 0 | S84: 0 | T84: 0
C85: 0 | D85: 0 | E85: =IF(E$50>0,E38/E$50,0) -> 0 | F85: 0 | G85: 0 | H85: 0 | I85: 0 | J85: 0 | K85: 0 | L85: 0 | M85: 0 | N85: 0 | O85: 0 | P85: 0 | Q85: 0 | R85: 0 | S85: 0 | T85: 0
C86: 0 | D86: 0 | E86: =IF(E$50>0,E39/E$50,0) -> 0 | F86: 0 | G86: 0 | H86: 0 | I86: 0 | J86: 0 | K86: 0 | L86: 0 | M86: 0 | N86: 0 | O86: 0 | P86: 0 | Q86: 0 | R86: 0 | S86: 0 | T86: 0
C87: 0 | D87: 0 | E87: =IF(E$50>0,E40/E$50,0) -> 0 | F87: 0 | G87: 0 | H87: 0 | I87: 0 | J87: 0 | K87: 0 | L87: 0 | M87: 0 | N87: 0 | O87: 0 | P87: 0 | Q87: 0 | R87: 0 | S87: 0 | T87: 0
C88: 0 | D88: 0 | E88: =IF(E$50>0,E41/E$50,0) -> 0 | F88: 0 | G88: 0 | H88: 0 | I88: 0 | J88: 0 | K88: 0 | L88: 0 | M88: 0 | N88: 0 | O88: 0 | P88: 0 | Q88: 0 | R88: 0 | S88: 0 | T88: 0
C89: 0 | D89: 0 | E89: =IF(E$50>0,E42/E$50,0) -> 0 | F89: 0 | G89: 0 | H89: 0 | I89: 0 | J89: 0 | K89: 0 | L89: 0 | M89: 0 | N89: 0 | O89: 0 | P89: 0 | Q89: 0 | R89: 0 | S89: 0 | T89: 0
